Workbook

Sheet Combined
A1: MACC PRD report | E1: Rolling Mill Plant
A2: Date: | C2: 1 | D2: March | E2: 2019
A3: RM 1
A4: Item | B4: Production | H4: Consumption 1 | M4: Consumption 2 | R4: Consumption 3 | W4: Consumption 4 | AB4: Consumption 5
B5: Code | C5: Description | F5: Ton | G5: Bundle | H5: Code | I5: Description | L5: Ton | M5: Code | N5: Description | Q5: Ton | R5: Code | S5: Description | V5: Ton | W5: Code | X5: Description | AA5: Ton | AB5: Code | AC5: Description | AF5: Ton
A6: Product 1 | B6: P0501300002 | C6: STR- B 500 BWR, 25 MM, 12 M | F6: 1200.625102 | G6: 589 | H6: P0100700015 | I6: STB- 4SP (SSS) , 150*150*12 M (52 MW) | L6: 1220.106494 | M6: 0 | N6: 0 | Q6: 0 | R6: 0 | S6: 0 | V6: 0 | W6: 0 | X6: 0 | AA6: 0 | AB6: 0 | AC6: 0 | AF6: 0
A7: Product 2 | B7: P0501400002 | C7: STR- B 400 BWR, 25 MM, 12 M | F7: 214.7953769 | G7: 106 | H7: P0100700015 | I7: STB- 4SP (SSS) , 150*150*12 M (52 MW) | L7: 214.7953769 | M7: 0 | N7: 0 | Q7: 0 | R7: 0 | S7: 0 | V7: 0 | W7: 0 | X7: 0 | AA7: 0 | AB7: 0 | AC7: 0 | AF7: 0
A8: Product 3 | B8: 0 | C8: 0 | F8: 0 | G8: 0 | H8: 0 | I8: 0 | L8: 0 | M8: 0 | N8: 0 | Q8: 0 | R8: 0 | S8: 0 | V8: 0 | W8: 0 | X8: 0 | AA8: 0 | AB8: 0 | AC8: 0 | AF8: 0
A9: Product 4 | B9: 0 | C9: 0 | F9: 0 | G9: 0 | H9: 0 | I9: 0 | L9: 0 | M9: 0 | N9: 0 | Q9: 0 | R9: 0 | S9: 0 | V9: 0 | W9: 0 | X9: 0 | AA9: 0 | AB9: 0 | AC9: 0 | AF9: 0
A10: Product 5 | B10: 0 | C10: 0 | F10: 0 | G10: 0 | H10: 0 | I10: 0 | L10: 0 | M10: 0 | N10: 0 | Q10: 0 | R10: 0 | S10: 0 | V10: 0 | W10: 0 | X10: 0 | AA10: 0 | AB10: 0 | AC10: 0 | AF10: 0
A11: Product 6 | B11: 0 | C11: 0 | F11: 0 | G11: 0 | H11: 0 | I11: 0 | L11: 0 | M11: 0 | N11: 0 | Q11: 0 | R11: 0 | S11: 0 | V11: 0 | W11: 0 | X11: 0 | AA11: 0 | AB11: 0 | AC11: 0 | AF11: 0
A12: Product 7 | B12: 0 | C12: 0 | F12: 0 | G12: 0 | H12: 0 | I12: 0 | L12: 0 | M12: 0 | N12: 0 | Q12: 0 | R12: 0 | S12: 0 | V12: 0 | W12: 0 | X12: 0 | AA12: 0 | AB12: 0 | AC12: 0 | AF12: 0
A13: Product 8 | B13: 0 | C13: 0 | F13: 0 | G13: 0 | H13: 0 | I13: 0 | L13: 0 | M13: 0 | N13: 0 | Q13: 0 | R13: 0 | S13: 0 | V13: 0 | W13: 0 | X13: 0 | AA13: 0 | AB13: 0 | AC13: 0 | AF13: 0
A14: Product 9 | B14: 0 | C14: 0 | F14: 0 | G14: 0 | H14: 0 | I14: 0 | L14: 0 | M14: 0 | N14: 0 | Q14: 0 | R14: 0 | S14: 0 | V14: 0 | W14: 0 | X14: 0 | AA14: 0 | AB14: 0 | AC14: 0 | AF14: 0
A15: Product 10 | B15: 0 | C15: 0 | F15: 0 | G15: 0 | H15: 0 | I15: 0 | L15: 0 | M15: 0 | N15: 0 | Q15: 0 | R15: 0 | S15: 0 | V15: 0 | W15: 0 | X15: 0 | AA15: 0 | AB15: 0 | AC15: 0 | AF15: 0
A16: Rej 1 | B16: P0101300008 | C16: STB- 4SP, 150*150 Different lengths | F16: 1.066596859 | G16: 0.5 | H16: P0100700015 | I16: STB- 4SP (SSS) , 150*150*12 M (52 MW) | L16: 1.066596859 | M16: 0 | N16: 0 | Q16: 0 | R16: 0 | S16: 0 | V16: 0 | W16: 0 | X16: 0 | AA16: 0 | AB16: 0 | AC16: 0 | AF16: 0
A17: Rej 2 | B17: P0101300002 | C17: STB- 4SP, 130*130 Different lengths | F17: 0 | G17: 0 | H17: P0100700014 | I17: STB- 4SP (SSS) , 130*130*12 M ( 52 MW ) | L17: 0 | M17: 0 | N17: 0 | Q17: 0 | R17: 0 | S17: 0 | V17: 0 | W17: 0 | X17: 0 | AA17: 0 | AB17: 0 | AC17: 0 | AF17: 0
A18: Rej 3 | B18: P0101300002 | C18: STB- 4SP, 130*130 Different lengths | F18: 0 | G18: 0 | H18: P0100700001 | I18: STB- 4SP, 130*130*12 M ( 52 MW ) | L18: 0 | M18: 0 | N18: 0 | Q18: 0 | R18: 0 | S18: 0 | V18: 0 | W18: 0 | X18: 0 | AA18: 0 | AB18: 0 | AC18: 0 | AF18: 0
A19: Rej 4 | B19: 0 | C19: 0 | F19: 0 | G19: 0 | H19: 0 | I19: 0 | L19: 0 | M19: 0 | N19: 0 | Q19: 0 | R19: 0 | S19: 0 | V19: 0 | W19: 0 | X19: 0 | AA19: 0 | AB19: 0 | AC19: 0 | AF19: 0
A20: Rej 5 | B20: 0 | C20: 0 | F20: 0 | G20: 0 | H20: 0 | I20: 0 | L20: 0 | M20: 0 | N20: 0 | Q20: 0 | R20: 0 | S20: 0 | V20: 0 | W20: 0 | X20: 0 | AA20: 0 | AB20: 0 | AC20: 0 | AF20: 0
A21: Rej 6 | B21: 0 | C21: 0 | F21: 0 | G21: 0 | H21: 0 | I21: 0 | L21: 0 | M21: 0 | N21: 0 | Q21: 0 | R21: 0 | S21: 0 | V21: 0 | W21: 0 | X21: 0 | AA21: 0 | AB21: 0 | AC21: 0 | AF21: 0
A22: Rej 7 | B22: 0 | C22: 0 | F22: 0 | G22: 0 | H22: 0 | I22: 0 | L22: 0 | M22: 0 | N22: 0 | Q22: 0 | R22: 0 | S22: 0 | V22: 0 | W22: 0 | X22: 0 | AA22: 0 | AB22: 0 | AC22: 0 | AF22: 0
A23: Rej 8 | B23: 0 | C23: 0 | F23: 0 | G23: 0 | H23: 0 | I23: 0 | L23: 0 | M23: 0 | N23: 0 | Q23: 0 | R23: 0 | S23: 0 | V23: 0 | W23: 0 | X23: 0 | AA23: 0 | AB23: 0 | AC23: 0 | AF23: 0
A24: Rej 9 | B24: 0 | C24: 0 | F24: 0 | G24: 0 | H24: 0 | I24: 0 | L24: 0 | M24: 0 | N24: 0 | Q24: 0 | R24: 0 | S24: 0 | V24: 0 | W24: 0 | X24: 0 | AA24: 0 | AB24: 0 | AC24: 0 | AF24: 0
A25: Rej 10 | B25: 0 | C25: 0 | F25: 0 | G25: 0 | H25: 0 | I25: 0 | L25: 0 | M25: 0 | N25: 0 | Q25: 0 | R25: 0 | S25: 0 | V25: 0 | W25: 0 | X25: 0 | AA25: 0 | AB25: 0 | AC25: 0 | AF25: 0
A26: H&T&MR | B26: P0500600001 | C26: MISS ROLLED&HEAD&TAIL | F26: 18.71650622 | G26: 0 | H26: P0100700015 | I26: STB- 4SP (SSS) , 150*150*12 M (52 MW) | L26: 18.71650622 | M26: 0 | N26: 0 | Q26: 0 | R26: 0 | S26: 0 | V26: 0 | W26: 0 | X26: 0 | AA26: 0 | AB26: 0 | AC26: 0 | AF26: 0
A27: Shorts | B27: P0500400001 | C27: STR-SHORTS | F27: 28.88613222 | G27: 0 | H27: P0100700015 | I27: STB- 4SP (SSS) , 150*150*12 M (52 MW) | L27: 28.88613222 | M27: 0 | N27: 0 | Q27: 0 | R27: 0 | S27: 0 | V27: 0 | W27: 0 | X27: 0 | AA27: 0 | AB27: 0 | AC27: 0 | AF27: 0
A28: Cold Shear Cut | B28: P0500700001 | C28: COLD SHEAR CUT | F28: 16.06407757 | G28: 0 | H28: P0100700015 | I28: STB- 4SP (SSS) , 150*150*12 M (52 MW) | L28: 16.06407757 | M28: 0 | N28: 0 | Q28: 0 | R28: 0 | S28: 0 | V28: 0 | W28: 0 | X28: 0 | AA28: 0 | AB28: 0 | AC28: 0 | AF28: 0
A29: Suspended 1 | B29: P0501200008 | C29: STR- 25 MM, SUSPENDED & REJECTED | F29: 0 | G29: 0 | H29: P0100700015 | I29: STB- 4SP (SSS) , 150*150*12 M (52 MW) | L29: 0 | M29: 0 | N29: 0 | Q29: 0 | R29: 0 | S29: 0 | V29: 0 | W29: 0 | X29: 0 | AA29: 0 | AB29: 0 | AC29: 0 | AF29: 0
A30: Suspended 2 | B30: 0 | C30: 0 | F30: 0 | G30: 0 | H30: 0 | I30: 0 | L30: 0 | M30: 0 | N30: 0 | Q30: 0 | R30: 0 | S30: 0 | V30: 0 | W30: 0 | X30: 0 | AA30: 0 | AB30: 0 | AC30: 0 | AF30: 0
A31: Suspended 3 | B31: 0 | C31: 0 | F31: 0 | G31: 0 | H31: 0 | I31: 0 | L31: 0 | M31: 0 | N31: 0 | Q31: 0 | R31: 0 | S31: 0 | V31: 0 | W31: 0 | X31: 0 | AA31: 0 | AB31: 0 | AC31: 0 | AF31: 0
A32: Suspended 4 | B32: 0 | C32: 0 | F32: 0 | G32: 0 | H32: 0 | I32: 0 | L32: 0 | M32: 0 | N32: 0 | Q32: 0 | R32: 0 | S32: 0 | V32: 0 | W32: 0 | X32: 0 | AA32: 0 | AB32: 0 | AC32: 0 | AF32: 0
A33: Suspended 5 | B33: 0 | C33: 0 | F33: 0 | G33: 0 | H33: 0 | I33: 0 | L33: 0 | M33: 0 | N33: 0 | Q33: 0 | R33: 0 | S33: 0 | V33: 0 | W33: 0 | X33: 0 | AA33: 0 | AB33: 0 | AC33: 0 | AF33: 0
A34: Products | B34: =SUM(F6:F33) -> 1480.153792 | E34: Scales = | F34: =J34-B34 -> 19.48139162 | G34: 2.202682481e-13 | I34: Consumption | J34: =SUM(L6:L33,Q6:Q33,V6:V33,AA6:AA33,AF6:AF33) -> 1499.635183 | K34: 0
A35: RM 2
A36: Item | B36: Production | H36: Consumption 1 | M36: Consumption 2 | R36: Consumption 3 | W36: Consumption 4 | AB36: Consumption 5
B37: Code | C37: Description | F37: Ton | G37: Par | H37: Code | I37: Description | L37: Ton | M37: Code | N37: Description | Q37: Ton | R37: Code | S37: Description | V37: Ton | W37: Code | X37: Description | AA37: Ton | AB37: Code | AC37: Description | AF37: Ton
A38: Product 1 | B38: P0600100003 | C38: ST, WIRE ROD COIL, 6 MM, AISI 1006 | F38: 0 | G38: 0 | H38: P0101500001 | I38: STB- 1006, 150*150*12 M | L38: 0 | M38: 0 | N38: 0 | Q38: 0 | R38: 0 | S38: 0 | V38: 0 | W38: 0 | X38: 0 | AA38: 0 | AB38: 0 | AC38: 0 | AF38: 0
A39: Product 2 | B39: 0 | C39: 0 | F39: 0 | G39: 0 | H39: 0 | I39: 0 | L39: 0 | M39: 0 | N39: 0 | Q39: 0 | R39: 0 | S39: 0 | V39: 0 | W39: 0 | X39: 0 | AA39: 0 | AB39: 0 | AC39: 0 | AF39: 0
A40: Product 3 | B40: 0 | C40: 0 | F40: 0 | G40: 0 | H40: 0 | I40: 0 | L40: 0 | M40: 0 | N40: 0 | Q40: 0 | R40: 0 | S40: 0 | V40: 0 | W40: 0 | X40: 0 | AA40: 0 | AB40: 0 | AC40: 0 | AF40: 0
A41: Product 4 | B41: 0 | C41: 0 | F41: 0 | G41: 0 | H41: 0 | I41: 0 | L41: 0 | M41: 0 | N41: 0 | Q41: 0 | R41: 0 | S41: 0 | V41: 0 | W41: 0 | X41: 0 | AA41: 0 | AB41: 0 | AC41: 0 | AF41: 0
A42: Product 5 | B42: 0 | C42: 0 | F42: 0 | G42: 0 | H42: 0 | I42: 0 | L42: 0 | M42: 0 | N42: 0 | Q42: 0 | R42: 0 | S42: 0 | V42: 0 | W42: 0 | X42: 0 | AA42: 0 | AB42: 0 | AC42: 0 | AF42: 0
A43: Product 6 | B43: 0 | C43: 0 | F43: 0 | G43: 0 | H43: 0 | I43: 0 | L43: 0 | M43: 0 | N43: 0 | Q43: 0 | R43: 0 | S43: 0 | V43: 0 | W43: 0 | X43: 0 | AA43: 0 | AB43: 0 | AC43: 0 | AF43: 0
A44: Product 7 | B44: 0 | C44: 0 | F44: 0 | G44: 0 | H44: 0 | I44: 0 | L44: 0 | M44: 0 | N44: 0 | Q44: 0 | R44: 0 | S44: 0 | V44: 0 | W44: 0 | X44: 0 | AA44: 0 | AB44: 0 | AC44: 0 | AF44: 0
A45: Product 8 | B45: 0 | C45: 0 | F45: 0 | G45: 0 | H45: 0 | I45: 0 | L45: 0 | M45: 0 | N45: 0 | Q45: 0 | R45: 0 | S45: 0 | V45: 0 | W45: 0 | X45: 0 | AA45: 0 | AB45: 0 | AC45: 0 | AF45: 0
A46: Product 9 | B46: 0 | C46: 0 | F46: 0 | G46: 0 | H46: 0 | I46: 0 | L46: 0 | M46: 0 | N46: 0 | Q46: 0 | R46: 0 | S46: 0 | V46: 0 | W46: 0 | X46: 0 | AA46: 0 | AB46: 0 | AC46: 0 | AF46: 0
A47: Product 10 | B47: 0 | C47: 0 | F47: 0 | G47: 0 | H47: 0 | I47: 0 | L47: 0 | M47: 0 | N47: 0 | Q47: 0 | R47: 0 | S47: 0 | V47: 0 | W47: 0 | X47: 0 | AA47: 0 | AB47: 0 | AC47: 0 | AF47: 0
A48: Rej 1 | B48: P0101300005 | C48: STB, 1006, 150*150, DIFF.LENGTH, R | F48: 0 | G48: 0 | H48: P0101500001 | I48: STB- 1006, 150*150*12 M | L48: 0 | M48: 0 | N48: 0 | Q48: 0 | R48: 0 | S48: 0 | V48: 0 | W48: 0 | X48: 0 | AA48: 0 | AB48: 0 | AC48: 0 | AF48: 0
A49: Rej 2 | B49: P0101300002 | C49: STB- 4SP, 130*130 Different lengths | F49: 0 | G49: 0 | H49: P0100700015 | I49: STB- 4SP (SSS) , 150*150*12 M (52 MW) | L49: 0 | M49: 0 | N49: 0 | Q49: 0 | R49: 0 | S49: 0 | V49: 0 | W49: 0 | X49: 0 | AA49: 0 | AB49: 0 | AC49: 0 | AF49: 0
A50: Rej 3 | B50: P0101300008 | C50: STB- 4SP, 150*150 Different lengths | F50: 0 | G50: 0 | H50: P0101500001 | I50: STB- 1006, 150*150*12 M | L50: 0 | M50: 0 | N50: 0 | Q50: 0 | R50: 0 | S50: 0 | V50: 0 | W50: 0 | X50: 0 | AA50: 0 | AB50: 0 | AC50: 0 | AF50: 0
A51: Rej 4 | B51: 0 | C51: 0 | F51: 0 | G51: 0 | H51: 0 | I51: 0 | M51: 0 | N51: 0 | Q51: 0 | R51: 0 | S51: 0 | V51: 0 | W51: 0 | X51: 0 | AA51: 0 | AB51: 0 | AC51: 0 | AF51: 0
A52: Rej 5 | B52: 0 | C52: 0 | F52: 0 | G52: 0 | H52: 0 | I52: 0 | L52: 0 | M52: 0 | N52: 0 | Q52: 0 | R52: 0 | S52: 0 | V52: 0 | W52: 0 | X52: 0 | AA52: 0 | AB52: 0 | AC52: 0 | AF52: 0
A53: Rej 6 | B53: 0 | C53: 0 | F53: 0 | G53: 0 | H53: 0 | I53: 0 | L53: 0 | M53: 0 | N53: 0 | Q53: 0 | R53: 0 | S53: 0 | V53: 0 | W53: 0 | X53: 0 | AA53: 0 | AB53: 0 | AC53: 0 | AF53: 0
A54: Rej 7 | B54: 0 | C54: 0 | F54: 0 | G54: 0 | H54: 0 | I54: 0 | L54: 0 | M54: 0 | N54: 0 | Q54: 0 | R54: 0 | S54: 0 | V54: 0 | W54: 0 | X54: 0 | AA54: 0 | AB54: 0 | AC54: 0 | AF54: 0
A55: Rej 8 | B55: 0 | C55: 0 | F55: 0 | G55: 0 | H55: 0 | I55: 0 | L55: 0 | M55: 0 | N55: 0 | Q55: 0 | R55: 0 | S55: 0 | V55: 0 | W55: 0 | X55: 0 | AA55: 0 | AB55: 0 | AC55: 0 | AF55: 0
A56: Rej 9 | B56: 0 | C56: 0 | F56: 0 | G56: 0 | H56: 0 | I56: 0 | L56: 0 | M56: 0 | N56: 0 | Q56: 0 | R56: 0 | S56: 0 | V56: 0 | W56: 0 | X56: 0 | AA56: 0 | AB56: 0 | AC56: 0 | AF56: 0
A57: Rej 10 | B57: 0 | C57: 0 | F57: 0 | G57: 0 | H57: 0 | I57: 0 | L57: 0 | M57: 0 | N57: 0 | Q57: 0 | R57: 0 | S57: 0 | V57: 0 | W57: 0 | X57: 0 | AA57: 0 | AB57: 0 | AC57: 0 | AF57: 0
A58: H&T&MR | B58: P0500600001 | C58: MISS ROLLED&HEAD&TAIL | F58: 0 | G58: 0 | H58: P0101500007 | I58: STB- 1006, 130*130*12M | L58: 0 | M58: 0 | N58: 0 | Q58: 0 | R58: 0 | S58: 0 | V58: 0 | W58: 0 | X58: 0 | AA58: 0 | AB58: 0 | AC58: 0 | AF58: 0
A59: Trimming | B59: P0601300002 | C59: Trimming | F59: 0 | G59: 0 | H59: P0101500007 | I59: STB- 1006, 130*130*12M | L59: 0 | M59: 0 | N59: 0 | Q59: 0 | R59: 0 | S59: 0 | V59: 0 | W59: 0 | X59: 0 | AA59: 0 | AB59: 0 | AC59: 0 | AF59: 0
A60: Suspended 1 | B60: P0601100002 | C60: SUSPENDED COIL, 6MM | F60: 0 | G60: 0 | H60: P0101500007 | I60: STB- 1006, 130*130*12M | L60: 0 | M60: 0 | N60: 0 | Q60: 0 | R60: 0 | S60: 0 | V60: 0 | W60: 0 | X60: 0 | AA60: 0 | AB60: 0 | AC60: 0 | AF60: 0
A61: Suspended 2 | B61: 0 | C61: 0 | F61: 0 | G61: 0 | H61: 0 | I61: 0 | L61: 0 | M61: 0 | N61: 0 | Q61: 0 | R61: 0 | S61: 0 | V61: 0 | W61: 0 | X61: 0 | AA61: 0 | AB61: 0 | AC61: 0 | AF61: 0
A62: Suspended 3 | B62: 0 | C62: 0 | F62: 0 | G62: 0 | H62: 0 | I62: 0 | L62: 0 | M62: 0 | N62: 0 | Q62: 0 | R62: 0 | S62: 0 | V62: 0 | W62: 0 | X62: 0 | AA62: 0 | AB62: 0 | AC62: 0 | AF62: 0
A63: Suspended 4 | B63: 0 | C63: 0 | F63: 0 | G63: 0 | H63: 0 | I63: 0 | L63: 0 | M63: 0 | N63: 0 | Q63: 0 | R63: 0 | S63: 0 | V63: 0 | W63: 0 | X63: 0 | AA63: 0 | AB63: 0 | AC63: 0 | AF63: 0
A64: Suspended 5 | B64: 0 | C64: 0 | F64: 0 | G64: 0 | H64: 0 | I64: 0 | L64: 0 | M64: 0 | N64: 0 | Q64: 0 | R64: 0 | S64: 0 | V64: 0 | W64: 0 | X64: 0 | AA64: 0 | AB64: 0 | AC64: 0 | AF64: 0
A65: Products | B65: =SUM(F38:F64) -> 0 | E65: Scales = | F65: =J65-B65 -> 0 | G65: 0 | I65: Consumption | J65: =SUM(L38:L64,Q38:Q64,V38:V64,AA38:AA64,AF38:AF64) -> 0 | K65: 0
A66: Date: | C66: 2 | D66: March | E66: 2019
A67: RM 1
A68: Item | B68: Production | H68: Consumption 1 | M68: Consumption 2 | R68: Consumption 3 | W68: Consumption 4 | AB68: Consumption 5
B69: Code | C69: Description | F69: Ton | G69: Bundle | H69: Code | I69: Description | L69: Ton | M69: Code | N69: Description | Q69: Ton | R69: Code | S69: Description | V69: Ton | W69: Code | X69: Description | AA69: Ton | AB69: Code | AC69: Description | AF69: Ton
A70: Product 1 | B70: P0501300002 | C70: STR- B 500 BWR, 25 MM, 12 M | F70: 1713.776524 | G70: 855 | H70: P0100700015 | I70: STB- 4SP (SSS) , 150*150*12 M (52 MW) | L70: 1737.257644 | M70: 0 | N70: 0 | Q70: 0 | R70: 0 | S70: 0 | V70: 0 | W70: 0 | X70: 0 | AA70: 0 | AB70: 0 | AC70: 0 | AF70: 0
A71: Product 2 | B71: 0 | C71: 0 | F71: 0 | G71: 0 | H71: 0 | I71: 0 | L71: 0 | M71: 0 | N71: 0 | Q71: 0 | R71: 0 | S71: 0 | V71: 0 | W71: 0 | X71: 0 | AA71: 0 | AB71: 0 | AC71: 0 | AF71: 0
A72: Product 3 | B72: 0 | C72: 0 | F72: 0 | G72: 0 | H72: 0 | I72: 0 | L72: 0 | M72: 0 | N72: 0 | Q72: 0 | R72: 0 | S72: 0 | V72: 0 | W72: 0 | X72: 0 | AA72: 0 | AB72: 0 | AC72: 0 | AF72: 0
A73: Product 4 | B73: 0 | C73: 0 | F73: 0 | G73: 0 | H73: 0 | I73: 0 | L73: 0 | M73: 0 | N73: 0 | Q73: 0 | R73: 0 | S73: 0 | V73: 0 | W73: 0 | X73: 0 | AA73: 0 | AB73: 0 | AC73: 0 | AF73: 0
A74: Product 5 | B74: 0 | C74: 0 | F74: 0 | G74: 0 | H74: 0 | I74: 0 | L74: 0 | M74: 0 | N74: 0 | Q74: 0 | R74: 0 | S74: 0 | V74: 0 | W74: 0 | X74: 0 | AA74: 0 | AB74: 0 | AC74: 0 | AF74: 0
A75: Product 6 | B75: 0 | C75: 0 | F75: 0 | G75: 0 | H75: 0 | I75: 0 | L75: 0 | M75: 0 | N75: 0 | Q75: 0 | R75: 0 | S75: 0 | V75: 0 | W75: 0 | X75: 0 | AA75: 0 | AB75: 0 | AC75: 0 | AF75: 0
A76: Product 7 | B76: 0 | C76: 0 | F76: 0 | G76: 0 | H76: 0 | I76: 0 | L76: 0 | M76: 0 | N76: 0 | Q76: 0 | R76: 0 | S76: 0 | V76: 0 | W76: 0 | X76: 0 | AA76: 0 | AB76: 0 | AC76: 0 | AF76: 0
A77: Product 8 | B77: 0 | C77: 0 | F77: 0 | G77: 0 | H77: 0 | I77: 0 | L77: 0 | M77: 0 | N77: 0 | Q77: 0 | R77: 0 | S77: 0 | V77: 0 | W77: 0 | X77: 0 | AA77: 0 | AB77: 0 | AC77: 0 | AF77: 0
A78: Product 9 | B78: 0 | C78: 0 | F78: 0 | G78: 0 | H78: 0 | I78: 0 | L78: 0 | M78: 0 | N78: 0 | Q78: 0 | R78: 0 | S78: 0 | V78: 0 | W78: 0 | X78: 0 | AA78: 0 | AB78: 0 | AC78: 0 | AF78: 0
A79: Product 10 | B79: 0 | C79: 0 | F79: 0 | G79: 0 | H79: 0 | I79: 0 | L79: 0 | M79: 0 | N79: 0 | Q79: 0 | R79: 0 | S79: 0 | V79: 0 | W79: 0 | X79: 0 | AA79: 0 | AB79: 0 | AC79: 0 | AF79: 0
A80: Rej 1 | B80: P0101300008 | C80: STB- 4SP, 150*150 Different lengths | F80: 2.12 | G80: 1 | H80: P0100700015 | I80: STB- 4SP (SSS) , 150*150*12 M (52 MW) | L80: 2.12 | M80: 0 | N80: 0 | Q80: 0 | R80: 0 | S80: 0 | V80: 0 | W80: 0 | X80: 0 | AA80: 0 | AB80: 0 | AC80: 0 | AF80: 0
A81: Rej 2 | B81: P0101300002 | C81: STB- 4SP, 130*130 Different lengths | F81: 0 | G81: 0 | H81: P0100700014 | I81: STB- 4SP (SSS) , 130*130*12 M ( 52 MW ) | L81: 0 | M81: 0 | N81: 0 | Q81: 0 | R81: 0 | S81: 0 | V81: 0 | W81: 0 | X81: 0 | AA81: 0 | AB81: 0 | AC81: 0 | AF81: 0
A82: Rej 3 | B82: P0101300002 | C82: STB- 4SP, 130*130 Different lengths | F82: 0 | G82: 0 | H82: P0100700001 | I82: STB- 4SP, 130*130*12 M ( 52 MW ) | L82: 0 | M82: 0 | N82: 0 | Q82: 0 | R82: 0 | S82: 0 | V82: 0 | W82: 0 | X82: 0 | AA82: 0 | AB82: 0 | AC82: 0 | AF82: 0
A83: Rej 4 | B83: 0 | C83: 0 | F83: 0 | G83: 0 | H83: 0 | I83: 0 | L83: 0 | M83: 0 | N83: 0 | Q83: 0 | R83: 0 | S83: 0 | V83: 0 | W83: 0 | X83: 0 | AA83: 0 | AB83: 0 | AC83: 0 | AF83: 0
A84: Rej 5 | B84: 0 | C84: 0 | F84: 0 | G84: 0 | H84: 0 | I84: 0 | L84: 0 | M84: 0 | N84: 0 | Q84: 0 | R84: 0 | S84: 0 | V84: 0 | W84: 0 | X84: 0 | AA84: 0 | AB84: 0 | AC84: 0 | AF84: 0
A85: Rej 6 | B85: 0 | C85: 0 | F85: 0 | G85: 0 | H85: 0 | I85: 0 | L85: 0 | M85: 0 | N85: 0 | Q85: 0 | R85: 0 | S85: 0 | V85: 0 | W85: 0 | X85: 0 | AA85: 0 | AB85: 0 | AC85: 0 | AF85: 0
A86: Rej 7 | B86: 0 | C86: 0 | F86: 0 | G86: 0 | H86: 0 | I86: 0 | L86: 0 | M86: 0 | N86: 0 | Q86: 0 | R86: 0 | S86: 0 | V86: 0 | W86: 0 | X86: 0 | AA86: 0 | AB86: 0 | AC86: 0 | AF86: 0
A87: Rej 8 | B87: 0 | C87: 0 | F87: 0 | G87: 0 | H87: 0 | I87: 0 | L87: 0 | M87: 0 | N87: 0 | Q87: 0 | R87: 0 | S87: 0 | V87: 0 | W87: 0 | X87: 0 | AA87: 0 | AB87: 0 | AC87: 0 | AF87: 0
A88: Rej 9 | B88: 0 | C88: 0 | F88: 0 | G88: 0 | H88: 0 | I88: 0 | L88: 0 | M88: 0 | N88: 0 | Q88: 0 | R88: 0 | S88: 0 | V88: 0 | W88: 0 | X88: 0 | AA88: 0 | AB88: 0 | AC88: 0 | AF88: 0
A89: Rej 10 | B89: 0 | C89: 0 | F89: 0 | G89: 0 | H89: 0 | I89: 0 | L89: 0 | M89: 0 | N89: 0 | Q89: 0 | R89: 0 | S89: 0 | V89: 0 | W89: 0 | X89: 0 | AA89: 0 | AB89: 0 | AC89: 0 | AF89: 0
A90: H&T&MR | B90: P0500600001 | C90: MISS ROLLED&HEAD&TAIL | F90: 14.55710508 | G90: 0 | H90: P0100700015 | I90: STB- 4SP (SSS) , 150*150*12 M (52 MW) | L90: 14.55710508 | M90: 0 | N90: 0 | Q90: 0 | R90: 0 | S90: 0 | V90: 0 | W90: 0 | X90: 0 | AA90: 0 | AB90: 0 | AC90: 0 | AF90: 0
A91: Shorts | B91: P0500400001 | C91: STR-SHORTS | F91: 34.97503111 | G91: 0 | H91: P0100700015 | I91: STB- 4SP (SSS) , 150*150*12 M (52 MW) | L91: 34.97503111 | M91: 0 | N91: 0 | Q91: 0 | R91: 0 | S91: 0 | V91: 0 | W91: 0 | X91: 0 | AA91: 0 | AB91: 0 | AC91: 0 | AF91: 0
A92: Cold Shear Cut | B92: P0500700001 | C92: COLD SHEAR CUT | F92: 19.45021952 | G92: 0 | H92: P0100700015 | I92: STB- 4SP (SSS) , 150*150*12 M (52 MW) | L92: 19.45021952 | M92: 0 | N92: 0 | Q92: 0 | R92: 0 | S92: 0 | V92: 0 | W92: 0 | X92: 0 | AA92: 0 | AB92: 0 | AC92: 0 | AF92: 0
A93: Suspended 1 | B93: P0501200008 | C93: STR- 25 MM, SUSPENDED & REJECTED | F93: 0 | G93: 0 | H93: P0100700015 | I93: STB- 4SP (SSS) , 150*150*12 M (52 MW) | L93: 0 | M93: 0 | N93: 0 | Q93: 0 | R93: 0 | S93: 0 | V93: 0 | W93: 0 | X93: 0 | AA93: 0 | AB93: 0 | AC93: 0 | AF93: 0
A94: Suspended 2 | B94: 0 | C94: 0 | F94: 0 | G94: 0 | H94: 0 | I94: 0 | L94: 0 | M94: 0 | N94: 0 | Q94: 0 | R94: 0 | S94: 0 | V94: 0 | W94: 0 | X94: 0 | AA94: 0 | AB94: 0 | AC94: 0 | AF94: 0
A95: Suspended 3 | B95: 0 | C95: 0 | F95: 0 | G95: 0 | H95: 0 | I95: 0 | L95: 0 | M95: 0 | N95: 0 | Q95: 0 | R95: 0 | S95: 0 | V95: 0 | W95: 0 | X95: 0 | AA95: 0 | AB95: 0 | AC95: 0 | AF95: 0
A96: Suspended 4 | B96: 0 | C96: 0 | F96: 0 | G96: 0 | H96: 0 | I96: 0 | L96: 0 | M96: 0 | N96: 0 | Q96: 0 | R96: 0 | S96: 0 | V96: 0 | W96: 0 | X96: 0 | AA96: 0 | AB96: 0 | AC96: 0 | AF96: 0
A97: Suspended 5 | B97: 0 | C97: 0 | F97: 0 | G97: 0 | H97: 0 | I97: 0 | L97: 0 | M97: 0 | N97: 0 | Q97: 0 | R97: 0 | S97: 0 | V97: 0 | W97: 0 | X97: 0 | AA97: 0 | AB97: 0 | AC97: 0 | AF97: 0
A98: Products | B98: =SUM(F70:F97) -> 1784.87888 | E98: Scales = | F98: =J98-B98 -> 23.48112 | G98: -8.171241461e-14 | I98: Consumption | J98: =SUM(L70:L97,Q70:Q97,V70:V97,AA70:AA97,AF70:AF97) -> 1808.36 | K98: 0
A99: RM 2
A100: Item | B100: Production | H100: Consumption 1 | M100: Consumption 2 | R100: Consumption 3 | W100: Consumption 4 | AB100: Consumption 5
B101: Code | C101: Description | F101: Ton | G101: Par | H101: Code | I101: Description | L101: Ton | M101: Code | N101: Description | Q101: Ton | R101: Code | S101: Description | V101: Ton | W101: Code | X101: Description | AA101: Ton | AB101: Code | AC101: Description | AF101: Ton
A102: Product 1 | B102: P0600600038 | C102: SPOOLED REBAR, SIZE 22 MM, GRADE B 400 BWR | F102: 0 | G102: 0 | H102: P0100700015 | I102: STB- 4SP (SSS) , 150*150*12 M (52 MW) | L102: 0 | M102: 0 | N102: 0 | Q102: 0 | R102: 0 | S102: 0 | V102: 0 | W102: 0 | X102: 0 | AA102: 0 | AB102: 0 | AC102: 0 | AF102: 0
A103: Product 2 | B103: 0 | C103: 0 | F103: 0 | G103: 0 | H103: 0 | I103: 0 | L103: 0 | M103: 0 | N103: 0 | Q103: 0 | R103: 0 | S103: 0 | V103: 0 | W103: 0 | X103: 0 | AA103: 0 | AB103: 0 | AC103: 0 | AF103: 0
A104: Product 3 | B104: 0 | C104: 0 | F104: 0 | G104: 0 | H104: 0 | I104: 0 | L104: 0 | M104: 0 | N104: 0 | Q104: 0 | R104: 0 | S104: 0 | V104: 0 | W104: 0 | X104: 0 | AA104: 0 | AB104: 0 | AC104: 0 | AF104: 0
A105: Product 4 | B105: 0 | C105: 0 | F105: 0 | G105: 0 | H105: 0 | I105: 0 | L105: 0 | M105: 0 | N105: 0 | Q105: 0 | R105: 0 | S105: 0 | V105: 0 | W105: 0 | X105: 0 | AA105: 0 | AB105: 0 | AC105: 0 | AF105: 0
A106: Product 5 | B106: 0 | C106: 0 | F106: 0 | G106: 0 | H106: 0 | I106: 0 | L106: 0 | M106: 0 | N106: 0 | Q106: 0 | R106: 0 | S106: 0 | V106: 0 | W106: 0 | X106: 0 | AA106: 0 | AB106: 0 | AC106: 0 | AF106: 0
A107: Product 6 | B107: 0 | C107: 0 | F107: 0 | G107: 0 | H107: 0 | I107: 0 | L107: 0 | M107: 0 | N107: 0 | Q107: 0 | R107: 0 | S107: 0 | V107: 0 | W107: 0 | X107: 0 | AA107: 0 | AB107: 0 | AC107: 0 | AF107: 0
A108: Product 7 | B108: 0 | C108: 0 | F108: 0 | G108: 0 | H108: 0 | I108: 0 | L108: 0 | M108: 0 | N108: 0 | Q108: 0 | R108: 0 | S108: 0 | V108: 0 | W108: 0 | X108: 0 | AA108: 0 | AB108: 0 | AC108: 0 | AF108: 0
A109: Product 8 | B109: 0 | C109: 0 | F109: 0 | G109: 0 | H109: 0 | I109: 0 | L109: 0 | M109: 0 | N109: 0 | Q109: 0 | R109: 0 | S109: 0 | V109: 0 | W109: 0 | X109: 0 | AA109: 0 | AB109: 0 | AC109: 0 | AF109: 0
A110: Product 9 | B110: 0 | C110: 0 | F110: 0 | G110: 0 | H110: 0 | I110: 0 | L110: 0 | M110: 0 | N110: 0 | Q110: 0 | R110: 0 | S110: 0 | V110: 0 | W110: 0 | X110: 0 | AA110: 0 | AB110: 0 | AC110: 0 | AF110: 0
A111: Product 10 | B111: 0 | C111: 0 | F111: 0 | G111: 0 | H111: 0 | I111: 0 | L111: 0 | M111: 0 | N111: 0 | Q111: 0 | R111: 0 | S111: 0 | V111: 0 | W111: 0 | X111: 0 | AA111: 0 | AB111: 0 | AC111: 0 | AF111: 0
A112: Rej 1 | B112: P0101300008 | C112: STB- 4SP, 150*150 Different lengths | F112: 0 | G112: 0 | H112: P0100700015 | I112: STB- 4SP (SSS) , 150*150*12 M (52 MW) | L112: 0 | M112: 0 | N112: 0 | Q112: 0 | R112: 0 | S112: 0 | V112: 0 | W112: 0 | X112: 0 | AA112: 0 | AB112: 0 | AC112: 0 | AF112: 0
A113: Rej 2 | B113: P0101300002 | C113: STB- 4SP, 130*130 Different lengths | F113: 0 | G113: 0 | H113: P0100700014 | I113: STB- 4SP (SSS) , 130*130*12 M ( 52 MW ) | L113: 0 | M113: 0 | N113: 0 | Q113: 0 | R113: 0 | S113: 0 | V113: 0 | W113: 0 | X113: 0 | AA113: 0 | AB113: 0 | AC113: 0 | AF113: 0
A114: Rej 3 | B114: P0101300005 | C114: STB, 1006, 150*150, DIFF.LENGTH, R | F114: 0 | G114: 0 | H114: P0101500001 | I114: STB- 1006, 150*150*12 M | L114: 0 | M114: 0 | N114: 0 | Q114: 0 | R114: 0 | S114: 0 | V114: 0 | W114: 0 | X114: 0 | AA114: 0 | AB114: 0 | AC114: 0 | AF114: 0
A115: Rej 4 | B115: 0 | C115: 0 | F115: 0 | G115: 0 | H115: 0 | I115: 0 | M115: 0 | N115: 0 | Q115: 0 | R115: 0 | S115: 0 | V115: 0 | W115: 0 | X115: 0 | AA115: 0 | AB115: 0 | AC115: 0 | AF115: 0
A116: Rej 5 | B116: 0 | C116: 0 | F116: 0 | G116: 0 | H116: 0 | I116: 0 | L116: 0 | M116: 0 | N116: 0 | Q116: 0 | R116: 0 | S116: 0 | V116: 0 | W116: 0 | X116: 0 | AA116: 0 | AB116: 0 | AC116: 0 | AF116: 0
A117: Rej 6 | B117: 0 | C117: 0 | F117: 0 | G117: 0 | H117: 0 | I117: 0 | L117: 0 | M117: 0 | N117: 0 | Q117: 0 | R117: 0 | S117: 0 | V117: 0 | W117: 0 | X117: 0 | AA117: 0 | AB117: 0 | AC117: 0 | AF117: 0
A118: Rej 7 | B118: 0 | C118: 0 | F118: 0 | G118: 0 | H118: 0 | I118: 0 | L118: 0 | M118: 0 | N118: 0 | Q118: 0 | R118: 0 | S118: 0 | V118: 0 | W118: 0 | X118: 0 | AA118: 0 | AB118: 0 | AC118: 0 | AF118: 0
A119: Rej 8 | B119: 0 | C119: 0 | F119: 0 | G119: 0 | H119: 0 | I119: 0 | L119: 0 | M119: 0 | N119: 0 | Q119: 0 | R119: 0 | S119: 0 | V119: 0 | W119: 0 | X119: 0 | AA119: 0 | AB119: 0 | AC119: 0 | AF119: 0
A120: Rej 9 | B120: 0 | C120: 0 | F120: 0 | G120: 0 | H120: 0 | I120: 0 | L120: 0 | M120: 0 | N120: 0 | Q120: 0 | R120: 0 | S120: 0 | V120: 0 | W120: 0 | X120: 0 | AA120: 0 | AB120: 0 | AC120: 0 | AF120: 0
A121: Rej 10 | B121: 0 | C121: 0 | F121: 0 | G121: 0 | H121: 0 | I121: 0 | L121: 0 | M121: 0 | N121: 0 | Q121: 0 | R121: 0 | S121: 0 | V121: 0 | W121: 0 | X121: 0 | AA121: 0 | AB121: 0 | AC121: 0 | AF121: 0
A122: H&T&MR | B122: P0500600001 | C122: MISS ROLLED&HEAD&TAIL | F122: 0 | G122: 0 | H122: P0100700015 | I122: STB- 4SP (SSS) , 150*150*12 M (52 MW) | L122: 0 | M122: 0 | N122: 0 | Q122: 0 | R122: 0 | S122: 0 | V122: 0 | W122: 0 | X122: 0 | AA122: 0 | AB122: 0 | AC122: 0 | AF122: 0
A123: Trimming | B123: P0601300002 | C123: Trimming | F123: 0 | G123: 0 | H123: P0100700015 | I123: STB- 4SP (SSS) , 150*150*12 M (52 MW) | L123: 0 | M123: 0 | N123: 0 | Q123: 0 | R123: 0 | S123: 0 | V123: 0 | W123: 0 | X123: 0 | AA123: 0 | AB123: 0 | AC123: 0 | AF123: 0
A124: Suspended 1 | B124: P0601200009 | C124: SUSPENDED SPOOL, 22 MM | F124: 0 | G124: 0 | H124: P0100700015 | I124: STB- 4SP (SSS) , 150*150*12 M (52 MW) | L124: 0 | M124: 0 | N124: 0 | Q124: 0 | R124: 0 | S124: 0 | V124: 0 | W124: 0 | X124: 0 | AA124: 0 | AB124: 0 | AC124: 0 | AF124: 0
A125: Suspended 2 | B125: 0 | C125: 0 | F125: 0 | G125: 0 | H125: 0 | I125: 0 | L125: 0 | M125: 0 | N125: 0 | Q125: 0 | R125: 0 | S125: 0 | V125: 0 | W125: 0 | X125: 0 | AA125: 0 | AB125: 0 | AC125: 0 | AF125: 0
A126: Suspended 3 | B126: 0 | C126: 0 | F126: 0 | G126: 0 | H126: 0 | I126: 0 | L126: 0 | M126: 0 | N126: 0 | Q126: 0 | R126: 0 | S126: 0 | V126: 0 | W126: 0 | X126: 0 | AA126: 0 | AB126: 0 | AC126: 0 | AF126: 0
A127: Suspended 4 | B127: 0 | C127: 0 | F127: 0 | G127: 0 | H127: 0 | I127: 0 | L127: 0 | M127: 0 | N127: 0 | Q127: 0 | R127: 0 | S127: 0 | V127: 0 | W127: 0 | X127: 0 | AA127: 0 | AB127: 0 | AC127: 0 | AF127: 0
A128: Suspended 5 | B128: 0 | C128: 0 | F128: 0 | G128: 0 | H128: 0 | I128: 0 | L128: 0 | M128: 0 | N128: 0 | Q128: 0 | R128: 0 | S128: 0 | V128: 0 | W128: 0 | X128: 0 | AA128: 0 | AB128: 0 | AC128: 0 | AF128: 0
A129: Products | B129: =SUM(F102:F128) -> 0 | E129: Scales = | F129: =J129-B129 -> 0 | G129: 0 | I129: Consumption | J129: =SUM(L102:L128,Q102:Q128,V102:V128,AA102:AA128,AF102:AF128) -> 0 | K129: 0
A130: Date: | C130: 3 | D130: March | E130: 2019
A131: RM 1
A132: Item | B132: Production | H132: Consumption 1 | M132: Consumption 2 | R132: Consumption 3 | W132: Consumption 4 | AB132: Consumption 5
B133: Code | C133: Description | F133: Ton | G133: Par | H133: Code | I133: Description | L133: Ton | M133: Code | N133: Description | Q133: Ton | R133: Code | S133: Description | V133: Ton | W133: Code | X133: Description | AA133: Ton | AB133: Code | AC133: Description | AF133: Ton
A134: Product 1 | B134: P0501400001 | C134: STR- B 400 BWR, 32 MM, 12 M | F134: 521.085628 | G134: 261 | H134: P0100700015 | I134: STB- 4SP (SSS) , 150*150*12 M (52 MW) | L134: 539.6503147 | M134: 0 | N134: 0 | Q134: 0 | R134: 0 | S134: 0 | V134: 0 | W134: 0 | X134: 0 | AA134: 0 | AB134: 0 | AC134: 0 | AF134: 0
A135: Product 2 | B135: P0501300002 | C135: STR- B 500 BWR, 25 MM, 12 M | F135: 489.974641 | G135: 238 | H135: P0100700015 | I135: STB- 4SP (SSS) , 150*150*12 M (52 MW) | L135: 489.974641 | M135: 0 | N135: 0 | Q135: 0 | R135: 0 | S135: 0 | V135: 0 | W135: 0 | X135: 0 | AA135: 0 | AB135: 0 | AC135: 0 | AF135: 0
A136: Product 3 | B136: P0501400002 | C136: STR- B 400 BWR, 25 MM, 12 M | F136: 273.3329609 | G136: 136 | H136: P0100700015 | I136: STB- 4SP (SSS) , 150*150*12 M (52 MW) | L136: 273.3329609 | M136: 0 | N136: 0 | Q136: 0 | R136: 0 | S136: 0 | V136: 0 | W136: 0 | X136: 0 | AA136: 0 | AB136: 0 | AC136: 0 | AF136: 0
A137: Product 4 | B137: 0 | C137: 0 | F137: 0 | G137: 0 | H137: 0 | I137: 0 | L137: 0 | M137: 0 | N137: 0 | Q137: 0 | R137: 0 | S137: 0 | V137: 0 | W137: 0 | X137: 0 | AA137: 0 | AB137: 0 | AC137: 0 | AF137: 0
A138: Product 5 | B138: 0 | C138: 0 | F138: 0 | G138: 0 | H138: 0 | I138: 0 | L138: 0 | M138: 0 | N138: 0 | Q138: 0 | R138: 0 | S138: 0 | V138: 0 | W138: 0 | X138: 0 | AA138: 0 | AB138: 0 | AC138: 0 | AF138: 0
A139: Product 6 | B139: 0 | C139: 0 | F139: 0 | G139: 0 | H139: 0 | I139: 0 | L139: 0 | M139: 0 | N139: 0 | Q139: 0 | R139: 0 | S139: 0 | V139: 0 | W139: 0 | X139: 0 | AA139: 0 | AB139: 0 | AC139: 0 | AF139: 0
A140: Product 7 | B140: 0 | C140: 0 | F140: 0 | G140: 0 | H140: 0 | I140: 0 | L140: 0 | M140: 0 | N140: 0 | Q140: 0 | R140: 0 | S140: 0 | V140: 0 | W140: 0 | X140: 0 | AA140: 0 | AB140: 0 | AC140: 0 | AF140: 0
A141: Product 8 | B141: 0 | C141: 0 | F141: 0 | G141: 0 | H141: 0 | I141: 0 | L141: 0 | M141: 0 | N141: 0 | Q141: 0 | R141: 0 | S141: 0 | V141: 0 | W141: 0 | X141: 0 | AA141: 0 | AB141: 0 | AC141: 0 | AF141: 0
A142: Product 9 | B142: 0 | C142: 0 | F142: 0 | G142: 0 | H142: 0 | I142: 0 | L142: 0 | M142: 0 | N142: 0 | Q142: 0 | R142: 0 | S142: 0 | V142: 0 | W142: 0 | X142: 0 | AA142: 0 | AB142: 0 | AC142: 0 | AF142: 0
A143: Product 10 | B143: 0 | C143: 0 | F143: 0 | G143: 0 | H143: 0 | I143: 0 | L143: 0 | M143: 0 | N143: 0 | Q143: 0 | R143: 0 | S143: 0 | V143: 0 | W143: 0 | X143: 0 | AA143: 0 | AB143: 0 | AC143: 0 | AF143: 0
A144: Rej 1 | B144: P0101300008 | C144: STB- 4SP, 150*150 Different lengths | F144: 2.131422122 | G144: 1 | H144: P0100700015 | I144: STB- 4SP (SSS) , 150*150*12 M (52 MW) | L144: 2.131422122 | M144: 0 | N144: 0 | Q144: 0 | R144: 0 | S144: 0 | V144: 0 | W144: 0 | X144: 0 | AA144: 0 | AB144: 0 | AC144: 0 | AF144: 0
A145: Rej 2 | B145: P0101300002 | C145: STB- 4SP, 130*130 Different lengths | F145: 0 | G145: 0 | H145: P0100700014 | I145: STB- 4SP (SSS) , 130*130*12 M ( 52 MW ) | L145: 0 | M145: 0 | N145: 0 | Q145: 0 | R145: 0 | S145: 0 | V145: 0 | W145: 0 | X145: 0 | AA145: 0 | AB145: 0 | AC145: 0 | AF145: 0
A146: Rej 3 | B146: P0101300002 | C146: STB- 4SP, 130*130 Different lengths | F146: 0 | G146: 0 | H146: P0100700001 | I146: STB- 4SP, 130*130*12 M ( 52 MW ) | L146: 0 | M146: 0 | N146: 0 | Q146: 0 | R146: 0 | S146: 0 | V146: 0 | W146: 0 | X146: 0 | AA146: 0 | AB146: 0 | AC146: 0 | AF146: 0
A147: Rej 4 | B147: 0 | C147: 0 | F147: 0 | G147: 0 | H147: 0 | I147: 0 | L147: 0 | M147: 0 | N147: 0 | Q147: 0 | R147: 0 | S147: 0 | V147: 0 | W147: 0 | X147: 0 | AA147: 0 | AB147: 0 | AC147: 0 | AF147: 0
A148: Rej 5 | B148: 0 | C148: 0 | F148: 0 | G148: 0 | H148: 0 | I148: 0 | L148: 0 | M148: 0 | N148: 0 | Q148: 0 | R148: 0 | S148: 0 | V148: 0 | W148: 0 | X148: 0 | AA148: 0 | AB148: 0 | AC148: 0 | AF148: 0
A149: Rej 6 | B149: 0 | C149: 0 | F149: 0 | G149: 0 | H149: 0 | I149: 0 | L149: 0 | M149: 0 | N149: 0 | Q149: 0 | R149: 0 | S149: 0 | V149: 0 | W149: 0 | X149: 0 | AA149: 0 | AB149: 0 | AC149: 0 | AF149: 0
A150: Rej 7 | B150: 0 | C150: 0 | F150: 0 | G150: 0 | H150: 0 | I150: 0 | L150: 0 | M150: 0 | N150: 0 | Q150: 0 | R150: 0 | S150: 0 | V150: 0 | W150: 0 | X150: 0 | AA150: 0 | AB150: 0 | AC150: 0 | AF150: 0
A151: Rej 8 | B151: 0 | C151: 0 | F151: 0 | G151: 0 | H151: 0 | I151: 0 | L151: 0 | M151: 0 | N151: 0 | Q151: 0 | R151: 0 | S151: 0 | V151: 0 | W151: 0 | X151: 0 | AA151: 0 | AB151: 0 | AC151: 0 | AF151: 0
A152: Rej 9 | B152: 0 | C152: 0 | F152: 0 | G152: 0 | H152: 0 | I152: 0 | L152: 0 | M152: 0 | N152: 0 | Q152: 0 | R152: 0 | S152: 0 | V152: 0 | W152: 0 | X152: 0 | AA152: 0 | AB152: 0 | AC152: 0 | AF152: 0
A153: Rej 10 | B153: 0 | C153: 0 | F153: 0 | G153: 0 | H153: 0 | I153: 0 | L153: 0 | M153: 0 | N153: 0 | Q153: 0 | R153: 0 | S153: 0 | V153: 0 | W153: 0 | X153: 0 | AA153: 0 | AB153: 0 | AC153: 0 | AF153: 0
A154: H&T&MR | B154: P0500600001 | C154: MISS ROLLED&HEAD&TAIL | F154: 22.40034278 | G154: 0 | H154: P0100700015 | I154: STB- 4SP (SSS) , 150*150*12 M (52 MW) | L154: 22.40034278 | M154: 0 | N154: 0 | Q154: 0 | R154: 0 | S154: 0 | V154: 0 | W154: 0 | X154: 0 | AA154: 0 | AB154: 0 | AC154: 0 | AF154: 0
A155: Shorts | B155: P0500400001 | C155: STR-SHORTS | F155: 27.43659653 | G155: 0 | H155: P0100700015 | I155: STB- 4SP (SSS) , 150*150*12 M (52 MW) | L155: 27.43659653 | M155: 0 | N155: 0 | Q155: 0 | R155: 0 | S155: 0 | V155: 0 | W155: 0 | X155: 0 | AA155: 0 | AB155: 0 | AC155: 0 | AF155: 0
A156: Cold Shear Cut | B156: P0500700001 | C156: COLD SHEAR CUT | F156: 15.25796571 | G156: 0 | H156: P0100700015 | I156: STB- 4SP (SSS) , 150*150*12 M (52 MW) | L156: 15.25796571 | M156: 0 | N156: 0 | Q156: 0 | R156: 0 | S156: 0 | V156: 0 | W156: 0 | X156: 0 | AA156: 0 | AB156: 0 | AC156: 0 | AF156: 0
A157: Suspended 1 | B157: P0501200010 | C157: STR- 32 MM, SUSPENDED & REJECTED | F157: 60 | G157: 30 | H157: P0100700015 | I157: STB- 4SP (SSS) , 150*150*12 M (52 MW) | L157: 60 | M157: 0 | N157: 0 | Q157: 0 | R157: 0 | S157: 0 | V157: 0 | W157: 0 | X157: 0 | AA157: 0 | AB157: 0 | AC157: 0 | AF157: 0
A158: Suspended 2 | B158: 0 | C158: 0 | F158: 0 | G158: 0 | H158: 0 | I158: 0 | L158: 0 | M158: 0 | N158: 0 | Q158: 0 | R158: 0 | S158: 0 | V158: 0 | W158: 0 | X158: 0 | AA158: 0 | AB158: 0 | AC158: 0 | AF158: 0
A159: Suspended 3 | B159: 0 | C159: 0 | F159: 0 | G159: 0 | H159: 0 | I159: 0 | L159: 0 | M159: 0 | N159: 0 | Q159: 0 | R159: 0 | S159: 0 | V159: 0 | W159: 0 | X159: 0 | AA159: 0 | AB159: 0 | AC159: 0 | AF159: 0
A160: Suspended 4 | B160: 0 | C160: 0 | F160: 0 | G160: 0 | H160: 0 | I160: 0 | L160: 0 | M160: 0 | N160: 0 | Q160: 0 | R160: 0 | S160: 0 | V160: 0 | W160: 0 | X160: 0 | AA160: 0 | AB160: 0 | AC160: 0 | AF160: 0
A161: Suspended 5 | B161: 0 | C161: 0 | F161: 0 | G161: 0 | H161: 0 | I161: 0 | L161: 0 | M161: 0 | N161: 0 | Q161: 0 | R161: 0 | S161: 0 | V161: 0 | W161: 0 | X161: 0 | AA161: 0 | AB161: 0 | AC161: 0 | AF161: 0
A162: Products | B162: =SUM(F134:F161) -> 1411.619557 | E162: Scales = | F162: =J162-B162 -> 18.56468668 | G162: 2.202682481e-13 | I162: Consumption | J162: =SUM(L134:L161,Q134:Q161,V134:V161,AA134:AA161,AF134:AF161) -> 1430.184244 | K162: 0
A163: RM 2
A164: Item | B164: Production | H164: Consumption 1 | M164: Consumption 2 | R164: Consumption 3 | W164: Consumption 4 | AB164: Consumption 5
B165: Code | C165: Description | F165: Ton | G165: Par | H165: Code | I165: Description | L165: Ton | M165: Code | N165: Description | Q165: Ton | R165: Code | S165: Description | V165: Ton | W165: Code | X165: Description | AA165: Ton | AB165: Code | AC165: Description | AF165: Ton
A166: Product 1 | B166: 0 | C166: 0 | F166: 0 | G166: 0 | H166: 0 | I166: 0 | L166: 0 | M166: 0 | N166: 0 | Q166: 0 | R166: 0 | S166: 0 | V166: 0 | W166: 0 | X166: 0 | AA166: 0 | AB166: 0 | AC166: 0 | AF166: 0
A167: Product 2 | B167: 0 | C167: 0 | F167: 0 | G167: 0 | H167: 0 | I167: 0 | L167: 0 | M167: 0 | N167: 0 | Q167: 0 | R167: 0 | S167: 0 | V167: 0 | W167: 0 | X167: 0 | AA167: 0 | AB167: 0 | AC167: 0 | AF167: 0
A168: Product 3 | B168: 0 | C168: 0 | F168: 0 | G168: 0 | H168: 0 | I168: 0 | L168: 0 | M168: 0 | N168: 0 | Q168: 0 | R168: 0 | S168: 0 | V168: 0 | W168: 0 | X168: 0 | AA168: 0 | AB168: 0 | AC168: 0 | AF168: 0
A169: Product 4 | B169: 0 | C169: 0 | F169: 0 | G169: 0 | H169: 0 | I169: 0 | L169: 0 | M169: 0 | N169: 0 | Q169: 0 | R169: 0 | S169: 0 | V169: 0 | W169: 0 | X169: 0 | AA169: 0 | AB169: 0 | AC169: 0 | AF169: 0
A170: Product 5 | B170: 0 | C170: 0 | F170: 0 | G170: 0 | H170: 0 | I170: 0 | L170: 0 | M170: 0 | N170: 0 | Q170: 0 | R170: 0 | S170: 0 | V170: 0 | W170: 0 | X170: 0 | AA170: 0 | AB170: 0 | AC170: 0 | AF170: 0
A171: Product 6 | B171: 0 | C171: 0 | F171: 0 | G171: 0 | H171: 0 | I171: 0 | L171: 0 | M171: 0 | N171: 0 | Q171: 0 | R171: 0 | S171: 0 | V171: 0 | W171: 0 | X171: 0 | AA171: 0 | AB171: 0 | AC171: 0 | AF171: 0
A172: Product 7 | B172: 0 | C172: 0 | F172: 0 | G172: 0 | H172: 0 | I172: 0 | L172: 0 | M172: 0 | N172: 0 | Q172: 0 | R172: 0 | S172: 0 | V172: 0 | W172: 0 | X172: 0 | AA172: 0 | AB172: 0 | AC172: 0 | AF172: 0
A173: Product 8 | B173: 0 | C173: 0 | F173: 0 | G173: 0 | H173: 0 | I173: 0 | L173: 0 | M173: 0 | N173: 0 | Q173: 0 | R173: 0 | S173: 0 | V173: 0 | W173: 0 | X173: 0 | AA173: 0 | AB173: 0 | AC173: 0 | AF173: 0
A174: Product 9 | B174: 0 | C174: 0 | F174: 0 | G174: 0 | H174: 0 | I174: 0 | L174: 0 | M174: 0 | N174: 0 | Q174: 0 | R174: 0 | S174: 0 | V174: 0 | W174: 0 | X174: 0 | AA174: 0 | AB174: 0 | AC174: 0 | AF174: 0
A175: Product 10 | B175: 0 | C175: 0 | F175: 0 | G175: 0 | H175: 0 | I175: 0 | L175: 0 | M175: 0 | N175: 0 | Q175: 0 | R175: 0 | S175: 0 | V175: 0 | W175: 0 | X175: 0 | AA175: 0 | AB175: 0 | AC175: 0 | AF175: 0
A176: Rej 1 | B176: 0 | C176: 0 | F176: 0 | G176: 0 | H176: 0 | I176: 0 | L176: 0 | M176: 0 | N176: 0 | Q176: 0 | R176: 0 | S176: 0 | V176: 0 | W176: 0 | X176: 0 | AA176: 0 | AB176: 0 | AC176: 0 | AF176: 0
A177: Rej 2 | B177: 0 | C177: 0 | F177: 0 | G177: 0 | H177: 0 | I177: 0 | L177: 0 | M177: 0 | N177: 0 | Q177: 0 | R177: 0 | S177: 0 | V177: 0 | W177: 0 | X177: 0 | AA177: 0 | AB177: 0 | AC177: 0 | AF177: 0
A178: Rej 3 | B178: 0 | C178: 0 | F178: 0 | G178: 0 | H178: 0 | I178: 0 | L178: 0 | M178: 0 | N178: 0 | Q178: 0 | R178: 0 | S178: 0 | V178: 0 | W178: 0 | X178: 0 | AA178: 0 | AB178: 0 | AC178: 0 | AF178: 0
A179: Rej 4 | B179: 0 | C179: 0 | F179: 0 | G179: 0 | H179: 0 | I179: 0 | L179: 0 | M179: 0 | N179: 0 | Q179: 0 | R179: 0 | S179: 0 | V179: 0 | W179: 0 | X179: 0 | AA179: 0 | AB179: 0 | AC179: 0 | AF179: 0
A180: Rej 5 | B180: 0 | C180: 0 | F180: 0 | G180: 0 | H180: 0 | I180: 0 | L180: 0 | M180: 0 | N180: 0 | Q180: 0 | R180: 0 | S180: 0 | V180: 0 | W180: 0 | X180: 0 | AA180: 0 | AB180: 0 | AC180: 0 | AF180: 0
A181: Rej 6 | B181: 0 | C181: 0 | F181: 0 | G181: 0 | H181: 0 | I181: 0 | L181: 0 | M181: 0 | N181: 0 | Q181: 0 | R181: 0 | S181: 0 | V181: 0 | W181: 0 | X181: 0 | AA181: 0 | AB181: 0 | AC181: 0 | AF181: 0
A182: Rej 7 | B182: 0 | C182: 0 | F182: 0 | G182: 0 | H182: 0 | I182: 0 | L182: 0 | M182: 0 | N182: 0 | Q182: 0 | R182: 0 | S182: 0 | V182: 0 | W182: 0 | X182: 0 | AA182: 0 | AB182: 0 | AC182: 0 | AF182: 0
A183: Rej 8 | B183: 0 | C183: 0 | F183: 0 | G183: 0 | H183: 0 | I183: 0 | L183: 0 | M183: 0 | N183: 0 | Q183: 0 | R183: 0 | S183: 0 | V183: 0 | W183: 0 | X183: 0 | AA183: 0 | AB183: 0 | AC183: 0 | AF183: 0
A184: Rej 9 | B184: 0 | C184: 0 | F184: 0 | G184: 0 | H184: 0 | I184: 0 | L184: 0 | M184: 0 | N184: 0 | Q184: 0 | R184: 0 | S184: 0 | V184: 0 | W184: 0 | X184: 0 | AA184: 0 | AB184: 0 | AC184: 0 | AF184: 0
A185: Rej 10 | B185: 0 | C185: 0 | F185: 0 | G185: 0 | H185: 0 | I185: 0 | L185: 0 | M185: 0 | N185: 0 | Q185: 0 | R185: 0 | S185: 0 | V185: 0 | W185: 0 | X185: 0 | AA185: 0 | AB185: 0 | AC185: 0 | AF185: 0
A186: H&T&MR | B186: 0 | C186: 0 | F186: 0 | G186: 0 | H186: 0 | I186: 0 | L186: 0 | M186: 0 | N186: 0 | Q186: 0 | R186: 0 | S186: 0 | V186: 0 | W186: 0 | X186: 0 | AA186: 0 | AB186: 0 | AC186: 0 | AF186: 0
A187: Trimming | B187: 0 | C187: 0 | F187: 0 | G187: 0 | H187: 0 | I187: 0 | L187: 0 | M187: 0 | N187: 0 | Q187: 0 | R187: 0 | S187: 0 | V187: 0 | W187: 0 | X187: 0 | AA187: 0 | AB187: 0 | AC187: 0 | AF187: 0
A188: Suspended 1 | B188: 0 | C188: 0 | F188: 0 | G188: 0 | H188: 0 | I188: 0 | L188: 0 | M188: 0 | N188: 0 | Q188: 0 | R188: 0 | S188: 0 | V188: 0 | W188: 0 | X188: 0 | AA188: 0 | AB188: 0 | AC188: 0 | AF188: 0
A189: Suspended 2 | B189: 0 | C189: 0 | F189: 0 | G189: 0 | H189: 0 | I189: 0 | L189: 0 | M189: 0 | N189: 0 | Q189: 0 | R189: 0 | S189: 0 | V189: 0 | W189: 0 | X189: 0 | AA189: 0 | AB189: 0 | AC189: 0 | AF189: 0
A190: Suspended 3 | B190: 0 | C190: 0 | F190: 0 | G190: 0 | H190: 0 | I190: 0 | L190: 0 | M190: 0 | N190: 0 | Q190: 0 | R190: 0 | S190: 0 | V190: 0 | W190: 0 | X190: 0 | AA190: 0 | AB190: 0 | AC190: 0 | AF190: 0
A191: Suspended 4 | B191: 0 | C191: 0 | F191: 0 | G191: 0 | H191: 0 | I191: 0 | L191: 0 | M191: 0 | N191: 0 | Q191: 0 | R191: 0 | S191: 0 | V191: 0 | W191: 0 | X191: 0 | AA191: 0 | AB191: 0 | AC191: 0 | AF191: 0
A192: Suspended 5 | B192: 0 | C192: 0 | F192: 0 | G192: 0 | H192: 0 | I192: 0 | L192: 0 | M192: 0 | N192: 0 | Q192: 0 | R192: 0 | S192: 0 | V192: 0 | W192: 0 | X192: 0 | AA192: 0 | AB192: 0 | AC192: 0 | AF192: 0
A193: Products | B193: =SUM(F165:F192) -> 0 | E193: Scales = | F193: =J193-B193 -> 0 | G193: 0 | I193: Consumption | J193: =SUM(L166:L192,Q166:Q192,V166:V192,AA166:AA192,AF166:AF192) -> 0 | K193: 0
A194: Date: | C194: 4 | D194: March | E194: 2019
A195: RM 1
A196: Item | B196: Production | H196: Consumption 1 | M196: Consumption 2 | R196: Consumption 3 | W196: Consumption 4 | AB196: Consumption 5
B197: Code | C197: Description | F197: Ton | G197: Par | H197: Code | I197: Description | L197: Ton | M197: Code | N197: Description | Q197: Ton | R197: Code | S197: Description | V197: Ton | W197: Code | X197: Description | AA197: Ton | AB197: Code | AC197: Description | AF197: Ton
A198: Product 1 | B198: P0501300001 | C198: STR- B 500 BWR, 32 MM, 12 M | F198: 1085.722216 | G198: 528 | H198: P0100700015 | I198: STB- 4SP (SSS) , 150*150*12 M (52 MW) | L198: 1106.422989 | M198: 0 | N198: 0 | Q198: 0 | R198: 0 | S198: 0 | V198: 0 | W198: 0 | X198: 0 | AA198: 0 | AB198: 0 | AC198: 0 | AF198: 0
A199: Product 2 | B199: P0501400001 | C199: STR- B 400 BWR, 32 MM, 12 M | F199: 424.8719986 | G199: 209 | H199: P0100700015 | I199: STB- 4SP (SSS) , 150*150*12 M (52 MW) | L199: 424.8719986 | M199: 0 | N199: 0 | Q199: 0 | R199: 0 | S199: 0 | V199: 0 | W199: 0 | X199: 0 | AA199: 0 | AB199: 0 | AC199: 0 | AF199: 0
A200: Product 3 | B200: 0 | C200: 0 | F200: 0 | G200: 0 | H200: 0 | I200: 0 | L200: 0 | M200: 0 | N200: 0 | Q200: 0 | R200: 0 | S200: 0 | V200: 0 | W200: 0 | X200: 0 | AA200: 0 | AB200: 0 | AC200: 0 | AF200: 0
... 1785 more rows

Sheet 1
A1: MACC PRD report | E1: Rolling Mill Plant
A2: Date: | C2: 1 | D2: March | E2: 2019
A3: RM 1
A4: Item | B4: Production | H4: Consumption 1 | M4: Consumption 2 | R4: Consumption 3 | W4: Consumption 4 | AB4: Consumption 5
B5: Code | C5: Description | F5: Ton | G5: Bundle | H5: Code | I5: Description | L5: Ton | M5: Code | N5: Description | Q5: Ton | R5: Code | S5: Description | V5: Ton | W5: Code | X5: Description | AA5: Ton | AB5: Code | AC5: Description | AF5: Ton
A6: Product 1 | B6: P0501300002 | C6: STR- B 500 BWR, 25 MM, 12 M | F6: 1200.625102 | G6: 589 | H6: P0100700015 | I6: STB- 4SP (SSS) , 150*150*12 M (52 MW) | L6: 1220.106494 | M6: 0 | N6: 0 | Q6: 0 | R6: 0 | S6: 0 | V6: 0 | W6: 0 | X6: 0 | AA6: 0 | AB6: 0 | AC6: 0 | AF6: 0
A7: Product 2 | B7: P0501400002 | C7: STR- B 400 BWR, 25 MM, 12 M | F7: 214.7953769 | G7: 106 | H7: P0100700015 | I7: STB- 4SP (SSS) , 150*150*12 M (52 MW) | L7: 214.7953769 | M7: 0 | N7: 0 | Q7: 0 | R7: 0 | S7: 0 | V7: 0 | W7: 0 | X7: 0 | AA7: 0 | AB7: 0 | AC7: 0 | AF7: 0
A8: Product 3 | B8: 0 | C8: 0 | F8: 0 | G8: 0 | H8: 0 | I8: 0 | L8: 0 | M8: 0 | N8: 0 | Q8: 0 | R8: 0 | S8: 0 | V8: 0 | W8: 0 | X8: 0 | AA8: 0 | AB8: 0 | AC8: 0 | AF8: 0
A9: Product 4 | B9: 0 | C9: 0 | F9: 0 | G9: 0 | H9: 0 | I9: 0 | L9: 0 | M9: 0 | N9: 0 | Q9: 0 | R9: 0 | S9: 0 | V9: 0 | W9: 0 | X9: 0 | AA9: 0 | AB9: 0 | AC9: 0 | AF9: 0
A10: Product 5 | B10: 0 | C10: 0 | F10: 0 | G10: 0 | H10: 0 | I10: 0 | L10: 0 | M10: 0 | N10: 0 | Q10: 0 | R10: 0 | S10: 0 | V10: 0 | W10: 0 | X10: 0 | AA10: 0 | AB10: 0 | AC10: 0 | AF10: 0
A11: Product 6 | B11: 0 | C11: 0 | F11: 0 | G11: 0 | H11: 0 | I11: 0 | L11: 0 | M11: 0 | N11: 0 | Q11: 0 | R11: 0 | S11: 0 | V11: 0 | W11: 0 | X11: 0 | AA11: 0 | AB11: 0 | AC11: 0 | AF11: 0
A12: Product 7 | B12: 0 | C12: 0 | F12: 0 | G12: 0 | H12: 0 | I12: 0 | L12: 0 | M12: 0 | N12: 0 | Q12: 0 | R12: 0 | S12: 0 | V12: 0 | W12: 0 | X12: 0 | AA12: 0 | AB12: 0 | AC12: 0 | AF12: 0
A13: Product 8 | B13: 0 | C13: 0 | F13: 0 | G13: 0 | H13: 0 | I13: 0 | L13: 0 | M13: 0 | N13: 0 | Q13: 0 | R13: 0 | S13: 0 | V13: 0 | W13: 0 | X13: 0 | AA13: 0 | AB13: 0 | AC13: 0 | AF13: 0
A14: Product 9 | B14: 0 | C14: 0 | F14: 0 | G14: 0 | H14: 0 | I14: 0 | L14: 0 | M14: 0 | N14: 0 | Q14: 0 | R14: 0 | S14: 0 | V14: 0 | W14: 0 | X14: 0 | AA14: 0 | AB14: 0 | AC14: 0 | AF14: 0
A15: Product 10 | B15: 0 | C15: 0 | F15: 0 | G15: 0 | H15: 0 | I15: 0 | L15: 0 | M15: 0 | N15: 0 | Q15: 0 | R15: 0 | S15: 0 | V15: 0 | W15: 0 | X15: 0 | AA15: 0 | AB15: 0 | AC15: 0 | AF15: 0
A16: Rej 1 | B16: P0101300008 | C16: STB- 4SP, 150*150 Different lengths | F16: 1.066596859 | G16: 0.5 | H16: P0100700015 | I16: STB- 4SP (SSS) , 150*150*12 M (52 MW) | L16: 1.066596859 | M16: 0 | N16: 0 | Q16: 0 | R16: 0 | S16: 0 | V16: 0 | W16: 0 | X16: 0 | AA16: 0 | AB16: 0 | AC16: 0 | AF16: 0
A17: Rej 2 | B17: P0101300002 | C17: STB- 4SP, 130*130 Different lengths | F17: 0 | G17: 0 | H17: P0100700014 | I17: STB- 4SP (SSS) , 130*130*12 M ( 52 MW ) | L17: 0 | M17: 0 | N17: 0 | Q17: 0 | R17: 0 | S17: 0 | V17: 0 | W17: 0 | X17: 0 | AA17: 0 | AB17: 0 | AC17: 0 | AF17: 0
A18: Rej 3 | B18: P0101300002 | C18: STB- 4SP, 130*130 Different lengths | F18: 0 | G18: 0 | H18: P0100700001 | I18: STB- 4SP, 130*130*12 M ( 52 MW ) | L18: 0 | M18: 0 | N18: 0 | Q18: 0 | R18: 0 | S18: 0 | V18: 0 | W18: 0 | X18: 0 | AA18: 0 | AB18: 0 | AC18: 0 | AF18: 0
A19: Rej 4 | B19: 0 | C19: 0 | F19: 0 | G19: 0 | H19: 0 | I19: 0 | L19: 0 | M19: 0 | N19: 0 | Q19: 0 | R19: 0 | S19: 0 | V19: 0 | W19: 0 | X19: 0 | AA19: 0 | AB19: 0 | AC19: 0 | AF19: 0
A20: Rej 5 | B20: 0 | C20: 0 | F20: 0 | G20: 0 | H20: 0 | I20: 0 | L20: 0 | M20: 0 | N20: 0 | Q20: 0 | R20: 0 | S20: 0 | V20: 0 | W20: 0 | X20: 0 | AA20: 0 | AB20: 0 | AC20: 0 | AF20: 0
A21: Rej 6 | B21: 0 | C21: 0 | F21: 0 | G21: 0 | H21: 0 | I21: 0 | L21: 0 | M21: 0 | N21: 0 | Q21: 0 | R21: 0 | S21: 0 | V21: 0 | W21: 0 | X21: 0 | AA21: 0 | AB21: 0 | AC21: 0 | AF21: 0
A22: Rej 7 | B22: 0 | C22: 0 | F22: 0 | G22: 0 | H22: 0 | I22: 0 | L22: 0 | M22: 0 | N22: 0 | Q22: 0 | R22: 0 | S22: 0 | V22: 0 | W22: 0 | X22: 0 | AA22: 0 | AB22: 0 | AC22: 0 | AF22: 0
A23: Rej 8 | B23: 0 | C23: 0 | F23: 0 | G23: 0 | H23: 0 | I23: 0 | L23: 0 | M23: 0 | N23: 0 | Q23: 0 | R23: 0 | S23: 0 | V23: 0 | W23: 0 | X23: 0 | AA23: 0 | AB23: 0 | AC23: 0 | AF23: 0
A24: Rej 9 | B24: 0 | C24: 0 | F24: 0 | G24: 0 | H24: 0 | I24: 0 | L24: 0 | M24: 0 | N24: 0 | Q24: 0 | R24: 0 | S24: 0 | V24: 0 | W24: 0 | X24: 0 | AA24: 0 | AB24: 0 | AC24: 0 | AF24: 0
A25: Rej 10 | B25: 0 | C25: 0 | F25: 0 | G25: 0 | H25: 0 | I25: 0 | L25: 0 | M25: 0 | N25: 0 | Q25: 0 | R25: 0 | S25: 0 | V25: 0 | W25: 0 | X25: 0 | AA25: 0 | AB25: 0 | AC25: 0 | AF25: 0
A26: H&T&MR | B26: P0500600001 | C26: MISS ROLLED&HEAD&TAIL | F26: 18.71650622 | G26: 0 | H26: P0100700015 | I26: STB- 4SP (SSS) , 150*150*12 M (52 MW) | L26: 18.71650622 | M26: 0 | N26: 0 | Q26: 0 | R26: 0 | S26: 0 | V26: 0 | W26: 0 | X26: 0 | AA26: 0 | AB26: 0 | AC26: 0 | AF26: 0
A27: Shorts | B27: P0500400001 | C27: STR-SHORTS | F27: 28.88613222 | G27: 0 | H27: P0100700015 | I27: STB- 4SP (SSS) , 150*150*12 M (52 MW) | L27: 28.88613222 | M27: 0 | N27: 0 | Q27: 0 | R27: 0 | S27: 0 | V27: 0 | W27: 0 | X27: 0 | AA27: 0 | AB27: 0 | AC27: 0 | AF27: 0
A28: Cold Shear Cut | B28: P0500700001 | C28: COLD SHEAR CUT | F28: 16.06407757 | G28: 0 | H28: P0100700015 | I28: STB- 4SP (SSS) , 150*150*12 M (52 MW) | L28: 16.06407757 | M28: 0 | N28: 0 | Q28: 0 | R28: 0 | S28: 0 | V28: 0 | W28: 0 | X28: 0 | AA28: 0 | AB28: 0 | AC28: 0 | AF28: 0
A29: Suspended 1 | B29: P0501200008 | C29: STR- 25 MM, SUSPENDED & REJECTED | F29: 0 | G29: 0 | H29: P0100700015 | I29: STB- 4SP (SSS) , 150*150*12 M (52 MW) | L29: 0 | M29: 0 | N29: 0 | Q29: 0 | R29: 0 | S29: 0 | V29: 0 | W29: 0 | X29: 0 | AA29: 0 | AB29: 0 | AC29: 0 | AF29: 0
A30: Suspended 2 | B30: 0 | C30: 0 | F30: 0 | G30: 0 | H30: 0 | I30: 0 | L30: 0 | M30: 0 | N30: 0 | Q30: 0 | R30: 0 | S30: 0 | V30: 0 | W30: 0 | X30: 0 | AA30: 0 | AB30: 0 | AC30: 0 | AF30: 0
A31: Suspended 3 | B31: 0 | C31: 0 | F31: 0 | G31: 0 | H31: 0 | I31: 0 | L31: 0 | M31: 0 | N31: 0 | Q31: 0 | R31: 0 | S31: 0 | V31: 0 | W31: 0 | X31: 0 | AA31: 0 | AB31: 0 | AC31: 0 | AF31: 0
A32: Suspended 4 | B32: 0 | C32: 0 | F32: 0 | G32: 0 | H32: 0 | I32: 0 | L32: 0 | M32: 0 | N32: 0 | Q32: 0 | R32: 0 | S32: 0 | V32: 0 | W32: 0 | X32: 0 | AA32: 0 | AB32: 0 | AC32: 0 | AF32: 0
A33: Suspended 5 | B33: 0 | C33: 0 | F33: 0 | G33: 0 | H33: 0 | I33: 0 | L33: 0 | M33: 0 | N33: 0 | Q33: 0 | R33: 0 | S33: 0 | V33: 0 | W33: 0 | X33: 0 | AA33: 0 | AB33: 0 | AC33: 0 | AF33: 0
A34: Products | B34: =SUM(F6:F33) -> 1480.153792 | E34: Scales = | F34: =J34-B34 -> 19.48139162 | G34: 2.202682481e-13 | I34: Consumption | J34: =SUM(L6:L33,Q6:Q33,V6:V33,AA6:AA33,AF6:AF33) -> 1499.635183 | K34: 0
A35: RM 2
A36: Item | B36: Production | H36: Consumption 1 | M36: Consumption 2 | R36: Consumption 3 | W36: Consumption 4 | AB36: Consumption 5
B37: Code | C37: Description | F37: Ton | G37: Par | H37: Code | I37: Description | L37: Ton | M37: Code | N37: Description | Q37: Ton | R37: Code | S37: Description | V37: Ton | W37: Code | X37: Description | AA37: Ton | AB37: Code | AC37: Description | AF37: Ton
A38: Product 1 | B38: P0600100003 | C38: ST, WIRE ROD COIL, 6 MM, AISI 1006 | F38: 0 | G38: 0 | H38: P0101500001 | I38: STB- 1006, 150*150*12 M | L38: 0 | M38: 0 | N38: 0 | Q38: 0 | R38: 0 | S38: 0 | V38: 0 | W38: 0 | X38: 0 | AA38: 0 | AB38: 0 | AC38: 0 | AF38: 0
A39: Product 2 | B39: 0 | C39: 0 | F39: 0 | G39: 0 | H39: 0 | I39: 0 | L39: 0 | M39: 0 | N39: 0 | Q39: 0 | R39: 0 | S39: 0 | V39: 0 | W39: 0 | X39: 0 | AA39: 0 | AB39: 0 | AC39: 0 | AF39: 0
A40: Product 3 | B40: 0 | C40: 0 | F40: 0 | G40: 0 | H40: 0 | I40: 0 | L40: 0 | M40: 0 | N40: 0 | Q40: 0 | R40: 0 | S40: 0 | V40: 0 | W40: 0 | X40: 0 | AA40: 0 | AB40: 0 | AC40: 0 | AF40: 0
A41: Product 4 | B41: 0 | C41: 0 | F41: 0 | G41: 0 | H41: 0 | I41: 0 | L41: 0 | M41: 0 | N41: 0 | Q41: 0 | R41: 0 | S41: 0 | V41: 0 | W41: 0 | X41: 0 | AA41: 0 | AB41: 0 | AC41: 0 | AF41: 0
A42: Product 5 | B42: 0 | C42: 0 | F42: 0 | G42: 0 | H42: 0 | I42: 0 | L42: 0 | M42: 0 | N42: 0 | Q42: 0 | R42: 0 | S42: 0 | V42: 0 | W42: 0 | X42: 0 | AA42: 0 | AB42: 0 | AC42: 0 | AF42: 0
A43: Product 6 | B43: 0 | C43: 0 | F43: 0 | G43: 0 | H43: 0 | I43: 0 | L43: 0 | M43: 0 | N43: 0 | Q43: 0 | R43: 0 | S43: 0 | V43: 0 | W43: 0 | X43: 0 | AA43: 0 | AB43: 0 | AC43: 0 | AF43: 0
A44: Product 7 | B44: 0 | C44: 0 | F44: 0 | G44: 0 | H44: 0 | I44: 0 | L44: 0 | M44: 0 | N44: 0 | Q44: 0 | R44: 0 | S44: 0 | V44: 0 | W44: 0 | X44: 0 | AA44: 0 | AB44: 0 | AC44: 0 | AF44: 0
A45: Product 8 | B45: 0 | C45: 0 | F45: 0 | G45: 0 | H45: 0 | I45: 0 | L45: 0 | M45: 0 | N45: 0 | Q45: 0 | R45: 0 | S45: 0 | V45: 0 | W45: 0 | X45: 0 | AA45: 0 | AB45: 0 | AC45: 0 | AF45: 0
A46: Product 9 | B46: 0 | C46: 0 | F46: 0 | G46: 0 | H46: 0 | I46: 0 | L46: 0 | M46: 0 | N46: 0 | Q46: 0 | R46: 0 | S46: 0 | V46: 0 | W46: 0 | X46: 0 | AA46: 0 | AB46: 0 | AC46: 0 | AF46: 0
A47: Product 10 | B47: 0 | C47: 0 | F47: 0 | G47: 0 | H47: 0 | I47: 0 | L47: 0 | M47: 0 | N47: 0 | Q47: 0 | R47: 0 | S47: 0 | V47: 0 | W47: 0 | X47: 0 | AA47: 0 | AB47: 0 | AC47: 0 | AF47: 0
A48: Rej 1 | B48: P0101300005 | C48: STB, 1006, 150*150, DIFF.LENGTH, R | F48: 0 | G48: 0 | H48: P0101500001 | I48: STB- 1006, 150*150*12 M | L48: 0 | M48: 0 | N48: 0 | Q48: 0 | R48: 0 | S48: 0 | V48: 0 | W48: 0 | X48: 0 | AA48: 0 | AB48: 0 | AC48: 0 | AF48: 0
A49: Rej 2 | B49: P0101300002 | C49: STB- 4SP, 130*130 Different lengths | F49: 0 | G49: 0 | H49: P0100700015 | I49: STB- 4SP (SSS) , 150*150*12 M (52 MW) | L49: 0 | M49: 0 | N49: 0 | Q49: 0 | R49: 0 | S49: 0 | V49: 0 | W49: 0 | X49: 0 | AA49: 0 | AB49: 0 | AC49: 0 | AF49: 0
A50: Rej 3 | B50: P0101300008 | C50: STB- 4SP, 150*150 Different lengths | F50: 0 | G50: 0 | H50: P0101500001 | I50: STB- 1006, 150*150*12 M | L50: 0 | M50: 0 | N50: 0 | Q50: 0 | R50: 0 | S50: 0 | V50: 0 | W50: 0 | X50: 0 | AA50: 0 | AB50: 0 | AC50: 0 | AF50: 0
A51: Rej 4 | B51: 0 | C51: 0 | F51: 0 | G51: 0 | H51: 0 | I51: 0 | M51: 0 | N51: 0 | Q51: 0 | R51: 0 | S51: 0 | V51: 0 | W51: 0 | X51: 0 | AA51: 0 | AB51: 0 | AC51: 0 | AF51: 0
A52: Rej 5 | B52: 0 | C52: 0 | F52: 0 | G52: 0 | H52: 0 | I52: 0 | L52: 0 | M52: 0 | N52: 0 | Q52: 0 | R52: 0 | S52: 0 | V52: 0 | W52: 0 | X52: 0 | AA52: 0 | AB52: 0 | AC52: 0 | AF52: 0
A53: Rej 6 | B53: 0 | C53: 0 | F53: 0 | G53: 0 | H53: 0 | I53: 0 | L53: 0 | M53: 0 | N53: 0 | Q53: 0 | R53: 0 | S53: 0 | V53: 0 | W53: 0 | X53: 0 | AA53: 0 | AB53: 0 | AC53: 0 | AF53: 0
A54: Rej 7 | B54: 0 | C54: 0 | F54: 0 | G54: 0 | H54: 0 | I54: 0 | L54: 0 | M54: 0 | N54: 0 | Q54: 0 | R54: 0 | S54: 0 | V54: 0 | W54: 0 | X54: 0 | AA54: 0 | AB54: 0 | AC54: 0 | AF54: 0
A55: Rej 8 | B55: 0 | C55: 0 | F55: 0 | G55: 0 | H55: 0 | I55: 0 | L55: 0 | M55: 0 | N55: 0 | Q55: 0 | R55: 0 | S55: 0 | V55: 0 | W55: 0 | X55: 0 | AA55: 0 | AB55: 0 | AC55: 0 | AF55: 0
A56: Rej 9 | B56: 0 | C56: 0 | F56: 0 | G56: 0 | H56: 0 | I56: 0 | L56: 0 | M56: 0 | N56: 0 | Q56: 0 | R56: 0 | S56: 0 | V56: 0 | W56: 0 | X56: 0 | AA56: 0 | AB56: 0 | AC56: 0 | AF56: 0
A57: Rej 10 | B57: 0 | C57: 0 | F57: 0 | G57: 0 | H57: 0 | I57: 0 | L57: 0 | M57: 0 | N57: 0 | Q57: 0 | R57: 0 | S57: 0 | V57: 0 | W57: 0 | X57: 0 | AA57: 0 | AB57: 0 | AC57: 0 | AF57: 0
A58: H&T&MR | B58: P0500600001 | C58: MISS ROLLED&HEAD&TAIL | F58: 0 | G58: 0 | H58: P0101500007 | I58: STB- 1006, 130*130*12M | L58: 0 | M58: 0 | N58: 0 | Q58: 0 | R58: 0 | S58: 0 | V58: 0 | W58: 0 | X58: 0 | AA58: 0 | AB58: 0 | AC58: 0 | AF58: 0
A59: Trimming | B59: P0601300002 | C59: Trimming | F59: 0 | G59: 0 | H59: P0101500007 | I59: STB- 1006, 130*130*12M | L59: 0 | M59: 0 | N59: 0 | Q59: 0 | R59: 0 | S59: 0 | V59: 0 | W59: 0 | X59: 0 | AA59: 0 | AB59: 0 | AC59: 0 | AF59: 0
A60: Suspended 1 | B60: P0601100002 | C60: SUSPENDED COIL, 6MM | F60: 0 | G60: 0 | H60: P0101500007 | I60: STB- 1006, 130*130*12M | L60: 0 | M60: 0 | N60: 0 | Q60: 0 | R60: 0 | S60: 0 | V60: 0 | W60: 0 | X60: 0 | AA60: 0 | AB60: 0 | AC60: 0 | AF60: 0
A61: Suspended 2 | B61: 0 | C61: 0 | F61: 0 | G61: 0 | H61: 0 | I61: 0 | L61: 0 | M61: 0 | N61: 0 | Q61: 0 | R61: 0 | S61: 0 | V61: 0 | W61: 0 | X61: 0 | AA61: 0 | AB61: 0 | AC61: 0 | AF61: 0
A62: Suspended 3 | B62: 0 | C62: 0 | F62: 0 | G62: 0 | H62: 0 | I62: 0 | L62: 0 | M62: 0 | N62: 0 | Q62: 0 | R62: 0 | S62: 0 | V62: 0 | W62: 0 | X62: 0 | AA62: 0 | AB62: 0 | AC62: 0 | AF62: 0
A63: Suspended 4 | B63: 0 | C63: 0 | F63: 0 | G63: 0 | H63: 0 | I63: 0 | L63: 0 | M63: 0 | N63: 0 | Q63: 0 | R63: 0 | S63: 0 | V63: 0 | W63: 0 | X63: 0 | AA63: 0 | AB63: 0 | AC63: 0 | AF63: 0
A64: Suspended 5 | B64: 0 | C64: 0 | F64: 0 | G64: 0 | H64: 0 | I64: 0 | L64: 0 | M64: 0 | N64: 0 | Q64: 0 | R64: 0 | S64: 0 | V64: 0 | W64: 0 | X64: 0 | AA64: 0 | AB64: 0 | AC64: 0 | AF64: 0
A65: Products | B65: =SUM(F38:F64) -> 0 | E65: Scales = | F65: =J65-B65 -> 0 | G65: 0 | I65: Consumption | J65: =SUM(L38:L64,Q38:Q64,V38:V64,AA38:AA64,AF38:AF64) -> 0 | K65: 0

Sheet 2
A1: MACC PRD report | E1: Rolling Mill Plant
A2: Date: | C2: 2 | D2: March | E2: 2019
A3: RM 1
A4: Item | B4: Production | H4: Consumption 1 | M4: Consumption 2 | R4: Consumption 3 | W4: Consumption 4 | AB4: Consumption 5
B5: Code | C5: Description | F5: Ton | G5: Bundle | H5: Code | I5: Description | L5: Ton | M5: Code | N5: Description | Q5: Ton | R5: Code | S5: Description | V5: Ton | W5: Code | X5: Description | AA5: Ton | AB5: Code | AC5: Description | AF5: Ton
A6: Product 1 | B6: P0501300002 | C6: STR- B 500 BWR, 25 MM, 12 M | F6: 1713.776524 | G6: 855 | H6: P0100700015 | I6: STB- 4SP (SSS) , 150*150*12 M (52 MW) | L6: 1737.257644 | M6: 0 | N6: 0 | Q6: 0 | R6: 0 | S6: 0 | V6: 0 | W6: 0 | X6: 0 | AA6: 0 | AB6: 0 | AC6: 0 | AF6: 0
A7: Product 2 | B7: 0 | C7: 0 | F7: 0 | G7: 0 | H7: 0 | I7: 0 | L7: 0 | M7: 0 | N7: 0 | Q7: 0 | R7: 0 | S7: 0 | V7: 0 | W7: 0 | X7: 0 | AA7: 0 | AB7: 0 | AC7: 0 | AF7: 0
A8: Product 3 | B8: 0 | C8: 0 | F8: 0 | G8: 0 | H8: 0 | I8: 0 | L8: 0 | M8: 0 | N8: 0 | Q8: 0 | R8: 0 | S8: 0 | V8: 0 | W8: 0 | X8: 0 | AA8: 0 | AB8: 0 | AC8: 0 | AF8: 0
A9: Product 4 | B9: 0 | C9: 0 | F9: 0 | G9: 0 | H9: 0 | I9: 0 | L9: 0 | M9: 0 | N9: 0 | Q9: 0 | R9: 0 | S9: 0 | V9: 0 | W9: 0 | X9: 0 | AA9: 0 | AB9: 0 | AC9: 0 | AF9: 0
A10: Product 5 | B10: 0 | C10: 0 | F10: 0 | G10: 0 | H10: 0 | I10: 0 | L10: 0 | M10: 0 | N10: 0 | Q10: 0 | R10: 0 | S10: 0 | V10: 0 | W10: 0 | X10: 0 | AA10: 0 | AB10: 0 | AC10: 0 | AF10: 0
A11: Product 6 | B11: 0 | C11: 0 | F11: 0 | G11: 0 | H11: 0 | I11: 0 | L11: 0 | M11: 0 | N11: 0 | Q11: 0 | R11: 0 | S11: 0 | V11: 0 | W11: 0 | X11: 0 | AA11: 0 | AB11: 0 | AC11: 0 | AF11: 0
A12: Product 7 | B12: 0 | C12: 0 | F12: 0 | G12: 0 | H12: 0 | I12: 0 | L12: 0 | M12: 0 | N12: 0 | Q12: 0 | R12: 0 | S12: 0 | V12: 0 | W12: 0 | X12: 0 | AA12: 0 | AB12: 0 | AC12: 0 | AF12: 0
A13: Product 8 | B13: 0 | C13: 0 | F13: 0 | G13: 0 | H13: 0 | I13: 0 | L13: 0 | M13: 0 | N13: 0 | Q13: 0 | R13: 0 | S13: 0 | V13: 0 | W13: 0 | X13: 0 | AA13: 0 | AB13: 0 | AC13: 0 | AF13: 0
A14: Product 9 | B14: 0 | C14: 0 | F14: 0 | G14: 0 | H14: 0 | I14: 0 | L14: 0 | M14: 0 | N14: 0 | Q14: 0 | R14: 0 | S14: 0 | V14: 0 | W14: 0 | X14: 0 | AA14: 0 | AB14: 0 | AC14: 0 | AF14: 0
A15: Product 10 | B15: 0 | C15: 0 | F15: 0 | G15: 0 | H15: 0 | I15: 0 | L15: 0 | M15: 0 | N15: 0 | Q15: 0 | R15: 0 | S15: 0 | V15: 0 | W15: 0 | X15: 0 | AA15: 0 | AB15: 0 | AC15: 0 | AF15: 0
A16: Rej 1 | B16: P0101300008 | C16: STB- 4SP, 150*150 Different lengths | F16: 2.12 | G16: 1 | H16: P0100700015 | I16: STB- 4SP (SSS) , 150*150*12 M (52 MW) | L16: 2.12 | M16: 0 | N16: 0 | Q16: 0 | R16: 0 | S16: 0 | V16: 0 | W16: 0 | X16: 0 | AA16: 0 | AB16: 0 | AC16: 0 | AF16: 0
A17: Rej 2 | B17: P0101300002 | C17: STB- 4SP, 130*130 Different lengths | F17: 0 | G17: 0 | H17: P0100700014 | I17: STB- 4SP (SSS) , 130*130*12 M ( 52 MW ) | L17: 0 | M17: 0 | N17: 0 | Q17: 0 | R17: 0 | S17: 0 | V17: 0 | W17: 0 | X17: 0 | AA17: 0 | AB17: 0 | AC17: 0 | AF17: 0
A18: Rej 3 | B18: P0101300002 | C18: STB- 4SP, 130*130 Different lengths | F18: 0 | G18: 0 | H18: P0100700001 | I18: STB- 4SP, 130*130*12 M ( 52 MW ) | L18: 0 | M18: 0 | N18: 0 | Q18: 0 | R18: 0 | S18: 0 | V18: 0 | W18: 0 | X18: 0 | AA18: 0 | AB18: 0 | AC18: 0 | AF18: 0
A19: Rej 4 | B19: 0 | C19: 0 | F19: 0 | G19: 0 | H19: 0 | I19: 0 | L19: 0 | M19: 0 | N19: 0 | Q19: 0 | R19: 0 | S19: 0 | V19: 0 | W19: 0 | X19: 0 | AA19: 0 | AB19: 0 | AC19: 0 | AF19: 0
A20: Rej 5 | B20: 0 | C20: 0 | F20: 0 | G20: 0 | H20: 0 | I20: 0 | L20: 0 | M20: 0 | N20: 0 | Q20: 0 | R20: 0 | S20: 0 | V20: 0 | W20: 0 | X20: 0 | AA20: 0 | AB20: 0 | AC20: 0 | AF20: 0
A21: Rej 6 | B21: 0 | C21: 0 | F21: 0 | G21: 0 | H21: 0 | I21: 0 | L21: 0 | M21: 0 | N21: 0 | Q21: 0 | R21: 0 | S21: 0 | V21: 0 | W21: 0 | X21: 0 | AA21: 0 | AB21: 0 | AC21: 0 | AF21: 0
A22: Rej 7 | B22: 0 | C22: 0 | F22: 0 | G22: 0 | H22: 0 | I22: 0 | L22: 0 | M22: 0 | N22: 0 | Q22: 0 | R22: 0 | S22: 0 | V22: 0 | W22: 0 | X22: 0 | AA22: 0 | AB22: 0 | AC22: 0 | AF22: 0
A23: Rej 8 | B23: 0 | C23: 0 | F23: 0 | G23: 0 | H23: 0 | I23: 0 | L23: 0 | M23: 0 | N23: 0 | Q23: 0 | R23: 0 | S23: 0 | V23: 0 | W23: 0 | X23: 0 | AA23: 0 | AB23: 0 | AC23: 0 | AF23: 0
A24: Rej 9 | B24: 0 | C24: 0 | F24: 0 | G24: 0 | H24: 0 | I24: 0 | L24: 0 | M24: 0 | N24: 0 | Q24: 0 | R24: 0 | S24: 0 | V24: 0 | W24: 0 | X24: 0 | AA24: 0 | AB24: 0 | AC24: 0 | AF24: 0
A25: Rej 10 | B25: 0 | C25: 0 | F25: 0 | G25: 0 | H25: 0 | I25: 0 | L25: 0 | M25: 0 | N25: 0 | Q25: 0 | R25: 0 | S25: 0 | V25: 0 | W25: 0 | X25: 0 | AA25: 0 | AB25: 0 | AC25: 0 | AF25: 0
A26: H&T&MR | B26: P0500600001 | C26: MISS ROLLED&HEAD&TAIL | F26: 14.55710508 | G26: 0 | H26: P0100700015 | I26: STB- 4SP (SSS) , 150*150*12 M (52 MW) | L26: 14.55710508 | M26: 0 | N26: 0 | Q26: 0 | R26: 0 | S26: 0 | V26: 0 | W26: 0 | X26: 0 | AA26: 0 | AB26: 0 | AC26: 0 | AF26: 0
A27: Shorts | B27: P0500400001 | C27: STR-SHORTS | F27: 34.97503111 | G27: 0 | H27: P0100700015 | I27: STB- 4SP (SSS) , 150*150*12 M (52 MW) | L27: 34.97503111 | M27: 0 | N27: 0 | Q27: 0 | R27: 0 | S27: 0 | V27: 0 | W27: 0 | X27: 0 | AA27: 0 | AB27: 0 | AC27: 0 | AF27: 0
A28: Cold Shear Cut | B28: P0500700001 | C28: COLD SHEAR CUT | F28: 19.45021952 | G28: 0 | H28: P0100700015 | I28: STB- 4SP (SSS) , 150*150*12 M (52 MW) | L28: 19.45021952 | M28: 0 | N28: 0 | Q28: 0 | R28: 0 | S28: 0 | V28: 0 | W28: 0 | X28: 0 | AA28: 0 | AB28: 0 | AC28: 0 | AF28: 0
A29: Suspended 1 | B29: P0501200008 | C29: STR- 25 MM, SUSPENDED & REJECTED | F29: 0 | G29: 0 | H29: P0100700015 | I29: STB- 4SP (SSS) , 150*150*12 M (52 MW) | L29: 0 | M29: 0 | N29: 0 | Q29: 0 | R29: 0 | S29: 0 | V29: 0 | W29: 0 | X29: 0 | AA29: 0 | AB29: 0 | AC29: 0 | AF29: 0
A30: Suspended 2 | B30: 0 | C30: 0 | F30: 0 | G30: 0 | H30: 0 | I30: 0 | L30: 0 | M30: 0 | N30: 0 | Q30: 0 | R30: 0 | S30: 0 | V30: 0 | W30: 0 | X30: 0 | AA30: 0 | AB30: 0 | AC30: 0 | AF30: 0
A31: Suspended 3 | B31: 0 | C31: 0 | F31: 0 | G31: 0 | H31: 0 | I31: 0 | L31: 0 | M31: 0 | N31: 0 | Q31: 0 | R31: 0 | S31: 0 | V31: 0 | W31: 0 | X31: 0 | AA31: 0 | AB31: 0 | AC31: 0 | AF31: 0
A32: Suspended 4 | B32: 0 | C32: 0 | F32: 0 | G32: 0 | H32: 0 | I32: 0 | L32: 0 | M32: 0 | N32: 0 | Q32: 0 | R32: 0 | S32: 0 | V32: 0 | W32: 0 | X32: 0 | AA32: 0 | AB32: 0 | AC32: 0 | AF32: 0
A33: Suspended 5 | B33: 0 | C33: 0 | F33: 0 | G33: 0 | H33: 0 | I33: 0 | L33: 0 | M33: 0 | N33: 0 | Q33: 0 | R33: 0 | S33: 0 | V33: 0 | W33: 0 | X33: 0 | AA33: 0 | AB33: 0 | AC33: 0 | AF33: 0
A34: Products | B34: =SUM(F6:F33) -> 1784.87888 | E34: Scales = | F34: =J34-B34 -> 23.48112 | G34: -8.171241461e-14 | I34: Consumption | J34: =SUM(L6:L33,Q6:Q33,V6:V33,AA6:AA33,AF6:AF33) -> 1808.36 | K34: 0
A35: RM 2
A36: Item | B36: Production | H36: Consumption 1 | M36: Consumption 2 | R36: Consumption 3 | W36: Consumption 4 | AB36: Consumption 5
B37: Code | C37: Description | F37: Ton | G37: Par | H37: Code | I37: Description | L37: Ton | M37: Code | N37: Description | Q37: Ton | R37: Code | S37: Description | V37: Ton | W37: Code | X37: Description | AA37: Ton | AB37: Code | AC37: Description | AF37: Ton
A38: Product 1 | B38: P0600600038 | C38: SPOOLED REBAR, SIZE 22 MM, GRADE B 400 BWR | F38: 0 | G38: 0 | H38: P0100700015 | I38: STB- 4SP (SSS) , 150*150*12 M (52 MW) | L38: 0 | M38: 0 | N38: 0 | Q38: 0 | R38: 0 | S38: 0 | V38: 0 | W38: 0 | X38: 0 | AA38: 0 | AB38: 0 | AC38: 0 | AF38: 0
A39: Product 2 | B39: 0 | C39: 0 | F39: 0 | G39: 0 | H39: 0 | I39: 0 | L39: 0 | M39: 0 | N39: 0 | Q39: 0 | R39: 0 | S39: 0 | V39: 0 | W39: 0 | X39: 0 | AA39: 0 | AB39: 0 | AC39: 0 | AF39: 0
A40: Product 3 | B40: 0 | C40: 0 | F40: 0 | G40: 0 | H40: 0 | I40: 0 | L40: 0 | M40: 0 | N40: 0 | Q40: 0 | R40: 0 | S40: 0 | V40: 0 | W40: 0 | X40: 0 | AA40: 0 | AB40: 0 | AC40: 0 | AF40: 0
A41: Product 4 | B41: 0 | C41: 0 | F41: 0 | G41: 0 | H41: 0 | I41: 0 | L41: 0 | M41: 0 | N41: 0 | Q41: 0 | R41: 0 | S41: 0 | V41: 0 | W41: 0 | X41: 0 | AA41: 0 | AB41: 0 | AC41: 0 | AF41: 0
A42: Product 5 | B42: 0 | C42: 0 | F42: 0 | G42: 0 | H42: 0 | I42: 0 | L42: 0 | M42: 0 | N42: 0 | Q42: 0 | R42: 0 | S42: 0 | V42: 0 | W42: 0 | X42: 0 | AA42: 0 | AB42: 0 | AC42: 0 | AF42: 0
A43: Product 6 | B43: 0 | C43: 0 | F43: 0 | G43: 0 | H43: 0 | I43: 0 | L43: 0 | M43: 0 | N43: 0 | Q43: 0 | R43: 0 | S43: 0 | V43: 0 | W43: 0 | X43: 0 | AA43: 0 | AB43: 0 | AC43: 0 | AF43: 0
A44: Product 7 | B44: 0 | C44: 0 | F44: 0 | G44: 0 | H44: 0 | I44: 0 | L44: 0 | M44: 0 | N44: 0 | Q44: 0 | R44: 0 | S44: 0 | V44: 0 | W44: 0 | X44: 0 | AA44: 0 | AB44: 0 | AC44: 0 | AF44: 0
A45: Product 8 | B45: 0 | C45: 0 | F45: 0 | G45: 0 | H45: 0 | I45: 0 | L45: 0 | M45: 0 | N45: 0 | Q45: 0 | R45: 0 | S45: 0 | V45: 0 | W45: 0 | X45: 0 | AA45: 0 | AB45: 0 | AC45: 0 | AF45: 0
A46: Product 9 | B46: 0 | C46: 0 | F46: 0 | G46: 0 | H46: 0 | I46: 0 | L46: 0 | M46: 0 | N46: 0 | Q46: 0 | R46: 0 | S46: 0 | V46: 0 | W46: 0 | X46: 0 | AA46: 0 | AB46: 0 | AC46: 0 | AF46: 0
A47: Product 10 | B47: 0 | C47: 0 | F47: 0 | G47: 0 | H47: 0 | I47: 0 | L47: 0 | M47: 0 | N47: 0 | Q47: 0 | R47: 0 | S47: 0 | V47: 0 | W47: 0 | X47: 0 | AA47: 0 | AB47: 0 | AC47: 0 | AF47: 0
A48: Rej 1 | B48: P0101300008 | C48: STB- 4SP, 150*150 Different lengths | F48: 0 | G48: 0 | H48: P0100700015 | I48: STB- 4SP (SSS) , 150*150*12 M (52 MW) | L48: 0 | M48: 0 | N48: 0 | Q48: 0 | R48: 0 | S48: 0 | V48: 0 | W48: 0 | X48: 0 | AA48: 0 | AB48: 0 | AC48: 0 | AF48: 0
A49: Rej 2 | B49: P0101300002 | C49: STB- 4SP, 130*130 Different lengths | F49: 0 | G49: 0 | H49: P0100700014 | I49: STB- 4SP (SSS) , 130*130*12 M ( 52 MW ) | L49: 0 | M49: 0 | N49: 0 | Q49: 0 | R49: 0 | S49: 0 | V49: 0 | W49: 0 | X49: 0 | AA49: 0 | AB49: 0 | AC49: 0 | AF49: 0
A50: Rej 3 | B50: P0101300005 | C50: STB, 1006, 150*150, DIFF.LENGTH, R | F50: 0 | G50: 0 | H50: P0101500001 | I50: STB- 1006, 150*150*12 M | L50: 0 | M50: 0 | N50: 0 | Q50: 0 | R50: 0 | S50: 0 | V50: 0 | W50: 0 | X50: 0 | AA50: 0 | AB50: 0 | AC50: 0 | AF50: 0
A51: Rej 4 | B51: 0 | C51: 0 | F51: 0 | G51: 0 | H51: 0 | I51: 0 | M51: 0 | N51: 0 | Q51: 0 | R51: 0 | S51: 0 | V51: 0 | W51: 0 | X51: 0 | AA51: 0 | AB51: 0 | AC51: 0 | AF51: 0
A52: Rej 5 | B52: 0 | C52: 0 | F52: 0 | G52: 0 | H52: 0 | I52: 0 | L52: 0 | M52: 0 | N52: 0 | Q52: 0 | R52: 0 | S52: 0 | V52: 0 | W52: 0 | X52: 0 | AA52: 0 | AB52: 0 | AC52: 0 | AF52: 0
A53: Rej 6 | B53: 0 | C53: 0 | F53: 0 | G53: 0 | H53: 0 | I53: 0 | L53: 0 | M53: 0 | N53: 0 | Q53: 0 | R53: 0 | S53: 0 | V53: 0 | W53: 0 | X53: 0 | AA53: 0 | AB53: 0 | AC53: 0 | AF53: 0
A54: Rej 7 | B54: 0 | C54: 0 | F54: 0 | G54: 0 | H54: 0 | I54: 0 | L54: 0 | M54: 0 | N54: 0 | Q54: 0 | R54: 0 | S54: 0 | V54: 0 | W54: 0 | X54: 0 | AA54: 0 | AB54: 0 | AC54: 0 | AF54: 0
A55: Rej 8 | B55: 0 | C55: 0 | F55: 0 | G55: 0 | H55: 0 | I55: 0 | L55: 0 | M55: 0 | N55: 0 | Q55: 0 | R55: 0 | S55: 0 | V55: 0 | W55: 0 | X55: 0 | AA55: 0 | AB55: 0 | AC55: 0 | AF55: 0
A56: Rej 9 | B56: 0 | C56: 0 | F56: 0 | G56: 0 | H56: 0 | I56: 0 | L56: 0 | M56: 0 | N56: 0 | Q56: 0 | R56: 0 | S56: 0 | V56: 0 | W56: 0 | X56: 0 | AA56: 0 | AB56: 0 | AC56: 0 | AF56: 0
A57: Rej 10 | B57: 0 | C57: 0 | F57: 0 | G57: 0 | H57: 0 | I57: 0 | L57: 0 | M57: 0 | N57: 0 | Q57: 0 | R57: 0 | S57: 0 | V57: 0 | W57: 0 | X57: 0 | AA57: 0 | AB57: 0 | AC57: 0 | AF57: 0
A58: H&T&MR | B58: P0500600001 | C58: MISS ROLLED&HEAD&TAIL | F58: 0 | G58: 0 | H58: P0100700015 | I58: STB- 4SP (SSS) , 150*150*12 M (52 MW) | L58: 0 | M58: 0 | N58: 0 | Q58: 0 | R58: 0 | S58: 0 | V58: 0 | W58: 0 | X58: 0 | AA58: 0 | AB58: 0 | AC58: 0 | AF58: 0
A59: Trimming | B59: P0601300002 | C59: Trimming | F59: 0 | G59: 0 | H59: P0100700015 | I59: STB- 4SP (SSS) , 150*150*12 M (52 MW) | L59: 0 | M59: 0 | N59: 0 | Q59: 0 | R59: 0 | S59: 0 | V59: 0 | W59: 0 | X59: 0 | AA59: 0 | AB59: 0 | AC59: 0 | AF59: 0
A60: Suspended 1 | B60: P0601200009 | C60: SUSPENDED SPOOL, 22 MM | F60: 0 | G60: 0 | H60: P0100700015 | I60: STB- 4SP (SSS) , 150*150*12 M (52 MW) | L60: 0 | M60: 0 | N60: 0 | Q60: 0 | R60: 0 | S60: 0 | V60: 0 | W60: 0 | X60: 0 | AA60: 0 | AB60: 0 | AC60: 0 | AF60: 0
A61: Suspended 2 | B61: 0 | C61: 0 | F61: 0 | G61: 0 | H61: 0 | I61: 0 | L61: 0 | M61: 0 | N61: 0 | Q61: 0 | R61: 0 | S61: 0 | V61: 0 | W61: 0 | X61: 0 | AA61: 0 | AB61: 0 | AC61: 0 | AF61: 0
A62: Suspended 3 | B62: 0 | C62: 0 | F62: 0 | G62: 0 | H62: 0 | I62: 0 | L62: 0 | M62: 0 | N62: 0 | Q62: 0 | R62: 0 | S62: 0 | V62: 0 | W62: 0 | X62: 0 | AA62: 0 | AB62: 0 | AC62: 0 | AF62: 0
A63: Suspended 4 | B63: 0 | C63: 0 | F63: 0 | G63: 0 | H63: 0 | I63: 0 | L63: 0 | M63: 0 | N63: 0 | Q63: 0 | R63: 0 | S63: 0 | V63: 0 | W63: 0 | X63: 0 | AA63: 0 | AB63: 0 | AC63: 0 | AF63: 0
A64: Suspended 5 | B64: 0 | C64: 0 | F64: 0 | G64: 0 | H64: 0 | I64: 0 | L64: 0 | M64: 0 | N64: 0 | Q64: 0 | R64: 0 | S64: 0 | V64: 0 | W64: 0 | X64: 0 | AA64: 0 | AB64: 0 | AC64: 0 | AF64: 0
A65: Products | B65: =SUM(F38:F64) -> 0 | E65: Scales = | F65: =J65-B65 -> 0 | G65: 0 | I65: Consumption | J65: =SUM(L38:L64,Q38:Q64,V38:V64,AA38:AA64,AF38:AF64) -> 0 | K65: 0

Sheet 3
A1: MACC PRD report | E1: Rolling Mill Plant
A2: Date: | C2: 3 | D2: March | E2: 2019
A3: RM 1
A4: Item | B4: Production | H4: Consumption 1 | M4: Consumption 2 | R4: Consumption 3 | W4: Consumption 4 | AB4: Consumption 5
B5: Code | C5: Description | F5: Ton | G5: Par | H5: Code | I5: Description | L5: Ton | M5: Code | N5: Description | Q5: Ton | R5: Code | S5: Description | V5: Ton | W5: Code | X5: Description | AA5: Ton | AB5: Code | AC5: Description | AF5: Ton
A6: Product 1 | B6: P0501400001 | C6: STR- B 400 BWR, 32 MM, 12 M | F6: 521.085628 | G6: 261 | H6: P0100700015 | I6: STB- 4SP (SSS) , 150*150*12 M (52 MW) | L6: 539.6503147 | M6: 0 | N6: 0 | Q6: 0 | R6: 0 | S6: 0 | V6: 0 | W6: 0 | X6: 0 | AA6: 0 | AB6: 0 | AC6: 0 | AF6: 0
A7: Product 2 | B7: P0501300002 | C7: STR- B 500 BWR, 25 MM, 12 M | F7: 489.974641 | G7: 238 | H7: P0100700015 | I7: STB- 4SP (SSS) , 150*150*12 M (52 MW) | L7: 489.974641 | M7: 0 | N7: 0 | Q7: 0 | R7: 0 | S7: 0 | V7: 0 | W7: 0 | X7: 0 | AA7: 0 | AB7: 0 | AC7: 0 | AF7: 0
A8: Product 3 | B8: P0501400002 | C8: STR- B 400 BWR, 25 MM, 12 M | F8: 273.3329609 | G8: 136 | H8: P0100700015 | I8: STB- 4SP (SSS) , 150*150*12 M (52 MW) | L8: 273.3329609 | M8: 0 | N8: 0 | Q8: 0 | R8: 0 | S8: 0 | V8: 0 | W8: 0 | X8: 0 | AA8: 0 | AB8: 0 | AC8: 0 | AF8: 0
A9: Product 4 | B9: 0 | C9: 0 | F9: 0 | G9: 0 | H9: 0 | I9: 0 | L9: 0 | M9: 0 | N9: 0 | Q9: 0 | R9: 0 | S9: 0 | V9: 0 | W9: 0 | X9: 0 | AA9: 0 | AB9: 0 | AC9: 0 | AF9: 0
A10: Product 5 | B10: 0 | C10: 0 | F10: 0 | G10: 0 | H10: 0 | I10: 0 | L10: 0 | M10: 0 | N10: 0 | Q10: 0 | R10: 0 | S10: 0 | V10: 0 | W10: 0 | X10: 0 | AA10: 0 | AB10: 0 | AC10: 0 | AF10: 0
A11: Product 6 | B11: 0 | C11: 0 | F11: 0 | G11: 0 | H11: 0 | I11: 0 | L11: 0 | M11: 0 | N11: 0 | Q11: 0 | R11: 0 | S11: 0 | V11: 0 | W11: 0 | X11: 0 | AA11: 0 | AB11: 0 | AC11: 0 | AF11: 0
A12: Product 7 | B12: 0 | C12: 0 | F12: 0 | G12: 0 | H12: 0 | I12: 0 | L12: 0 | M12: 0 | N12: 0 | Q12: 0 | R12: 0 | S12: 0 | V12: 0 | W12: 0 | X12: 0 | AA12: 0 | AB12: 0 | AC12: 0 | AF12: 0
A13: Product 8 | B13: 0 | C13: 0 | F13: 0 | G13: 0 | H13: 0 | I13: 0 | L13: 0 | M13: 0 | N13: 0 | Q13: 0 | R13: 0 | S13: 0 | V13: 0 | W13: 0 | X13: 0 | AA13: 0 | AB13: 0 | AC13: 0 | AF13: 0
A14: Product 9 | B14: 0 | C14: 0 | F14: 0 | G14: 0 | H14: 0 | I14: 0 | L14: 0 | M14: 0 | N14: 0 | Q14: 0 | R14: 0 | S14: 0 | V14: 0 | W14: 0 | X14: 0 | AA14: 0 | AB14: 0 | AC14: 0 | AF14: 0
A15: Product 10 | B15: 0 | C15: 0 | F15: 0 | G15: 0 | H15: 0 | I15: 0 | L15: 0 | M15: 0 | N15: 0 | Q15: 0 | R15: 0 | S15: 0 | V15: 0 | W15: 0 | X15: 0 | AA15: 0 | AB15: 0 | AC15: 0 | AF15: 0
A16: Rej 1 | B16: P0101300008 | C16: STB- 4SP, 150*150 Different lengths | F16: 2.131422122 | G16: 1 | H16: P0100700015 | I16: STB- 4SP (SSS) , 150*150*12 M (52 MW) | L16: 2.131422122 | M16: 0 | N16: 0 | Q16: 0 | R16: 0 | S16: 0 | V16: 0 | W16: 0 | X16: 0 | AA16: 0 | AB16: 0 | AC16: 0 | AF16: 0
A17: Rej 2 | B17: P0101300002 | C17: STB- 4SP, 130*130 Different lengths | F17: 0 | G17: 0 | H17: P0100700014 | I17: STB- 4SP (SSS) , 130*130*12 M ( 52 MW ) | L17: 0 | M17: 0 | N17: 0 | Q17: 0 | R17: 0 | S17: 0 | V17: 0 | W17: 0 | X17: 0 | AA17: 0 | AB17: 0 | AC17: 0 | AF17: 0
A18: Rej 3 | B18: P0101300002 | C18: STB- 4SP, 130*130 Different lengths | F18: 0 | G18: 0 | H18: P0100700001 | I18: STB- 4SP, 130*130*12 M ( 52 MW ) | L18: 0 | M18: 0 | N18: 0 | Q18: 0 | R18: 0 | S18: 0 | V18: 0 | W18: 0 | X18: 0 | AA18: 0 | AB18: 0 | AC18: 0 | AF18: 0
A19: Rej 4 | B19: 0 | C19: 0 | F19: 0 | G19: 0 | H19: 0 | I19: 0 | L19: 0 | M19: 0 | N19: 0 | Q19: 0 | R19: 0 | S19: 0 | V19: 0 | W19: 0 | X19: 0 | AA19: 0 | AB19: 0 | AC19: 0 | AF19: 0
A20: Rej 5 | B20: 0 | C20: 0 | F20: 0 | G20: 0 | H20: 0 | I20: 0 | L20: 0 | M20: 0 | N20: 0 | Q20: 0 | R20: 0 | S20: 0 | V20: 0 | W20: 0 | X20: 0 | AA20: 0 | AB20: 0 | AC20: 0 | AF20: 0
A21: Rej 6 | B21: 0 | C21: 0 | F21: 0 | G21: 0 | H21: 0 | I21: 0 | L21: 0 | M21: 0 | N21: 0 | Q21: 0 | R21: 0 | S21: 0 | V21: 0 | W21: 0 | X21: 0 | AA21: 0 | AB21: 0 | AC21: 0 | AF21: 0
A22: Rej 7 | B22: 0 | C22: 0 | F22: 0 | G22: 0 | H22: 0 | I22: 0 | L22: 0 | M22: 0 | N22: 0 | Q22: 0 | R22: 0 | S22: 0 | V22: 0 | W22: 0 | X22: 0 | AA22: 0 | AB22: 0 | AC22: 0 | AF22: 0
A23: Rej 8 | B23: 0 | C23: 0 | F23: 0 | G23: 0 | H23: 0 | I23: 0 | L23: 0 | M23: 0 | N23: 0 | Q23: 0 | R23: 0 | S23: 0 | V23: 0 | W23: 0 | X23: 0 | AA23: 0 | AB23: 0 | AC23: 0 | AF23: 0
A24: Rej 9 | B24: 0 | C24: 0 | F24: 0 | G24: 0 | H24: 0 | I24: 0 | L24: 0 | M24: 0 | N24: 0 | Q24: 0 | R24: 0 | S24: 0 | V24: 0 | W24: 0 | X24: 0 | AA24: 0 | AB24: 0 | AC24: 0 | AF24: 0
A25: Rej 10 | B25: 0 | C25: 0 | F25: 0 | G25: 0 | H25: 0 | I25: 0 | L25: 0 | M25: 0 | N25: 0 | Q25: 0 | R25: 0 | S25: 0 | V25: 0 | W25: 0 | X25: 0 | AA25: 0 | AB25: 0 | AC25: 0 | AF25: 0
A26: H&T&MR | B26: P0500600001 | C26: MISS ROLLED&HEAD&TAIL | F26: 22.40034278 | G26: 0 | H26: P0100700015 | I26: STB- 4SP (SSS) , 150*150*12 M (52 MW) | L26: 22.40034278 | M26: 0 | N26: 0 | Q26: 0 | R26: 0 | S26: 0 | V26: 0 | W26: 0 | X26: 0 | AA26: 0 | AB26: 0 | AC26: 0 | AF26: 0
A27: Shorts | B27: P0500400001 | C27: STR-SHORTS | F27: 27.43659653 | G27: 0 | H27: P0100700015 | I27: STB- 4SP (SSS) , 150*150*12 M (52 MW) | L27: 27.43659653 | M27: 0 | N27: 0 | Q27: 0 | R27: 0 | S27: 0 | V27: 0 | W27: 0 | X27: 0 | AA27: 0 | AB27: 0 | AC27: 0 | AF27: 0
A28: Cold Shear Cut | B28: P0500700001 | C28: COLD SHEAR CUT | F28: 15.25796571 | G28: 0 | H28: P0100700015 | I28: STB- 4SP (SSS) , 150*150*12 M (52 MW) | L28: 15.25796571 | M28: 0 | N28: 0 | Q28: 0 | R28: 0 | S28: 0 | V28: 0 | W28: 0 | X28: 0 | AA28: 0 | AB28: 0 | AC28: 0 | AF28: 0
A29: Suspended 1 | B29: P0501200010 | C29: STR- 32 MM, SUSPENDED & REJECTED | F29: 60 | G29: 30 | H29: P0100700015 | I29: STB- 4SP (SSS) , 150*150*12 M (52 MW) | L29: 60 | M29: 0 | N29: 0 | Q29: 0 | R29: 0 | S29: 0 | V29: 0 | W29: 0 | X29: 0 | AA29: 0 | AB29: 0 | AC29: 0 | AF29: 0
A30: Suspended 2 | B30: 0 | C30: 0 | F30: 0 | G30: 0 | H30: 0 | I30: 0 | L30: 0 | M30: 0 | N30: 0 | Q30: 0 | R30: 0 | S30: 0 | V30: 0 | W30: 0 | X30: 0 | AA30: 0 | AB30: 0 | AC30: 0 | AF30: 0
A31: Suspended 3 | B31: 0 | C31: 0 | F31: 0 | G31: 0 | H31: 0 | I31: 0 | L31: 0 | M31: 0 | N31: 0 | Q31: 0 | R31: 0 | S31: 0 | V31: 0 | W31: 0 | X31: 0 | AA31: 0 | AB31: 0 | AC31: 0 | AF31: 0
A32: Suspended 4 | B32: 0 | C32: 0 | F32: 0 | G32: 0 | H32: 0 | I32: 0 | L32: 0 | M32: 0 | N32: 0 | Q32: 0 | R32: 0 | S32: 0 | V32: 0 | W32: 0 | X32: 0 | AA32: 0 | AB32: 0 | AC32: 0 | AF32: 0
A33: Suspended 5 | B33: 0 | C33: 0 | F33: 0 | G33: 0 | H33: 0 | I33: 0 | L33: 0 | M33: 0 | N33: 0 | Q33: 0 | R33: 0 | S33: 0 | V33: 0 | W33: 0 | X33: 0 | AA33: 0 | AB33: 0 | AC33: 0 | AF33: 0
A34: Products | B34: =SUM(F6:F33) -> 1411.619557 | E34: Scales = | F34: =J34-B34 -> 18.56468668 | G34: 2.202682481e-13 | I34: Consumption | J34: =SUM(L6:L33,Q6:Q33,V6:V33,AA6:AA33,AF6:AF33) -> 1430.184244 | K34: 0
A35: RM 2
A36: Item | B36: Production | H36: Consumption 1 | M36: Consumption 2 | R36: Consumption 3 | W36: Consumption 4 | AB36: Consumption 5
B37: Code | C37: Description | F37: Ton | G37: Par | H37: Code | I37: Description | L37: Ton | M37: Code | N37: Description | Q37: Ton | R37: Code | S37: Description | V37: Ton | W37: Code | X37: Description | AA37: Ton | AB37: Code | AC37: Description | AF37: Ton
A38: Product 1 | B38: 0 | C38: 0 | F38: 0 | G38: 0 | H38: 0 | I38: 0 | L38: 0 | M38: 0 | N38: 0 | Q38: 0 | R38: 0 | S38: 0 | V38: 0 | W38: 0 | X38: 0 | AA38: 0 | AB38: 0 | AC38: 0 | AF38: 0
A39: Product 2 | B39: 0 | C39: 0 | F39: 0 | G39: 0 | H39: 0 | I39: 0 | L39: 0 | M39: 0 | N39: 0 | Q39: 0 | R39: 0 | S39: 0 | V39: 0 | W39: 0 | X39: 0 | AA39: 0 | AB39: 0 | AC39: 0 | AF39: 0
A40: Product 3 | B40: 0 | C40: 0 | F40: 0 | G40: 0 | H40: 0 | I40: 0 | L40: 0 | M40: 0 | N40: 0 | Q40: 0 | R40: 0 | S40: 0 | V40: 0 | W40: 0 | X40: 0 | AA40: 0 | AB40: 0 | AC40: 0 | AF40: 0
A41: Product 4 | B41: 0 | C41: 0 | F41: 0 | G41: 0 | H41: 0 | I41: 0 | L41: 0 | M41: 0 | N41: 0 | Q41: 0 | R41: 0 | S41: 0 | V41: 0 | W41: 0 | X41: 0 | AA41: 0 | AB41: 0 | AC41: 0 | AF41: 0
A42: Product 5 | B42: 0 | C42: 0 | F42: 0 | G42: 0 | H42: 0 | I42: 0 | L42: 0 | M42: 0 | N42: 0 | Q42: 0 | R42: 0 | S42: 0 | V42: 0 | W42: 0 | X42: 0 | AA42: 0 | AB42: 0 | AC42: 0 | AF42: 0
A43: Product 6 | B43: 0 | C43: 0 | F43: 0 | G43: 0 | H43: 0 | I43: 0 | L43: 0 | M43: 0 | N43: 0 | Q43: 0 | R43: 0 | S43: 0 | V43: 0 | W43: 0 | X43: 0 | AA43: 0 | AB43: 0 | AC43: 0 | AF43: 0
A44: Product 7 | B44: 0 | C44: 0 | F44: 0 | G44: 0 | H44: 0 | I44: 0 | L44: 0 | M44: 0 | N44: 0 | Q44: 0 | R44: 0 | S44: 0 | V44: 0 | W44: 0 | X44: 0 | AA44: 0 | AB44: 0 | AC44: 0 | AF44: 0
A45: Product 8 | B45: 0 | C45: 0 | F45: 0 | G45: 0 | H45: 0 | I45: 0 | L45: 0 | M45: 0 | N45: 0 | Q45: 0 | R45: 0 | S45: 0 | V45: 0 | W45: 0 | X45: 0 | AA45: 0 | AB45: 0 | AC45: 0 | AF45: 0
A46: Product 9 | B46: 0 | C46: 0 | F46: 0 | G46: 0 | H46: 0 | I46: 0 | L46: 0 | M46: 0 | N46: 0 | Q46: 0 | R46: 0 | S46: 0 | V46: 0 | W46: 0 | X46: 0 | AA46: 0 | AB46: 0 | AC46: 0 | AF46: 0
A47: Product 10 | B47: 0 | C47: 0 | F47: 0 | G47: 0 | H47: 0 | I47: 0 | L47: 0 | M47: 0 | N47: 0 | Q47: 0 | R47: 0 | S47: 0 | V47: 0 | W47: 0 | X47: 0 | AA47: 0 | AB47: 0 | AC47: 0 | AF47: 0
A48: Rej 1 | B48: 0 | C48: 0 | F48: 0 | G48: 0 | H48: 0 | I48: 0 | L48: 0 | M48: 0 | N48: 0 | Q48: 0 | R48: 0 | S48: 0 | V48: 0 | W48: 0 | X48: 0 | AA48: 0 | AB48: 0 | AC48: 0 | AF48: 0
A49: Rej 2 | B49: 0 | C49: 0 | F49: 0 | G49: 0 | H49: 0 | I49: 0 | L49: 0 | M49: 0 | N49: 0 | Q49: 0 | R49: 0 | S49: 0 | V49: 0 | W49: 0 | X49: 0 | AA49: 0 | AB49: 0 | AC49: 0 | AF49: 0
A50: Rej 3 | B50: 0 | C50: 0 | F50: 0 | G50: 0 | H50: 0 | I50: 0 | L50: 0 | M50: 0 | N50: 0 | Q50: 0 | R50: 0 | S50: 0 | V50: 0 | W50: 0 | X50: 0 | AA50: 0 | AB50: 0 | AC50: 0 | AF50: 0
A51: Rej 4 | B51: 0 | C51: 0 | F51: 0 | G51: 0 | H51: 0 | I51: 0 | L51: 0 | M51: 0 | N51: 0 | Q51: 0 | R51: 0 | S51: 0 | V51: 0 | W51: 0 | X51: 0 | AA51: 0 | AB51: 0 | AC51: 0 | AF51: 0
A52: Rej 5 | B52: 0 | C52: 0 | F52: 0 | G52: 0 | H52: 0 | I52: 0 | L52: 0 | M52: 0 | N52: 0 | Q52: 0 | R52: 0 | S52: 0 | V52: 0 | W52: 0 | X52: 0 | AA52: 0 | AB52: 0 | AC52: 0 | AF52: 0
A53: Rej 6 | B53: 0 | C53: 0 | F53: 0 | G53: 0 | H53: 0 | I53: 0 | L53: 0 | M53: 0 | N53: 0 | Q53: 0 | R53: 0 | S53: 0 | V53: 0 | W53: 0 | X53: 0 | AA53: 0 | AB53: 0 | AC53: 0 | AF53: 0
A54: Rej 7 | B54: 0 | C54: 0 | F54: 0 | G54: 0 | H54: 0 | I54: 0 | L54: 0 | M54: 0 | N54: 0 | Q54: 0 | R54: 0 | S54: 0 | V54: 0 | W54: 0 | X54: 0 | AA54: 0 | AB54: 0 | AC54: 0 | AF54: 0
A55: Rej 8 | B55: 0 | C55: 0 | F55: 0 | G55: 0 | H55: 0 | I55: 0 | L55: 0 | M55: 0 | N55: 0 | Q55: 0 | R55: 0 | S55: 0 | V55: 0 | W55: 0 | X55: 0 | AA55: 0 | AB55: 0 | AC55: 0 | AF55: 0
A56: Rej 9 | B56: 0 | C56: 0 | F56: 0 | G56: 0 | H56: 0 | I56: 0 | L56: 0 | M56: 0 | N56: 0 | Q56: 0 | R56: 0 | S56: 0 | V56: 0 | W56: 0 | X56: 0 | AA56: 0 | AB56: 0 | AC56: 0 | AF56: 0
A57: Rej 10 | B57: 0 | C57: 0 | F57: 0 | G57: 0 | H57: 0 | I57: 0 | L57: 0 | M57: 0 | N57: 0 | Q57: 0 | R57: 0 | S57: 0 | V57: 0 | W57: 0 | X57: 0 | AA57: 0 | AB57: 0 | AC57: 0 | AF57: 0
A58: H&T&MR | B58: 0 | C58: 0 | F58: 0 | G58: 0 | H58: 0 | I58: 0 | L58: 0 | M58: 0 | N58: 0 | Q58: 0 | R58: 0 | S58: 0 | V58: 0 | W58: 0 | X58: 0 | AA58: 0 | AB58: 0 | AC58: 0 | AF58: 0
A59: Trimming | B59: 0 | C59: 0 | F59: 0 | G59: 0 | H59: 0 | I59: 0 | L59: 0 | M59: 0 | N59: 0 | Q59: 0 | R59: 0 | S59: 0 | V59: 0 | W59: 0 | X59: 0 | AA59: 0 | AB59: 0 | AC59: 0 | AF59: 0
A60: Suspended 1 | B60: 0 | C60: 0 | F60: 0 | G60: 0 | H60: 0 | I60: 0 | L60: 0 | M60: 0 | N60: 0 | Q60: 0 | R60: 0 | S60: 0 | V60: 0 | W60: 0 | X60: 0 | AA60: 0 | AB60: 0 | AC60: 0 | AF60: 0
A61: Suspended 2 | B61: 0 | C61: 0 | F61: 0 | G61: 0 | H61: 0 | I61: 0 | L61: 0 | M61: 0 | N61: 0 | Q61: 0 | R61: 0 | S61: 0 | V61: 0 | W61: 0 | X61: 0 | AA61: 0 | AB61: 0 | AC61: 0 | AF61: 0
A62: Suspended 3 | B62: 0 | C62: 0 | F62: 0 | G62: 0 | H62: 0 | I62: 0 | L62: 0 | M62: 0 | N62: 0 | Q62: 0 | R62: 0 | S62: 0 | V62: 0 | W62: 0 | X62: 0 | AA62: 0 | AB62: 0 | AC62: 0 | AF62: 0
A63: Suspended 4 | B63: 0 | C63: 0 | F63: 0 | G63: 0 | H63: 0 | I63: 0 | L63: 0 | M63: 0 | N63: 0 | Q63: 0 | R63: 0 | S63: 0 | V63: 0 | W63: 0 | X63: 0 | AA63: 0 | AB63: 0 | AC63: 0 | AF63: 0
A64: Suspended 5 | B64: 0 | C64: 0 | F64: 0 | G64: 0 | H64: 0 | I64: 0 | L64: 0 | M64: 0 | N64: 0 | Q64: 0 | R64: 0 | S64: 0 | V64: 0 | W64: 0 | X64: 0 | AA64: 0 | AB64: 0 | AC64: 0 | AF64: 0
A65: Products | B65: =SUM(F37:F64) -> 0 | E65: Scales = | F65: =J65-B65 -> 0 | G65: 0 | I65: Consumption | J65: =SUM(L38:L64,Q38:Q64,V38:V64,AA38:AA64,AF38:AF64) -> 0 | K65: 0

Sheet 4
A1: MACC PRD report | E1: Rolling Mill Plant
A2: Date: | C2: 4 | D2: March | E2: 2019
A3: RM 1
A4: Item | B4: Production | H4: Consumption 1 | M4: Consumption 2 | R4: Consumption 3 | W4: Consumption 4 | AB4: Consumption 5
B5: Code | C5: Description | F5: Ton | G5: Par | H5: Code | I5: Description | L5: Ton | M5: Code | N5: Description | Q5: Ton | R5: Code | S5: Description | V5: Ton | W5: Code | X5: Description | AA5: Ton | AB5: Code | AC5: Description | AF5: Ton
A6: Product 1 | B6: P0501300001 | C6: STR- B 500 BWR, 32 MM, 12 M | F6: 1085.722216 | G6: 528 | H6: P0100700015 | I6: STB- 4SP (SSS) , 150*150*12 M (52 MW) | L6: 1106.422989 | M6: 0 | N6: 0 | Q6: 0 | R6: 0 | S6: 0 | V6: 0 | W6: 0 | X6: 0 | AA6: 0 | AB6: 0 | AC6: 0 | AF6: 0
A7: Product 2 | B7: P0501400001 | C7: STR- B 400 BWR, 32 MM, 12 M | F7: 424.8719986 | G7: 209 | H7: P0100700015 | I7: STB- 4SP (SSS) , 150*150*12 M (52 MW) | L7: 424.8719986 | M7: 0 | N7: 0 | Q7: 0 | R7: 0 | S7: 0 | V7: 0 | W7: 0 | X7: 0 | AA7: 0 | AB7: 0 | AC7: 0 | AF7: 0
A8: Product 3 | B8: 0 | C8: 0 | F8: 0 | G8: 0 | H8: 0 | I8: 0 | L8: 0 | M8: 0 | N8: 0 | Q8: 0 | R8: 0 | S8: 0 | V8: 0 | W8: 0 | X8: 0 | AA8: 0 | AB8: 0 | AC8: 0 | AF8: 0
A9: Product 4 | B9: 0 | C9: 0 | F9: 0 | G9: 0 | H9: 0 | I9: 0 | L9: 0 | M9: 0 | N9: 0 | Q9: 0 | R9: 0 | S9: 0 | V9: 0 | W9: 0 | X9: 0 | AA9: 0 | AB9: 0 | AC9: 0 | AF9: 0
A10: Product 5 | B10: 0 | C10: 0 | F10: 0 | G10: 0 | H10: 0 | I10: 0 | L10: 0 | M10: 0 | N10: 0 | Q10: 0 | R10: 0 | S10: 0 | V10: 0 | W10: 0 | X10: 0 | AA10: 0 | AB10: 0 | AC10: 0 | AF10: 0
A11: Product 6 | B11: 0 | C11: 0 | F11: 0 | G11: 0 | H11: 0 | I11: 0 | L11: 0 | M11: 0 | N11: 0 | Q11: 0 | R11: 0 | S11: 0 | V11: 0 | W11: 0 | X11: 0 | AA11: 0 | AB11: 0 | AC11: 0 | AF11: 0
A12: Product 7 | B12: 0 | C12: 0 | F12: 0 | G12: 0 | H12: 0 | I12: 0 | L12: 0 | M12: 0 | N12: 0 | Q12: 0 | R12: 0 | S12: 0 | V12: 0 | W12: 0 | X12: 0 | AA12: 0 | AB12: 0 | AC12: 0 | AF12: 0
A13: Product 8 | B13: 0 | C13: 0 | F13: 0 | G13: 0 | H13: 0 | I13: 0 | L13: 0 | M13: 0 | N13: 0 | Q13: 0 | R13: 0 | S13: 0 | V13: 0 | W13: 0 | X13: 0 | AA13: 0 | AB13: 0 | AC13: 0 | AF13: 0
A14: Product 9 | B14: 0 | C14: 0 | F14: 0 | G14: 0 | H14: 0 | I14: 0 | L14: 0 | M14: 0 | N14: 0 | Q14: 0 | R14: 0 | S14: 0 | V14: 0 | W14: 0 | X14: 0 | AA14: 0 | AB14: 0 | AC14: 0 | AF14: 0
A15: Product 10 | B15: 0 | C15: 0 | F15: 0 | G15: 0 | H15: 0 | I15: 0 | L15: 0 | M15: 0 | N15: 0 | Q15: 0 | R15: 0 | S15: 0 | V15: 0 | W15: 0 | X15: 0 | AA15: 0 | AB15: 0 | AC15: 0 | AF15: 0
A16: Rej 1 | B16: P0101300008 | C16: STB- 4SP, 150*150 Different lengths | F16: 0 | G16: 0 | H16: P0100700015 | I16: STB- 4SP (SSS) , 150*150*12 M (52 MW) | L16: 0 | M16: 0 | N16: 0 | Q16: 0 | R16: 0 | S16: 0 | V16: 0 | W16: 0 | X16: 0 | AA16: 0 | AB16: 0 | AC16: 0 | AF16: 0
A17: Rej 2 | B17: P0101300002 | C17: STB- 4SP, 130*130 Different lengths | F17: 0 | G17: 0 | H17: P0100700014 | I17: STB- 4SP (SSS) , 130*130*12 M ( 52 MW ) | L17: 0 | M17: 0 | N17: 0 | Q17: 0 | R17: 0 | S17: 0 | V17: 0 | W17: 0 | X17: 0 | AA17: 0 | AB17: 0 | AC17: 0 | AF17: 0
A18: Rej 3 | B18: P0101300002 | C18: STB- 4SP, 130*130 Different lengths | F18: 0 | G18: 0 | H18: P0100700001 | I18: STB- 4SP, 130*130*12 M ( 52 MW ) | L18: 0 | M18: 0 | N18: 0 | Q18: 0 | R18: 0 | S18: 0 | V18: 0 | W18: 0 | X18: 0 | AA18: 0 | AB18: 0 | AC18: 0 | AF18: 0
A19: Rej 4 | B19: 0 | C19: 0 | F19: 0 | G19: 0 | H19: 0 | I19: 0 | L19: 0 | M19: 0 | N19: 0 | Q19: 0 | R19: 0 | S19: 0 | V19: 0 | W19: 0 | X19: 0 | AA19: 0 | AB19: 0 | AC19: 0 | AF19: 0
A20: Rej 5 | B20: 0 | C20: 0 | F20: 0 | G20: 0 | H20: 0 | I20: 0 | L20: 0 | M20: 0 | N20: 0 | Q20: 0 | R20: 0 | S20: 0 | V20: 0 | W20: 0 | X20: 0 | AA20: 0 | AB20: 0 | AC20: 0 | AF20: 0
A21: Rej 6 | B21: 0 | C21: 0 | F21: 0 | G21: 0 | H21: 0 | I21: 0 | L21: 0 | M21: 0 | N21: 0 | Q21: 0 | R21: 0 | S21: 0 | V21: 0 | W21: 0 | X21: 0 | AA21: 0 | AB21: 0 | AC21: 0 | AF21: 0
A22: Rej 7 | B22: 0 | C22: 0 | F22: 0 | G22: 0 | H22: 0 | I22: 0 | L22: 0 | M22: 0 | N22: 0 | Q22: 0 | R22: 0 | S22: 0 | V22: 0 | W22: 0 | X22: 0 | AA22: 0 | AB22: 0 | AC22: 0 | AF22: 0
A23: Rej 8 | B23: 0 | C23: 0 | F23: 0 | G23: 0 | H23: 0 | I23: 0 | L23: 0 | M23: 0 | N23: 0 | Q23: 0 | R23: 0 | S23: 0 | V23: 0 | W23: 0 | X23: 0 | AA23: 0 | AB23: 0 | AC23: 0 | AF23: 0
A24: Rej 9 | B24: 0 | C24: 0 | F24: 0 | G24: 0 | H24: 0 | I24: 0 | L24: 0 | M24: 0 | N24: 0 | Q24: 0 | R24: 0 | S24: 0 | V24: 0 | W24: 0 | X24: 0 | AA24: 0 | AB24: 0 | AC24: 0 | AF24: 0
A25: Rej 10 | B25: 0 | C25: 0 | F25: 0 | G25: 0 | H25: 0 | I25: 0 | L25: 0 | M25: 0 | N25: 0 | Q25: 0 | R25: 0 | S25: 0 | V25: 0 | W25: 0 | X25: 0 | AA25: 0 | AB25: 0 | AC25: 0 | AF25: 0
A26: H&T&MR | B26: P0500600001 | C26: MISS ROLLED&HEAD&TAIL | F26: 13.0994209 | G26: 0 | H26: P0100700015 | I26: STB- 4SP (SSS) , 150*150*12 M (52 MW) | L26: 13.0994209 | M26: 0 | N26: 0 | Q26: 0 | R26: 0 | S26: 0 | V26: 0 | W26: 0 | X26: 0 | AA26: 0 | AB26: 0 | AC26: 0 | AF26: 0
A27: Shorts | B27: P0500400001 | C27: STR-SHORTS | F27: 30.82845337 | G27: 0 | H27: P0100700015 | I27: STB- 4SP (SSS) , 150*150*12 M (52 MW) | L27: 30.82845337 | M27: 0 | N27: 0 | Q27: 0 | R27: 0 | S27: 0 | V27: 0 | W27: 0 | X27: 0 | AA27: 0 | AB27: 0 | AC27: 0 | AF27: 0
A28: Cold Shear Cut | B28: P0500700001 | C28: COLD SHEAR CUT | F28: 17.14423595 | G28: 0 | H28: P0100700015 | I28: STB- 4SP (SSS) , 150*150*12 M (52 MW) | L28: 17.14423595 | M28: 0 | N28: 0 | Q28: 0 | R28: 0 | S28: 0 | V28: 0 | W28: 0 | X28: 0 | AA28: 0 | AB28: 0 | AC28: 0 | AF28: 0
A29: Suspended 1 | B29: P0501200010 | C29: STR- 32 MM, SUSPENDED & REJECTED | F29: 0 | G29: 0 | H29: P0100700015 | I29: STB- 4SP (SSS) , 150*150*12 M (52 MW) | L29: 0 | M29: 0 | N29: 0 | Q29: 0 | R29: 0 | S29: 0 | V29: 0 | W29: 0 | X29: 0 | AA29: 0 | AB29: 0 | AC29: 0 | AF29: 0
A30: Suspended 2 | B30: 0 | C30: 0 | F30: 0 | G30: 0 | H30: 0 | I30: 0 | L30: 0 | M30: 0 | N30: 0 | Q30: 0 | R30: 0 | S30: 0 | V30: 0 | W30: 0 | X30: 0 | AA30: 0 | AB30: 0 | AC30: 0 | AF30: 0
A31: Suspended 3 | B31: 0 | C31: 0 | F31: 0 | G31: 0 | H31: 0 | I31: 0 | L31: 0 | M31: 0 | N31: 0 | Q31: 0 | R31: 0 | S31: 0 | V31: 0 | W31: 0 | X31: 0 | AA31: 0 | AB31: 0 | AC31: 0 | AF31: 0
A32: Suspended 4 | B32: 0 | C32: 0 | F32: 0 | G32: 0 | H32: 0 | I32: 0 | L32: 0 | M32: 0 | N32: 0 | Q32: 0 | R32: 0 | S32: 0 | V32: 0 | W32: 0 | X32: 0 | AA32: 0 | AB32: 0 | AC32: 0 | AF32: 0
A33: Suspended 5 | B33: 0 | C33: 0 | F33: 0 | G33: 0 | H33: 0 | I33: 0 | L33: 0 | M33: 0 | N33: 0 | Q33: 0 | R33: 0 | S33: 0 | V33: 0 | W33: 0 | X33: 0 | AA33: 0 | AB33: 0 | AC33: 0 | AF33: 0
A34: Products | B34: =SUM(F6:F33) -> 1571.666325 | E34: Scales = | F34: =J34-B34 -> 20.70077227 | G34: 2.202682481e-13 | I34: Consumption | J34: =SUM(L6:L33,Q6:Q33,V6:V33,AA6:AA33,AF6:AF33) -> 1592.367097 | K34: 0
A35: RM 2
A36: Item | B36: Production | H36: Consumption 1 | M36: Consumption 2 | R36: Consumption 3 | W36: Consumption 4 | AB36: Consumption 5
B37: Code | C37: Description | F37: Ton | G37: Par | H37: Code | I37: Description | L37: Ton | M37: Code | N37: Description | Q37: Ton | R37: Code | S37: Description | V37: Ton | W37: Code | X37: Description | AA37: Ton | AB37: Code | AC37: Description | AF37: Ton
A38: Product 1 | B38: 0 | C38: 0 | F38: 0 | G38: 0 | H38: 0 | I38: 0 | L38: 0 | M38: 0 | N38: 0 | Q38: 0 | R38: 0 | S38: 0 | V38: 0 | W38: 0 | X38: 0 | AA38: 0 | AB38: 0 | AC38: 0 | AF38: 0
A39: Product 2 | B39: 0 | C39: 0 | F39: 0 | G39: 0 | H39: 0 | I39: 0 | L39: 0 | M39: 0 | N39: 0 | Q39: 0 | R39: 0 | S39: 0 | V39: 0 | W39: 0 | X39: 0 | AA39: 0 | AB39: 0 | AC39: 0 | AF39: 0
A40: Product 3 | B40: 0 | C40: 0 | F40: 0 | G40: 0 | H40: 0 | I40: 0 | L40: 0 | M40: 0 | N40: 0 | Q40: 0 | R40: 0 | S40: 0 | V40: 0 | W40: 0 | X40: 0 | AA40: 0 | AB40: 0 | AC40: 0 | AF40: 0
A41: Product 4 | B41: 0 | C41: 0 | F41: 0 | G41: 0 | H41: 0 | I41: 0 | L41: 0 | M41: 0 | N41: 0 | Q41: 0 | R41: 0 | S41: 0 | V41: 0 | W41: 0 | X41: 0 | AA41: 0 | AB41: 0 | AC41: 0 | AF41: 0
A42: Product 5 | B42: 0 | C42: 0 | F42: 0 | G42: 0 | H42: 0 | I42: 0 | L42: 0 | M42: 0 | N42: 0 | Q42: 0 | R42: 0 | S42: 0 | V42: 0 | W42: 0 | X42: 0 | AA42: 0 | AB42: 0 | AC42: 0 | AF42: 0
A43: Product 6 | B43: 0 | C43: 0 | F43: 0 | G43: 0 | H43: 0 | I43: 0 | L43: 0 | M43: 0 | N43: 0 | Q43: 0 | R43: 0 | S43: 0 | V43: 0 | W43: 0 | X43: 0 | AA43: 0 | AB43: 0 | AC43: 0 | AF43: 0
A44: Product 7 | B44: 0 | C44: 0 | F44: 0 | G44: 0 | H44: 0 | I44: 0 | L44: 0 | M44: 0 | N44: 0 | Q44: 0 | R44: 0 | S44: 0 | V44: 0 | W44: 0 | X44: 0 | AA44: 0 | AB44: 0 | AC44: 0 | AF44: 0
A45: Product 8 | B45: 0 | C45: 0 | F45: 0 | G45: 0 | H45: 0 | I45: 0 | L45: 0 | M45: 0 | N45: 0 | Q45: 0 | R45: 0 | S45: 0 | V45: 0 | W45: 0 | X45: 0 | AA45: 0 | AB45: 0 | AC45: 0 | AF45: 0
A46: Product 9 | B46: 0 | C46: 0 | F46: 0 | G46: 0 | H46: 0 | I46: 0 | L46: 0 | M46: 0 | N46: 0 | Q46: 0 | R46: 0 | S46: 0 | V46: 0 | W46: 0 | X46: 0 | AA46: 0 | AB46: 0 | AC46: 0 | AF46: 0
A47: Product 10 | B47: 0 | C47: 0 | F47: 0 | G47: 0 | H47: 0 | I47: 0 | L47: 0 | M47: 0 | N47: 0 | Q47: 0 | R47: 0 | S47: 0 | V47: 0 | W47: 0 | X47: 0 | AA47: 0 | AB47: 0 | AC47: 0 | AF47: 0
A48: Rej 1 | B48: 0 | C48: 0 | F48: 0 | G48: 0 | H48: 0 | I48: 0 | L48: 0 | M48: 0 | N48: 0 | Q48: 0 | R48: 0 | S48: 0 | V48: 0 | W48: 0 | X48: 0 | AA48: 0 | AB48: 0 | AC48: 0 | AF48: 0
A49: Rej 2 | B49: 0 | C49: 0 | F49: 0 | G49: 0 | H49: 0 | I49: 0 | L49: 0 | M49: 0 | N49: 0 | Q49: 0 | R49: 0 | S49: 0 | V49: 0 | W49: 0 | X49: 0 | AA49: 0 | AB49: 0 | AC49: 0 | AF49: 0
A50: Rej 3 | B50: 0 | C50: 0 | F50: 0 | G50: 0 | H50: 0 | I50: 0 | L50: 0 | M50: 0 | N50: 0 | Q50: 0 | R50: 0 | S50: 0 | V50: 0 | W50: 0 | X50: 0 | AA50: 0 | AB50: 0 | AC50: 0 | AF50: 0
A51: Rej 4 | B51: 0 | C51: 0 | F51: 0 | G51: 0 | H51: 0 | I51: 0 | L51: 0 | M51: 0 | N51: 0 | Q51: 0 | R51: 0 | S51: 0 | V51: 0 | W51: 0 | X51: 0 | AA51: 0 | AB51: 0 | AC51: 0 | AF51: 0
A52: Rej 5 | B52: 0 | C52: 0 | F52: 0 | G52: 0 | H52: 0 | I52: 0 | L52: 0 | M52: 0 | N52: 0 | Q52: 0 | R52: 0 | S52: 0 | V52: 0 | W52: 0 | X52: 0 | AA52: 0 | AB52: 0 | AC52: 0 | AF52: 0
A53: Rej 6 | B53: 0 | C53: 0 | F53: 0 | G53: 0 | H53: 0 | I53: 0 | L53: 0 | M53: 0 | N53: 0 | Q53: 0 | R53: 0 | S53: 0 | V53: 0 | W53: 0 | X53: 0 | AA53: 0 | AB53: 0 | AC53: 0 | AF53: 0
A54: Rej 7 | B54: 0 | C54: 0 | F54: 0 | G54: 0 | H54: 0 | I54: 0 | L54: 0 | M54: 0 | N54: 0 | Q54: 0 | R54: 0 | S54: 0 | V54: 0 | W54: 0 | X54: 0 | AA54: 0 | AB54: 0 | AC54: 0 | AF54: 0
A55: Rej 8 | B55: 0 | C55: 0 | F55: 0 | G55: 0 | H55: 0 | I55: 0 | L55: 0 | M55: 0 | N55: 0 | Q55: 0 | R55: 0 | S55: 0 | V55: 0 | W55: 0 | X55: 0 | AA55: 0 | AB55: 0 | AC55: 0 | AF55: 0
A56: Rej 9 | B56: 0 | C56: 0 | F56: 0 | G56: 0 | H56: 0 | I56: 0 | L56: 0 | M56: 0 | N56: 0 | Q56: 0 | R56: 0 | S56: 0 | V56: 0 | W56: 0 | X56: 0 | AA56: 0 | AB56: 0 | AC56: 0 | AF56: 0
A57: Rej 10 | B57: 0 | C57: 0 | F57: 0 | G57: 0 | H57: 0 | I57: 0 | L57: 0 | M57: 0 | N57: 0 | Q57: 0 | R57: 0 | S57: 0 | V57: 0 | W57: 0 | X57: 0 | AA57: 0 | AB57: 0 | AC57: 0 | AF57: 0
A58: H&T&MR | B58: 0 | C58: 0 | F58: 0 | G58: 0 | H58: 0 | I58: 0 | L58: 0 | M58: 0 | N58: 0 | Q58: 0 | R58: 0 | S58: 0 | V58: 0 | W58: 0 | X58: 0 | AA58: 0 | AB58: 0 | AC58: 0 | AF58: 0
A59: Trimming | B59: 0 | C59: 0 | F59: 0 | G59: 0 | H59: 0 | I59: 0 | L59: 0 | M59: 0 | N59: 0 | Q59: 0 | R59: 0 | S59: 0 | V59: 0 | W59: 0 | X59: 0 | AA59: 0 | AB59: 0 | AC59: 0 | AF59: 0
A60: Suspended 1 | B60: 0 | C60: 0 | F60: 0 | G60: 0 | H60: 0 | I60: 0 | L60: 0 | M60: 0 | N60: 0 | Q60: 0 | R60: 0 | S60: 0 | V60: 0 | W60: 0 | X60: 0 | AA60: 0 | AB60: 0 | AC60: 0 | AF60: 0
A61: Suspended 2 | B61: 0 | C61: 0 | F61: 0 | G61: 0 | H61: 0 | I61: 0 | L61: 0 | M61: 0 | N61: 0 | Q61: 0 | R61: 0 | S61: 0 | V61: 0 | W61: 0 | X61: 0 | AA61: 0 | AB61: 0 | AC61: 0 | AF61: 0
A62: Suspended 3 | B62: 0 | C62: 0 | F62: 0 | G62: 0 | H62: 0 | I62: 0 | L62: 0 | M62: 0 | N62: 0 | Q62: 0 | R62: 0 | S62: 0 | V62: 0 | W62: 0 | X62: 0 | AA62: 0 | AB62: 0 | AC62: 0 | AF62: 0
A63: Suspended 4 | B63: 0 | C63: 0 | F63: 0 | G63: 0 | H63: 0 | I63: 0 | L63: 0 | M63: 0 | N63: 0 | Q63: 0 | R63: 0 | S63: 0 | V63: 0 | W63: 0 | X63: 0 | AA63: 0 | AB63: 0 | AC63: 0 | AF63: 0
A64: Suspended 5 | B64: 0 | C64: 0 | F64: 0 | G64: 0 | H64: 0 | I64: 0 | L64: 0 | M64: 0 | N64: 0 | Q64: 0 | R64: 0 | S64: 0 | V64: 0 | W64: 0 | X64: 0 | AA64: 0 | AB64: 0 | AC64: 0 | AF64: 0
A65: Products | B65: =SUM(F37:F64) -> 0 | E65: Scales = | F65: =J65-B65 -> 0 | G65: 0 | I65: Consumption | J65: 0 | K65: 0

Sheet 5
A1: MACC PRD report | E1: Rolling Mill Plant
A2: Date: | C2: 5 | D2: March | E2: 2019
A3: RM 1
A4: Item | B4: Production | H4: Consumption 1 | M4: Consumption 2 | R4: Consumption 3 | W4: Consumption 4 | AB4: Consumption 5
B5: Code | C5: Description | F5: Ton | G5: Par | H5: Code | I5: Description | L5: Ton | M5: Code | N5: Description | Q5: Ton | R5: Code | S5: Description | V5: Ton | W5: Code | X5: Description | AA5: Ton | AB5: Code | AC5: Description | AF5: Ton
A6: Product 1 | B6: P0501300001 | C6: STR- B 500 BWR, 32 MM, 12 M | F6: 214.2548999 | G6: 134 | H6: P0100700015 | I6: STB- 4SP (SSS) , 150*150*12 M (52 MW) | L6: 217.1870442 | M6: 0 | N6: 0 | Q6: 0 | R6: 0 | S6: 0 | V6: 0 | W6: 0 | X6: 0 | AA6: 0 | AB6: 0 | AC6: 0 | AF6: 0
A7: Product 2 | B7: 0 | C7: 0 | F7: 0 | G7: 0 | H7: 0 | I7: 0 | L7: 0 | M7: 0 | N7: 0 | Q7: 0 | R7: 0 | S7: 0 | V7: 0 | W7: 0 | X7: 0 | AA7: 0 | AB7: 0 | AC7: 0 | AF7: 0
A8: Product 3 | B8: 0 | C8: 0 | F8: 0 | G8: 0 | H8: 0 | I8: 0 | L8: 0 | M8: 0 | N8: 0 | Q8: 0 | R8: 0 | S8: 0 | V8: 0 | W8: 0 | X8: 0 | AA8: 0 | AB8: 0 | AC8: 0 | AF8: 0
A9: Product 4 | B9: 0 | C9: 0 | F9: 0 | G9: 0 | H9: 0 | I9: 0 | L9: 0 | M9: 0 | N9: 0 | Q9: 0 | R9: 0 | S9: 0 | V9: 0 | W9: 0 | X9: 0 | AA9: 0 | AB9: 0 | AC9: 0 | AF9: 0
A10: Product 5 | B10: 0 | C10: 0 | F10: 0 | G10: 0 | H10: 0 | I10: 0 | L10: 0 | M10: 0 | N10: 0 | Q10: 0 | R10: 0 | S10: 0 | V10: 0 | W10: 0 | X10: 0 | AA10: 0 | AB10: 0 | AC10: 0 | AF10: 0
A11: Product 6 | B11: 0 | C11: 0 | F11: 0 | G11: 0 | H11: 0 | I11: 0 | L11: 0 | M11: 0 | N11: 0 | Q11: 0 | R11: 0 | S11: 0 | V11: 0 | W11: 0 | X11: 0 | AA11: 0 | AB11: 0 | AC11: 0 | AF11: 0
A12: Product 7 | B12: 0 | C12: 0 | F12: 0 | G12: 0 | H12: 0 | I12: 0 | L12: 0 | M12: 0 | N12: 0 | Q12: 0 | R12: 0 | S12: 0 | V12: 0 | W12: 0 | X12: 0 | AA12: 0 | AB12: 0 | AC12: 0 | AF12: 0
A13: Product 8 | B13: 0 | C13: 0 | F13: 0 | G13: 0 | H13: 0 | I13: 0 | L13: 0 | M13: 0 | N13: 0 | Q13: 0 | R13: 0 | S13: 0 | V13: 0 | W13: 0 | X13: 0 | AA13: 0 | AB13: 0 | AC13: 0 | AF13: 0
A14: Product 9 | B14: 0 | C14: 0 | F14: 0 | G14: 0 | H14: 0 | I14: 0 | L14: 0 | M14: 0 | N14: 0 | Q14: 0 | R14: 0 | S14: 0 | V14: 0 | W14: 0 | X14: 0 | AA14: 0 | AB14: 0 | AC14: 0 | AF14: 0
A15: Product 10 | B15: 0 | C15: 0 | F15: 0 | G15: 0 | H15: 0 | I15: 0 | L15: 0 | M15: 0 | N15: 0 | Q15: 0 | R15: 0 | S15: 0 | V15: 0 | W15: 0 | X15: 0 | AA15: 0 | AB15: 0 | AC15: 0 | AF15: 0
A16: Rej 1 | B16: P0101300008 | C16: STB- 4SP, 150*150 Different lengths | F16: 0 | G16: 0 | H16: P0100700015 | I16: STB- 4SP (SSS) , 150*150*12 M (52 MW) | L16: 0 | M16: 0 | N16: 0 | Q16: 0 | R16: 0 | S16: 0 | V16: 0 | W16: 0 | X16: 0 | AA16: 0 | AB16: 0 | AC16: 0 | AF16: 0
A17: Rej 2 | B17: P0101300002 | C17: STB- 4SP, 130*130 Different lengths | F17: 0 | G17: 0 | H17: P0100700014 | I17: STB- 4SP (SSS) , 130*130*12 M ( 52 MW ) | L17: 0 | M17: 0 | N17: 0 | Q17: 0 | R17: 0 | S17: 0 | V17: 0 | W17: 0 | X17: 0 | AA17: 0 | AB17: 0 | AC17: 0 | AF17: 0
A18: Rej 3 | B18: P0101300002 | C18: STB- 4SP, 130*130 Different lengths | F18: 0 | G18: 0 | H18: P0100700001 | I18: STB- 4SP, 130*130*12 M ( 52 MW ) | L18: 0 | M18: 0 | N18: 0 | Q18: 0 | R18: 0 | S18: 0 | V18: 0 | W18: 0 | X18: 0 | AA18: 0 | AB18: 0 | AC18: 0 | AF18: 0
A19: Rej 4 | B19: 0 | C19: 0 | F19: 0 | G19: 0 | H19: 0 | I19: 0 | L19: 0 | M19: 0 | N19: 0 | Q19: 0 | R19: 0 | S19: 0 | V19: 0 | W19: 0 | X19: 0 | AA19: 0 | AB19: 0 | AC19: 0 | AF19: 0
A20: Rej 5 | B20: 0 | C20: 0 | F20: 0 | G20: 0 | H20: 0 | I20: 0 | L20: 0 | M20: 0 | N20: 0 | Q20: 0 | R20: 0 | S20: 0 | V20: 0 | W20: 0 | X20: 0 | AA20: 0 | AB20: 0 | AC20: 0 | AF20: 0
A21: Rej 6 | B21: 0 | C21: 0 | F21: 0 | G21: 0 | H21: 0 | I21: 0 | L21: 0 | M21: 0 | N21: 0 | Q21: 0 | R21: 0 | S21: 0 | V21: 0 | W21: 0 | X21: 0 | AA21: 0 | AB21: 0 | AC21: 0 | AF21: 0
A22: Rej 7 | B22: 0 | C22: 0 | F22: 0 | G22: 0 | H22: 0 | I22: 0 | L22: 0 | M22: 0 | N22: 0 | Q22: 0 | R22: 0 | S22: 0 | V22: 0 | W22: 0 | X22: 0 | AA22: 0 | AB22: 0 | AC22: 0 | AF22: 0
A23: Rej 8 | B23: 0 | C23: 0 | F23: 0 | G23: 0 | H23: 0 | I23: 0 | L23: 0 | M23: 0 | N23: 0 | Q23: 0 | R23: 0 | S23: 0 | V23: 0 | W23: 0 | X23: 0 | AA23: 0 | AB23: 0 | AC23: 0 | AF23: 0
A24: Rej 9 | B24: 0 | C24: 0 | F24: 0 | G24: 0 | H24: 0 | I24: 0 | L24: 0 | M24: 0 | N24: 0 | Q24: 0 | R24: 0 | S24: 0 | V24: 0 | W24: 0 | X24: 0 | AA24: 0 | AB24: 0 | AC24: 0 | AF24: 0
A25: Rej 10 | B25: 0 | C25: 0 | F25: 0 | G25: 0 | H25: 0 | I25: 0 | L25: 0 | M25: 0 | N25: 0 | Q25: 0 | R25: 0 | S25: 0 | V25: 0 | W25: 0 | X25: 0 | AA25: 0 | AB25: 0 | AC25: 0 | AF25: 0
A26: H&T&MR | B26: P0500600001 | C26: MISS ROLLED&HEAD&TAIL | F26: 1.558321946 | G26: 0 | H26: P0100700015 | I26: STB- 4SP (SSS) , 150*150*12 M (52 MW) | L26: 1.558321946 | M26: 0 | N26: 0 | Q26: 0 | R26: 0 | S26: 0 | V26: 0 | W26: 0 | X26: 0 | AA26: 0 | AB26: 0 | AC26: 0 | AF26: 0
A27: Shorts | B27: P0500400001 | C27: STR-SHORTS | F27: 4.372548977 | G27: 0 | H27: P0100700015 | I27: STB- 4SP (SSS) , 150*150*12 M (52 MW) | L27: 4.372548977 | M27: 0 | N27: 0 | Q27: 0 | R27: 0 | S27: 0 | V27: 0 | W27: 0 | X27: 0 | AA27: 0 | AB27: 0 | AC27: 0 | AF27: 0
A28: Cold Shear Cut | B28: P0500700001 | C28: COLD SHEAR CUT | F28: 2.431650088 | G28: 0 | H28: P0100700015 | I28: STB- 4SP (SSS) , 150*150*12 M (52 MW) | L28: 2.431650088 | M28: 0 | N28: 0 | Q28: 0 | R28: 0 | S28: 0 | V28: 0 | W28: 0 | X28: 0 | AA28: 0 | AB28: 0 | AC28: 0 | AF28: 0
A29: Suspended 1 | B29: P0501200010 | C29: STR- 32 MM, SUSPENDED & REJECTED | F29: 0 | G29: 0 | H29: P0100700015 | I29: STB- 4SP (SSS) , 150*150*12 M (52 MW) | L29: 0 | M29: 0 | N29: 0 | Q29: 0 | R29: 0 | S29: 0 | V29: 0 | W29: 0 | X29: 0 | AA29: 0 | AB29: 0 | AC29: 0 | AF29: 0
A30: Suspended 2 | B30: 0 | C30: 0 | F30: 0 | G30: 0 | H30: 0 | I30: 0 | L30: 0 | M30: 0 | N30: 0 | Q30: 0 | R30: 0 | S30: 0 | V30: 0 | W30: 0 | X30: 0 | AA30: 0 | AB30: 0 | AC30: 0 | AF30: 0
A31: Suspended 3 | B31: 0 | C31: 0 | F31: 0 | G31: 0 | H31: 0 | I31: 0 | L31: 0 | M31: 0 | N31: 0 | Q31: 0 | R31: 0 | S31: 0 | V31: 0 | W31: 0 | X31: 0 | AA31: 0 | AB31: 0 | AC31: 0 | AF31: 0
A32: Suspended 4 | B32: 0 | C32: 0 | F32: 0 | G32: 0 | H32: 0 | I32: 0 | L32: 0 | M32: 0 | N32: 0 | Q32: 0 | R32: 0 | S32: 0 | V32: 0 | W32: 0 | X32: 0 | AA32: 0 | AB32: 0 | AC32: 0 | AF32: 0
A33: Suspended 5 | B33: 0 | C33: 0 | F33: 0 | G33: 0 | H33: 0 | I33: 0 | L33: 0 | M33: 0 | N33: 0 | Q33: 0 | R33: 0 | S33: 0 | V33: 0 | W33: 0 | X33: 0 | AA33: 0 | AB33: 0 | AC33: 0 | AF33: 0
A34: Products | B34: =SUM(F6:F33) -> 222.6174209 | E34: Scales = | F34: =J34-B34 -> 2.932144348 | G34: 2.202682481e-13 | I34: Consumption | J34: =SUM(L6:L33,Q6:Q33,V6:V33,AA6:AA33,AF6:AF33) -> 225.5495652 | K34: 0
A35: RM 2
A36: Item | B36: Production | H36: Consumption 1 | M36: Consumption 2 | R36: Consumption 3 | W36: Consumption 4 | AB36: Consumption 5
B37: Code | C37: Description | F37: Ton | G37: Par | H37: Code | I37: Description | L37: Ton | M37: Code | N37: Description | Q37: Ton | R37: Code | S37: Description | V37: Ton | W37: Code | X37: Description | AA37: Ton | AB37: Code | AC37: Description | AF37: Ton
A38: Product 1 | B38: 0 | C38: 0 | F38: 0 | G38: 0 | H38: 0 | I38: 0 | L38: 0 | M38: 0 | N38: 0 | Q38: 0 | R38: 0 | S38: 0 | V38: 0 | W38: 0 | X38: 0 | AA38: 0 | AB38: 0 | AC38: 0 | AF38: 0
A39: Product 2 | B39: 0 | C39: 0 | F39: 0 | G39: 0 | H39: 0 | I39: 0 | L39: 0 | M39: 0 | N39: 0 | Q39: 0 | R39: 0 | S39: 0 | V39: 0 | W39: 0 | X39: 0 | AA39: 0 | AB39: 0 | AC39: 0 | AF39: 0
A40: Product 3 | B40: 0 | C40: 0 | F40: 0 | G40: 0 | H40: 0 | I40: 0 | L40: 0 | M40: 0 | N40: 0 | Q40: 0 | R40: 0 | S40: 0 | V40: 0 | W40: 0 | X40: 0 | AA40: 0 | AB40: 0 | AC40: 0 | AF40: 0
A41: Product 4 | B41: 0 | C41: 0 | F41: 0 | G41: 0 | H41: 0 | I41: 0 | L41: 0 | M41: 0 | N41: 0 | Q41: 0 | R41: 0 | S41: 0 | V41: 0 | W41: 0 | X41: 0 | AA41: 0 | AB41: 0 | AC41: 0 | AF41: 0
A42: Product 5 | B42: 0 | C42: 0 | F42: 0 | G42: 0 | H42: 0 | I42: 0 | L42: 0 | M42: 0 | N42: 0 | Q42: 0 | R42: 0 | S42: 0 | V42: 0 | W42: 0 | X42: 0 | AA42: 0 | AB42: 0 | AC42: 0 | AF42: 0
A43: Product 6 | B43: 0 | C43: 0 | F43: 0 | G43: 0 | H43: 0 | I43: 0 | L43: 0 | M43: 0 | N43: 0 | Q43: 0 | R43: 0 | S43: 0 | V43: 0 | W43: 0 | X43: 0 | AA43: 0 | AB43: 0 | AC43: 0 | AF43: 0
A44: Product 7 | B44: 0 | C44: 0 | F44: 0 | G44: 0 | H44: 0 | I44: 0 | L44: 0 | M44: 0 | N44: 0 | Q44: 0 | R44: 0 | S44: 0 | V44: 0 | W44: 0 | X44: 0 | AA44: 0 | AB44: 0 | AC44: 0 | AF44: 0
A45: Product 8 | B45: 0 | C45: 0 | F45: 0 | G45: 0 | H45: 0 | I45: 0 | L45: 0 | M45: 0 | N45: 0 | Q45: 0 | R45: 0 | S45: 0 | V45: 0 | W45: 0 | X45: 0 | AA45: 0 | AB45: 0 | AC45: 0 | AF45: 0
A46: Product 9 | B46: 0 | C46: 0 | F46: 0 | G46: 0 | H46: 0 | I46: 0 | L46: 0 | M46: 0 | N46: 0 | Q46: 0 | R46: 0 | S46: 0 | V46: 0 | W46: 0 | X46: 0 | AA46: 0 | AB46: 0 | AC46: 0 | AF46: 0
A47: Product 10 | B47: 0 | C47: 0 | F47: 0 | G47: 0 | H47: 0 | I47: 0 | L47: 0 | M47: 0 | N47: 0 | Q47: 0 | R47: 0 | S47: 0 | V47: 0 | W47: 0 | X47: 0 | AA47: 0 | AB47: 0 | AC47: 0 | AF47: 0
A48: Rej 1 | B48: 0 | C48: 0 | F48: 0 | G48: 0 | H48: 0 | I48: 0 | L48: 0 | M48: 0 | N48: 0 | Q48: 0 | R48: 0 | S48: 0 | V48: 0 | W48: 0 | X48: 0 | AA48: 0 | AB48: 0 | AC48: 0 | AF48: 0
A49: Rej 2 | B49: 0 | C49: 0 | F49: 0 | G49: 0 | H49: 0 | I49: 0 | L49: 0 | M49: 0 | N49: 0 | Q49: 0 | R49: 0 | S49: 0 | V49: 0 | W49: 0 | X49: 0 | AA49: 0 | AB49: 0 | AC49: 0 | AF49: 0
A50: Rej 3 | B50: 0 | C50: 0 | F50: 0 | G50: 0 | H50: 0 | I50: 0 | L50: 0 | M50: 0 | N50: 0 | Q50: 0 | R50: 0 | S50: 0 | V50: 0 | W50: 0 | X50: 0 | AA50: 0 | AB50: 0 | AC50: 0 | AF50: 0
A51: Rej 4 | B51: 0 | C51: 0 | F51: 0 | G51: 0 | H51: 0 | I51: 0 | L51: 0 | M51: 0 | N51: 0 | Q51: 0 | R51: 0 | S51: 0 | V51: 0 | W51: 0 | X51: 0 | AA51: 0 | AB51: 0 | AC51: 0 | AF51: 0
A52: Rej 5 | B52: 0 | C52: 0 | F52: 0 | G52: 0 | H52: 0 | I52: 0 | L52: 0 | M52: 0 | N52: 0 | Q52: 0 | R52: 0 | S52: 0 | V52: 0 | W52: 0 | X52: 0 | AA52: 0 | AB52: 0 | AC52: 0 | AF52: 0
A53: Rej 6 | B53: 0 | C53: 0 | F53: 0 | G53: 0 | H53: 0 | I53: 0 | L53: 0 | M53: 0 | N53: 0 | Q53: 0 | R53: 0 | S53: 0 | V53: 0 | W53: 0 | X53: 0 | AA53: 0 | AB53: 0 | AC53: 0 | AF53: 0
A54: Rej 7 | B54: 0 | C54: 0 | F54: 0 | G54: 0 | H54: 0 | I54: 0 | L54: 0 | M54: 0 | N54: 0 | Q54: 0 | R54: 0 | S54: 0 | V54: 0 | W54: 0 | X54: 0 | AA54: 0 | AB54: 0 | AC54: 0 | AF54: 0
A55: Rej 8 | B55: 0 | C55: 0 | F55: 0 | G55: 0 | H55: 0 | I55: 0 | L55: 0 | M55: 0 | N55: 0 | Q55: 0 | R55: 0 | S55: 0 | V55: 0 | W55: 0 | X55: 0 | AA55: 0 | AB55: 0 | AC55: 0 | AF55: 0
A56: Rej 9 | B56: 0 | C56: 0 | F56: 0 | G56: 0 | H56: 0 | I56: 0 | L56: 0 | M56: 0 | N56: 0 | Q56: 0 | R56: 0 | S56: 0 | V56: 0 | W56: 0 | X56: 0 | AA56: 0 | AB56: 0 | AC56: 0 | AF56: 0
A57: Rej 10 | B57: 0 | C57: 0 | F57: 0 | G57: 0 | H57: 0 | I57: 0 | L57: 0 | M57: 0 | N57: 0 | Q57: 0 | R57: 0 | S57: 0 | V57: 0 | W57: 0 | X57: 0 | AA57: 0 | AB57: 0 | AC57: 0 | AF57: 0
A58: H&T&MR | B58: 0 | C58: 0 | F58: 0 | G58: 0 | H58: 0 | I58: 0 | L58: 0 | M58: 0 | N58: 0 | Q58: 0 | R58: 0 | S58: 0 | V58: 0 | W58: 0 | X58: 0 | AA58: 0 | AB58: 0 | AC58: 0 | AF58: 0
A59: Trimming | B59: 0 | C59: 0 | F59: 0 | G59: 0 | H59: 0 | I59: 0 | L59: 0 | M59: 0 | N59: 0 | Q59: 0 | R59: 0 | S59: 0 | V59: 0 | W59: 0 | X59: 0 | AA59: 0 | AB59: 0 | AC59: 0 | AF59: 0
A60: Suspended 1 | B60: 0 | C60: 0 | F60: 0 | G60: 0 | H60: 0 | I60: 0 | L60: 0 | M60: 0 | N60: 0 | Q60: 0 | R60: 0 | S60: 0 | V60: 0 | W60: 0 | X60: 0 | AA60: 0 | AB60: 0 | AC60: 0 | AF60: 0
A61: Suspended 2 | B61: 0 | C61: 0 | F61: 0 | G61: 0 | H61: 0 | I61: 0 | L61: 0 | M61: 0 | N61: 0 | Q61: 0 | R61: 0 | S61: 0 | V61: 0 | W61: 0 | X61: 0 | AA61: 0 | AB61: 0 | AC61: 0 | AF61: 0
A62: Suspended 3 | B62: 0 | C62: 0 | F62: 0 | G62: 0 | H62: 0 | I62: 0 | L62: 0 | M62: 0 | N62: 0 | Q62: 0 | R62: 0 | S62: 0 | V62: 0 | W62: 0 | X62: 0 | AA62: 0 | AB62: 0 | AC62: 0 | AF62: 0
A63: Suspended 4 | B63: 0 | C63: 0 | F63: 0 | G63: 0 | H63: 0 | I63: 0 | L63: 0 | M63: 0 | N63: 0 | Q63: 0 | R63: 0 | S63: 0 | V63: 0 | W63: 0 | X63: 0 | AA63: 0 | AB63: 0 | AC63: 0 | AF63: 0
A64: Suspended 5 | B64: 0 | C64: 0 | F64: 0 | G64: 0 | H64: 0 | I64: 0 | L64: 0 | M64: 0 | N64: 0 | Q64: 0 | R64: 0 | S64: 0 | V64: 0 | W64: 0 | X64: 0 | AA64: 0 | AB64: 0 | AC64: 0 | AF64: 0
A65: Products | B65: =SUM(F37:F64) -> 0 | E65: Scales = | F65: =J65-B65 -> 0 | G65: 0 | I65: Consumption | J65: 0 | K65: 0

Sheet 6
A1: MACC PRD report | E1: Rolling Mill Plant
A2: Date: | C2: 6 | D2: March | E2: 2019
A3: RM 1
A4: Item | B4: Production | H4: Consumption 1 | M4: Consumption 2 | R4: Consumption 3 | W4: Consumption 4 | AB4: Consumption 5
B5: Code | C5: Description | F5: Ton | G5: Par | H5: Code | I5: Description | L5: Ton | M5: Code | N5: Description | Q5: Ton | R5: Code | S5: Description | V5: Ton | W5: Code | X5: Description | AA5: Ton | AB5: Code | AC5: Description | AF5: Ton
A6: Product 1 | B6: P0501300009 | C6: STR- B 500 BWR, 10 MM, 12 M | F6: 0 | G6: 0 | H6: P0100700015 | I6: STB- 4SP (SSS) , 150*150*12 M (52 MW) | L6: 0.17914 | M6: 0 | N6: 0 | Q6: 0 | R6: 0 | S6: 0 | V6: 0 | W6: 0 | X6: 0 | AA6: 0 | AB6: 0 | AC6: 0 | AF6: 0
A7: Product 2 | B7: 0 | C7: 0 | F7: 0 | G7: 0 | H7: 0 | I7: 0 | L7: 0 | M7: 0 | N7: 0 | Q7: 0 | R7: 0 | S7: 0 | V7: 0 | W7: 0 | X7: 0 | AA7: 0 | AB7: 0 | AC7: 0 | AF7: 0
A8: Product 3 | B8: 0 | C8: 0 | F8: 0 | G8: 0 | H8: 0 | I8: 0 | L8: 0 | M8: 0 | N8: 0 | Q8: 0 | R8: 0 | S8: 0 | V8: 0 | W8: 0 | X8: 0 | AA8: 0 | AB8: 0 | AC8: 0 | AF8: 0
A9: Product 4 | B9: 0 | C9: 0 | F9: 0 | G9: 0 | H9: 0 | I9: 0 | L9: 0 | M9: 0 | N9: 0 | Q9: 0 | R9: 0 | S9: 0 | V9: 0 | W9: 0 | X9: 0 | AA9: 0 | AB9: 0 | AC9: 0 | AF9: 0
A10: Product 5 | B10: 0 | C10: 0 | F10: 0 | G10: 0 | H10: 0 | I10: 0 | L10: 0 | M10: 0 | N10: 0 | Q10: 0 | R10: 0 | S10: 0 | V10: 0 | W10: 0 | X10: 0 | AA10: 0 | AB10: 0 | AC10: 0 | AF10: 0
A11: Product 6 | B11: 0 | C11: 0 | F11: 0 | G11: 0 | H11: 0 | I11: 0 | L11: 0 | M11: 0 | N11: 0 | Q11: 0 | R11: 0 | S11: 0 | V11: 0 | W11: 0 | X11: 0 | AA11: 0 | AB11: 0 | AC11: 0 | AF11: 0
A12: Product 7 | B12: 0 | C12: 0 | F12: 0 | G12: 0 | H12: 0 | I12: 0 | L12: 0 | M12: 0 | N12: 0 | Q12: 0 | R12: 0 | S12: 0 | V12: 0 | W12: 0 | X12: 0 | AA12: 0 | AB12: 0 | AC12: 0 | AF12: 0
A13: Product 8 | B13: 0 | C13: 0 | F13: 0 | G13: 0 | H13: 0 | I13: 0 | L13: 0 | M13: 0 | N13: 0 | Q13: 0 | R13: 0 | S13: 0 | V13: 0 | W13: 0 | X13: 0 | AA13: 0 | AB13: 0 | AC13: 0 | AF13: 0
A14: Product 9 | B14: 0 | C14: 0 | F14: 0 | G14: 0 | H14: 0 | I14: 0 | L14: 0 | M14: 0 | N14: 0 | Q14: 0 | R14: 0 | S14: 0 | V14: 0 | W14: 0 | X14: 0 | AA14: 0 | AB14: 0 | AC14: 0 | AF14: 0
A15: Product 10 | B15: 0 | C15: 0 | F15: 0 | G15: 0 | H15: 0 | I15: 0 | L15: 0 | M15: 0 | N15: 0 | Q15: 0 | R15: 0 | S15: 0 | V15: 0 | W15: 0 | X15: 0 | AA15: 0 | AB15: 0 | AC15: 0 | AF15: 0
A16: Rej 1 | B16: P0101300008 | C16: STB- 4SP, 150*150 Different lengths | F16: 1.06 | G16: 0.5 | H16: P0100700015 | I16: STB- 4SP (SSS) , 150*150*12 M (52 MW) | L16: 1.06 | M16: 0 | N16: 0 | Q16: 0 | R16: 0 | S16: 0 | V16: 0 | W16: 0 | X16: 0 | AA16: 0 | AB16: 0 | AC16: 0 | AF16: 0
A17: Rej 2 | B17: P0101300002 | C17: STB- 4SP, 130*130 Different lengths | F17: 0 | G17: 0 | H17: P0100700014 | I17: STB- 4SP (SSS) , 130*130*12 M ( 52 MW ) | L17: 0 | M17: 0 | N17: 0 | Q17: 0 | R17: 0 | S17: 0 | V17: 0 | W17: 0 | X17: 0 | AA17: 0 | AB17: 0 | AC17: 0 | AF17: 0
A18: Rej 3 | B18: P0101300002 | C18: STB- 4SP, 130*130 Different lengths | F18: 0 | G18: 0 | H18: P0100700001 | I18: STB- 4SP, 130*130*12 M ( 52 MW ) | L18: 0 | M18: 0 | N18: 0 | Q18: 0 | R18: 0 | S18: 0 | V18: 0 | W18: 0 | X18: 0 | AA18: 0 | AB18: 0 | AC18: 0 | AF18: 0
A19: Rej 4 | B19: 0 | C19: 0 | F19: 0 | G19: 0 | H19: 0 | I19: 0 | L19: 0 | M19: 0 | N19: 0 | Q19: 0 | R19: 0 | S19: 0 | V19: 0 | W19: 0 | X19: 0 | AA19: 0 | AB19: 0 | AC19: 0 | AF19: 0
A20: Rej 5 | B20: 0 | C20: 0 | F20: 0 | G20: 0 | H20: 0 | I20: 0 | L20: 0 | M20: 0 | N20: 0 | Q20: 0 | R20: 0 | S20: 0 | V20: 0 | W20: 0 | X20: 0 | AA20: 0 | AB20: 0 | AC20: 0 | AF20: 0
A21: Rej 6 | B21: 0 | C21: 0 | F21: 0 | G21: 0 | H21: 0 | I21: 0 | L21: 0 | M21: 0 | N21: 0 | Q21: 0 | R21: 0 | S21: 0 | V21: 0 | W21: 0 | X21: 0 | AA21: 0 | AB21: 0 | AC21: 0 | AF21: 0
A22: Rej 7 | B22: 0 | C22: 0 | F22: 0 | G22: 0 | H22: 0 | I22: 0 | L22: 0 | M22: 0 | N22: 0 | Q22: 0 | R22: 0 | S22: 0 | V22: 0 | W22: 0 | X22: 0 | AA22: 0 | AB22: 0 | AC22: 0 | AF22: 0
A23: Rej 8 | B23: 0 | C23: 0 | F23: 0 | G23: 0 | H23: 0 | I23: 0 | L23: 0 | M23: 0 | N23: 0 | Q23: 0 | R23: 0 | S23: 0 | V23: 0 | W23: 0 | X23: 0 | AA23: 0 | AB23: 0 | AC23: 0 | AF23: 0
A24: Rej 9 | B24: 0 | C24: 0 | F24: 0 | G24: 0 | H24: 0 | I24: 0 | L24: 0 | M24: 0 | N24: 0 | Q24: 0 | R24: 0 | S24: 0 | V24: 0 | W24: 0 | X24: 0 | AA24: 0 | AB24: 0 | AC24: 0 | AF24: 0
A25: Rej 10 | B25: 0 | C25: 0 | F25: 0 | G25: 0 | H25: 0 | I25: 0 | L25: 0 | M25: 0 | N25: 0 | Q25: 0 | R25: 0 | S25: 0 | V25: 0 | W25: 0 | X25: 0 | AA25: 0 | AB25: 0 | AC25: 0 | AF25: 0
A26: H&T&MR | B26: P0500600001 | C26: MISS ROLLED&HEAD&TAIL | F26: 2.1499821 | G26: 0 | H26: P0100700015 | I26: STB- 4SP (SSS) , 150*150*12 M (52 MW) | L26: 2.1499821 | M26: 0 | N26: 0 | Q26: 0 | R26: 0 | S26: 0 | V26: 0 | W26: 0 | X26: 0 | AA26: 0 | AB26: 0 | AC26: 0 | AF26: 0
A27: Shorts | B27: P0500400001 | C27: STR-SHORTS | F27: 0.2267273824 | G27: 0 | H27: P0100700015 | I27: STB- 4SP (SSS) , 150*150*12 M (52 MW) | L27: 0.2267273824 | M27: 0 | N27: 0 | Q27: 0 | R27: 0 | S27: 0 | V27: 0 | W27: 0 | X27: 0 | AA27: 0 | AB27: 0 | AC27: 0 | AF27: 0
A28: Cold Shear Cut | B28: P0500700001 | C28: COLD SHEAR CUT | F28: 0.114508779 | G28: 0 | H28: P0100700015 | I28: STB- 4SP (SSS) , 150*150*12 M (52 MW) | L28: 0.114508779 | M28: 0 | N28: 0 | Q28: 0 | R28: 0 | S28: 0 | V28: 0 | W28: 0 | X28: 0 | AA28: 0 | AB28: 0 | AC28: 0 | AF28: 0
A29: Suspended 1 | B29: P0501200001 | C29: STR- 10 MM, SUSPENDED & REJECTED | F29: 11.10964174 | G29: 5 | H29: P0100700015 | I29: STB- 4SP (SSS) , 150*150*12 M (52 MW) | L29: 11.10964174 | M29: 0 | N29: 0 | Q29: 0 | R29: 0 | S29: 0 | V29: 0 | W29: 0 | X29: 0 | AA29: 0 | AB29: 0 | AC29: 0 | AF29: 0
A30: Suspended 2 | B30: 0 | C30: 0 | F30: 0 | G30: 0 | H30: 0 | I30: 0 | L30: 0 | M30: 0 | N30: 0 | Q30: 0 | R30: 0 | S30: 0 | V30: 0 | W30: 0 | X30: 0 | AA30: 0 | AB30: 0 | AC30: 0 | AF30: 0
A31: Suspended 3 | B31: 0 | C31: 0 | F31: 0 | G31: 0 | H31: 0 | I31: 0 | L31: 0 | M31: 0 | N31: 0 | Q31: 0 | R31: 0 | S31: 0 | V31: 0 | W31: 0 | X31: 0 | AA31: 0 | AB31: 0 | AC31: 0 | AF31: 0
A32: Suspended 4 | B32: 0 | C32: 0 | F32: 0 | G32: 0 | H32: 0 | I32: 0 | L32: 0 | M32: 0 | N32: 0 | Q32: 0 | R32: 0 | S32: 0 | V32: 0 | W32: 0 | X32: 0 | AA32: 0 | AB32: 0 | AC32: 0 | AF32: 0
A33: Suspended 5 | B33: 0 | C33: 0 | F33: 0 | G33: 0 | H33: 0 | I33: 0 | L33: 0 | M33: 0 | N33: 0 | Q33: 0 | R33: 0 | S33: 0 | V33: 0 | W33: 0 | X33: 0 | AA33: 0 | AB33: 0 | AC33: 0 | AF33: 0
A34: Products | B34: =SUM(F6:F33) -> 14.66086 | E34: Scales = | F34: =J34-B34 -> 0.17914 | G34: 2.202682481e-13 | I34: Consumption | J34: =SUM(L6:L33,Q6:Q33,V6:V33,AA6:AA33,AF6:AF33) -> 14.84 | K34: 0
A35: RM 2
A36: Item | B36: Production | H36: Consumption 1 | M36: Consumption 2 | R36: Consumption 3 | W36: Consumption 4 | AB36: Consumption 5
B37: Code | C37: Description | F37: Ton | G37: Par | H37: Code | I37: Description | L37: Ton | M37: Code | N37: Description | Q37: Ton | R37: Code | S37: Description | V37: Ton | W37: Code | X37: Description | AA37: Ton | AB37: Code | AC37: Description | AF37: Ton
A38: Product 1 | B38: 0 | C38: 0 | F38: 0 | G38: 0 | H38: 0 | I38: 0 | L38: 0 | M38: 0 | N38: 0 | Q38: 0 | R38: 0 | S38: 0 | V38: 0 | W38: 0 | X38: 0 | AA38: 0 | AB38: 0 | AC38: 0 | AF38: 0
A39: Product 2 | B39: 0 | C39: 0 | F39: 0 | G39: 0 | H39: 0 | I39: 0 | L39: 0 | M39: 0 | N39: 0 | Q39: 0 | R39: 0 | S39: 0 | V39: 0 | W39: 0 | X39: 0 | AA39: 0 | AB39: 0 | AC39: 0 | AF39: 0
A40: Product 3 | B40: 0 | C40: 0 | F40: 0 | G40: 0 | H40: 0 | I40: 0 | L40: 0 | M40: 0 | N40: 0 | Q40: 0 | R40: 0 | S40: 0 | V40: 0 | W40: 0 | X40: 0 | AA40: 0 | AB40: 0 | AC40: 0 | AF40: 0
A41: Product 4 | B41: 0 | C41: 0 | F41: 0 | G41: 0 | H41: 0 | I41: 0 | L41: 0 | M41: 0 | N41: 0 | Q41: 0 | R41: 0 | S41: 0 | V41: 0 | W41: 0 | X41: 0 | AA41: 0 | AB41: 0 | AC41: 0 | AF41: 0
A42: Product 5 | B42: 0 | C42: 0 | F42: 0 | G42: 0 | H42: 0 | I42: 0 | L42: 0 | M42: 0 | N42: 0 | Q42: 0 | R42: 0 | S42: 0 | V42: 0 | W42: 0 | X42: 0 | AA42: 0 | AB42: 0 | AC42: 0 | AF42: 0
A43: Product 6 | B43: 0 | C43: 0 | F43: 0 | G43: 0 | H43: 0 | I43: 0 | L43: 0 | M43: 0 | N43: 0 | Q43: 0 | R43: 0 | S43: 0 | V43: 0 | W43: 0 | X43: 0 | AA43: 0 | AB43: 0 | AC43: 0 | AF43: 0
A44: Product 7 | B44: 0 | C44: 0 | F44: 0 | G44: 0 | H44: 0 | I44: 0 | L44: 0 | M44: 0 | N44: 0 | Q44: 0 | R44: 0 | S44: 0 | V44: 0 | W44: 0 | X44: 0 | AA44: 0 | AB44: 0 | AC44: 0 | AF44: 0
A45: Product 8 | B45: 0 | C45: 0 | F45: 0 | G45: 0 | H45: 0 | I45: 0 | L45: 0 | M45: 0 | N45: 0 | Q45: 0 | R45: 0 | S45: 0 | V45: 0 | W45: 0 | X45: 0 | AA45: 0 | AB45: 0 | AC45: 0 | AF45: 0
A46: Product 9 | B46: 0 | C46: 0 | F46: 0 | G46: 0 | H46: 0 | I46: 0 | L46: 0 | M46: 0 | N46: 0 | Q46: 0 | R46: 0 | S46: 0 | V46: 0 | W46: 0 | X46: 0 | AA46: 0 | AB46: 0 | AC46: 0 | AF46: 0
A47: Product 10 | B47: 0 | C47: 0 | F47: 0 | G47: 0 | H47: 0 | I47: 0 | L47: 0 | M47: 0 | N47: 0 | Q47: 0 | R47: 0 | S47: 0 | V47: 0 | W47: 0 | X47: 0 | AA47: 0 | AB47: 0 | AC47: 0 | AF47: 0
A48: Rej 1 | B48: 0 | C48: 0 | F48: 0 | G48: 0 | H48: 0 | I48: 0 | L48: 0 | M48: 0 | N48: 0 | Q48: 0 | R48: 0 | S48: 0 | V48: 0 | W48: 0 | X48: 0 | AA48: 0 | AB48: 0 | AC48: 0 | AF48: 0
A49: Rej 2 | B49: 0 | C49: 0 | F49: 0 | G49: 0 | H49: 0 | I49: 0 | L49: 0 | M49: 0 | N49: 0 | Q49: 0 | R49: 0 | S49: 0 | V49: 0 | W49: 0 | X49: 0 | AA49: 0 | AB49: 0 | AC49: 0 | AF49: 0
A50: Rej 3 | B50: 0 | C50: 0 | F50: 0 | G50: 0 | H50: 0 | I50: 0 | L50: 0 | M50: 0 | N50: 0 | Q50: 0 | R50: 0 | S50: 0 | V50: 0 | W50: 0 | X50: 0 | AA50: 0 | AB50: 0 | AC50: 0 | AF50: 0
A51: Rej 4 | B51: 0 | C51: 0 | F51: 0 | G51: 0 | H51: 0 | I51: 0 | L51: 0 | M51: 0 | N51: 0 | Q51: 0 | R51: 0 | S51: 0 | V51: 0 | W51: 0 | X51: 0 | AA51: 0 | AB51: 0 | AC51: 0 | AF51: 0
A52: Rej 5 | B52: 0 | C52: 0 | F52: 0 | G52: 0 | H52: 0 | I52: 0 | L52: 0 | M52: 0 | N52: 0 | Q52: 0 | R52: 0 | S52: 0 | V52: 0 | W52: 0 | X52: 0 | AA52: 0 | AB52: 0 | AC52: 0 | AF52: 0
A53: Rej 6 | B53: 0 | C53: 0 | F53: 0 | G53: 0 | H53: 0 | I53: 0 | L53: 0 | M53: 0 | N53: 0 | Q53: 0 | R53: 0 | S53: 0 | V53: 0 | W53: 0 | X53: 0 | AA53: 0 | AB53: 0 | AC53: 0 | AF53: 0
A54: Rej 7 | B54: 0 | C54: 0 | F54: 0 | G54: 0 | H54: 0 | I54: 0 | L54: 0 | M54: 0 | N54: 0 | Q54: 0 | R54: 0 | S54: 0 | V54: 0 | W54: 0 | X54: 0 | AA54: 0 | AB54: 0 | AC54: 0 | AF54: 0
A55: Rej 8 | B55: 0 | C55: 0 | F55: 0 | G55: 0 | H55: 0 | I55: 0 | L55: 0 | M55: 0 | N55: 0 | Q55: 0 | R55: 0 | S55: 0 | V55: 0 | W55: 0 | X55: 0 | AA55: 0 | AB55: 0 | AC55: 0 | AF55: 0
A56: Rej 9 | B56: 0 | C56: 0 | F56: 0 | G56: 0 | H56: 0 | I56: 0 | L56: 0 | M56: 0 | N56: 0 | Q56: 0 | R56: 0 | S56: 0 | V56: 0 | W56: 0 | X56: 0 | AA56: 0 | AB56: 0 | AC56: 0 | AF56: 0
A57: Rej 10 | B57: 0 | C57: 0 | F57: 0 | G57: 0 | H57: 0 | I57: 0 | L57: 0 | M57: 0 | N57: 0 | Q57: 0 | R57: 0 | S57: 0 | V57: 0 | W57: 0 | X57: 0 | AA57: 0 | AB57: 0 | AC57: 0 | AF57: 0
A58: H&T&MR | B58: 0 | C58: 0 | F58: 0 | G58: 0 | H58: 0 | I58: 0 | L58: 0 | M58: 0 | N58: 0 | Q58: 0 | R58: 0 | S58: 0 | V58: 0 | W58: 0 | X58: 0 | AA58: 0 | AB58: 0 | AC58: 0 | AF58: 0
A59: Trimming | B59: 0 | C59: 0 | F59: 0 | G59: 0 | H59: 0 | I59: 0 | L59: 0 | M59: 0 | N59: 0 | Q59: 0 | R59: 0 | S59: 0 | V59: 0 | W59: 0 | X59: 0 | AA59: 0 | AB59: 0 | AC59: 0 | AF59: 0
A60: Suspended 1 | B60: 0 | C60: 0 | F60: 0 | G60: 0 | H60: 0 | I60: 0 | L60: 0 | M60: 0 | N60: 0 | Q60: 0 | R60: 0 | S60: 0 | V60: 0 | W60: 0 | X60: 0 | AA60: 0 | AB60: 0 | AC60: 0 | AF60: 0
A61: Suspended 2 | B61: 0 | C61: 0 | F61: 0 | G61: 0 | H61: 0 | I61: 0 | L61: 0 | M61: 0 | N61: 0 | Q61: 0 | R61: 0 | S61: 0 | V61: 0 | W61: 0 | X61: 0 | AA61: 0 | AB61: 0 | AC61: 0 | AF61: 0
A62: Suspended 3 | B62: 0 | C62: 0 | F62: 0 | G62: 0 | H62: 0 | I62: 0 | L62: 0 | M62: 0 | N62: 0 | Q62: 0 | R62: 0 | S62: 0 | V62: 0 | W62: 0 | X62: 0 | AA62: 0 | AB62: 0 | AC62: 0 | AF62: 0
A63: Suspended 4 | B63: 0 | C63: 0 | F63: 0 | G63: 0 | H63: 0 | I63: 0 | L63: 0 | M63: 0 | N63: 0 | Q63: 0 | R63: 0 | S63: 0 | V63: 0 | W63: 0 | X63: 0 | AA63: 0 | AB63: 0 | AC63: 0 | AF63: 0
A64: Suspended 5 | B64: 0 | C64: 0 | F64: 0 | G64: 0 | H64: 0 | I64: 0 | L64: 0 | M64: 0 | N64: 0 | Q64: 0 | R64: 0 | S64: 0 | V64: 0 | W64: 0 | X64: 0 | AA64: 0 | AB64: 0 | AC64: 0 | AF64: 0
A65: Products | B65: =SUM(F37:F64) -> 0 | E65: Scales = | F65: =J65-B65 -> 0 | G65: 0 | I65: Consumption | J65: 0 | K65: 0

Sheet 7
A1: MACC PRD report | E1: Rolling Mill Plant
A2: Date: | C2: 7 | D2: March | E2: 2019
A3: RM 1
A4: Item | B4: Production | H4: Consumption 1 | M4: Consumption 2 | R4: Consumption 3 | W4: Consumption 4 | AB4: Consumption 5
B5: Code | C5: Description | F5: Ton | G5: Par | H5: Code | I5: Description | L5: Ton | M5: Code | N5: Description | Q5: Ton | R5: Code | S5: Description | V5: Ton | W5: Code | X5: Description | AA5: Ton | AB5: Code | AC5: Description | AF5: Ton
A6: Product 1 | B6: P0501300009 | C6: STR- B 500 BWR, 10 MM, 12 M | F6: 443.6023451 | G6: 230 | H6: P0100700015 | I6: STB- 4SP (SSS) , 150*150*12 M (52 MW) | L6: 452.9809743 | M6: 0 | N6: 0 | Q6: 0 | R6: 0 | S6: 0 | V6: 0 | W6: 0 | X6: 0 | AA6: 0 | AB6: 0 | AC6: 0 | AF6: 0
A7: Product 2 | B7: P0501400009 | C7: STR- B 400 BWR, 10 MM, 12 M | F7: 161.0081602 | G7: 71 | H7: P0100700015 | I7: STB- 4SP (SSS) , 150*150*12 M (52 MW) | L7: 161.0081602 | M7: 0 | N7: 0 | Q7: 0 | R7: 0 | S7: 0 | V7: 0 | W7: 0 | X7: 0 | AA7: 0 | AB7: 0 | AC7: 0 | AF7: 0
A8: Product 3 | B8: 0 | C8: 0 | F8: 0 | G8: 0 | H8: 0 | I8: 0 | L8: 0 | M8: 0 | N8: 0 | Q8: 0 | R8: 0 | S8: 0 | V8: 0 | W8: 0 | X8: 0 | AA8: 0 | AB8: 0 | AC8: 0 | AF8: 0
A9: Product 4 | B9: 0 | C9: 0 | F9: 0 | G9: 0 | H9: 0 | I9: 0 | L9: 0 | M9: 0 | N9: 0 | Q9: 0 | R9: 0 | S9: 0 | V9: 0 | W9: 0 | X9: 0 | AA9: 0 | AB9: 0 | AC9: 0 | AF9: 0
A10: Product 5 | B10: 0 | C10: 0 | F10: 0 | G10: 0 | H10: 0 | I10: 0 | L10: 0 | M10: 0 | N10: 0 | Q10: 0 | R10: 0 | S10: 0 | V10: 0 | W10: 0 | X10: 0 | AA10: 0 | AB10: 0 | AC10: 0 | AF10: 0
A11: Product 6 | B11: 0 | C11: 0 | F11: 0 | G11: 0 | H11: 0 | I11: 0 | L11: 0 | M11: 0 | N11: 0 | Q11: 0 | R11: 0 | S11: 0 | V11: 0 | W11: 0 | X11: 0 | AA11: 0 | AB11: 0 | AC11: 0 | AF11: 0
A12: Product 7 | B12: 0 | C12: 0 | F12: 0 | G12: 0 | H12: 0 | I12: 0 | L12: 0 | M12: 0 | N12: 0 | Q12: 0 | R12: 0 | S12: 0 | V12: 0 | W12: 0 | X12: 0 | AA12: 0 | AB12: 0 | AC12: 0 | AF12: 0
A13: Product 8 | B13: 0 | C13: 0 | F13: 0 | G13: 0 | H13: 0 | I13: 0 | L13: 0 | M13: 0 | N13: 0 | Q13: 0 | R13: 0 | S13: 0 | V13: 0 | W13: 0 | X13: 0 | AA13: 0 | AB13: 0 | AC13: 0 | AF13: 0
A14: Product 9 | B14: 0 | C14: 0 | F14: 0 | G14: 0 | H14: 0 | I14: 0 | L14: 0 | M14: 0 | N14: 0 | Q14: 0 | R14: 0 | S14: 0 | V14: 0 | W14: 0 | X14: 0 | AA14: 0 | AB14: 0 | AC14: 0 | AF14: 0
A15: Product 10 | B15: 0 | C15: 0 | F15: 0 | G15: 0 | H15: 0 | I15: 0 | L15: 0 | M15: 0 | N15: 0 | Q15: 0 | R15: 0 | S15: 0 | V15: 0 | W15: 0 | X15: 0 | AA15: 0 | AB15: 0 | AC15: 0 | AF15: 0
A16: Rej 1 | B16: P0101300008 | C16: STB- 4SP, 150*150 Different lengths | F16: 17.33172414 | G16: 8 | H16: P0100700015 | I16: STB- 4SP (SSS) , 150*150*12 M (52 MW) | L16: 17.33172414 | M16: 0 | N16: 0 | Q16: 0 | R16: 0 | S16: 0 | V16: 0 | W16: 0 | X16: 0 | AA16: 0 | AB16: 0 | AC16: 0 | AF16: 0
A17: Rej 2 | B17: P0101300002 | C17: STB- 4SP, 130*130 Different lengths | F17: 0 | G17: 0 | H17: P0100700014 | I17: STB- 4SP (SSS) , 130*130*12 M ( 52 MW ) | L17: 0 | M17: 0 | N17: 0 | Q17: 0 | R17: 0 | S17: 0 | V17: 0 | W17: 0 | X17: 0 | AA17: 0 | AB17: 0 | AC17: 0 | AF17: 0
A18: Rej 3 | B18: P0101300002 | C18: STB- 4SP, 130*130 Different lengths | F18: 0 | G18: 0 | H18: P0100700001 | I18: STB- 4SP, 130*130*12 M ( 52 MW ) | L18: 0 | M18: 0 | N18: 0 | Q18: 0 | R18: 0 | S18: 0 | V18: 0 | W18: 0 | X18: 0 | AA18: 0 | AB18: 0 | AC18: 0 | AF18: 0
A19: Rej 4 | B19: 0 | C19: 0 | F19: 0 | G19: 0 | H19: 0 | I19: 0 | L19: 0 | M19: 0 | N19: 0 | Q19: 0 | R19: 0 | S19: 0 | V19: 0 | W19: 0 | X19: 0 | AA19: 0 | AB19: 0 | AC19: 0 | AF19: 0
A20: Rej 5 | B20: 0 | C20: 0 | F20: 0 | G20: 0 | H20: 0 | I20: 0 | L20: 0 | M20: 0 | N20: 0 | Q20: 0 | R20: 0 | S20: 0 | V20: 0 | W20: 0 | X20: 0 | AA20: 0 | AB20: 0 | AC20: 0 | AF20: 0
A21: Rej 6 | B21: 0 | C21: 0 | F21: 0 | G21: 0 | H21: 0 | I21: 0 | L21: 0 | M21: 0 | N21: 0 | Q21: 0 | R21: 0 | S21: 0 | V21: 0 | W21: 0 | X21: 0 | AA21: 0 | AB21: 0 | AC21: 0 | AF21: 0
A22: Rej 7 | B22: 0 | C22: 0 | F22: 0 | G22: 0 | H22: 0 | I22: 0 | L22: 0 | M22: 0 | N22: 0 | Q22: 0 | R22: 0 | S22: 0 | V22: 0 | W22: 0 | X22: 0 | AA22: 0 | AB22: 0 | AC22: 0 | AF22: 0
A23: Rej 8 | B23: 0 | C23: 0 | F23: 0 | G23: 0 | H23: 0 | I23: 0 | L23: 0 | M23: 0 | N23: 0 | Q23: 0 | R23: 0 | S23: 0 | V23: 0 | W23: 0 | X23: 0 | AA23: 0 | AB23: 0 | AC23: 0 | AF23: 0
A24: Rej 9 | B24: 0 | C24: 0 | F24: 0 | G24: 0 | H24: 0 | I24: 0 | L24: 0 | M24: 0 | N24: 0 | Q24: 0 | R24: 0 | S24: 0 | V24: 0 | W24: 0 | X24: 0 | AA24: 0 | AB24: 0 | AC24: 0 | AF24: 0
A25: Rej 10 | B25: 0 | C25: 0 | F25: 0 | G25: 0 | H25: 0 | I25: 0 | L25: 0 | M25: 0 | N25: 0 | Q25: 0 | R25: 0 | S25: 0 | V25: 0 | W25: 0 | X25: 0 | AA25: 0 | AB25: 0 | AC25: 0 | AF25: 0
A26: H&T&MR | B26: P0500600001 | C26: MISS ROLLED&HEAD&TAIL | F26: 29.09159144 | G26: 0 | H26: P0100700015 | I26: STB- 4SP (SSS) , 150*150*12 M (52 MW) | L26: 29.09159144 | M26: 0 | N26: 0 | Q26: 0 | R26: 0 | S26: 0 | V26: 0 | W26: 0 | X26: 0 | AA26: 0 | AB26: 0 | AC26: 0 | AF26: 0
A27: Shorts | B27: P0500400001 | C27: STR-SHORTS | F27: 13.52266337 | G27: 0 | H27: P0100700015 | I27: STB- 4SP (SSS) , 150*150*12 M (52 MW) | L27: 13.52266337 | M27: 0 | N27: 0 | Q27: 0 | R27: 0 | S27: 0 | V27: 0 | W27: 0 | X27: 0 | AA27: 0 | AB27: 0 | AC27: 0 | AF27: 0
A28: Cold Shear Cut | B28: P0500700001 | C28: COLD SHEAR CUT | F28: 6.829627966 | G28: 0 | H28: P0100700015 | I28: STB- 4SP (SSS) , 150*150*12 M (52 MW) | L28: 6.829627966 | M28: 0 | N28: 0 | Q28: 0 | R28: 0 | S28: 0 | V28: 0 | W28: 0 | X28: 0 | AA28: 0 | AB28: 0 | AC28: 0 | AF28: 0
A29: Suspended 1 | B29: P0501200001 | C29: STR- 10 MM, SUSPENDED & REJECTED | F29: 58 | G29: 29 | H29: P0100700015 | I29: STB- 4SP (SSS) , 150*150*12 M (52 MW) | L29: 58 | M29: 0 | N29: 0 | Q29: 0 | R29: 0 | S29: 0 | V29: 0 | W29: 0 | X29: 0 | AA29: 0 | AB29: 0 | AC29: 0 | AF29: 0
A30: Suspended 2 | B30: 0 | C30: 0 | F30: 0 | G30: 0 | H30: 0 | I30: 0 | L30: 0 | M30: 0 | N30: 0 | Q30: 0 | R30: 0 | S30: 0 | V30: 0 | W30: 0 | X30: 0 | AA30: 0 | AB30: 0 | AC30: 0 | AF30: 0
A31: Suspended 3 | B31: 0 | C31: 0 | F31: 0 | G31: 0 | H31: 0 | I31: 0 | L31: 0 | M31: 0 | N31: 0 | Q31: 0 | R31: 0 | S31: 0 | V31: 0 | W31: 0 | X31: 0 | AA31: 0 | AB31: 0 | AC31: 0 | AF31: 0
A32: Suspended 4 | B32: 0 | C32: 0 | F32: 0 | G32: 0 | H32: 0 | I32: 0 | L32: 0 | M32: 0 | N32: 0 | Q32: 0 | R32: 0 | S32: 0 | V32: 0 | W32: 0 | X32: 0 | AA32: 0 | AB32: 0 | AC32: 0 | AF32: 0
A33: Suspended 5 | B33: 0 | C33: 0 | F33: 0 | G33: 0 | H33: 0 | I33: 0 | L33: 0 | M33: 0 | N33: 0 | Q33: 0 | R33: 0 | S33: 0 | V33: 0 | W33: 0 | X33: 0 | AA33: 0 | AB33: 0 | AC33: 0 | AF33: 0
A34: Products | B34: =SUM(F6:F33) -> 729.3861122 | E34: Scales = | F34: =J34-B34 -> 9.378629224 | G34: 2.202682481e-13 | I34: Consumption | J34: =SUM(L6:L33,Q6:Q33,V6:V33,AA6:AA33,AF6:AF33) -> 738.7647414 | K34: 0
A35: RM 2
A36: Item | B36: Production | H36: Consumption 1 | M36: Consumption 2 | R36: Consumption 3 | W36: Consumption 4 | AB36: Consumption 5
B37: Code | C37: Description | F37: Ton | G37: Par | H37: Code | I37: Description | L37: Ton | M37: Code | N37: Description | Q37: Ton | R37: Code | S37: Description | V37: Ton | W37: Code | X37: Description | AA37: Ton | AB37: Code | AC37: Description | AF37: Ton
A38: Product 1 | B38: 0 | C38: 0 | F38: 0 | G38: 0 | H38: 0 | I38: 0 | L38: 0 | M38: 0 | N38: 0 | Q38: 0 | R38: 0 | S38: 0 | V38: 0 | W38: 0 | X38: 0 | AA38: 0 | AB38: 0 | AC38: 0 | AF38: 0
A39: Product 2 | B39: 0 | C39: 0 | F39: 0 | G39: 0 | H39: 0 | I39: 0 | L39: 0 | M39: 0 | N39: 0 | Q39: 0 | R39: 0 | S39: 0 | V39: 0 | W39: 0 | X39: 0 | AA39: 0 | AB39: 0 | AC39: 0 | AF39: 0
A40: Product 3 | B40: 0 | C40: 0 | F40: 0 | G40: 0 | H40: 0 | I40: 0 | L40: 0 | M40: 0 | N40: 0 | Q40: 0 | R40: 0 | S40: 0 | V40: 0 | W40: 0 | X40: 0 | AA40: 0 | AB40: 0 | AC40: 0 | AF40: 0
A41: Product 4 | B41: 0 | C41: 0 | F41: 0 | G41: 0 | H41: 0 | I41: 0 | L41: 0 | M41: 0 | N41: 0 | Q41: 0 | R41: 0 | S41: 0 | V41: 0 | W41: 0 | X41: 0 | AA41: 0 | AB41: 0 | AC41: 0 | AF41: 0
A42: Product 5 | B42: 0 | C42: 0 | F42: 0 | G42: 0 | H42: 0 | I42: 0 | L42: 0 | M42: 0 | N42: 0 | Q42: 0 | R42: 0 | S42: 0 | V42: 0 | W42: 0 | X42: 0 | AA42: 0 | AB42: 0 | AC42: 0 | AF42: 0
A43: Product 6 | B43: 0 | C43: 0 | F43: 0 | G43: 0 | H43: 0 | I43: 0 | L43: 0 | M43: 0 | N43: 0 | Q43: 0 | R43: 0 | S43: 0 | V43: 0 | W43: 0 | X43: 0 | AA43: 0 | AB43: 0 | AC43: 0 | AF43: 0
A44: Product 7 | B44: 0 | C44: 0 | F44: 0 | G44: 0 | H44: 0 | I44: 0 | L44: 0 | M44: 0 | N44: 0 | Q44: 0 | R44: 0 | S44: 0 | V44: 0 | W44: 0 | X44: 0 | AA44: 0 | AB44: 0 | AC44: 0 | AF44: 0
A45: Product 8 | B45: 0 | C45: 0 | F45: 0 | G45: 0 | H45: 0 | I45: 0 | L45: 0 | M45: 0 | N45: 0 | Q45: 0 | R45: 0 | S45: 0 | V45: 0 | W45: 0 | X45: 0 | AA45: 0 | AB45: 0 | AC45: 0 | AF45: 0
A46: Product 9 | B46: 0 | C46: 0 | F46: 0 | G46: 0 | H46: 0 | I46: 0 | L46: 0 | M46: 0 | N46: 0 | Q46: 0 | R46: 0 | S46: 0 | V46: 0 | W46: 0 | X46: 0 | AA46: 0 | AB46: 0 | AC46: 0 | AF46: 0
A47: Product 10 | B47: 0 | C47: 0 | F47: 0 | G47: 0 | H47: 0 | I47: 0 | L47: 0 | M47: 0 | N47: 0 | Q47: 0 | R47: 0 | S47: 0 | V47: 0 | W47: 0 | X47: 0 | AA47: 0 | AB47: 0 | AC47: 0 | AF47: 0
A48: Rej 1 | B48: 0 | C48: 0 | F48: 0 | G48: 0 | H48: 0 | I48: 0 | L48: 0 | M48: 0 | N48: 0 | Q48: 0 | R48: 0 | S48: 0 | V48: 0 | W48: 0 | X48: 0 | AA48: 0 | AB48: 0 | AC48: 0 | AF48: 0
A49: Rej 2 | B49: 0 | C49: 0 | F49: 0 | G49: 0 | H49: 0 | I49: 0 | L49: 0 | M49: 0 | N49: 0 | Q49: 0 | R49: 0 | S49: 0 | V49: 0 | W49: 0 | X49: 0 | AA49: 0 | AB49: 0 | AC49: 0 | AF49: 0
A50: Rej 3 | B50: 0 | C50: 0 | F50: 0 | G50: 0 | H50: 0 | I50: 0 | L50: 0 | M50: 0 | N50: 0 | Q50: 0 | R50: 0 | S50: 0 | V50: 0 | W50: 0 | X50: 0 | AA50: 0 | AB50: 0 | AC50: 0 | AF50: 0
A51: Rej 4 | B51: 0 | C51: 0 | F51: 0 | G51: 0 | H51: 0 | I51: 0 | L51: 0 | M51: 0 | N51: 0 | Q51: 0 | R51: 0 | S51: 0 | V51: 0 | W51: 0 | X51: 0 | AA51: 0 | AB51: 0 | AC51: 0 | AF51: 0
A52: Rej 5 | B52: 0 | C52: 0 | F52: 0 | G52: 0 | H52: 0 | I52: 0 | L52: 0 | M52: 0 | N52: 0 | Q52: 0 | R52: 0 | S52: 0 | V52: 0 | W52: 0 | X52: 0 | AA52: 0 | AB52: 0 | AC52: 0 | AF52: 0
A53: Rej 6 | B53: 0 | C53: 0 | F53: 0 | G53: 0 | H53: 0 | I53: 0 | L53: 0 | M53: 0 | N53: 0 | Q53: 0 | R53: 0 | S53: 0 | V53: 0 | W53: 0 | X53: 0 | AA53: 0 | AB53: 0 | AC53: 0 | AF53: 0
A54: Rej 7 | B54: 0 | C54: 0 | F54: 0 | G54: 0 | H54: 0 | I54: 0 | L54: 0 | M54: 0 | N54: 0 | Q54: 0 | R54: 0 | S54: 0 | V54: 0 | W54: 0 | X54: 0 | AA54: 0 | AB54: 0 | AC54: 0 | AF54: 0
A55: Rej 8 | B55: 0 | C55: 0 | F55: 0 | G55: 0 | H55: 0 | I55: 0 | L55: 0 | M55: 0 | N55: 0 | Q55: 0 | R55: 0 | S55: 0 | V55: 0 | W55: 0 | X55: 0 | AA55: 0 | AB55: 0 | AC55: 0 | AF55: 0
A56: Rej 9 | B56: 0 | C56: 0 | F56: 0 | G56: 0 | H56: 0 | I56: 0 | L56: 0 | M56: 0 | N56: 0 | Q56: 0 | R56: 0 | S56: 0 | V56: 0 | W56: 0 | X56: 0 | AA56: 0 | AB56: 0 | AC56: 0 | AF56: 0
A57: Rej 10 | B57: 0 | C57: 0 | F57: 0 | G57: 0 | H57: 0 | I57: 0 | L57: 0 | M57: 0 | N57: 0 | Q57: 0 | R57: 0 | S57: 0 | V57: 0 | W57: 0 | X57: 0 | AA57: 0 | AB57: 0 | AC57: 0 | AF57: 0
A58: H&T&MR | B58: 0 | C58: 0 | F58: 0 | G58: 0 | H58: 0 | I58: 0 | L58: 0 | M58: 0 | N58: 0 | Q58: 0 | R58: 0 | S58: 0 | V58: 0 | W58: 0 | X58: 0 | AA58: 0 | AB58: 0 | AC58: 0 | AF58: 0
A59: Trimming | B59: 0 | C59: 0 | F59: 0 | G59: 0 | H59: 0 | I59: 0 | L59: 0 | M59: 0 | N59: 0 | Q59: 0 | R59: 0 | S59: 0 | V59: 0 | W59: 0 | X59: 0 | AA59: 0 | AB59: 0 | AC59: 0 | AF59: 0
A60: Suspended 1 | B60: 0 | C60: 0 | F60: 0 | G60: 0 | H60: 0 | I60: 0 | L60: 0 | M60: 0 | N60: 0 | Q60: 0 | R60: 0 | S60: 0 | V60: 0 | W60: 0 | X60: 0 | AA60: 0 | AB60: 0 | AC60: 0 | AF60: 0
A61: Suspended 2 | B61: 0 | C61: 0 | F61: 0 | G61: 0 | H61: 0 | I61: 0 | L61: 0 | M61: 0 | N61: 0 | Q61: 0 | R61: 0 | S61: 0 | V61: 0 | W61: 0 | X61: 0 | AA61: 0 | AB61: 0 | AC61: 0 | AF61: 0
A62: Suspended 3 | B62: 0 | C62: 0 | F62: 0 | G62: 0 | H62: 0 | I62: 0 | L62: 0 | M62: 0 | N62: 0 | Q62: 0 | R62: 0 | S62: 0 | V62: 0 | W62: 0 | X62: 0 | AA62: 0 | AB62: 0 | AC62: 0 | AF62: 0
A63: Suspended 4 | B63: 0 | C63: 0 | F63: 0 | G63: 0 | H63: 0 | I63: 0 | L63: 0 | M63: 0 | N63: 0 | Q63: 0 | R63: 0 | S63: 0 | V63: 0 | W63: 0 | X63: 0 | AA63: 0 | AB63: 0 | AC63: 0 | AF63: 0
A64: Suspended 5 | B64: 0 | C64: 0 | F64: 0 | G64: 0 | H64: 0 | I64: 0 | L64: 0 | M64: 0 | N64: 0 | Q64: 0 | R64: 0 | S64: 0 | V64: 0 | W64: 0 | X64: 0 | AA64: 0 | AB64: 0 | AC64: 0 | AF64: 0
A65: Products | B65: =SUM(F37:F64) -> 0 | E65: Scales = | F65: =J65-B65 -> 0 | G65: 0 | I65: Consumption | J65: 0 | K65: 0

Sheet 8
A1: MACC PRD report | E1: Rolling Mill Plant
A2: Date: | C2: 8 | D2: March | E2: 2019
A3: RM 1
A4: Item | B4: Production | H4: Consumption 1 | M4: Consumption 2 | R4: Consumption 3 | W4: Consumption 4 | AB4: Consumption 5
B5: Code | C5: Description | F5: Ton | G5: Par | H5: Code | I5: Description | L5: Ton | M5: Code | N5: Description | Q5: Ton | R5: Code | S5: Description | V5: Ton | W5: Code | X5: Description | AA5: Ton | AB5: Code | AC5: Description | AF5: Ton
A6: Product 1 | B6: P0501300009 | C6: STR- B 500 BWR, 10 MM, 12 M | F6: 783.0135733 | G6: 388 | H6: P0100700015 | I6: STB- 4SP (SSS) , 150*150*12 M (52 MW) | L6: 796.3119398 | M6: 0 | N6: 0 | Q6: 0 | R6: 0 | S6: 0 | V6: 0 | W6: 0 | X6: 0 | AA6: 0 | AB6: 0 | AC6: 0 | AF6: 0
A7: Product 2 | B7: P0501400009 | C7: STR- B 400 BWR, 10 MM, 12 M | F7: 172.2805427 | G7: 86 | H7: P0100700015 | I7: STB- 4SP (SSS) , 150*150*12 M (52 MW) | L7: 172.2805427 | M7: 0 | N7: 0 | Q7: 0 | R7: 0 | S7: 0 | V7: 0 | W7: 0 | X7: 0 | AA7: 0 | AB7: 0 | AC7: 0 | AF7: 0
A8: Product 3 | B8: 0 | C8: 0 | F8: 0 | G8: 0 | H8: 0 | I8: 0 | L8: 0 | M8: 0 | N8: 0 | Q8: 0 | R8: 0 | S8: 0 | V8: 0 | W8: 0 | X8: 0 | AA8: 0 | AB8: 0 | AC8: 0 | AF8: 0
A9: Product 4 | B9: 0 | C9: 0 | F9: 0 | G9: 0 | H9: 0 | I9: 0 | L9: 0 | M9: 0 | N9: 0 | Q9: 0 | R9: 0 | S9: 0 | V9: 0 | W9: 0 | X9: 0 | AA9: 0 | AB9: 0 | AC9: 0 | AF9: 0
A10: Product 5 | B10: 0 | C10: 0 | F10: 0 | G10: 0 | H10: 0 | I10: 0 | L10: 0 | M10: 0 | N10: 0 | Q10: 0 | R10: 0 | S10: 0 | V10: 0 | W10: 0 | X10: 0 | AA10: 0 | AB10: 0 | AC10: 0 | AF10: 0
A11: Product 6 | B11: 0 | C11: 0 | F11: 0 | G11: 0 | H11: 0 | I11: 0 | L11: 0 | M11: 0 | N11: 0 | Q11: 0 | R11: 0 | S11: 0 | V11: 0 | W11: 0 | X11: 0 | AA11: 0 | AB11: 0 | AC11: 0 | AF11: 0
A12: Product 7 | B12: 0 | C12: 0 | F12: 0 | G12: 0 | H12: 0 | I12: 0 | L12: 0 | M12: 0 | N12: 0 | Q12: 0 | R12: 0 | S12: 0 | V12: 0 | W12: 0 | X12: 0 | AA12: 0 | AB12: 0 | AC12: 0 | AF12: 0
A13: Product 8 | B13: 0 | C13: 0 | F13: 0 | G13: 0 | H13: 0 | I13: 0 | L13: 0 | M13: 0 | N13: 0 | Q13: 0 | R13: 0 | S13: 0 | V13: 0 | W13: 0 | X13: 0 | AA13: 0 | AB13: 0 | AC13: 0 | AF13: 0
A14: Product 9 | B14: 0 | C14: 0 | F14: 0 | G14: 0 | H14: 0 | I14: 0 | L14: 0 | M14: 0 | N14: 0 | Q14: 0 | R14: 0 | S14: 0 | V14: 0 | W14: 0 | X14: 0 | AA14: 0 | AB14: 0 | AC14: 0 | AF14: 0
A15: Product 10 | B15: 0 | C15: 0 | F15: 0 | G15: 0 | H15: 0 | I15: 0 | L15: 0 | M15: 0 | N15: 0 | Q15: 0 | R15: 0 | S15: 0 | V15: 0 | W15: 0 | X15: 0 | AA15: 0 | AB15: 0 | AC15: 0 | AF15: 0
A16: Rej 1 | B16: P0101300008 | C16: STB- 4SP, 150*150 Different lengths | F16: 3.22697561 | G16: 1.5 | H16: P0100700015 | I16: STB- 4SP (SSS) , 150*150*12 M (52 MW) | L16: 3.22697561 | M16: 0 | N16: 0 | Q16: 0 | R16: 0 | S16: 0 | V16: 0 | W16: 0 | X16: 0 | AA16: 0 | AB16: 0 | AC16: 0 | AF16: 0
A17: Rej 2 | B17: P0101300002 | C17: STB- 4SP, 130*130 Different lengths | F17: 0 | G17: 0 | H17: P0100700014 | I17: STB- 4SP (SSS) , 130*130*12 M ( 52 MW ) | L17: 0 | M17: 0 | N17: 0 | Q17: 0 | R17: 0 | S17: 0 | V17: 0 | W17: 0 | X17: 0 | AA17: 0 | AB17: 0 | AC17: 0 | AF17: 0
A18: Rej 3 | B18: P0101300002 | C18: STB- 4SP, 130*130 Different lengths | F18: 0 | G18: 0 | H18: P0100700001 | I18: STB- 4SP, 130*130*12 M ( 52 MW ) | L18: 0 | M18: 0 | N18: 0 | Q18: 0 | R18: 0 | S18: 0 | V18: 0 | W18: 0 | X18: 0 | AA18: 0 | AB18: 0 | AC18: 0 | AF18: 0
A19: Rej 4 | B19: 0 | C19: 0 | F19: 0 | G19: 0 | H19: 0 | I19: 0 | L19: 0 | M19: 0 | N19: 0 | Q19: 0 | R19: 0 | S19: 0 | V19: 0 | W19: 0 | X19: 0 | AA19: 0 | AB19: 0 | AC19: 0 | AF19: 0
A20: Rej 5 | B20: 0 | C20: 0 | F20: 0 | G20: 0 | H20: 0 | I20: 0 | L20: 0 | M20: 0 | N20: 0 | Q20: 0 | R20: 0 | S20: 0 | V20: 0 | W20: 0 | X20: 0 | AA20: 0 | AB20: 0 | AC20: 0 | AF20: 0
A21: Rej 6 | B21: 0 | C21: 0 | F21: 0 | G21: 0 | H21: 0 | I21: 0 | L21: 0 | M21: 0 | N21: 0 | Q21: 0 | R21: 0 | S21: 0 | V21: 0 | W21: 0 | X21: 0 | AA21: 0 | AB21: 0 | AC21: 0 | AF21: 0
A22: Rej 7 | B22: 0 | C22: 0 | F22: 0 | G22: 0 | H22: 0 | I22: 0 | L22: 0 | M22: 0 | N22: 0 | Q22: 0 | R22: 0 | S22: 0 | V22: 0 | W22: 0 | X22: 0 | AA22: 0 | AB22: 0 | AC22: 0 | AF22: 0
A23: Rej 8 | B23: 0 | C23: 0 | F23: 0 | G23: 0 | H23: 0 | I23: 0 | L23: 0 | M23: 0 | N23: 0 | Q23: 0 | R23: 0 | S23: 0 | V23: 0 | W23: 0 | X23: 0 | AA23: 0 | AB23: 0 | AC23: 0 | AF23: 0
A24: Rej 9 | B24: 0 | C24: 0 | F24: 0 | G24: 0 | H24: 0 | I24: 0 | L24: 0 | M24: 0 | N24: 0 | Q24: 0 | R24: 0 | S24: 0 | V24: 0 | W24: 0 | X24: 0 | AA24: 0 | AB24: 0 | AC24: 0 | AF24: 0
A25: Rej 10 | B25: 0 | C25: 0 | F25: 0 | G25: 0 | H25: 0 | I25: 0 | L25: 0 | M25: 0 | N25: 0 | Q25: 0 | R25: 0 | S25: 0 | V25: 0 | W25: 0 | X25: 0 | AA25: 0 | AB25: 0 | AC25: 0 | AF25: 0
A26: H&T&MR | B26: P0500600001 | C26: MISS ROLLED&HEAD&TAIL | F26: 20.89376352 | G26: 0 | H26: P0100700015 | I26: STB- 4SP (SSS) , 150*150*12 M (52 MW) | L26: 20.89376352 | M26: 0 | N26: 0 | Q26: 0 | R26: 0 | S26: 0 | V26: 0 | W26: 0 | X26: 0 | AA26: 0 | AB26: 0 | AC26: 0 | AF26: 0
A27: Shorts | B27: P0500400001 | C27: STR-SHORTS | F27: 19.57743094 | G27: 0 | H27: P0100700015 | I27: STB- 4SP (SSS) , 150*150*12 M (52 MW) | L27: 19.57743094 | M27: 0 | N27: 0 | Q27: 0 | R27: 0 | S27: 0 | V27: 0 | W27: 0 | X27: 0 | AA27: 0 | AB27: 0 | AC27: 0 | AF27: 0
A28: Cold Shear Cut | B28: P0500700001 | C28: COLD SHEAR CUT | F28: 9.887591383 | G28: 0 | H28: P0100700015 | I28: STB- 4SP (SSS) , 150*150*12 M (52 MW) | L28: 9.887591383 | M28: 0 | N28: 0 | Q28: 0 | R28: 0 | S28: 0 | V28: 0 | W28: 0 | X28: 0 | AA28: 0 | AB28: 0 | AC28: 0 | AF28: 0
A29: Suspended 1 | B29: P0501200001 | C29: STR- 10 MM, SUSPENDED & REJECTED | F29: 4 | G29: 2 | H29: P0100700015 | I29: STB- 4SP (SSS) , 150*150*12 M (52 MW) | L29: 4 | M29: 0 | N29: 0 | Q29: 0 | R29: 0 | S29: 0 | V29: 0 | W29: 0 | X29: 0 | AA29: 0 | AB29: 0 | AC29: 0 | AF29: 0
A30: Suspended 2 | B30: 0 | C30: 0 | F30: 0 | G30: 0 | H30: 0 | I30: 0 | L30: 0 | M30: 0 | N30: 0 | Q30: 0 | R30: 0 | S30: 0 | V30: 0 | W30: 0 | X30: 0 | AA30: 0 | AB30: 0 | AC30: 0 | AF30: 0
A31: Suspended 3 | B31: 0 | C31: 0 | F31: 0 | G31: 0 | H31: 0 | I31: 0 | L31: 0 | M31: 0 | N31: 0 | Q31: 0 | R31: 0 | S31: 0 | V31: 0 | W31: 0 | X31: 0 | AA31: 0 | AB31: 0 | AC31: 0 | AF31: 0
A32: Suspended 4 | B32: 0 | C32: 0 | F32: 0 | G32: 0 | H32: 0 | I32: 0 | L32: 0 | M32: 0 | N32: 0 | Q32: 0 | R32: 0 | S32: 0 | V32: 0 | W32: 0 | X32: 0 | AA32: 0 | AB32: 0 | AC32: 0 | AF32: 0
A33: Suspended 5 | B33: 0 | C33: 0 | F33: 0 | G33: 0 | H33: 0 | I33: 0 | L33: 0 | M33: 0 | N33: 0 | Q33: 0 | R33: 0 | S33: 0 | V33: 0 | W33: 0 | X33: 0 | AA33: 0 | AB33: 0 | AC33: 0 | AF33: 0
A34: Products | B34: =SUM(F6:F33) -> 1012.879877 | E34: Scales = | F34: =J34-B34 -> 13.29836649 | G34: 2.202682481e-13 | I34: Consumption | J34: =SUM(L6:L33,Q6:Q33,V6:V33,AA6:AA33,AF6:AF33) -> 1026.178244 | K34: 0
A35: RM 2
A36: Item | B36: Production | H36: Consumption 1 | M36: Consumption 2 | R36: Consumption 3 | W36: Consumption 4 | AB36: Consumption 5
B37: Code | C37: Description | F37: Ton | G37: Par | H37: Code | I37: Description | L37: Ton | M37: Code | N37: Description | Q37: Ton | R37: Code | S37: Description | V37: Ton | W37: Code | X37: Description | AA37: Ton | AB37: Code | AC37: Description | AF37: Ton
A38: Product 1 | B38: 0 | C38: 0 | F38: 0 | G38: 0 | H38: 0 | I38: 0 | L38: 0 | M38: 0 | N38: 0 | Q38: 0 | R38: 0 | S38: 0 | V38: 0 | W38: 0 | X38: 0 | AA38: 0 | AB38: 0 | AC38: 0 | AF38: 0
A39: Product 2 | B39: 0 | C39: 0 | F39: 0 | G39: 0 | H39: 0 | I39: 0 | L39: 0 | M39: 0 | N39: 0 | Q39: 0 | R39: 0 | S39: 0 | V39: 0 | W39: 0 | X39: 0 | AA39: 0 | AB39: 0 | AC39: 0 | AF39: 0
A40: Product 3 | B40: 0 | C40: 0 | F40: 0 | G40: 0 | H40: 0 | I40: 0 | L40: 0 | M40: 0 | N40: 0 | Q40: 0 | R40: 0 | S40: 0 | V40: 0 | W40: 0 | X40: 0 | AA40: 0 | AB40: 0 | AC40: 0 | AF40: 0
A41: Product 4 | B41: 0 | C41: 0 | F41: 0 | G41: 0 | H41: 0 | I41: 0 | L41: 0 | M41: 0 | N41: 0 | Q41: 0 | R41: 0 | S41: 0 | V41: 0 | W41: 0 | X41: 0 | AA41: 0 | AB41: 0 | AC41: 0 | AF41: 0
A42: Product 5 | B42: 0 | C42: 0 | F42: 0 | G42: 0 | H42: 0 | I42: 0 | L42: 0 | M42: 0 | N42: 0 | Q42: 0 | R42: 0 | S42: 0 | V42: 0 | W42: 0 | X42: 0 | AA42: 0 | AB42: 0 | AC42: 0 | AF42: 0
A43: Product 6 | B43: 0 | C43: 0 | F43: 0 | G43: 0 | H43: 0 | I43: 0 | L43: 0 | M43: 0 | N43: 0 | Q43: 0 | R43: 0 | S43: 0 | V43: 0 | W43: 0 | X43: 0 | AA43: 0 | AB43: 0 | AC43: 0 | AF43: 0
A44: Product 7 | B44: 0 | C44: 0 | F44: 0 | G44: 0 | H44: 0 | I44: 0 | L44: 0 | M44: 0 | N44: 0 | Q44: 0 | R44: 0 | S44: 0 | V44: 0 | W44: 0 | X44: 0 | AA44: 0 | AB44: 0 | AC44: 0 | AF44: 0
A45: Product 8 | B45: 0 | C45: 0 | F45: 0 | G45: 0 | H45: 0 | I45: 0 | L45: 0 | M45: 0 | N45: 0 | Q45: 0 | R45: 0 | S45: 0 | V45: 0 | W45: 0 | X45: 0 | AA45: 0 | AB45: 0 | AC45: 0 | AF45: 0
A46: Product 9 | B46: 0 | C46: 0 | F46: 0 | G46: 0 | H46: 0 | I46: 0 | L46: 0 | M46: 0 | N46: 0 | Q46: 0 | R46: 0 | S46: 0 | V46: 0 | W46: 0 | X46: 0 | AA46: 0 | AB46: 0 | AC46: 0 | AF46: 0
A47: Product 10 | B47: 0 | C47: 0 | F47: 0 | G47: 0 | H47: 0 | I47: 0 | L47: 0 | M47: 0 | N47: 0 | Q47: 0 | R47: 0 | S47: 0 | V47: 0 | W47: 0 | X47: 0 | AA47: 0 | AB47: 0 | AC47: 0 | AF47: 0
A48: Rej 1 | B48: 0 | C48: 0 | F48: 0 | G48: 0 | H48: 0 | I48: 0 | L48: 0 | M48: 0 | N48: 0 | Q48: 0 | R48: 0 | S48: 0 | V48: 0 | W48: 0 | X48: 0 | AA48: 0 | AB48: 0 | AC48: 0 | AF48: 0
A49: Rej 2 | B49: 0 | C49: 0 | F49: 0 | G49: 0 | H49: 0 | I49: 0 | L49: 0 | M49: 0 | N49: 0 | Q49: 0 | R49: 0 | S49: 0 | V49: 0 | W49: 0 | X49: 0 | AA49: 0 | AB49: 0 | AC49: 0 | AF49: 0
A50: Rej 3 | B50: 0 | C50: 0 | F50: 0 | G50: 0 | H50: 0 | I50: 0 | L50: 0 | M50: 0 | N50: 0 | Q50: 0 | R50: 0 | S50: 0 | V50: 0 | W50: 0 | X50: 0 | AA50: 0 | AB50: 0 | AC50: 0 | AF50: 0
A51: Rej 4 | B51: 0 | C51: 0 | F51: 0 | G51: 0 | H51: 0 | I51: 0 | L51: 0 | M51: 0 | N51: 0 | Q51: 0 | R51: 0 | S51: 0 | V51: 0 | W51: 0 | X51: 0 | AA51: 0 | AB51: 0 | AC51: 0 | AF51: 0
A52: Rej 5 | B52: 0 | C52: 0 | F52: 0 | G52: 0 | H52: 0 | I52: 0 | L52: 0 | M52: 0 | N52: 0 | Q52: 0 | R52: 0 | S52: 0 | V52: 0 | W52: 0 | X52: 0 | AA52: 0 | AB52: 0 | AC52: 0 | AF52: 0
A53: Rej 6 | B53: 0 | C53: 0 | F53: 0 | G53: 0 | H53: 0 | I53: 0 | L53: 0 | M53: 0 | N53: 0 | Q53: 0 | R53: 0 | S53: 0 | V53: 0 | W53: 0 | X53: 0 | AA53: 0 | AB53: 0 | AC53: 0 | AF53: 0
A54: Rej 7 | B54: 0 | C54: 0 | F54: 0 | G54: 0 | H54: 0 | I54: 0 | L54: 0 | M54: 0 | N54: 0 | Q54: 0 | R54: 0 | S54: 0 | V54: 0 | W54: 0 | X54: 0 | AA54: 0 | AB54: 0 | AC54: 0 | AF54: 0
A55: Rej 8 | B55: 0 | C55: 0 | F55: 0 | G55: 0 | H55: 0 | I55: 0 | L55: 0 | M55: 0 | N55: 0 | Q55: 0 | R55: 0 | S55: 0 | V55: 0 | W55: 0 | X55: 0 | AA55: 0 | AB55: 0 | AC55: 0 | AF55: 0
A56: Rej 9 | B56: 0 | C56: 0 | F56: 0 | G56: 0 | H56: 0 | I56: 0 | L56: 0 | M56: 0 | N56: 0 | Q56: 0 | R56: 0 | S56: 0 | V56: 0 | W56: 0 | X56: 0 | AA56: 0 | AB56: 0 | AC56: 0 | AF56: 0
A57: Rej 10 | B57: 0 | C57: 0 | F57: 0 | G57: 0 | H57: 0 | I57: 0 | L57: 0 | M57: 0 | N57: 0 | Q57: 0 | R57: 0 | S57: 0 | V57: 0 | W57: 0 | X57: 0 | AA57: 0 | AB57: 0 | AC57: 0 | AF57: 0
A58: H&T&MR | B58: 0 | C58: 0 | F58: 0 | G58: 0 | H58: 0 | I58: 0 | L58: 0 | M58: 0 | N58: 0 | Q58: 0 | R58: 0 | S58: 0 | V58: 0 | W58: 0 | X58: 0 | AA58: 0 | AB58: 0 | AC58: 0 | AF58: 0
A59: Trimming | B59: 0 | C59: 0 | F59: 0 | G59: 0 | H59: 0 | I59: 0 | L59: 0 | M59: 0 | N59: 0 | Q59: 0 | R59: 0 | S59: 0 | V59: 0 | W59: 0 | X59: 0 | AA59: 0 | AB59: 0 | AC59: 0 | AF59: 0
A60: Suspended 1 | B60: 0 | C60: 0 | F60: 0 | G60: 0 | H60: 0 | I60: 0 | L60: 0 | M60: 0 | N60: 0 | Q60: 0 | R60: 0 | S60: 0 | V60: 0 | W60: 0 | X60: 0 | AA60: 0 | AB60: 0 | AC60: 0 | AF60: 0
A61: Suspended 2 | B61: 0 | C61: 0 | F61: 0 | G61: 0 | H61: 0 | I61: 0 | L61: 0 | M61: 0 | N61: 0 | Q61: 0 | R61: 0 | S61: 0 | V61: 0 | W61: 0 | X61: 0 | AA61: 0 | AB61: 0 | AC61: 0 | AF61: 0
A62: Suspended 3 | B62: 0 | C62: 0 | F62: 0 | G62: 0 | H62: 0 | I62: 0 | L62: 0 | M62: 0 | N62: 0 | Q62: 0 | R62: 0 | S62: 0 | V62: 0 | W62: 0 | X62: 0 | AA62: 0 | AB62: 0 | AC62: 0 | AF62: 0
A63: Suspended 4 | B63: 0 | C63: 0 | F63: 0 | G63: 0 | H63: 0 | I63: 0 | L63: 0 | M63: 0 | N63: 0 | Q63: 0 | R63: 0 | S63: 0 | V63: 0 | W63: 0 | X63: 0 | AA63: 0 | AB63: 0 | AC63: 0 | AF63: 0
A64: Suspended 5 | B64: 0 | C64: 0 | F64: 0 | G64: 0 | H64: 0 | I64: 0 | L64: 0 | M64: 0 | N64: 0 | Q64: 0 | R64: 0 | S64: 0 | V64: 0 | W64: 0 | X64: 0 | AA64: 0 | AB64: 0 | AC64: 0 | AF64: 0
A65: Products | B65: =SUM(F37:F64) -> 0 | E65: Scales = | F65: =J65-B65 -> 0 | G65: 0 | I65: Consumption | J65: 0 | K65: 0

Sheet 9
A1: MACC PRD report | E1: Rolling Mill Plant
A2: Date: | C2: 9 | D2: March | E2: 2019
A3: RM 1
A4: Item | B4: Production | H4: Consumption 1 | M4: Consumption 2 | R4: Consumption 3 | W4: Consumption 4 | AB4: Consumption 5
B5: Code | C5: Description | F5: Ton | G5: Par | H5: Code | I5: Description | L5: Ton | M5: Code | N5: Description | Q5: Ton | R5: Code | S5: Description | V5: Ton | W5: Code | X5: Description | AA5: Ton | AB5: Code | AC5: Description | AF5: Ton
A6: Product 1 | B6: P0501300009 | C6: STR- B 500 BWR, 10 MM, 12 M | F6: 1015.120425 | G6: 498 | H6: P0100700015 | I6: STB- 4SP (SSS) , 150*150*12 M (52 MW) | L6: 1029.302625 | M6: 0 | N6: 0 | Q6: 0 | R6: 0 | S6: 0 | V6: 0 | W6: 0 | X6: 0 | AA6: 0 | AB6: 0 | AC6: 0 | AF6: 0
A7: Product 2 | B7: 0 | C7: 0 | F7: 0 | G7: 0 | H7: 0 | I7: 0 | L7: 0 | M7: 0 | N7: 0 | Q7: 0 | R7: 0 | S7: 0 | V7: 0 | W7: 0 | X7: 0 | AA7: 0 | AB7: 0 | AC7: 0 | AF7: 0
A8: Product 3 | B8: 0 | C8: 0 | F8: 0 | G8: 0 | H8: 0 | I8: 0 | L8: 0 | M8: 0 | N8: 0 | Q8: 0 | R8: 0 | S8: 0 | V8: 0 | W8: 0 | X8: 0 | AA8: 0 | AB8: 0 | AC8: 0 | AF8: 0
A9: Product 4 | B9: 0 | C9: 0 | F9: 0 | G9: 0 | H9: 0 | I9: 0 | L9: 0 | M9: 0 | N9: 0 | Q9: 0 | R9: 0 | S9: 0 | V9: 0 | W9: 0 | X9: 0 | AA9: 0 | AB9: 0 | AC9: 0 | AF9: 0
A10: Product 5 | B10: 0 | C10: 0 | F10: 0 | G10: 0 | H10: 0 | I10: 0 | L10: 0 | M10: 0 | N10: 0 | Q10: 0 | R10: 0 | S10: 0 | V10: 0 | W10: 0 | X10: 0 | AA10: 0 | AB10: 0 | AC10: 0 | AF10: 0
A11: Product 6 | B11: 0 | C11: 0 | F11: 0 | G11: 0 | H11: 0 | I11: 0 | L11: 0 | M11: 0 | N11: 0 | Q11: 0 | R11: 0 | S11: 0 | V11: 0 | W11: 0 | X11: 0 | AA11: 0 | AB11: 0 | AC11: 0 | AF11: 0
A12: Product 7 | B12: 0 | C12: 0 | F12: 0 | G12: 0 | H12: 0 | I12: 0 | L12: 0 | M12: 0 | N12: 0 | Q12: 0 | R12: 0 | S12: 0 | V12: 0 | W12: 0 | X12: 0 | AA12: 0 | AB12: 0 | AC12: 0 | AF12: 0
A13: Product 8 | B13: 0 | C13: 0 | F13: 0 | G13: 0 | H13: 0 | I13: 0 | L13: 0 | M13: 0 | N13: 0 | Q13: 0 | R13: 0 | S13: 0 | V13: 0 | W13: 0 | X13: 0 | AA13: 0 | AB13: 0 | AC13: 0 | AF13: 0
A14: Product 9 | B14: 0 | C14: 0 | F14: 0 | G14: 0 | H14: 0 | I14: 0 | L14: 0 | M14: 0 | N14: 0 | Q14: 0 | R14: 0 | S14: 0 | V14: 0 | W14: 0 | X14: 0 | AA14: 0 | AB14: 0 | AC14: 0 | AF14: 0
A15: Product 10 | B15: 0 | C15: 0 | F15: 0 | G15: 0 | H15: 0 | I15: 0 | L15: 0 | M15: 0 | N15: 0 | Q15: 0 | R15: 0 | S15: 0 | V15: 0 | W15: 0 | X15: 0 | AA15: 0 | AB15: 0 | AC15: 0 | AF15: 0
A16: Rej 1 | B16: P0101300008 | C16: STB- 4SP, 150*150 Different lengths | F16: 7.4795 | G16: 3.5 | H16: P0100700015 | I16: STB- 4SP (SSS) , 150*150*12 M (52 MW) | L16: 7.4795 | M16: 0 | N16: 0 | Q16: 0 | R16: 0 | S16: 0 | V16: 0 | W16: 0 | X16: 0 | AA16: 0 | AB16: 0 | AC16: 0 | AF16: 0
A17: Rej 2 | B17: P0101300002 | C17: STB- 4SP, 130*130 Different lengths | F17: 0 | G17: 0 | H17: P0100700014 | I17: STB- 4SP (SSS) , 130*130*12 M ( 52 MW ) | L17: 0 | M17: 0 | N17: 0 | Q17: 0 | R17: 0 | S17: 0 | V17: 0 | W17: 0 | X17: 0 | AA17: 0 | AB17: 0 | AC17: 0 | AF17: 0
A18: Rej 3 | B18: P0101300002 | C18: STB- 4SP, 130*130 Different lengths | F18: 0 | G18: 0 | H18: P0100700001 | I18: STB- 4SP, 130*130*12 M ( 52 MW ) | L18: 0 | M18: 0 | N18: 0 | Q18: 0 | R18: 0 | S18: 0 | V18: 0 | W18: 0 | X18: 0 | AA18: 0 | AB18: 0 | AC18: 0 | AF18: 0
A19: Rej 4 | B19: 0 | C19: 0 | F19: 0 | G19: 0 | H19: 0 | I19: 0 | L19: 0 | M19: 0 | N19: 0 | Q19: 0 | R19: 0 | S19: 0 | V19: 0 | W19: 0 | X19: 0 | AA19: 0 | AB19: 0 | AC19: 0 | AF19: 0
A20: Rej 5 | B20: 0 | C20: 0 | F20: 0 | G20: 0 | H20: 0 | I20: 0 | L20: 0 | M20: 0 | N20: 0 | Q20: 0 | R20: 0 | S20: 0 | V20: 0 | W20: 0 | X20: 0 | AA20: 0 | AB20: 0 | AC20: 0 | AF20: 0
A21: Rej 6 | B21: 0 | C21: 0 | F21: 0 | G21: 0 | H21: 0 | I21: 0 | L21: 0 | M21: 0 | N21: 0 | Q21: 0 | R21: 0 | S21: 0 | V21: 0 | W21: 0 | X21: 0 | AA21: 0 | AB21: 0 | AC21: 0 | AF21: 0
A22: Rej 7 | B22: 0 | C22: 0 | F22: 0 | G22: 0 | H22: 0 | I22: 0 | L22: 0 | M22: 0 | N22: 0 | Q22: 0 | R22: 0 | S22: 0 | V22: 0 | W22: 0 | X22: 0 | AA22: 0 | AB22: 0 | AC22: 0 | AF22: 0
A23: Rej 8 | B23: 0 | C23: 0 | F23: 0 | G23: 0 | H23: 0 | I23: 0 | L23: 0 | M23: 0 | N23: 0 | Q23: 0 | R23: 0 | S23: 0 | V23: 0 | W23: 0 | X23: 0 | AA23: 0 | AB23: 0 | AC23: 0 | AF23: 0
A24: Rej 9 | B24: 0 | C24: 0 | F24: 0 | G24: 0 | H24: 0 | I24: 0 | L24: 0 | M24: 0 | N24: 0 | Q24: 0 | R24: 0 | S24: 0 | V24: 0 | W24: 0 | X24: 0 | AA24: 0 | AB24: 0 | AC24: 0 | AF24: 0
A25: Rej 10 | B25: 0 | C25: 0 | F25: 0 | G25: 0 | H25: 0 | I25: 0 | L25: 0 | M25: 0 | N25: 0 | Q25: 0 | R25: 0 | S25: 0 | V25: 0 | W25: 0 | X25: 0 | AA25: 0 | AB25: 0 | AC25: 0 | AF25: 0
A26: H&T&MR | B26: P0500600001 | C26: MISS ROLLED&HEAD&TAIL | F26: 24.27183764 | G26: 0 | H26: P0100700015 | I26: STB- 4SP (SSS) , 150*150*12 M (52 MW) | L26: 24.27183764 | M26: 0 | N26: 0 | Q26: 0 | R26: 0 | S26: 0 | V26: 0 | W26: 0 | X26: 0 | AA26: 0 | AB26: 0 | AC26: 0 | AF26: 0
A27: Shorts | B27: P0500400001 | C27: STR-SHORTS | F27: 20.83919234 | G27: 0 | H27: P0100700015 | I27: STB- 4SP (SSS) , 150*150*12 M (52 MW) | L27: 20.83919234 | M27: 0 | N27: 0 | Q27: 0 | R27: 0 | S27: 0 | V27: 0 | W27: 0 | X27: 0 | AA27: 0 | AB27: 0 | AC27: 0 | AF27: 0
A28: Cold Shear Cut | B28: P0500700001 | C28: COLD SHEAR CUT | F28: 10.52484462 | G28: 0 | H28: P0100700015 | I28: STB- 4SP (SSS) , 150*150*12 M (52 MW) | L28: 10.52484462 | M28: 0 | N28: 0 | Q28: 0 | R28: 0 | S28: 0 | V28: 0 | W28: 0 | X28: 0 | AA28: 0 | AB28: 0 | AC28: 0 | AF28: 0
A29: Suspended 1 | B29: P0501200001 | C29: STR- 10 MM, SUSPENDED & REJECTED | F29: 6 | G29: 3 | H29: P0100700015 | I29: STB- 4SP (SSS) , 150*150*12 M (52 MW) | L29: 6 | M29: 0 | N29: 0 | Q29: 0 | R29: 0 | S29: 0 | V29: 0 | W29: 0 | X29: 0 | AA29: 0 | AB29: 0 | AC29: 0 | AF29: 0
A30: Suspended 2 | B30: 0 | C30: 0 | F30: 0 | G30: 0 | H30: 0 | I30: 0 | L30: 0 | M30: 0 | N30: 0 | Q30: 0 | R30: 0 | S30: 0 | V30: 0 | W30: 0 | X30: 0 | AA30: 0 | AB30: 0 | AC30: 0 | AF30: 0
A31: Suspended 3 | B31: 0 | C31: 0 | F31: 0 | G31: 0 | H31: 0 | I31: 0 | L31: 0 | M31: 0 | N31: 0 | Q31: 0 | R31: 0 | S31: 0 | V31: 0 | W31: 0 | X31: 0 | AA31: 0 | AB31: 0 | AC31: 0 | AF31: 0
A32: Suspended 4 | B32: 0 | C32: 0 | F32: 0 | G32: 0 | H32: 0 | I32: 0 | L32: 0 | M32: 0 | N32: 0 | Q32: 0 | R32: 0 | S32: 0 | V32: 0 | W32: 0 | X32: 0 | AA32: 0 | AB32: 0 | AC32: 0 | AF32: 0
A33: Suspended 5 | B33: 0 | C33: 0 | F33: 0 | G33: 0 | H33: 0 | I33: 0 | L33: 0 | M33: 0 | N33: 0 | Q33: 0 | R33: 0 | S33: 0 | V33: 0 | W33: 0 | X33: 0 | AA33: 0 | AB33: 0 | AC33: 0 | AF33: 0
A34: Products | B34: =SUM(F6:F33) -> 1084.235799 | E34: Scales = | F34: =J34-B34 -> 14.1822005 | G34: 2.202682481e-13 | I34: Consumption | J34: =SUM(L6:L33,Q6:Q33,V6:V33,AA6:AA33,AF6:AF33) -> 1098.418 | K34: 0
A35: RM 2
A36: Item | B36: Production | H36: Consumption 1 | M36: Consumption 2 | R36: Consumption 3 | W36: Consumption 4 | AB36: Consumption 5
B37: Code | C37: Description | F37: Ton | G37: Par | H37: Code | I37: Description | L37: Ton | M37: Code | N37: Description | Q37: Ton | R37: Code | S37: Description | V37: Ton | W37: Code | X37: Description | AA37: Ton | AB37: Code | AC37: Description | AF37: Ton
A38: Product 1 | B38: 0 | C38: 0 | F38: 0 | G38: 0 | H38: 0 | I38: 0 | L38: 0 | M38: 0 | N38: 0 | Q38: 0 | R38: 0 | S38: 0 | V38: 0 | W38: 0 | X38: 0 | AA38: 0 | AB38: 0 | AC38: 0 | AF38: 0
A39: Product 2 | B39: 0 | C39: 0 | F39: 0 | G39: 0 | H39: 0 | I39: 0 | L39: 0 | M39: 0 | N39: 0 | Q39: 0 | R39: 0 | S39: 0 | V39: 0 | W39: 0 | X39: 0 | AA39: 0 | AB39: 0 | AC39: 0 | AF39: 0
A40: Product 3 | B40: 0 | C40: 0 | F40: 0 | G40: 0 | H40: 0 | I40: 0 | L40: 0 | M40: 0 | N40: 0 | Q40: 0 | R40: 0 | S40: 0 | V40: 0 | W40: 0 | X40: 0 | AA40: 0 | AB40: 0 | AC40: 0 | AF40: 0
A41: Product 4 | B41: 0 | C41: 0 | F41: 0 | G41: 0 | H41: 0 | I41: 0 | L41: 0 | M41: 0 | N41: 0 | Q41: 0 | R41: 0 | S41: 0 | V41: 0 | W41: 0 | X41: 0 | AA41: 0 | AB41: 0 | AC41: 0 | AF41: 0
A42: Product 5 | B42: 0 | C42: 0 | F42: 0 | G42: 0 | H42: 0 | I42: 0 | L42: 0 | M42: 0 | N42: 0 | Q42: 0 | R42: 0 | S42: 0 | V42: 0 | W42: 0 | X42: 0 | AA42: 0 | AB42: 0 | AC42: 0 | AF42: 0
A43: Product 6 | B43: 0 | C43: 0 | F43: 0 | G43: 0 | H43: 0 | I43: 0 | L43: 0 | M43: 0 | N43: 0 | Q43: 0 | R43: 0 | S43: 0 | V43: 0 | W43: 0 | X43: 0 | AA43: 0 | AB43: 0 | AC43: 0 | AF43: 0
A44: Product 7 | B44: 0 | C44: 0 | F44: 0 | G44: 0 | H44: 0 | I44: 0 | L44: 0 | M44: 0 | N44: 0 | Q44: 0 | R44: 0 | S44: 0 | V44: 0 | W44: 0 | X44: 0 | AA44: 0 | AB44: 0 | AC44: 0 | AF44: 0
A45: Product 8 | B45: 0 | C45: 0 | F45: 0 | G45: 0 | H45: 0 | I45: 0 | L45: 0 | M45: 0 | N45: 0 | Q45: 0 | R45: 0 | S45: 0 | V45: 0 | W45: 0 | X45: 0 | AA45: 0 | AB45: 0 | AC45: 0 | AF45: 0
A46: Product 9 | B46: 0 | C46: 0 | F46: 0 | G46: 0 | H46: 0 | I46: 0 | L46: 0 | M46: 0 | N46: 0 | Q46: 0 | R46: 0 | S46: 0 | V46: 0 | W46: 0 | X46: 0 | AA46: 0 | AB46: 0 | AC46: 0 | AF46: 0
A47: Product 10 | B47: 0 | C47: 0 | F47: 0 | G47: 0 | H47: 0 | I47: 0 | L47: 0 | M47: 0 | N47: 0 | Q47: 0 | R47: 0 | S47: 0 | V47: 0 | W47: 0 | X47: 0 | AA47: 0 | AB47: 0 | AC47: 0 | AF47: 0
A48: Rej 1 | B48: 0 | C48: 0 | F48: 0 | G48: 0 | H48: 0 | I48: 0 | L48: 0 | M48: 0 | N48: 0 | Q48: 0 | R48: 0 | S48: 0 | V48: 0 | W48: 0 | X48: 0 | AA48: 0 | AB48: 0 | AC48: 0 | AF48: 0
A49: Rej 2 | B49: 0 | C49: 0 | F49: 0 | G49: 0 | H49: 0 | I49: 0 | L49: 0 | M49: 0 | N49: 0 | Q49: 0 | R49: 0 | S49: 0 | V49: 0 | W49: 0 | X49: 0 | AA49: 0 | AB49: 0 | AC49: 0 | AF49: 0
A50: Rej 3 | B50: 0 | C50: 0 | F50: 0 | G50: 0 | H50: 0 | I50: 0 | L50: 0 | M50: 0 | N50: 0 | Q50: 0 | R50: 0 | S50: 0 | V50: 0 | W50: 0 | X50: 0 | AA50: 0 | AB50: 0 | AC50: 0 | AF50: 0
A51: Rej 4 | B51: 0 | C51: 0 | F51: 0 | G51: 0 | H51: 0 | I51: 0 | L51: 0 | M51: 0 | N51: 0 | Q51: 0 | R51: 0 | S51: 0 | V51: 0 | W51: 0 | X51: 0 | AA51: 0 | AB51: 0 | AC51: 0 | AF51: 0
A52: Rej 5 | B52: 0 | C52: 0 | F52: 0 | G52: 0 | H52: 0 | I52: 0 | L52: 0 | M52: 0 | N52: 0 | Q52: 0 | R52: 0 | S52: 0 | V52: 0 | W52: 0 | X52: 0 | AA52: 0 | AB52: 0 | AC52: 0 | AF52: 0
A53: Rej 6 | B53: 0 | C53: 0 | F53: 0 | G53: 0 | H53: 0 | I53: 0 | L53: 0 | M53: 0 | N53: 0 | Q53: 0 | R53: 0 | S53: 0 | V53: 0 | W53: 0 | X53: 0 | AA53: 0 | AB53: 0 | AC53: 0 | AF53: 0
A54: Rej 7 | B54: 0 | C54: 0 | F54: 0 | G54: 0 | H54: 0 | I54: 0 | L54: 0 | M54: 0 | N54: 0 | Q54: 0 | R54: 0 | S54: 0 | V54: 0 | W54: 0 | X54: 0 | AA54: 0 | AB54: 0 | AC54: 0 | AF54: 0
A55: Rej 8 | B55: 0 | C55: 0 | F55: 0 | G55: 0 | H55: 0 | I55: 0 | L55: 0 | M55: 0 | N55: 0 | Q55: 0 | R55: 0 | S55: 0 | V55: 0 | W55: 0 | X55: 0 | AA55: 0 | AB55: 0 | AC55: 0 | AF55: 0
A56: Rej 9 | B56: 0 | C56: 0 | F56: 0 | G56: 0 | H56: 0 | I56: 0 | L56: 0 | M56: 0 | N56: 0 | Q56: 0 | R56: 0 | S56: 0 | V56: 0 | W56: 0 | X56: 0 | AA56: 0 | AB56: 0 | AC56: 0 | AF56: 0
A57: Rej 10 | B57: 0 | C57: 0 | F57: 0 | G57: 0 | H57: 0 | I57: 0 | L57: 0 | M57: 0 | N57: 0 | Q57: 0 | R57: 0 | S57: 0 | V57: 0 | W57: 0 | X57: 0 | AA57: 0 | AB57: 0 | AC57: 0 | AF57: 0
A58: H&T&MR | B58: 0 | C58: 0 | F58: 0 | G58: 0 | H58: 0 | I58: 0 | L58: 0 | M58: 0 | N58: 0 | Q58: 0 | R58: 0 | S58: 0 | V58: 0 | W58: 0 | X58: 0 | AA58: 0 | AB58: 0 | AC58: 0 | AF58: 0
A59: Trimming | B59: 0 | C59: 0 | F59: 0 | G59: 0 | H59: 0 | I59: 0 | L59: 0 | M59: 0 | N59: 0 | Q59: 0 | R59: 0 | S59: 0 | V59: 0 | W59: 0 | X59: 0 | AA59: 0 | AB59: 0 | AC59: 0 | AF59: 0
A60: Suspended 1 | B60: 0 | C60: 0 | F60: 0 | G60: 0 | H60: 0 | I60: 0 | L60: 0 | M60: 0 | N60: 0 | Q60: 0 | R60: 0 | S60: 0 | V60: 0 | W60: 0 | X60: 0 | AA60: 0 | AB60: 0 | AC60: 0 | AF60: 0
A61: Suspended 2 | B61: 0 | C61: 0 | F61: 0 | G61: 0 | H61: 0 | I61: 0 | L61: 0 | M61: 0 | N61: 0 | Q61: 0 | R61: 0 | S61: 0 | V61: 0 | W61: 0 | X61: 0 | AA61: 0 | AB61: 0 | AC61: 0 | AF61: 0
A62: Suspended 3 | B62: 0 | C62: 0 | F62: 0 | G62: 0 | H62: 0 | I62: 0 | L62: 0 | M62: 0 | N62: 0 | Q62: 0 | R62: 0 | S62: 0 | V62: 0 | W62: 0 | X62: 0 | AA62: 0 | AB62: 0 | AC62: 0 | AF62: 0
A63: Suspended 4 | B63: 0 | C63: 0 | F63: 0 | G63: 0 | H63: 0 | I63: 0 | L63: 0 | M63: 0 | N63: 0 | Q63: 0 | R63: 0 | S63: 0 | V63: 0 | W63: 0 | X63: 0 | AA63: 0 | AB63: 0 | AC63: 0 | AF63: 0
A64: Suspended 5 | B64: 0 | C64: 0 | F64: 0 | G64: 0 | H64: 0 | I64: 0 | L64: 0 | M64: 0 | N64: 0 | Q64: 0 | R64: 0 | S64: 0 | V64: 0 | W64: 0 | X64: 0 | AA64: 0 | AB64: 0 | AC64: 0 | AF64: 0
A65: Products | B65: =SUM(F37:F64) -> 0 | E65: Scales = | F65: =J65-B65 -> 0 | G65: 0 | I65: Consumption | J65: 0 | K65: 0

Sheet 10
A1: MACC PRD report | E1: Rolling Mill Plant
A2: Date: | C2: 10 | D2: March | E2: 2019
A3: RM 1
A4: Item | B4: Production | H4: Consumption 1 | M4: Consumption 2 | R4: Consumption 3 | W4: Consumption 4 | AB4: Consumption 5
B5: Code | C5: Description | F5: Ton | G5: Par | H5: Code | I5: Description | L5: Ton | M5: Code | N5: Description | Q5: Ton | R5: Code | S5: Description | V5: Ton | W5: Code | X5: Description | AA5: Ton | AB5: Code | AC5: Description | AF5: Ton
A6: Product 1 | B6: P0501300009 | C6: STR- B 500 BWR, 10 MM, 12 M | F6: 949.5937692 | G6: 468 | H6: P0100700015 | I6: STB- 4SP (SSS) , 150*150*12 M (52 MW) | L6: 962.8979432 | M6: 0 | N6: 0 | Q6: 0 | R6: 0 | S6: 0 | V6: 0 | W6: 0 | X6: 0 | AA6: 0 | AB6: 0 | AC6: 0 | AF6: 0
A7: Product 2 | B7: 0 | C7: 0 | F7: 0 | G7: 0 | H7: 0 | I7: 0 | L7: 0 | M7: 0 | N7: 0 | Q7: 0 | R7: 0 | S7: 0 | V7: 0 | W7: 0 | X7: 0 | AA7: 0 | AB7: 0 | AC7: 0 | AF7: 0
A8: Product 3 | B8: 0 | C8: 0 | F8: 0 | G8: 0 | H8: 0 | I8: 0 | L8: 0 | M8: 0 | N8: 0 | Q8: 0 | R8: 0 | S8: 0 | V8: 0 | W8: 0 | X8: 0 | AA8: 0 | AB8: 0 | AC8: 0 | AF8: 0
A9: Product 4 | B9: 0 | C9: 0 | F9: 0 | G9: 0 | H9: 0 | I9: 0 | L9: 0 | M9: 0 | N9: 0 | Q9: 0 | R9: 0 | S9: 0 | V9: 0 | W9: 0 | X9: 0 | AA9: 0 | AB9: 0 | AC9: 0 | AF9: 0
A10: Product 5 | B10: 0 | C10: 0 | F10: 0 | G10: 0 | H10: 0 | I10: 0 | L10: 0 | M10: 0 | N10: 0 | Q10: 0 | R10: 0 | S10: 0 | V10: 0 | W10: 0 | X10: 0 | AA10: 0 | AB10: 0 | AC10: 0 | AF10: 0
A11: Product 6 | B11: 0 | C11: 0 | F11: 0 | G11: 0 | H11: 0 | I11: 0 | L11: 0 | M11: 0 | N11: 0 | Q11: 0 | R11: 0 | S11: 0 | V11: 0 | W11: 0 | X11: 0 | AA11: 0 | AB11: 0 | AC11: 0 | AF11: 0
A12: Product 7 | B12: 0 | C12: 0 | F12: 0 | G12: 0 | H12: 0 | I12: 0 | L12: 0 | M12: 0 | N12: 0 | Q12: 0 | R12: 0 | S12: 0 | V12: 0 | W12: 0 | X12: 0 | AA12: 0 | AB12: 0 | AC12: 0 | AF12: 0
A13: Product 8 | B13: 0 | C13: 0 | F13: 0 | G13: 0 | H13: 0 | I13: 0 | L13: 0 | M13: 0 | N13: 0 | Q13: 0 | R13: 0 | S13: 0 | V13: 0 | W13: 0 | X13: 0 | AA13: 0 | AB13: 0 | AC13: 0 | AF13: 0
A14: Product 9 | B14: 0 | C14: 0 | F14: 0 | G14: 0 | H14: 0 | I14: 0 | L14: 0 | M14: 0 | N14: 0 | Q14: 0 | R14: 0 | S14: 0 | V14: 0 | W14: 0 | X14: 0 | AA14: 0 | AB14: 0 | AC14: 0 | AF14: 0
A15: Product 10 | B15: 0 | C15: 0 | F15: 0 | G15: 0 | H15: 0 | I15: 0 | L15: 0 | M15: 0 | N15: 0 | Q15: 0 | R15: 0 | S15: 0 | V15: 0 | W15: 0 | X15: 0 | AA15: 0 | AB15: 0 | AC15: 0 | AF15: 0
A16: Rej 1 | B16: P0101300008 | C16: STB- 4SP, 150*150 Different lengths | F16: 6.423 | G16: 3 | H16: P0100700015 | I16: STB- 4SP (SSS) , 150*150*12 M (52 MW) | L16: 6.423 | M16: 0 | N16: 0 | Q16: 0 | R16: 0 | S16: 0 | V16: 0 | W16: 0 | X16: 0 | AA16: 0 | AB16: 0 | AC16: 0 | AF16: 0
A17: Rej 2 | B17: P0101300002 | C17: STB- 4SP, 130*130 Different lengths | F17: 0 | G17: 0 | H17: P0100700014 | I17: STB- 4SP (SSS) , 130*130*12 M ( 52 MW ) | L17: 0 | M17: 0 | N17: 0 | Q17: 0 | R17: 0 | S17: 0 | V17: 0 | W17: 0 | X17: 0 | AA17: 0 | AB17: 0 | AC17: 0 | AF17: 0
A18: Rej 3 | B18: P0101300002 | C18: STB- 4SP, 130*130 Different lengths | F18: 0 | G18: 0 | H18: P0100700001 | I18: STB- 4SP, 130*130*12 M ( 52 MW ) | L18: 0 | M18: 0 | N18: 0 | Q18: 0 | R18: 0 | S18: 0 | V18: 0 | W18: 0 | X18: 0 | AA18: 0 | AB18: 0 | AC18: 0 | AF18: 0
A19: Rej 4 | B19: 0 | C19: 0 | F19: 0 | G19: 0 | H19: 0 | I19: 0 | L19: 0 | M19: 0 | N19: 0 | Q19: 0 | R19: 0 | S19: 0 | V19: 0 | W19: 0 | X19: 0 | AA19: 0 | AB19: 0 | AC19: 0 | AF19: 0
A20: Rej 5 | B20: 0 | C20: 0 | F20: 0 | G20: 0 | H20: 0 | I20: 0 | L20: 0 | M20: 0 | N20: 0 | Q20: 0 | R20: 0 | S20: 0 | V20: 0 | W20: 0 | X20: 0 | AA20: 0 | AB20: 0 | AC20: 0 | AF20: 0
A21: Rej 6 | B21: 0 | C21: 0 | F21: 0 | G21: 0 | H21: 0 | I21: 0 | L21: 0 | M21: 0 | N21: 0 | Q21: 0 | R21: 0 | S21: 0 | V21: 0 | W21: 0 | X21: 0 | AA21: 0 | AB21: 0 | AC21: 0 | AF21: 0
A22: Rej 7 | B22: 0 | C22: 0 | F22: 0 | G22: 0 | H22: 0 | I22: 0 | L22: 0 | M22: 0 | N22: 0 | Q22: 0 | R22: 0 | S22: 0 | V22: 0 | W22: 0 | X22: 0 | AA22: 0 | AB22: 0 | AC22: 0 | AF22: 0
A23: Rej 8 | B23: 0 | C23: 0 | F23: 0 | G23: 0 | H23: 0 | I23: 0 | L23: 0 | M23: 0 | N23: 0 | Q23: 0 | R23: 0 | S23: 0 | V23: 0 | W23: 0 | X23: 0 | AA23: 0 | AB23: 0 | AC23: 0 | AF23: 0
A24: Rej 9 | B24: 0 | C24: 0 | F24: 0 | G24: 0 | H24: 0 | I24: 0 | L24: 0 | M24: 0 | N24: 0 | Q24: 0 | R24: 0 | S24: 0 | V24: 0 | W24: 0 | X24: 0 | AA24: 0 | AB24: 0 | AC24: 0 | AF24: 0
A25: Rej 10 | B25: 0 | C25: 0 | F25: 0 | G25: 0 | H25: 0 | I25: 0 | L25: 0 | M25: 0 | N25: 0 | Q25: 0 | R25: 0 | S25: 0 | V25: 0 | W25: 0 | X25: 0 | AA25: 0 | AB25: 0 | AC25: 0 | AF25: 0
A26: H&T&MR | B26: P0500600001 | C26: MISS ROLLED&HEAD&TAIL | F26: 31.33298369 | G26: 0 | H26: P0100700015 | I26: STB- 4SP (SSS) , 150*150*12 M (52 MW) | L26: 31.33298369 | M26: 0 | N26: 0 | Q26: 0 | R26: 0 | S26: 0 | V26: 0 | W26: 0 | X26: 0 | AA26: 0 | AB26: 0 | AC26: 0 | AF26: 0
A27: Shorts | B27: P0500400001 | C27: STR-SHORTS | F27: 19.37946468 | G27: 0 | H27: P0100700015 | I27: STB- 4SP (SSS) , 150*150*12 M (52 MW) | L27: 19.37946468 | M27: 0 | N27: 0 | Q27: 0 | R27: 0 | S27: 0 | V27: 0 | W27: 0 | X27: 0 | AA27: 0 | AB27: 0 | AC27: 0 | AF27: 0
A28: Cold Shear Cut | B28: P0500700001 | C28: COLD SHEAR CUT | F28: 9.787608423 | G28: 0 | H28: P0100700015 | I28: STB- 4SP (SSS) , 150*150*12 M (52 MW) | L28: 9.787608423 | M28: 0 | N28: 0 | Q28: 0 | R28: 0 | S28: 0 | V28: 0 | W28: 0 | X28: 0 | AA28: 0 | AB28: 0 | AC28: 0 | AF28: 0
A29: Suspended 1 | B29: P0501200001 | C29: STR- 10 MM, SUSPENDED & REJECTED | F29: 0 | G29: 0 | H29: P0100700015 | I29: STB- 4SP (SSS) , 150*150*12 M (52 MW) | L29: 0 | M29: 0 | N29: 0 | Q29: 0 | R29: 0 | S29: 0 | V29: 0 | W29: 0 | X29: 0 | AA29: 0 | AB29: 0 | AC29: 0 | AF29: 0
A30: Suspended 2 | B30: 0 | C30: 0 | F30: 0 | G30: 0 | H30: 0 | I30: 0 | L30: 0 | M30: 0 | N30: 0 | Q30: 0 | R30: 0 | S30: 0 | V30: 0 | W30: 0 | X30: 0 | AA30: 0 | AB30: 0 | AC30: 0 | AF30: 0
A31: Suspended 3 | B31: 0 | C31: 0 | F31: 0 | G31: 0 | H31: 0 | I31: 0 | L31: 0 | M31: 0 | N31: 0 | Q31: 0 | R31: 0 | S31: 0 | V31: 0 | W31: 0 | X31: 0 | AA31: 0 | AB31: 0 | AC31: 0 | AF31: 0
A32: Suspended 4 | B32: 0 | C32: 0 | F32: 0 | G32: 0 | H32: 0 | I32: 0 | L32: 0 | M32: 0 | N32: 0 | Q32: 0 | R32: 0 | S32: 0 | V32: 0 | W32: 0 | X32: 0 | AA32: 0 | AB32: 0 | AC32: 0 | AF32: 0
A33: Suspended 5 | B33: 0 | C33: 0 | F33: 0 | G33: 0 | H33: 0 | I33: 0 | L33: 0 | M33: 0 | N33: 0 | Q33: 0 | R33: 0 | S33: 0 | V33: 0 | W33: 0 | X33: 0 | AA33: 0 | AB33: 0 | AC33: 0 | AF33: 0
A34: Products | B34: =SUM(F6:F33) -> 1016.516826 | E34: Scales = | F34: =J34-B34 -> 13.304174 | G34: 2.202682481e-13 | I34: Consumption | J34: =SUM(L6:L33,Q6:Q33,V6:V33,AA6:AA33,AF6:AF33) -> 1029.821 | K34: 0
A35: RM 2
A36: Item | B36: Production | H36: Consumption 1 | M36: Consumption 2 | R36: Consumption 3 | W36: Consumption 4 | AB36: Consumption 5
B37: Code | C37: Description | F37: Ton | G37: Par | H37: Code | I37: Description | L37: Ton | M37: Code | N37: Description | Q37: Ton | R37: Code | S37: Description | V37: Ton | W37: Code | X37: Description | AA37: Ton | AB37: Code | AC37: Description | AF37: Ton
A38: Product 1 | B38: 0 | C38: 0 | F38: 0 | G38: 0 | H38: 0 | I38: 0 | L38: 0 | M38: 0 | N38: 0 | Q38: 0 | R38: 0 | S38: 0 | V38: 0 | W38: 0 | X38: 0 | AA38: 0 | AB38: 0 | AC38: 0 | AF38: 0
A39: Product 2 | B39: 0 | C39: 0 | F39: 0 | G39: 0 | H39: 0 | I39: 0 | L39: 0 | M39: 0 | N39: 0 | Q39: 0 | R39: 0 | S39: 0 | V39: 0 | W39: 0 | X39: 0 | AA39: 0 | AB39: 0 | AC39: 0 | AF39: 0
A40: Product 3 | B40: 0 | C40: 0 | F40: 0 | G40: 0 | H40: 0 | I40: 0 | L40: 0 | M40: 0 | N40: 0 | Q40: 0 | R40: 0 | S40: 0 | V40: 0 | W40: 0 | X40: 0 | AA40: 0 | AB40: 0 | AC40: 0 | AF40: 0
A41: Product 4 | B41: 0 | C41: 0 | F41: 0 | G41: 0 | H41: 0 | I41: 0 | L41: 0 | M41: 0 | N41: 0 | Q41: 0 | R41: 0 | S41: 0 | V41: 0 | W41: 0 | X41: 0 | AA41: 0 | AB41: 0 | AC41: 0 | AF41: 0
A42: Product 5 | B42: 0 | C42: 0 | F42: 0 | G42: 0 | H42: 0 | I42: 0 | L42: 0 | M42: 0 | N42: 0 | Q42: 0 | R42: 0 | S42: 0 | V42: 0 | W42: 0 | X42: 0 | AA42: 0 | AB42: 0 | AC42: 0 | AF42: 0
A43: Product 6 | B43: 0 | C43: 0 | F43: 0 | G43: 0 | H43: 0 | I43: 0 | L43: 0 | M43: 0 | N43: 0 | Q43: 0 | R43: 0 | S43: 0 | V43: 0 | W43: 0 | X43: 0 | AA43: 0 | AB43: 0 | AC43: 0 | AF43: 0
A44: Product 7 | B44: 0 | C44: 0 | F44: 0 | G44: 0 | H44: 0 | I44: 0 | L44: 0 | M44: 0 | N44: 0 | Q44: 0 | R44: 0 | S44: 0 | V44: 0 | W44: 0 | X44: 0 | AA44: 0 | AB44: 0 | AC44: 0 | AF44: 0
A45: Product 8 | B45: 0 | C45: 0 | F45: 0 | G45: 0 | H45: 0 | I45: 0 | L45: 0 | M45: 0 | N45: 0 | Q45: 0 | R45: 0 | S45: 0 | V45: 0 | W45: 0 | X45: 0 | AA45: 0 | AB45: 0 | AC45: 0 | AF45: 0
A46: Product 9 | B46: 0 | C46: 0 | F46: 0 | G46: 0 | H46: 0 | I46: 0 | L46: 0 | M46: 0 | N46: 0 | Q46: 0 | R46: 0 | S46: 0 | V46: 0 | W46: 0 | X46: 0 | AA46: 0 | AB46: 0 | AC46: 0 | AF46: 0
A47: Product 10 | B47: 0 | C47: 0 | F47: 0 | G47: 0 | H47: 0 | I47: 0 | L47: 0 | M47: 0 | N47: 0 | Q47: 0 | R47: 0 | S47: 0 | V47: 0 | W47: 0 | X47: 0 | AA47: 0 | AB47: 0 | AC47: 0 | AF47: 0
A48: Rej 1 | B48: 0 | C48: 0 | F48: 0 | G48: 0 | H48: 0 | I48: 0 | L48: 0 | M48: 0 | N48: 0 | Q48: 0 | R48: 0 | S48: 0 | V48: 0 | W48: 0 | X48: 0 | AA48: 0 | AB48: 0 | AC48: 0 | AF48: 0
A49: Rej 2 | B49: 0 | C49: 0 | F49: 0 | G49: 0 | H49: 0 | I49: 0 | L49: 0 | M49: 0 | N49: 0 | Q49: 0 | R49: 0 | S49: 0 | V49: 0 | W49: 0 | X49: 0 | AA49: 0 | AB49: 0 | AC49: 0 | AF49: 0
A50: Rej 3 | B50: 0 | C50: 0 | F50: 0 | G50: 0 | H50: 0 | I50: 0 | L50: 0 | M50: 0 | N50: 0 | Q50: 0 | R50: 0 | S50: 0 | V50: 0 | W50: 0 | X50: 0 | AA50: 0 | AB50: 0 | AC50: 0 | AF50: 0
A51: Rej 4 | B51: 0 | C51: 0 | F51: 0 | G51: 0 | H51: 0 | I51: 0 | L51: 0 | M51: 0 | N51: 0 | Q51: 0 | R51: 0 | S51: 0 | V51: 0 | W51: 0 | X51: 0 | AA51: 0 | AB51: 0 | AC51: 0 | AF51: 0
A52: Rej 5 | B52: 0 | C52: 0 | F52: 0 | G52: 0 | H52: 0 | I52: 0 | L52: 0 | M52: 0 | N52: 0 | Q52: 0 | R52: 0 | S52: 0 | V52: 0 | W52: 0 | X52: 0 | AA52: 0 | AB52: 0 | AC52: 0 | AF52: 0
A53: Rej 6 | B53: 0 | C53: 0 | F53: 0 | G53: 0 | H53: 0 | I53: 0 | L53: 0 | M53: 0 | N53: 0 | Q53: 0 | R53: 0 | S53: 0 | V53: 0 | W53: 0 | X53: 0 | AA53: 0 | AB53: 0 | AC53: 0 | AF53: 0
A54: Rej 7 | B54: 0 | C54: 0 | F54: 0 | G54: 0 | H54: 0 | I54: 0 | L54: 0 | M54: 0 | N54: 0 | Q54: 0 | R54: 0 | S54: 0 | V54: 0 | W54: 0 | X54: 0 | AA54: 0 | AB54: 0 | AC54: 0 | AF54: 0
A55: Rej 8 | B55: 0 | C55: 0 | F55: 0 | G55: 0 | H55: 0 | I55: 0 | L55: 0 | M55: 0 | N55: 0 | Q55: 0 | R55: 0 | S55: 0 | V55: 0 | W55: 0 | X55: 0 | AA55: 0 | AB55: 0 | AC55: 0 | AF55: 0
A56: Rej 9 | B56: 0 | C56: 0 | F56: 0 | G56: 0 | H56: 0 | I56: 0 | L56: 0 | M56: 0 | N56: 0 | Q56: 0 | R56: 0 | S56: 0 | V56: 0 | W56: 0 | X56: 0 | AA56: 0 | AB56: 0 | AC56: 0 | AF56: 0
A57: Rej 10 | B57: 0 | C57: 0 | F57: 0 | G57: 0 | H57: 0 | I57: 0 | L57: 0 | M57: 0 | N57: 0 | Q57: 0 | R57: 0 | S57: 0 | V57: 0 | W57: 0 | X57: 0 | AA57: 0 | AB57: 0 | AC57: 0 | AF57: 0
A58: H&T&MR | B58: 0 | C58: 0 | F58: 0 | G58: 0 | H58: 0 | I58: 0 | L58: 0 | M58: 0 | N58: 0 | Q58: 0 | R58: 0 | S58: 0 | V58: 0 | W58: 0 | X58: 0 | AA58: 0 | AB58: 0 | AC58: 0 | AF58: 0
A59: Trimming | B59: 0 | C59: 0 | F59: 0 | G59: 0 | H59: 0 | I59: 0 | L59: 0 | M59: 0 | N59: 0 | Q59: 0 | R59: 0 | S59: 0 | V59: 0 | W59: 0 | X59: 0 | AA59: 0 | AB59: 0 | AC59: 0 | AF59: 0
A60: Suspended 1 | B60: 0 | C60: 0 | F60: 0 | G60: 0 | H60: 0 | I60: 0 | L60: 0 | M60: 0 | N60: 0 | Q60: 0 | R60: 0 | S60: 0 | V60: 0 | W60: 0 | X60: 0 | AA60: 0 | AB60: 0 | AC60: 0 | AF60: 0
A61: Suspended 2 | B61: 0 | C61: 0 | F61: 0 | G61: 0 | H61: 0 | I61: 0 | L61: 0 | M61: 0 | N61: 0 | Q61: 0 | R61: 0 | S61: 0 | V61: 0 | W61: 0 | X61: 0 | AA61: 0 | AB61: 0 | AC61: 0 | AF61: 0
A62: Suspended 3 | B62: 0 | C62: 0 | F62: 0 | G62: 0 | H62: 0 | I62: 0 | L62: 0 | M62: 0 | N62: 0 | Q62: 0 | R62: 0 | S62: 0 | V62: 0 | W62: 0 | X62: 0 | AA62: 0 | AB62: 0 | AC62: 0 | AF62: 0
A63: Suspended 4 | B63: 0 | C63: 0 | F63: 0 | G63: 0 | H63: 0 | I63: 0 | L63: 0 | M63: 0 | N63: 0 | Q63: 0 | R63: 0 | S63: 0 | V63: 0 | W63: 0 | X63: 0 | AA63: 0 | AB63: 0 | AC63: 0 | AF63: 0
A64: Suspended 5 | B64: 0 | C64: 0 | F64: 0 | G64: 0 | H64: 0 | I64: 0 | L64: 0 | M64: 0 | N64: 0 | Q64: 0 | R64: 0 | S64: 0 | V64: 0 | W64: 0 | X64: 0 | AA64: 0 | AB64: 0 | AC64: 0 | AF64: 0
A65: Products | B65: =SUM(F37:F64) -> 0 | E65: Scales = | F65: =J65-B65 -> 0 | G65: 0 | I65: Consumption | J65: 0 | K65: 0

Sheet 11
A1: MACC PRD report | E1: Rolling Mill Plant
A2: Date: | C2: 11 | D2: March | E2: 2019
A3: RM 1
A4: Item | B4: Production | H4: Consumption 1 | M4: Consumption 2 | R4: Consumption 3 | W4: Consumption 4 | AB4: Consumption 5
B5: Code | C5: Description | F5: Ton | G5: Par | H5: Code | I5: Description | L5: Ton | M5: Code | N5: Description | Q5: Ton | R5: Code | S5: Description | V5: Ton | W5: Code | X5: Description | AA5: Ton | AB5: Code | AC5: Description | AF5: Ton
A6: Product 1 | B6: P0501300003 | C6: STR- B 500 BWR, 22 MM, 12 M | F6: 798.4981239 | G6: 395 | H6: P0100700015 | I6: STB- 4SP (SSS) , 150*150*12 M (52 MW) | L6: 812.585711 | M6: 0 | N6: 0 | Q6: 0 | R6: 0 | S6: 0 | V6: 0 | W6: 0 | X6: 0 | AA6: 0 | AB6: 0 | AC6: 0 | AF6: 0
A7: Product 2 | B7: P0501400003 | C7: STR- B 400 BWR, 22 MM, 12 M | F7: 63.25661386 | G7: 31 | H7: P0100700015 | I7: STB- 4SP (SSS) , 150*150*12 M (52 MW) | L7: 63.25661386 | M7: 0 | N7: 0 | Q7: 0 | R7: 0 | S7: 0 | V7: 0 | W7: 0 | X7: 0 | AA7: 0 | AB7: 0 | AC7: 0 | AF7: 0
A8: Product 3 | B8: P0501300009 | C8: STR- B 500 BWR, 10 MM, 12 M | F8: 128.5537637 | G8: 62 | H8: P0100700015 | I8: STB- 4SP (SSS) , 150*150*12 M (52 MW) | L8: 128.5537637 | M8: 0 | N8: 0 | Q8: 0 | R8: 0 | S8: 0 | V8: 0 | W8: 0 | X8: 0 | AA8: 0 | AB8: 0 | AC8: 0 | AF8: 0
A9: Product 4 | B9: 0 | C9: 0 | F9: 0 | G9: 0 | H9: 0 | I9: 0 | L9: 0 | M9: 0 | N9: 0 | Q9: 0 | R9: 0 | S9: 0 | V9: 0 | W9: 0 | X9: 0 | AA9: 0 | AB9: 0 | AC9: 0 | AF9: 0
A10: Product 5 | B10: 0 | C10: 0 | F10: 0 | G10: 0 | H10: 0 | I10: 0 | L10: 0 | M10: 0 | N10: 0 | Q10: 0 | R10: 0 | S10: 0 | V10: 0 | W10: 0 | X10: 0 | AA10: 0 | AB10: 0 | AC10: 0 | AF10: 0
A11: Product 6 | B11: 0 | C11: 0 | F11: 0 | G11: 0 | H11: 0 | I11: 0 | L11: 0 | M11: 0 | N11: 0 | Q11: 0 | R11: 0 | S11: 0 | V11: 0 | W11: 0 | X11: 0 | AA11: 0 | AB11: 0 | AC11: 0 | AF11: 0
A12: Product 7 | B12: 0 | C12: 0 | F12: 0 | G12: 0 | H12: 0 | I12: 0 | L12: 0 | M12: 0 | N12: 0 | Q12: 0 | R12: 0 | S12: 0 | V12: 0 | W12: 0 | X12: 0 | AA12: 0 | AB12: 0 | AC12: 0 | AF12: 0
A13: Product 8 | B13: 0 | C13: 0 | F13: 0 | G13: 0 | H13: 0 | I13: 0 | L13: 0 | M13: 0 | N13: 0 | Q13: 0 | R13: 0 | S13: 0 | V13: 0 | W13: 0 | X13: 0 | AA13: 0 | AB13: 0 | AC13: 0 | AF13: 0
A14: Product 9 | B14: 0 | C14: 0 | F14: 0 | G14: 0 | H14: 0 | I14: 0 | L14: 0 | M14: 0 | N14: 0 | Q14: 0 | R14: 0 | S14: 0 | V14: 0 | W14: 0 | X14: 0 | AA14: 0 | AB14: 0 | AC14: 0 | AF14: 0
A15: Product 10 | B15: 0 | C15: 0 | F15: 0 | G15: 0 | H15: 0 | I15: 0 | L15: 0 | M15: 0 | N15: 0 | Q15: 0 | R15: 0 | S15: 0 | V15: 0 | W15: 0 | X15: 0 | AA15: 0 | AB15: 0 | AC15: 0 | AF15: 0
A16: Rej 1 | B16: P0101300008 | C16: STB- 4SP, 150*150 Different lengths | F16: 2.141621622 | G16: 1 | H16: P0100700015 | I16: STB- 4SP (SSS) , 150*150*12 M (52 MW) | L16: 2.141621622 | M16: 0 | N16: 0 | Q16: 0 | R16: 0 | S16: 0 | V16: 0 | W16: 0 | X16: 0 | AA16: 0 | AB16: 0 | AC16: 0 | AF16: 0
A17: Rej 2 | B17: P0101300002 | C17: STB- 4SP, 130*130 Different lengths | F17: 0 | G17: 0 | H17: P0100700014 | I17: STB- 4SP (SSS) , 130*130*12 M ( 52 MW ) | L17: 0 | M17: 0 | N17: 0 | Q17: 0 | R17: 0 | S17: 0 | V17: 0 | W17: 0 | X17: 0 | AA17: 0 | AB17: 0 | AC17: 0 | AF17: 0
A18: Rej 3 | B18: P0101300002 | C18: STB- 4SP, 130*130 Different lengths | F18: 0 | G18: 0 | H18: P0100700001 | I18: STB- 4SP, 130*130*12 M ( 52 MW ) | L18: 0 | M18: 0 | N18: 0 | Q18: 0 | R18: 0 | S18: 0 | V18: 0 | W18: 0 | X18: 0 | AA18: 0 | AB18: 0 | AC18: 0 | AF18: 0
A19: Rej 4 | B19: 0 | C19: 0 | F19: 0 | G19: 0 | H19: 0 | I19: 0 | L19: 0 | M19: 0 | N19: 0 | Q19: 0 | R19: 0 | S19: 0 | V19: 0 | W19: 0 | X19: 0 | AA19: 0 | AB19: 0 | AC19: 0 | AF19: 0
A20: Rej 5 | B20: 0 | C20: 0 | F20: 0 | G20: 0 | H20: 0 | I20: 0 | L20: 0 | M20: 0 | N20: 0 | Q20: 0 | R20: 0 | S20: 0 | V20: 0 | W20: 0 | X20: 0 | AA20: 0 | AB20: 0 | AC20: 0 | AF20: 0
A21: Rej 6 | B21: 0 | C21: 0 | F21: 0 | G21: 0 | H21: 0 | I21: 0 | L21: 0 | M21: 0 | N21: 0 | Q21: 0 | R21: 0 | S21: 0 | V21: 0 | W21: 0 | X21: 0 | AA21: 0 | AB21: 0 | AC21: 0 | AF21: 0
A22: Rej 7 | B22: 0 | C22: 0 | F22: 0 | G22: 0 | H22: 0 | I22: 0 | L22: 0 | M22: 0 | N22: 0 | Q22: 0 | R22: 0 | S22: 0 | V22: 0 | W22: 0 | X22: 0 | AA22: 0 | AB22: 0 | AC22: 0 | AF22: 0
A23: Rej 8 | B23: 0 | C23: 0 | F23: 0 | G23: 0 | H23: 0 | I23: 0 | L23: 0 | M23: 0 | N23: 0 | Q23: 0 | R23: 0 | S23: 0 | V23: 0 | W23: 0 | X23: 0 | AA23: 0 | AB23: 0 | AC23: 0 | AF23: 0
A24: Rej 9 | B24: 0 | C24: 0 | F24: 0 | G24: 0 | H24: 0 | I24: 0 | L24: 0 | M24: 0 | N24: 0 | Q24: 0 | R24: 0 | S24: 0 | V24: 0 | W24: 0 | X24: 0 | AA24: 0 | AB24: 0 | AC24: 0 | AF24: 0
A25: Rej 10 | B25: 0 | C25: 0 | F25: 0 | G25: 0 | H25: 0 | I25: 0 | L25: 0 | M25: 0 | N25: 0 | Q25: 0 | R25: 0 | S25: 0 | V25: 0 | W25: 0 | X25: 0 | AA25: 0 | AB25: 0 | AC25: 0 | AF25: 0
A26: H&T&MR | B26: P0500600001 | C26: MISS ROLLED&HEAD&TAIL | F26: 15.86392296 | G26: 0 | H26: P0100700015 | I26: STB- 4SP (SSS) , 150*150*12 M (52 MW) | L26: 15.86392296 | M26: 0 | N26: 0 | Q26: 0 | R26: 0 | S26: 0 | V26: 0 | W26: 0 | X26: 0 | AA26: 0 | AB26: 0 | AC26: 0 | AF26: 0
A27: Shorts | B27: P0500400001 | C27: STR-SHORTS | F27: 20.86343881 | G27: 0 | H27: P0100700015 | I27: STB- 4SP (SSS) , 150*150*12 M (52 MW) | L27: 20.86343881 | M27: 0 | N27: 0 | Q27: 0 | R27: 0 | S27: 0 | V27: 0 | W27: 0 | X27: 0 | AA27: 0 | AB27: 0 | AC27: 0 | AF27: 0
A28: Cold Shear Cut | B28: P0500700001 | C28: COLD SHEAR CUT | F28: 10.53709031 | G28: 0 | H28: P0100700015 | I28: STB- 4SP (SSS) , 150*150*12 M (52 MW) | L28: 10.53709031 | M28: 0 | N28: 0 | Q28: 0 | R28: 0 | S28: 0 | V28: 0 | W28: 0 | X28: 0 | AA28: 0 | AB28: 0 | AC28: 0 | AF28: 0
A29: Suspended 1 | B29: P0501200007 | C29: STR- 22 MM, SUSPENDED & REJECTED | F29: 32 | G29: 16 | H29: P0100700015 | I29: STB- 4SP (SSS) , 150*150*12 M (52 MW) | L29: 32 | M29: 0 | N29: 0 | Q29: 0 | R29: 0 | S29: 0 | V29: 0 | W29: 0 | X29: 0 | AA29: 0 | AB29: 0 | AC29: 0 | AF29: 0
A30: Suspended 2 | B30: 0 | C30: 0 | F30: 0 | G30: 0 | H30: 0 | I30: 0 | L30: 0 | M30: 0 | N30: 0 | Q30: 0 | R30: 0 | S30: 0 | V30: 0 | W30: 0 | X30: 0 | AA30: 0 | AB30: 0 | AC30: 0 | AF30: 0
A31: Suspended 3 | B31: 0 | C31: 0 | F31: 0 | G31: 0 | H31: 0 | I31: 0 | L31: 0 | M31: 0 | N31: 0 | Q31: 0 | R31: 0 | S31: 0 | V31: 0 | W31: 0 | X31: 0 | AA31: 0 | AB31: 0 | AC31: 0 | AF31: 0
A32: Suspended 4 | B32: 0 | C32: 0 | F32: 0 | G32: 0 | H32: 0 | I32: 0 | L32: 0 | M32: 0 | N32: 0 | Q32: 0 | R32: 0 | S32: 0 | V32: 0 | W32: 0 | X32: 0 | AA32: 0 | AB32: 0 | AC32: 0 | AF32: 0
A33: Suspended 5 | B33: 0 | C33: 0 | F33: 0 | G33: 0 | H33: 0 | I33: 0 | L33: 0 | M33: 0 | N33: 0 | Q33: 0 | R33: 0 | S33: 0 | V33: 0 | W33: 0 | X33: 0 | AA33: 0 | AB33: 0 | AC33: 0 | AF33: 0
A34: Products | B34: =SUM(F6:F33) -> 1071.714575 | E34: Scales = | F34: =J34-B34 -> 14.08758703 | G34: 2.202682481e-13 | I34: Consumption | J34: =SUM(L6:L33,Q6:Q33,V6:V33,AA6:AA33,AF6:AF33) -> 1085.802162 | K34: 0
A35: RM 2
A36: Item | B36: Production | H36: Consumption 1 | M36: Consumption 2 | R36: Consumption 3 | W36: Consumption 4 | AB36: Consumption 5
B37: Code | C37: Description | F37: Ton | G37: Par | H37: Code | I37: Description | L37: Ton | M37: Code | N37: Description | Q37: Ton | R37: Code | S37: Description | V37: Ton | W37: Code | X37: Description | AA37: Ton | AB37: Code | AC37: Description | AF37: Ton
A38: Product 1 | B38: 0 | C38: 0 | F38: 0 | G38: 0 | H38: 0 | I38: 0 | L38: 0 | M38: 0 | N38: 0 | Q38: 0 | R38: 0 | S38: 0 | V38: 0 | W38: 0 | X38: 0 | AA38: 0 | AB38: 0 | AC38: 0 | AF38: 0
A39: Product 2 | B39: 0 | C39: 0 | F39: 0 | G39: 0 | H39: 0 | I39: 0 | L39: 0 | M39: 0 | N39: 0 | Q39: 0 | R39: 0 | S39: 0 | V39: 0 | W39: 0 | X39: 0 | AA39: 0 | AB39: 0 | AC39: 0 | AF39: 0
A40: Product 3 | B40: 0 | C40: 0 | F40: 0 | G40: 0 | H40: 0 | I40: 0 | L40: 0 | M40: 0 | N40: 0 | Q40: 0 | R40: 0 | S40: 0 | V40: 0 | W40: 0 | X40: 0 | AA40: 0 | AB40: 0 | AC40: 0 | AF40: 0
A41: Product 4 | B41: 0 | C41: 0 | F41: 0 | G41: 0 | H41: 0 | I41: 0 | L41: 0 | M41: 0 | N41: 0 | Q41: 0 | R41: 0 | S41: 0 | V41: 0 | W41: 0 | X41: 0 | AA41: 0 | AB41: 0 | AC41: 0 | AF41: 0
A42: Product 5 | B42: 0 | C42: 0 | F42: 0 | G42: 0 | H42: 0 | I42: 0 | L42: 0 | M42: 0 | N42: 0 | Q42: 0 | R42: 0 | S42: 0 | V42: 0 | W42: 0 | X42: 0 | AA42: 0 | AB42: 0 | AC42: 0 | AF42: 0
A43: Product 6 | B43: 0 | C43: 0 | F43: 0 | G43: 0 | H43: 0 | I43: 0 | L43: 0 | M43: 0 | N43: 0 | Q43: 0 | R43: 0 | S43: 0 | V43: 0 | W43: 0 | X43: 0 | AA43: 0 | AB43: 0 | AC43: 0 | AF43: 0
A44: Product 7 | B44: 0 | C44: 0 | F44: 0 | G44: 0 | H44: 0 | I44: 0 | L44: 0 | M44: 0 | N44: 0 | Q44: 0 | R44: 0 | S44: 0 | V44: 0 | W44: 0 | X44: 0 | AA44: 0 | AB44: 0 | AC44: 0 | AF44: 0
A45: Product 8 | B45: 0 | C45: 0 | F45: 0 | G45: 0 | H45: 0 | I45: 0 | L45: 0 | M45: 0 | N45: 0 | Q45: 0 | R45: 0 | S45: 0 | V45: 0 | W45: 0 | X45: 0 | AA45: 0 | AB45: 0 | AC45: 0 | AF45: 0
A46: Product 9 | B46: 0 | C46: 0 | F46: 0 | G46: 0 | H46: 0 | I46: 0 | L46: 0 | M46: 0 | N46: 0 | Q46: 0 | R46: 0 | S46: 0 | V46: 0 | W46: 0 | X46: 0 | AA46: 0 | AB46: 0 | AC46: 0 | AF46: 0
A47: Product 10 | B47: 0 | C47: 0 | F47: 0 | G47: 0 | H47: 0 | I47: 0 | L47: 0 | M47: 0 | N47: 0 | Q47: 0 | R47: 0 | S47: 0 | V47: 0 | W47: 0 | X47: 0 | AA47: 0 | AB47: 0 | AC47: 0 | AF47: 0
A48: Rej 1 | B48: 0 | C48: 0 | F48: 0 | G48: 0 | H48: 0 | I48: 0 | L48: 0 | M48: 0 | N48: 0 | Q48: 0 | R48: 0 | S48: 0 | V48: 0 | W48: 0 | X48: 0 | AA48: 0 | AB48: 0 | AC48: 0 | AF48: 0
A49: Rej 2 | B49: 0 | C49: 0 | F49: 0 | G49: 0 | H49: 0 | I49: 0 | L49: 0 | M49: 0 | N49: 0 | Q49: 0 | R49: 0 | S49: 0 | V49: 0 | W49: 0 | X49: 0 | AA49: 0 | AB49: 0 | AC49: 0 | AF49: 0
A50: Rej 3 | B50: 0 | C50: 0 | F50: 0 | G50: 0 | H50: 0 | I50: 0 | L50: 0 | M50: 0 | N50: 0 | Q50: 0 | R50: 0 | S50: 0 | V50: 0 | W50: 0 | X50: 0 | AA50: 0 | AB50: 0 | AC50: 0 | AF50: 0
A51: Rej 4 | B51: 0 | C51: 0 | F51: 0 | G51: 0 | H51: 0 | I51: 0 | L51: 0 | M51: 0 | N51: 0 | Q51: 0 | R51: 0 | S51: 0 | V51: 0 | W51: 0 | X51: 0 | AA51: 0 | AB51: 0 | AC51: 0 | AF51: 0
A52: Rej 5 | B52: 0 | C52: 0 | F52: 0 | G52: 0 | H52: 0 | I52: 0 | L52: 0 | M52: 0 | N52: 0 | Q52: 0 | R52: 0 | S52: 0 | V52: 0 | W52: 0 | X52: 0 | AA52: 0 | AB52: 0 | AC52: 0 | AF52: 0
A53: Rej 6 | B53: 0 | C53: 0 | F53: 0 | G53: 0 | H53: 0 | I53: 0 | L53: 0 | M53: 0 | N53: 0 | Q53: 0 | R53: 0 | S53: 0 | V53: 0 | W53: 0 | X53: 0 | AA53: 0 | AB53: 0 | AC53: 0 | AF53: 0
A54: Rej 7 | B54: 0 | C54: 0 | F54: 0 | G54: 0 | H54: 0 | I54: 0 | L54: 0 | M54: 0 | N54: 0 | Q54: 0 | R54: 0 | S54: 0 | V54: 0 | W54: 0 | X54: 0 | AA54: 0 | AB54: 0 | AC54: 0 | AF54: 0
A55: Rej 8 | B55: 0 | C55: 0 | F55: 0 | G55: 0 | H55: 0 | I55: 0 | L55: 0 | M55: 0 | N55: 0 | Q55: 0 | R55: 0 | S55: 0 | V55: 0 | W55: 0 | X55: 0 | AA55: 0 | AB55: 0 | AC55: 0 | AF55: 0
A56: Rej 9 | B56: 0 | C56: 0 | F56: 0 | G56: 0 | H56: 0 | I56: 0 | L56: 0 | M56: 0 | N56: 0 | Q56: 0 | R56: 0 | S56: 0 | V56: 0 | W56: 0 | X56: 0 | AA56: 0 | AB56: 0 | AC56: 0 | AF56: 0
A57: Rej 10 | B57: 0 | C57: 0 | F57: 0 | G57: 0 | H57: 0 | I57: 0 | L57: 0 | M57: 0 | N57: 0 | Q57: 0 | R57: 0 | S57: 0 | V57: 0 | W57: 0 | X57: 0 | AA57: 0 | AB57: 0 | AC57: 0 | AF57: 0
A58: H&T&MR | B58: 0 | C58: 0 | F58: 0 | G58: 0 | H58: 0 | I58: 0 | L58: 0 | M58: 0 | N58: 0 | Q58: 0 | R58: 0 | S58: 0 | V58: 0 | W58: 0 | X58: 0 | AA58: 0 | AB58: 0 | AC58: 0 | AF58: 0
A59: Trimming | B59: 0 | C59: 0 | F59: 0 | G59: 0 | H59: 0 | I59: 0 | L59: 0 | M59: 0 | N59: 0 | Q59: 0 | R59: 0 | S59: 0 | V59: 0 | W59: 0 | X59: 0 | AA59: 0 | AB59: 0 | AC59: 0 | AF59: 0
A60: Suspended 1 | B60: 0 | C60: 0 | F60: 0 | G60: 0 | H60: 0 | I60: 0 | L60: 0 | M60: 0 | N60: 0 | Q60: 0 | R60: 0 | S60: 0 | V60: 0 | W60: 0 | X60: 0 | AA60: 0 | AB60: 0 | AC60: 0 | AF60: 0
A61: Suspended 2 | B61: 0 | C61: 0 | F61: 0 | G61: 0 | H61: 0 | I61: 0 | L61: 0 | M61: 0 | N61: 0 | Q61: 0 | R61: 0 | S61: 0 | V61: 0 | W61: 0 | X61: 0 | AA61: 0 | AB61: 0 | AC61: 0 | AF61: 0
A62: Suspended 3 | B62: 0 | C62: 0 | F62: 0 | G62: 0 | H62: 0 | I62: 0 | L62: 0 | M62: 0 | N62: 0 | Q62: 0 | R62: 0 | S62: 0 | V62: 0 | W62: 0 | X62: 0 | AA62: 0 | AB62: 0 | AC62: 0 | AF62: 0
A63: Suspended 4 | B63: 0 | C63: 0 | F63: 0 | G63: 0 | H63: 0 | I63: 0 | L63: 0 | M63: 0 | N63: 0 | Q63: 0 | R63: 0 | S63: 0 | V63: 0 | W63: 0 | X63: 0 | AA63: 0 | AB63: 0 | AC63: 0 | AF63: 0
A64: Suspended 5 | B64: 0 | C64: 0 | F64: 0 | G64: 0 | H64: 0 | I64: 0 | L64: 0 | M64: 0 | N64: 0 | Q64: 0 | R64: 0 | S64: 0 | V64: 0 | W64: 0 | X64: 0 | AA64: 0 | AB64: 0 | AC64: 0 | AF64: 0
A65: Products | B65: =SUM(F37:F64) -> 0 | E65: Scales = | F65: =J65-B65 -> 0 | G65: 0 | I65: Consumption | J65: 0 | K65: 0

Sheet 12
A1: MACC PRD report | E1: Rolling Mill Plant
A2: Date: | C2: 12 | D2: March | E2: 2019
A3: RM 1
A4: Item | B4: Production | H4: Consumption 1 | M4: Consumption 2 | R4: Consumption 3 | W4: Consumption 4 | AB4: Consumption 5
B5: Code | C5: Description | F5: Ton | G5: Par | H5: Code | I5: Description | L5: Ton | M5: Code | N5: Description | Q5: Ton | R5: Code | S5: Description | V5: Ton | W5: Code | X5: Description | AA5: Ton | AB5: Code | AC5: Description | AF5: Ton
A6: Product 1 | B6: P0501300003 | C6: STR- B 500 BWR, 22 MM, 12 M | F6: 1478.396828 | G6: 727 | H6: P0100700015 | I6: STB- 4SP (SSS) , 150*150*12 M (52 MW) | L6: 1497.938243 | M6: 0 | N6: 0 | Q6: 0 | R6: 0 | S6: 0 | V6: 0 | W6: 0 | X6: 0 | AA6: 0 | AB6: 0 | AC6: 0 | AF6: 0
A7: Product 2 | B7: new code | C7: STR- B 500 C-R, 22 MM, 12 M | F7: 18.31973513 | G7: 9 | H7: P0100200007 | I7: STB- 5 SP, 150*150*12 M ( ST 52 ) | L7: 19.22727273 | M7: 0 | N7: 0 | Q7: 0 | R7: 0 | S7: 0 | V7: 0 | W7: 0 | X7: 0 | AA7: 0 | AB7: 0 | AC7: 0 | AF7: 0
A8: Product 3 | B8: 0 | C8: 0 | F8: 0 | G8: 0 | H8: 0 | I8: 0 | L8: 0 | M8: 0 | N8: 0 | Q8: 0 | R8: 0 | S8: 0 | V8: 0 | W8: 0 | X8: 0 | AA8: 0 | AB8: 0 | AC8: 0 | AF8: 0
A9: Product 4 | B9: 0 | C9: 0 | F9: 0 | G9: 0 | H9: 0 | I9: 0 | L9: 0 | M9: 0 | N9: 0 | Q9: 0 | R9: 0 | S9: 0 | V9: 0 | W9: 0 | X9: 0 | AA9: 0 | AB9: 0 | AC9: 0 | AF9: 0
A10: Product 5 | B10: 0 | C10: 0 | F10: 0 | G10: 0 | H10: 0 | I10: 0 | L10: 0 | M10: 0 | N10: 0 | Q10: 0 | R10: 0 | S10: 0 | V10: 0 | W10: 0 | X10: 0 | AA10: 0 | AB10: 0 | AC10: 0 | AF10: 0
A11: Product 6 | B11: 0 | C11: 0 | F11: 0 | G11: 0 | H11: 0 | I11: 0 | L11: 0 | M11: 0 | N11: 0 | Q11: 0 | R11: 0 | S11: 0 | V11: 0 | W11: 0 | X11: 0 | AA11: 0 | AB11: 0 | AC11: 0 | AF11: 0
A12: Product 7 | B12: 0 | C12: 0 | F12: 0 | G12: 0 | H12: 0 | I12: 0 | L12: 0 | M12: 0 | N12: 0 | Q12: 0 | R12: 0 | S12: 0 | V12: 0 | W12: 0 | X12: 0 | AA12: 0 | AB12: 0 | AC12: 0 | AF12: 0
A13: Product 8 | B13: 0 | C13: 0 | F13: 0 | G13: 0 | H13: 0 | I13: 0 | L13: 0 | M13: 0 | N13: 0 | Q13: 0 | R13: 0 | S13: 0 | V13: 0 | W13: 0 | X13: 0 | AA13: 0 | AB13: 0 | AC13: 0 | AF13: 0
A14: Product 9 | B14: 0 | C14: 0 | F14: 0 | G14: 0 | H14: 0 | I14: 0 | L14: 0 | M14: 0 | N14: 0 | Q14: 0 | R14: 0 | S14: 0 | V14: 0 | W14: 0 | X14: 0 | AA14: 0 | AB14: 0 | AC14: 0 | AF14: 0
A15: Product 10 | B15: 0 | C15: 0 | F15: 0 | G15: 0 | H15: 0 | I15: 0 | L15: 0 | M15: 0 | N15: 0 | Q15: 0 | R15: 0 | S15: 0 | V15: 0 | W15: 0 | X15: 0 | AA15: 0 | AB15: 0 | AC15: 0 | AF15: 0
A16: Rej 1 | B16: P0101300008 | C16: STB- 4SP, 150*150 Different lengths | F16: 0 | G16: 0 | H16: P0100700015 | I16: STB- 4SP (SSS) , 150*150*12 M (52 MW) | L16: 0 | M16: 0 | N16: 0 | Q16: 0 | R16: 0 | S16: 0 | V16: 0 | W16: 0 | X16: 0 | AA16: 0 | AB16: 0 | AC16: 0 | AF16: 0
A17: Rej 2 | B17: P0101300002 | C17: STB- 4SP, 130*130 Different lengths | F17: 0 | G17: 0 | H17: P0100700014 | I17: STB- 4SP (SSS) , 130*130*12 M ( 52 MW ) | L17: 0 | M17: 0 | N17: 0 | Q17: 0 | R17: 0 | S17: 0 | V17: 0 | W17: 0 | X17: 0 | AA17: 0 | AB17: 0 | AC17: 0 | AF17: 0
A18: Rej 3 | B18: P0101300002 | C18: STB- 4SP, 130*130 Different lengths | F18: 0 | G18: 0 | H18: P0100700001 | I18: STB- 4SP, 130*130*12 M ( 52 MW ) | L18: 0 | M18: 0 | N18: 0 | Q18: 0 | R18: 0 | S18: 0 | V18: 0 | W18: 0 | X18: 0 | AA18: 0 | AB18: 0 | AC18: 0 | AF18: 0
A19: Rej 4 | B19: 0 | C19: 0 | F19: 0 | G19: 0 | H19: 0 | I19: 0 | L19: 0 | M19: 0 | N19: 0 | Q19: 0 | R19: 0 | S19: 0 | V19: 0 | W19: 0 | X19: 0 | AA19: 0 | AB19: 0 | AC19: 0 | AF19: 0
A20: Rej 5 | B20: 0 | C20: 0 | F20: 0 | G20: 0 | H20: 0 | I20: 0 | L20: 0 | M20: 0 | N20: 0 | Q20: 0 | R20: 0 | S20: 0 | V20: 0 | W20: 0 | X20: 0 | AA20: 0 | AB20: 0 | AC20: 0 | AF20: 0
A21: Rej 6 | B21: 0 | C21: 0 | F21: 0 | G21: 0 | H21: 0 | I21: 0 | L21: 0 | M21: 0 | N21: 0 | Q21: 0 | R21: 0 | S21: 0 | V21: 0 | W21: 0 | X21: 0 | AA21: 0 | AB21: 0 | AC21: 0 | AF21: 0
A22: Rej 7 | B22: 0 | C22: 0 | F22: 0 | G22: 0 | H22: 0 | I22: 0 | L22: 0 | M22: 0 | N22: 0 | Q22: 0 | R22: 0 | S22: 0 | V22: 0 | W22: 0 | X22: 0 | AA22: 0 | AB22: 0 | AC22: 0 | AF22: 0
A23: Rej 8 | B23: 0 | C23: 0 | F23: 0 | G23: 0 | H23: 0 | I23: 0 | L23: 0 | M23: 0 | N23: 0 | Q23: 0 | R23: 0 | S23: 0 | V23: 0 | W23: 0 | X23: 0 | AA23: 0 | AB23: 0 | AC23: 0 | AF23: 0
A24: Rej 9 | B24: 0 | C24: 0 | F24: 0 | G24: 0 | H24: 0 | I24: 0 | L24: 0 | M24: 0 | N24: 0 | Q24: 0 | R24: 0 | S24: 0 | V24: 0 | W24: 0 | X24: 0 | AA24: 0 | AB24: 0 | AC24: 0 | AF24: 0
A25: Rej 10 | B25: 0 | C25: 0 | F25: 0 | G25: 0 | H25: 0 | I25: 0 | L25: 0 | M25: 0 | N25: 0 | Q25: 0 | R25: 0 | S25: 0 | V25: 0 | W25: 0 | X25: 0 | AA25: 0 | AB25: 0 | AC25: 0 | AF25: 0
A26: H&T&MR | B26: P0500600001 | C26: MISS ROLLED&HEAD&TAIL | F26: 9.858756819 | G26: 0 | H26: P0100700015 | I26: STB- 4SP (SSS) , 150*150*12 M (52 MW) | L26: 9.858756819 | M26: 0 | N26: 0 | Q26: 0 | R26: 0 | S26: 0 | V26: 0 | W26: 0 | X26: 0 | AA26: 0 | AB26: 0 | AC26: 0 | AF26: 0
A27: Shorts | B27: P0500400001 | C27: STR-SHORTS | F27: 30.54523597 | G27: 0 | H27: P0100700015 | I27: STB- 4SP (SSS) , 150*150*12 M (52 MW) | L27: 30.54523597 | M27: 0 | N27: 0 | Q27: 0 | R27: 0 | S27: 0 | V27: 0 | W27: 0 | X27: 0 | AA27: 0 | AB27: 0 | AC27: 0 | AF27: 0
A28: Cold Shear Cut | B28: P0500700001 | C28: COLD SHEAR CUT | F28: 15.42688686 | G28: 0 | H28: P0100700015 | I28: STB- 4SP (SSS) , 150*150*12 M (52 MW) | L28: 15.42688686 | M28: 0 | N28: 0 | Q28: 0 | R28: 0 | S28: 0 | V28: 0 | W28: 0 | X28: 0 | AA28: 0 | AB28: 0 | AC28: 0 | AF28: 0
A29: Suspended 1 | B29: P0501200007 | C29: STR- 22 MM, SUSPENDED & REJECTED | F29: 0 | G29: 0 | H29: P0100700015 | I29: STB- 4SP (SSS) , 150*150*12 M (52 MW) | L29: 0 | M29: 0 | N29: 0 | Q29: 0 | R29: 0 | S29: 0 | V29: 0 | W29: 0 | X29: 0 | AA29: 0 | AB29: 0 | AC29: 0 | AF29: 0
A30: Suspended 2 | B30: 0 | C30: 0 | F30: 0 | G30: 0 | H30: 0 | I30: 0 | L30: 0 | M30: 0 | N30: 0 | Q30: 0 | R30: 0 | S30: 0 | V30: 0 | W30: 0 | X30: 0 | AA30: 0 | AB30: 0 | AC30: 0 | AF30: 0
A31: Suspended 3 | B31: 0 | C31: 0 | F31: 0 | G31: 0 | H31: 0 | I31: 0 | L31: 0 | M31: 0 | N31: 0 | Q31: 0 | R31: 0 | S31: 0 | V31: 0 | W31: 0 | X31: 0 | AA31: 0 | AB31: 0 | AC31: 0 | AF31: 0
A32: Suspended 4 | B32: 0 | C32: 0 | F32: 0 | G32: 0 | H32: 0 | I32: 0 | L32: 0 | M32: 0 | N32: 0 | Q32: 0 | R32: 0 | S32: 0 | V32: 0 | W32: 0 | X32: 0 | AA32: 0 | AB32: 0 | AC32: 0 | AF32: 0
A33: Suspended 5 | B33: 0 | C33: 0 | F33: 0 | G33: 0 | H33: 0 | I33: 0 | L33: 0 | M33: 0 | N33: 0 | Q33: 0 | R33: 0 | S33: 0 | V33: 0 | W33: 0 | X33: 0 | AA33: 0 | AB33: 0 | AC33: 0 | AF33: 0
A34: Products | B34: =SUM(F6:F33) -> 1552.547442 | E34: Scales = | F34: =J34-B34 -> 20.44895314 | G34: 2.202682481e-13 | I34: Consumption | J34: =SUM(L6:L33,Q6:Q33,V6:V33,AA6:AA33,AF6:AF33) -> 1572.996396 | K34: 0
A35: RM 2
A36: Item | B36: Production | H36: Consumption 1 | M36: Consumption 2 | R36: Consumption 3 | W36: Consumption 4 | AB36: Consumption 5
B37: Code | C37: Description | F37: Ton | G37: Par | H37: Code | I37: Description | L37: Ton | M37: Code | N37: Description | Q37: Ton | R37: Code | S37: Description | V37: Ton | W37: Code | X37: Description | AA37: Ton | AB37: Code | AC37: Description | AF37: Ton
A38: Product 1 | B38: 0 | C38: 0 | F38: 0 | G38: 0 | H38: 0 | I38: 0 | L38: 0 | M38: 0 | N38: 0 | Q38: 0 | R38: 0 | S38: 0 | V38: 0 | W38: 0 | X38: 0 | AA38: 0 | AB38: 0 | AC38: 0 | AF38: 0
A39: Product 2 | B39: 0 | C39: 0 | F39: 0 | G39: 0 | H39: 0 | I39: 0 | L39: 0 | M39: 0 | N39: 0 | Q39: 0 | R39: 0 | S39: 0 | V39: 0 | W39: 0 | X39: 0 | AA39: 0 | AB39: 0 | AC39: 0 | AF39: 0
A40: Product 3 | B40: 0 | C40: 0 | F40: 0 | G40: 0 | H40: 0 | I40: 0 | L40: 0 | M40: 0 | N40: 0 | Q40: 0 | R40: 0 | S40: 0 | V40: 0 | W40: 0 | X40: 0 | AA40: 0 | AB40: 0 | AC40: 0 | AF40: 0
A41: Product 4 | B41: 0 | C41: 0 | F41: 0 | G41: 0 | H41: 0 | I41: 0 | L41: 0 | M41: 0 | N41: 0 | Q41: 0 | R41: 0 | S41: 0 | V41: 0 | W41: 0 | X41: 0 | AA41: 0 | AB41: 0 | AC41: 0 | AF41: 0
A42: Product 5 | B42: 0 | C42: 0 | F42: 0 | G42: 0 | H42: 0 | I42: 0 | L42: 0 | M42: 0 | N42: 0 | Q42: 0 | R42: 0 | S42: 0 | V42: 0 | W42: 0 | X42: 0 | AA42: 0 | AB42: 0 | AC42: 0 | AF42: 0
A43: Product 6 | B43: 0 | C43: 0 | F43: 0 | G43: 0 | H43: 0 | I43: 0 | L43: 0 | M43: 0 | N43: 0 | Q43: 0 | R43: 0 | S43: 0 | V43: 0 | W43: 0 | X43: 0 | AA43: 0 | AB43: 0 | AC43: 0 | AF43: 0
A44: Product 7 | B44: 0 | C44: 0 | F44: 0 | G44: 0 | H44: 0 | I44: 0 | L44: 0 | M44: 0 | N44: 0 | Q44: 0 | R44: 0 | S44: 0 | V44: 0 | W44: 0 | X44: 0 | AA44: 0 | AB44: 0 | AC44: 0 | AF44: 0
A45: Product 8 | B45: 0 | C45: 0 | F45: 0 | G45: 0 | H45: 0 | I45: 0 | L45: 0 | M45: 0 | N45: 0 | Q45: 0 | R45: 0 | S45: 0 | V45: 0 | W45: 0 | X45: 0 | AA45: 0 | AB45: 0 | AC45: 0 | AF45: 0
A46: Product 9 | B46: 0 | C46: 0 | F46: 0 | G46: 0 | H46: 0 | I46: 0 | L46: 0 | M46: 0 | N46: 0 | Q46: 0 | R46: 0 | S46: 0 | V46: 0 | W46: 0 | X46: 0 | AA46: 0 | AB46: 0 | AC46: 0 | AF46: 0
A47: Product 10 | B47: 0 | C47: 0 | F47: 0 | G47: 0 | H47: 0 | I47: 0 | L47: 0 | M47: 0 | N47: 0 | Q47: 0 | R47: 0 | S47: 0 | V47: 0 | W47: 0 | X47: 0 | AA47: 0 | AB47: 0 | AC47: 0 | AF47: 0
A48: Rej 1 | B48: 0 | C48: 0 | F48: 0 | G48: 0 | H48: 0 | I48: 0 | L48: 0 | M48: 0 | N48: 0 | Q48: 0 | R48: 0 | S48: 0 | V48: 0 | W48: 0 | X48: 0 | AA48: 0 | AB48: 0 | AC48: 0 | AF48: 0
A49: Rej 2 | B49: 0 | C49: 0 | F49: 0 | G49: 0 | H49: 0 | I49: 0 | L49: 0 | M49: 0 | N49: 0 | Q49: 0 | R49: 0 | S49: 0 | V49: 0 | W49: 0 | X49: 0 | AA49: 0 | AB49: 0 | AC49: 0 | AF49: 0
A50: Rej 3 | B50: 0 | C50: 0 | F50: 0 | G50: 0 | H50: 0 | I50: 0 | L50: 0 | M50: 0 | N50: 0 | Q50: 0 | R50: 0 | S50: 0 | V50: 0 | W50: 0 | X50: 0 | AA50: 0 | AB50: 0 | AC50: 0 | AF50: 0
A51: Rej 4 | B51: 0 | C51: 0 | F51: 0 | G51: 0 | H51: 0 | I51: 0 | L51: 0 | M51: 0 | N51: 0 | Q51: 0 | R51: 0 | S51: 0 | V51: 0 | W51: 0 | X51: 0 | AA51: 0 | AB51: 0 | AC51: 0 | AF51: 0
A52: Rej 5 | B52: 0 | C52: 0 | F52: 0 | G52: 0 | H52: 0 | I52: 0 | L52: 0 | M52: 0 | N52: 0 | Q52: 0 | R52: 0 | S52: 0 | V52: 0 | W52: 0 | X52: 0 | AA52: 0 | AB52: 0 | AC52: 0 | AF52: 0
A53: Rej 6 | B53: 0 | C53: 0 | F53: 0 | G53: 0 | H53: 0 | I53: 0 | L53: 0 | M53: 0 | N53: 0 | Q53: 0 | R53: 0 | S53: 0 | V53: 0 | W53: 0 | X53: 0 | AA53: 0 | AB53: 0 | AC53: 0 | AF53: 0
A54: Rej 7 | B54: 0 | C54: 0 | F54: 0 | G54: 0 | H54: 0 | I54: 0 | L54: 0 | M54: 0 | N54: 0 | Q54: 0 | R54: 0 | S54: 0 | V54: 0 | W54: 0 | X54: 0 | AA54: 0 | AB54: 0 | AC54: 0 | AF54: 0
A55: Rej 8 | B55: 0 | C55: 0 | F55: 0 | G55: 0 | H55: 0 | I55: 0 | L55: 0 | M55: 0 | N55: 0 | Q55: 0 | R55: 0 | S55: 0 | V55: 0 | W55: 0 | X55: 0 | AA55: 0 | AB55: 0 | AC55: 0 | AF55: 0
A56: Rej 9 | B56: 0 | C56: 0 | F56: 0 | G56: 0 | H56: 0 | I56: 0 | L56: 0 | M56: 0 | N56: 0 | Q56: 0 | R56: 0 | S56: 0 | V56: 0 | W56: 0 | X56: 0 | AA56: 0 | AB56: 0 | AC56: 0 | AF56: 0
A57: Rej 10 | B57: 0 | C57: 0 | F57: 0 | G57: 0 | H57: 0 | I57: 0 | L57: 0 | M57: 0 | N57: 0 | Q57: 0 | R57: 0 | S57: 0 | V57: 0 | W57: 0 | X57: 0 | AA57: 0 | AB57: 0 | AC57: 0 | AF57: 0
A58: H&T&MR | B58: 0 | C58: 0 | F58: 0 | G58: 0 | H58: 0 | I58: 0 | L58: 0 | M58: 0 | N58: 0 | Q58: 0 | R58: 0 | S58: 0 | V58: 0 | W58: 0 | X58: 0 | AA58: 0 | AB58: 0 | AC58: 0 | AF58: 0
A59: Trimming | B59: 0 | C59: 0 | F59: 0 | G59: 0 | H59: 0 | I59: 0 | L59: 0 | M59: 0 | N59: 0 | Q59: 0 | R59: 0 | S59: 0 | V59: 0 | W59: 0 | X59: 0 | AA59: 0 | AB59: 0 | AC59: 0 | AF59: 0
A60: Suspended 1 | B60: 0 | C60: 0 | F60: 0 | G60: 0 | H60: 0 | I60: 0 | L60: 0 | M60: 0 | N60: 0 | Q60: 0 | R60: 0 | S60: 0 | V60: 0 | W60: 0 | X60: 0 | AA60: 0 | AB60: 0 | AC60: 0 | AF60: 0
A61: Suspended 2 | B61: 0 | C61: 0 | F61: 0 | G61: 0 | H61: 0 | I61: 0 | L61: 0 | M61: 0 | N61: 0 | Q61: 0 | R61: 0 | S61: 0 | V61: 0 | W61: 0 | X61: 0 | AA61: 0 | AB61: 0 | AC61: 0 | AF61: 0
A62: Suspended 3 | B62: 0 | C62: 0 | F62: 0 | G62: 0 | H62: 0 | I62: 0 | L62: 0 | M62: 0 | N62: 0 | Q62: 0 | R62: 0 | S62: 0 | V62: 0 | W62: 0 | X62: 0 | AA62: 0 | AB62: 0 | AC62: 0 | AF62: 0
A63: Suspended 4 | B63: 0 | C63: 0 | F63: 0 | G63: 0 | H63: 0 | I63: 0 | L63: 0 | M63: 0 | N63: 0 | Q63: 0 | R63: 0 | S63: 0 | V63: 0 | W63: 0 | X63: 0 | AA63: 0 | AB63: 0 | AC63: 0 | AF63: 0
A64: Suspended 5 | B64: 0 | C64: 0 | F64: 0 | G64: 0 | H64: 0 | I64: 0 | L64: 0 | M64: 0 | N64: 0 | Q64: 0 | R64: 0 | S64: 0 | V64: 0 | W64: 0 | X64: 0 | AA64: 0 | AB64: 0 | AC64: 0 | AF64: 0
A65: Products | B65: =SUM(F37:F64) -> 0 | E65: Scales = | F65: =J65-B65 -> 0 | G65: 0 | I65: Consumption | J65: 0 | K65: 0

Sheet 13
A1: MACC PRD report | E1: Rolling Mill Plant
A2: Date: | C2: 13 | D2: March | E2: 2019
A3: RM 1
A4: Item | B4: Production | H4: Consumption 1 | M4: Consumption 2 | R4: Consumption 3 | W4: Consumption 4 | AB4: Consumption 5
B5: Code | C5: Description | F5: Ton | G5: Par | H5: Code | I5: Description | L5: Ton | M5: Code | N5: Description | Q5: Ton | R5: Code | S5: Description | V5: Ton | W5: Code | X5: Description | AA5: Ton | AB5: Code | AC5: Description | AF5: Ton
A6: Product 1 | B6: P0501300008 | C6: STR- B 500 BWR, 12 MM, 12 M | F6: 629.7516141 | G6: 304 | H6: P0100700015 | I6: STB- 4SP (SSS) , 150*150*12 M (52 MW) | L6: 641.8143473 | M6: 0 | N6: 0 | Q6: 0 | R6: 0 | S6: 0 | V6: 0 | W6: 0 | X6: 0 | AA6: 0 | AB6: 0 | AC6: 0 | AF6: 0
A7: Product 2 | B7: P0501400008 | C7: STR- B 400 BWR, 12 MM, 12 M | F7: 89.9645163 | G7: 44 | H7: P0100700015 | I7: STB- 4SP (SSS) , 150*150*12 M (52 MW) | L7: 89.9645163 | M7: 0 | N7: 0 | Q7: 0 | R7: 0 | S7: 0 | V7: 0 | W7: 0 | X7: 0 | AA7: 0 | AB7: 0 | AC7: 0 | AF7: 0
A8: Product 3 | B8: P0500100008 | C8: STR- B 400 BR, 12 MM, 12 M | F8: 7.124341439 | G8: 3 | H8: P0100200007 | I8: STB- 5 SP, 150*150*12 M ( ST 52 ) | L8: 7.124341439 | M8: 0 | N8: 0 | Q8: 0 | R8: 0 | S8: 0 | V8: 0 | W8: 0 | X8: 0 | AA8: 0 | AB8: 0 | AC8: 0 | AF8: 0
A9: Product 4 | B9: P0501300003 | C9: STR- B 500 BWR, 22 MM, 12 M | F9: 61.33944293 | G9: 30 | H9: P0100700015 | I9: STB- 4SP (SSS) , 150*150*12 M (52 MW) | L9: 61.33944293 | M9: 0 | N9: 0 | Q9: 0 | R9: 0 | S9: 0 | V9: 0 | W9: 0 | X9: 0 | AA9: 0 | AB9: 0 | AC9: 0 | AF9: 0
A10: Product 5 | B10: P0501400003 | C10: STR- B 400 BWR, 22 MM, 12 M | F10: 42.93761005 | G10: 21 | H10: P0100700015 | I10: STB- 4SP (SSS) , 150*150*12 M (52 MW) | L10: 42.93761005 | M10: 0 | N10: 0 | Q10: 0 | R10: 0 | S10: 0 | V10: 0 | W10: 0 | X10: 0 | AA10: 0 | AB10: 0 | AC10: 0 | AF10: 0
A11: Product 6 | B11: New Code | C11: STR- B 500 C-R, 22 MM, 12 M | F11: 32.56841801 | G11: 16 | H11: P0100200007 | I11: STB- 5 SP, 150*150*12 M ( ST 52 ) | L11: 32.56841801 | M11: 0 | N11: 0 | Q11: 0 | R11: 0 | S11: 0 | V11: 0 | W11: 0 | X11: 0 | AA11: 0 | AB11: 0 | AC11: 0 | AF11: 0
A12: Product 7 | B12: 0 | C12: 0 | F12: 0 | G12: 0 | H12: 0 | I12: 0 | L12: 0 | M12: 0 | N12: 0 | Q12: 0 | R12: 0 | S12: 0 | V12: 0 | W12: 0 | X12: 0 | AA12: 0 | AB12: 0 | AC12: 0 | AF12: 0
A13: Product 8 | B13: 0 | C13: 0 | F13: 0 | G13: 0 | H13: 0 | I13: 0 | L13: 0 | M13: 0 | N13: 0 | Q13: 0 | R13: 0 | S13: 0 | V13: 0 | W13: 0 | X13: 0 | AA13: 0 | AB13: 0 | AC13: 0 | AF13: 0
A14: Product 9 | B14: 0 | C14: 0 | F14: 0 | G14: 0 | H14: 0 | I14: 0 | L14: 0 | M14: 0 | N14: 0 | Q14: 0 | R14: 0 | S14: 0 | V14: 0 | W14: 0 | X14: 0 | AA14: 0 | AB14: 0 | AC14: 0 | AF14: 0
A15: Product 10 | B15: 0 | C15: 0 | F15: 0 | G15: 0 | H15: 0 | I15: 0 | L15: 0 | M15: 0 | N15: 0 | Q15: 0 | R15: 0 | S15: 0 | V15: 0 | W15: 0 | X15: 0 | AA15: 0 | AB15: 0 | AC15: 0 | AF15: 0
A16: Rej 1 | B16: P0101300008 | C16: STB- 4SP, 150*150 Different lengths | F16: 2.1459375 | G16: 1 | H16: P0100700015 | I16: STB- 4SP (SSS) , 150*150*12 M (52 MW) | L16: 2.1459375 | M16: 0 | N16: 0 | Q16: 0 | R16: 0 | S16: 0 | V16: 0 | W16: 0 | X16: 0 | AA16: 0 | AB16: 0 | AC16: 0 | AF16: 0
A17: Rej 2 | B17: P0101300002 | C17: STB- 4SP, 130*130 Different lengths | F17: 3.204545455 | G17: 1.5 | H17: P0100200007 | I17: STB- 5 SP, 150*150*12 M ( ST 52 ) | L17: 3.204545455 | M17: 0 | N17: 0 | Q17: 0 | R17: 0 | S17: 0 | V17: 0 | W17: 0 | X17: 0 | AA17: 0 | AB17: 0 | AC17: 0 | AF17: 0
A18: Rej 3 | B18: P0101300002 | C18: STB- 4SP, 130*130 Different lengths | F18: 0 | G18: 0 | H18: P0100700001 | I18: STB- 4SP, 130*130*12 M ( 52 MW ) | L18: 0 | M18: 0 | N18: 0 | Q18: 0 | R18: 0 | S18: 0 | V18: 0 | W18: 0 | X18: 0 | AA18: 0 | AB18: 0 | AC18: 0 | AF18: 0
A19: Rej 4 | B19: 0 | C19: 0 | F19: 0 | G19: 0 | H19: 0 | I19: 0 | L19: 0 | M19: 0 | N19: 0 | Q19: 0 | R19: 0 | S19: 0 | V19: 0 | W19: 0 | X19: 0 | AA19: 0 | AB19: 0 | AC19: 0 | AF19: 0
A20: Rej 5 | B20: 0 | C20: 0 | F20: 0 | G20: 0 | H20: 0 | I20: 0 | L20: 0 | M20: 0 | N20: 0 | Q20: 0 | R20: 0 | S20: 0 | V20: 0 | W20: 0 | X20: 0 | AA20: 0 | AB20: 0 | AC20: 0 | AF20: 0
A21: Rej 6 | B21: 0 | C21: 0 | F21: 0 | G21: 0 | H21: 0 | I21: 0 | L21: 0 | M21: 0 | N21: 0 | Q21: 0 | R21: 0 | S21: 0 | V21: 0 | W21: 0 | X21: 0 | AA21: 0 | AB21: 0 | AC21: 0 | AF21: 0
A22: Rej 7 | B22: 0 | C22: 0 | F22: 0 | G22: 0 | H22: 0 | I22: 0 | L22: 0 | M22: 0 | N22: 0 | Q22: 0 | R22: 0 | S22: 0 | V22: 0 | W22: 0 | X22: 0 | AA22: 0 | AB22: 0 | AC22: 0 | AF22: 0
A23: Rej 8 | B23: 0 | C23: 0 | F23: 0 | G23: 0 | H23: 0 | I23: 0 | L23: 0 | M23: 0 | N23: 0 | Q23: 0 | R23: 0 | S23: 0 | V23: 0 | W23: 0 | X23: 0 | AA23: 0 | AB23: 0 | AC23: 0 | AF23: 0
A24: Rej 9 | B24: 0 | C24: 0 | F24: 0 | G24: 0 | H24: 0 | I24: 0 | L24: 0 | M24: 0 | N24: 0 | Q24: 0 | R24: 0 | S24: 0 | V24: 0 | W24: 0 | X24: 0 | AA24: 0 | AB24: 0 | AC24: 0 | AF24: 0
A25: Rej 10 | B25: 0 | C25: 0 | F25: 0 | G25: 0 | H25: 0 | I25: 0 | L25: 0 | M25: 0 | N25: 0 | Q25: 0 | R25: 0 | S25: 0 | V25: 0 | W25: 0 | X25: 0 | AA25: 0 | AB25: 0 | AC25: 0 | AF25: 0
A26: H&T&MR | B26: P0500600001 | C26: MISS ROLLED&HEAD&TAIL | F26: 25.62549376 | G26: 0 | H26: P0100700015 | I26: STB- 4SP (SSS) , 150*150*12 M (52 MW) | L26: 19.29972103 | M26: P0100200007 | N26: STB- 5 SP, 150*150*12 M ( ST 52 ) | Q26: 6.325772727 | R26: 0 | S26: 0 | V26: 0 | W26: 0 | X26: 0 | AA26: 0 | AB26: 0 | AC26: 0 | AF26: 0
A27: Shorts | B27: P0500400001 | C27: STR-SHORTS | F27: 17.62624373 | G27: 0 | H27: P0100700015 | I27: STB- 4SP (SSS) , 150*150*12 M (52 MW) | L27: 17.62624373 | M27: 0 | N27: 0 | Q27: 0 | R27: 0 | S27: 0 | V27: 0 | W27: 0 | X27: 0 | AA27: 0 | AB27: 0 | AC27: 0 | AF27: 0
A28: Cold Shear Cut | B28: P0500700001 | C28: COLD SHEAR CUT | F28: 8.902143298 | G28: 0 | H28: P0100700015 | I28: STB- 4SP (SSS) , 150*150*12 M (52 MW) | L28: 8.902143298 | M28: 0 | N28: 0 | Q28: 0 | R28: 0 | S28: 0 | V28: 0 | W28: 0 | X28: 0 | AA28: 0 | AB28: 0 | AC28: 0 | AF28: 0
A29: Suspended 1 | B29: P0501200002 | C29: STR- 12 MM, SUSPENDED & REJECTED | F29: 0 | G29: 0 | H29: P0100700015 | I29: STB- 4SP (SSS) , 150*150*12 M (52 MW) | L29: 0 | M29: 0 | N29: 0 | Q29: 0 | R29: 0 | S29: 0 | V29: 0 | W29: 0 | X29: 0 | AA29: 0 | AB29: 0 | AC29: 0 | AF29: 0
A30: Suspended 2 | B30: 0 | C30: 0 | F30: 0 | G30: 0 | H30: 0 | I30: 0 | L30: 0 | M30: 0 | N30: 0 | Q30: 0 | R30: 0 | S30: 0 | V30: 0 | W30: 0 | X30: 0 | AA30: 0 | AB30: 0 | AC30: 0 | AF30: 0
A31: Suspended 3 | B31: 0 | C31: 0 | F31: 0 | G31: 0 | H31: 0 | I31: 0 | L31: 0 | M31: 0 | N31: 0 | Q31: 0 | R31: 0 | S31: 0 | V31: 0 | W31: 0 | X31: 0 | AA31: 0 | AB31: 0 | AC31: 0 | AF31: 0
A32: Suspended 4 | B32: 0 | C32: 0 | F32: 0 | G32: 0 | H32: 0 | I32: 0 | L32: 0 | M32: 0 | N32: 0 | Q32: 0 | R32: 0 | S32: 0 | V32: 0 | W32: 0 | X32: 0 | AA32: 0 | AB32: 0 | AC32: 0 | AF32: 0
A33: Suspended 5 | B33: 0 | C33: 0 | F33: 0 | G33: 0 | H33: 0 | I33: 0 | L33: 0 | M33: 0 | N33: 0 | Q33: 0 | R33: 0 | S33: 0 | V33: 0 | W33: 0 | X33: 0 | AA33: 0 | AB33: 0 | AC33: 0 | AF33: 0
A34: Products | B34: =SUM(F6:F33) -> 921.1903065 | E34: Scales = | F34: =J34-B34 -> 12.06273324 | G34: 2.202682481e-13 | I34: Consumption | J34: =SUM(L6:L33,Q6:Q33,V6:V33,AA6:AA33,AF6:AF33) -> 933.2530398 | K34: 0
A35: RM 2
A36: Item | B36: Production | H36: Consumption 1 | M36: Consumption 2 | R36: Consumption 3 | W36: Consumption 4 | AB36: Consumption 5
B37: Code | C37: Description | F37: Ton | G37: Par | H37: Code | I37: Description | L37: Ton | M37: Code | N37: Description | Q37: Ton | R37: Code | S37: Description | V37: Ton | W37: Code | X37: Description | AA37: Ton | AB37: Code | AC37: Description | AF37: Ton
A38: Product 1 | B38: 0 | C38: 0 | F38: 0 | G38: 0 | H38: 0 | I38: 0 | L38: 0 | M38: 0 | N38: 0 | Q38: 0 | R38: 0 | S38: 0 | V38: 0 | W38: 0 | X38: 0 | AA38: 0 | AB38: 0 | AC38: 0 | AF38: 0
A39: Product 2 | B39: 0 | C39: 0 | F39: 0 | G39: 0 | H39: 0 | I39: 0 | L39: 0 | M39: 0 | N39: 0 | Q39: 0 | R39: 0 | S39: 0 | V39: 0 | W39: 0 | X39: 0 | AA39: 0 | AB39: 0 | AC39: 0 | AF39: 0
A40: Product 3 | B40: 0 | C40: 0 | F40: 0 | G40: 0 | H40: 0 | I40: 0 | L40: 0 | M40: 0 | N40: 0 | Q40: 0 | R40: 0 | S40: 0 | V40: 0 | W40: 0 | X40: 0 | AA40: 0 | AB40: 0 | AC40: 0 | AF40: 0
A41: Product 4 | B41: 0 | C41: 0 | F41: 0 | G41: 0 | H41: 0 | I41: 0 | L41: 0 | M41: 0 | N41: 0 | Q41: 0 | R41: 0 | S41: 0 | V41: 0 | W41: 0 | X41: 0 | AA41: 0 | AB41: 0 | AC41: 0 | AF41: 0
A42: Product 5 | B42: 0 | C42: 0 | F42: 0 | G42: 0 | H42: 0 | I42: 0 | L42: 0 | M42: 0 | N42: 0 | Q42: 0 | R42: 0 | S42: 0 | V42: 0 | W42: 0 | X42: 0 | AA42: 0 | AB42: 0 | AC42: 0 | AF42: 0
A43: Product 6 | B43: 0 | C43: 0 | F43: 0 | G43: 0 | H43: 0 | I43: 0 | L43: 0 | M43: 0 | N43: 0 | Q43: 0 | R43: 0 | S43: 0 | V43: 0 | W43: 0 | X43: 0 | AA43: 0 | AB43: 0 | AC43: 0 | AF43: 0
A44: Product 7 | B44: 0 | C44: 0 | F44: 0 | G44: 0 | H44: 0 | I44: 0 | L44: 0 | M44: 0 | N44: 0 | Q44: 0 | R44: 0 | S44: 0 | V44: 0 | W44: 0 | X44: 0 | AA44: 0 | AB44: 0 | AC44: 0 | AF44: 0
A45: Product 8 | B45: 0 | C45: 0 | F45: 0 | G45: 0 | H45: 0 | I45: 0 | L45: 0 | M45: 0 | N45: 0 | Q45: 0 | R45: 0 | S45: 0 | V45: 0 | W45: 0 | X45: 0 | AA45: 0 | AB45: 0 | AC45: 0 | AF45: 0
A46: Product 9 | B46: 0 | C46: 0 | F46: 0 | G46: 0 | H46: 0 | I46: 0 | L46: 0 | M46: 0 | N46: 0 | Q46: 0 | R46: 0 | S46: 0 | V46: 0 | W46: 0 | X46: 0 | AA46: 0 | AB46: 0 | AC46: 0 | AF46: 0
A47: Product 10 | B47: 0 | C47: 0 | F47: 0 | G47: 0 | H47: 0 | I47: 0 | L47: 0 | M47: 0 | N47: 0 | Q47: 0 | R47: 0 | S47: 0 | V47: 0 | W47: 0 | X47: 0 | AA47: 0 | AB47: 0 | AC47: 0 | AF47: 0
A48: Rej 1 | B48: 0 | C48: 0 | F48: 0 | G48: 0 | H48: 0 | I48: 0 | L48: 0 | M48: 0 | N48: 0 | Q48: 0 | R48: 0 | S48: 0 | V48: 0 | W48: 0 | X48: 0 | AA48: 0 | AB48: 0 | AC48: 0 | AF48: 0
A49: Rej 2 | B49: 0 | C49: 0 | F49: 0 | G49: 0 | H49: 0 | I49: 0 | L49: 0 | M49: 0 | N49: 0 | Q49: 0 | R49: 0 | S49: 0 | V49: 0 | W49: 0 | X49: 0 | AA49: 0 | AB49: 0 | AC49: 0 | AF49: 0
A50: Rej 3 | B50: 0 | C50: 0 | F50: 0 | G50: 0 | H50: 0 | I50: 0 | L50: 0 | M50: 0 | N50: 0 | Q50: 0 | R50: 0 | S50: 0 | V50: 0 | W50: 0 | X50: 0 | AA50: 0 | AB50: 0 | AC50: 0 | AF50: 0
A51: Rej 4 | B51: 0 | C51: 0 | F51: 0 | G51: 0 | H51: 0 | I51: 0 | L51: 0 | M51: 0 | N51: 0 | Q51: 0 | R51: 0 | S51: 0 | V51: 0 | W51: 0 | X51: 0 | AA51: 0 | AB51: 0 | AC51: 0 | AF51: 0
A52: Rej 5 | B52: 0 | C52: 0 | F52: 0 | G52: 0 | H52: 0 | I52: 0 | L52: 0 | M52: 0 | N52: 0 | Q52: 0 | R52: 0 | S52: 0 | V52: 0 | W52: 0 | X52: 0 | AA52: 0 | AB52: 0 | AC52: 0 | AF52: 0
A53: Rej 6 | B53: 0 | C53: 0 | F53: 0 | G53: 0 | H53: 0 | I53: 0 | L53: 0 | M53: 0 | N53: 0 | Q53: 0 | R53: 0 | S53: 0 | V53: 0 | W53: 0 | X53: 0 | AA53: 0 | AB53: 0 | AC53: 0 | AF53: 0
A54: Rej 7 | B54: 0 | C54: 0 | F54: 0 | G54: 0 | H54: 0 | I54: 0 | L54: 0 | M54: 0 | N54: 0 | Q54: 0 | R54: 0 | S54: 0 | V54: 0 | W54: 0 | X54: 0 | AA54: 0 | AB54: 0 | AC54: 0 | AF54: 0
A55: Rej 8 | B55: 0 | C55: 0 | F55: 0 | G55: 0 | H55: 0 | I55: 0 | L55: 0 | M55: 0 | N55: 0 | Q55: 0 | R55: 0 | S55: 0 | V55: 0 | W55: 0 | X55: 0 | AA55: 0 | AB55: 0 | AC55: 0 | AF55: 0
A56: Rej 9 | B56: 0 | C56: 0 | F56: 0 | G56: 0 | H56: 0 | I56: 0 | L56: 0 | M56: 0 | N56: 0 | Q56: 0 | R56: 0 | S56: 0 | V56: 0 | W56: 0 | X56: 0 | AA56: 0 | AB56: 0 | AC56: 0 | AF56: 0
A57: Rej 10 | B57: 0 | C57: 0 | F57: 0 | G57: 0 | H57: 0 | I57: 0 | L57: 0 | M57: 0 | N57: 0 | Q57: 0 | R57: 0 | S57: 0 | V57: 0 | W57: 0 | X57: 0 | AA57: 0 | AB57: 0 | AC57: 0 | AF57: 0
A58: H&T&MR | B58: 0 | C58: 0 | F58: 0 | G58: 0 | H58: 0 | I58: 0 | L58: 0 | M58: 0 | N58: 0 | Q58: 0 | R58: 0 | S58: 0 | V58: 0 | W58: 0 | X58: 0 | AA58: 0 | AB58: 0 | AC58: 0 | AF58: 0
A59: Trimming | B59: 0 | C59: 0 | F59: 0 | G59: 0 | H59: 0 | I59: 0 | L59: 0 | M59: 0 | N59: 0 | Q59: 0 | R59: 0 | S59: 0 | V59: 0 | W59: 0 | X59: 0 | AA59: 0 | AB59: 0 | AC59: 0 | AF59: 0
A60: Suspended 1 | B60: 0 | C60: 0 | F60: 0 | G60: 0 | H60: 0 | I60: 0 | L60: 0 | M60: 0 | N60: 0 | Q60: 0 | R60: 0 | S60: 0 | V60: 0 | W60: 0 | X60: 0 | AA60: 0 | AB60: 0 | AC60: 0 | AF60: 0
A61: Suspended 2 | B61: 0 | C61: 0 | F61: 0 | G61: 0 | H61: 0 | I61: 0 | L61: 0 | M61: 0 | N61: 0 | Q61: 0 | R61: 0 | S61: 0 | V61: 0 | W61: 0 | X61: 0 | AA61: 0 | AB61: 0 | AC61: 0 | AF61: 0
A62: Suspended 3 | B62: 0 | C62: 0 | F62: 0 | G62: 0 | H62: 0 | I62: 0 | L62: 0 | M62: 0 | N62: 0 | Q62: 0 | R62: 0 | S62: 0 | V62: 0 | W62: 0 | X62: 0 | AA62: 0 | AB62: 0 | AC62: 0 | AF62: 0
A63: Suspended 4 | B63: 0 | C63: 0 | F63: 0 | G63: 0 | H63: 0 | I63: 0 | L63: 0 | M63: 0 | N63: 0 | Q63: 0 | R63: 0 | S63: 0 | V63: 0 | W63: 0 | X63: 0 | AA63: 0 | AB63: 0 | AC63: 0 | AF63: 0
A64: Suspended 5 | B64: 0 | C64: 0 | F64: 0 | G64: 0 | H64: 0 | I64: 0 | L64: 0 | M64: 0 | N64: 0 | Q64: 0 | R64: 0 | S64: 0 | V64: 0 | W64: 0 | X64: 0 | AA64: 0 | AB64: 0 | AC64: 0 | AF64: 0
A65: Products | B65: =SUM(F37:F64) -> 0 | E65: Scales = | F65: =J65-B65 -> 0 | G65: 0 | I65: Consumption | J65: 0 | K65: 0

Sheet 14
A1: MACC PRD report | E1: Rolling Mill Plant
A2: Date: | C2: 14 | D2: March | E2: 2019
A3: RM 1
A4: Item | B4: Production | H4: Consumption 1 | M4: Consumption 2 | R4: Consumption 3 | W4: Consumption 4 | AB4: Consumption 5
B5: Code | C5: Description | F5: Ton | G5: Par | H5: Code | I5: Description | L5: Ton | M5: Code | N5: Description | Q5: Ton | R5: Code | S5: Description | V5: Ton | W5: Code | X5: Description | AA5: Ton | AB5: Code | AC5: Description | AF5: Ton
A6: Product 1 | B6: P0501300008 | C6: STR- B 500 BWR, 12 MM, 12 M | F6: 1245.389357 | G6: 613 | H6: P0100700015 | I6: STB- 4SP (SSS) , 150*150*12 M (52 MW) | L6: 1262.713272 | M6: 0 | N6: 0 | Q6: 0 | R6: 0 | S6: 0 | V6: 0 | W6: 0 | X6: 0 | AA6: 0 | AB6: 0 | AC6: 0 | AF6: 0
A7: Product 2 | B7: P0502400002 | C7: STR- B 500 C-R, 12 MM, 12 M | F7: 8.11064105 | G7: 4 | H7: P0100200007 | I7: STB- 5 SP, 150*150*12 M ( ST 52 ) | L7: 8.11064105 | M7: 0 | N7: 0 | Q7: 0 | R7: 0 | S7: 0 | V7: 0 | W7: 0 | X7: 0 | AA7: 0 | AB7: 0 | AC7: 0 | AF7: 0
A8: Product 3 | B8: 0 | C8: 0 | F8: 0 | G8: 0 | H8: 0 | I8: 0 | L8: 0 | M8: 0 | N8: 0 | Q8: 0 | R8: 0 | S8: 0 | V8: 0 | W8: 0 | X8: 0 | AA8: 0 | AB8: 0 | AC8: 0 | AF8: 0
A9: Product 4 | B9: 0 | C9: 0 | F9: 0 | G9: 0 | H9: 0 | I9: 0 | L9: 0 | M9: 0 | N9: 0 | Q9: 0 | R9: 0 | S9: 0 | V9: 0 | W9: 0 | X9: 0 | AA9: 0 | AB9: 0 | AC9: 0 | AF9: 0
A10: Product 5 | B10: 0 | C10: 0 | F10: 0 | G10: 0 | H10: 0 | I10: 0 | L10: 0 | M10: 0 | N10: 0 | Q10: 0 | R10: 0 | S10: 0 | V10: 0 | W10: 0 | X10: 0 | AA10: 0 | AB10: 0 | AC10: 0 | AF10: 0
A11: Product 6 | B11: 0 | C11: 0 | F11: 0 | G11: 0 | H11: 0 | I11: 0 | L11: 0 | M11: 0 | N11: 0 | Q11: 0 | R11: 0 | S11: 0 | V11: 0 | W11: 0 | X11: 0 | AA11: 0 | AB11: 0 | AC11: 0 | AF11: 0
A12: Product 7 | B12: 0 | C12: 0 | F12: 0 | G12: 0 | H12: 0 | I12: 0 | L12: 0 | M12: 0 | N12: 0 | Q12: 0 | R12: 0 | S12: 0 | V12: 0 | W12: 0 | X12: 0 | AA12: 0 | AB12: 0 | AC12: 0 | AF12: 0
A13: Product 8 | B13: 0 | C13: 0 | F13: 0 | G13: 0 | H13: 0 | I13: 0 | L13: 0 | M13: 0 | N13: 0 | Q13: 0 | R13: 0 | S13: 0 | V13: 0 | W13: 0 | X13: 0 | AA13: 0 | AB13: 0 | AC13: 0 | AF13: 0
A14: Product 9 | B14: 0 | C14: 0 | F14: 0 | G14: 0 | H14: 0 | I14: 0 | L14: 0 | M14: 0 | N14: 0 | Q14: 0 | R14: 0 | S14: 0 | V14: 0 | W14: 0 | X14: 0 | AA14: 0 | AB14: 0 | AC14: 0 | AF14: 0
A15: Product 10 | B15: 0 | C15: 0 | F15: 0 | G15: 0 | H15: 0 | I15: 0 | L15: 0 | M15: 0 | N15: 0 | Q15: 0 | R15: 0 | S15: 0 | V15: 0 | W15: 0 | X15: 0 | AA15: 0 | AB15: 0 | AC15: 0 | AF15: 0
A16: Rej 1 | B16: P0101300008 | C16: STB- 4SP, 150*150 Different lengths | F16: 2.135639413 | G16: 1 | H16: P0100700015 | I16: STB- 4SP (SSS) , 150*150*12 M (52 MW) | L16: 2.135639413 | M16: 0 | N16: 0 | Q16: 0 | R16: 0 | S16: 0 | V16: 0 | W16: 0 | X16: 0 | AA16: 0 | AB16: 0 | AC16: 0 | AF16: 0
A17: Rej 2 | B17: P0101300002 | C17: STB- 4SP, 130*130 Different lengths | F17: 0 | G17: 0 | H17: P0100200007 | I17: STB- 5 SP, 150*150*12 M ( ST 52 ) | L17: 0 | M17: 0 | N17: 0 | Q17: 0 | R17: 0 | S17: 0 | V17: 0 | W17: 0 | X17: 0 | AA17: 0 | AB17: 0 | AC17: 0 | AF17: 0
A18: Rej 3 | B18: P0101300002 | C18: STB- 4SP, 130*130 Different lengths | F18: 0 | G18: 0 | H18: P0100700001 | I18: STB- 4SP, 130*130*12 M ( 52 MW ) | L18: 0 | M18: 0 | N18: 0 | Q18: 0 | R18: 0 | S18: 0 | V18: 0 | W18: 0 | X18: 0 | AA18: 0 | AB18: 0 | AC18: 0 | AF18: 0
A19: Rej 4 | B19: 0 | C19: 0 | F19: 0 | G19: 0 | H19: 0 | I19: 0 | L19: 0 | M19: 0 | N19: 0 | Q19: 0 | R19: 0 | S19: 0 | V19: 0 | W19: 0 | X19: 0 | AA19: 0 | AB19: 0 | AC19: 0 | AF19: 0
A20: Rej 5 | B20: 0 | C20: 0 | F20: 0 | G20: 0 | H20: 0 | I20: 0 | L20: 0 | M20: 0 | N20: 0 | Q20: 0 | R20: 0 | S20: 0 | V20: 0 | W20: 0 | X20: 0 | AA20: 0 | AB20: 0 | AC20: 0 | AF20: 0
A21: Rej 6 | B21: 0 | C21: 0 | F21: 0 | G21: 0 | H21: 0 | I21: 0 | L21: 0 | M21: 0 | N21: 0 | Q21: 0 | R21: 0 | S21: 0 | V21: 0 | W21: 0 | X21: 0 | AA21: 0 | AB21: 0 | AC21: 0 | AF21: 0
A22: Rej 7 | B22: 0 | C22: 0 | F22: 0 | G22: 0 | H22: 0 | I22: 0 | L22: 0 | M22: 0 | N22: 0 | Q22: 0 | R22: 0 | S22: 0 | V22: 0 | W22: 0 | X22: 0 | AA22: 0 | AB22: 0 | AC22: 0 | AF22: 0
A23: Rej 8 | B23: 0 | C23: 0 | F23: 0 | G23: 0 | H23: 0 | I23: 0 | L23: 0 | M23: 0 | N23: 0 | Q23: 0 | R23: 0 | S23: 0 | V23: 0 | W23: 0 | X23: 0 | AA23: 0 | AB23: 0 | AC23: 0 | AF23: 0
A24: Rej 9 | B24: 0 | C24: 0 | F24: 0 | G24: 0 | H24: 0 | I24: 0 | L24: 0 | M24: 0 | N24: 0 | Q24: 0 | R24: 0 | S24: 0 | V24: 0 | W24: 0 | X24: 0 | AA24: 0 | AB24: 0 | AC24: 0 | AF24: 0
A25: Rej 10 | B25: 0 | C25: 0 | F25: 0 | G25: 0 | H25: 0 | I25: 0 | L25: 0 | M25: 0 | N25: 0 | Q25: 0 | R25: 0 | S25: 0 | V25: 0 | W25: 0 | X25: 0 | AA25: 0 | AB25: 0 | AC25: 0 | AF25: 0
A26: H&T&MR | B26: P0500600001 | C26: MISS ROLLED&HEAD&TAIL | F26: 19.16044509 | G26: 0 | H26: P0100700015 | I26: STB- 4SP (SSS) , 150*150*12 M (52 MW) | L26: 19.16044509 | M26: 0 | N26: 0 | Q26: 0 | R26: 0 | S26: 0 | V26: 0 | W26: 0 | X26: 0 | AA26: 0 | AB26: 0 | AC26: 0 | AF26: 0
A27: Shorts | B27: P0500400001 | C27: STR-SHORTS | F27: 25.66326526 | G27: 0 | H27: P0100700015 | I27: STB- 4SP (SSS) , 150*150*12 M (52 MW) | L27: 25.26147388 | M27: P0100200007 | N27: STB- 5 SP, 150*150*12 M ( ST 52 ) | Q27: 0.401791382 | R27: 0 | S27: 0 | V27: 0 | W27: 0 | X27: 0 | AA27: 0 | AB27: 0 | AC27: 0 | AF27: 0
A28: Cold Shear Cut | B28: P0500700001 | C28: COLD SHEAR CUT | F28: 12.96124508 | G28: 0 | H28: P0100700015 | I28: STB- 4SP (SSS) , 150*150*12 M (52 MW) | L28: 12.96124508 | M28: 0 | N28: 0 | Q28: 0 | R28: 0 | S28: 0 | V28: 0 | W28: 0 | X28: 0 | AA28: 0 | AB28: 0 | AC28: 0 | AF28: 0
A29: Suspended 1 | B29: P0501200002 | C29: STR- 12 MM, SUSPENDED & REJECTED | F29: 4 | G29: 2 | H29: P0100700015 | I29: STB- 4SP (SSS) , 150*150*12 M (52 MW) | L29: 4 | M29: 0 | N29: 0 | Q29: 0 | R29: 0 | S29: 0 | V29: 0 | W29: 0 | X29: 0 | AA29: 0 | AB29: 0 | AC29: 0 | AF29: 0
A30: Suspended 2 | B30: 0 | C30: 0 | F30: 0 | G30: 0 | H30: 0 | I30: 0 | L30: 0 | M30: 0 | N30: 0 | Q30: 0 | R30: 0 | S30: 0 | V30: 0 | W30: 0 | X30: 0 | AA30: 0 | AB30: 0 | AC30: 0 | AF30: 0
A31: Suspended 3 | B31: 0 | C31: 0 | F31: 0 | G31: 0 | H31: 0 | I31: 0 | L31: 0 | M31: 0 | N31: 0 | Q31: 0 | R31: 0 | S31: 0 | V31: 0 | W31: 0 | X31: 0 | AA31: 0 | AB31: 0 | AC31: 0 | AF31: 0
A32: Suspended 4 | B32: 0 | C32: 0 | F32: 0 | G32: 0 | H32: 0 | I32: 0 | L32: 0 | M32: 0 | N32: 0 | Q32: 0 | R32: 0 | S32: 0 | V32: 0 | W32: 0 | X32: 0 | AA32: 0 | AB32: 0 | AC32: 0 | AF32: 0
A33: Suspended 5 | B33: 0 | C33: 0 | F33: 0 | G33: 0 | H33: 0 | I33: 0 | L33: 0 | M33: 0 | N33: 0 | Q33: 0 | R33: 0 | S33: 0 | V33: 0 | W33: 0 | X33: 0 | AA33: 0 | AB33: 0 | AC33: 0 | AF33: 0
A34: Products | B34: =SUM(F6:F33) -> 1317.420593 | E34: Scales = | F34: =J34-B34 -> 17.32391529 | G34: 2.202682481e-13 | I34: Consumption | J34: =SUM(L6:L33,Q6:Q33,V6:V33,AA6:AA33,AF6:AF33) -> 1334.744508 | K34: 0
A35: RM 2
A36: Item | B36: Production | H36: Consumption 1 | M36: Consumption 2 | R36: Consumption 3 | W36: Consumption 4 | AB36: Consumption 5
B37: Code | C37: Description | F37: Ton | G37: Par | H37: Code | I37: Description | L37: Ton | M37: Code | N37: Description | Q37: Ton | R37: Code | S37: Description | V37: Ton | W37: Code | X37: Description | AA37: Ton | AB37: Code | AC37: Description | AF37: Ton
A38: Product 1 | B38: 0 | C38: 0 | F38: 0 | G38: 0 | H38: 0 | I38: 0 | L38: 0 | M38: 0 | N38: 0 | Q38: 0 | R38: 0 | S38: 0 | V38: 0 | W38: 0 | X38: 0 | AA38: 0 | AB38: 0 | AC38: 0 | AF38: 0
A39: Product 2 | B39: 0 | C39: 0 | F39: 0 | G39: 0 | H39: 0 | I39: 0 | L39: 0 | M39: 0 | N39: 0 | Q39: 0 | R39: 0 | S39: 0 | V39: 0 | W39: 0 | X39: 0 | AA39: 0 | AB39: 0 | AC39: 0 | AF39: 0
A40: Product 3 | B40: 0 | C40: 0 | F40: 0 | G40: 0 | H40: 0 | I40: 0 | L40: 0 | M40: 0 | N40: 0 | Q40: 0 | R40: 0 | S40: 0 | V40: 0 | W40: 0 | X40: 0 | AA40: 0 | AB40: 0 | AC40: 0 | AF40: 0
A41: Product 4 | B41: 0 | C41: 0 | F41: 0 | G41: 0 | H41: 0 | I41: 0 | L41: 0 | M41: 0 | N41: 0 | Q41: 0 | R41: 0 | S41: 0 | V41: 0 | W41: 0 | X41: 0 | AA41: 0 | AB41: 0 | AC41: 0 | AF41: 0
A42: Product 5 | B42: 0 | C42: 0 | F42: 0 | G42: 0 | H42: 0 | I42: 0 | L42: 0 | M42: 0 | N42: 0 | Q42: 0 | R42: 0 | S42: 0 | V42: 0 | W42: 0 | X42: 0 | AA42: 0 | AB42: 0 | AC42: 0 | AF42: 0
A43: Product 6 | B43: 0 | C43: 0 | F43: 0 | G43: 0 | H43: 0 | I43: 0 | L43: 0 | M43: 0 | N43: 0 | Q43: 0 | R43: 0 | S43: 0 | V43: 0 | W43: 0 | X43: 0 | AA43: 0 | AB43: 0 | AC43: 0 | AF43: 0
A44: Product 7 | B44: 0 | C44: 0 | F44: 0 | G44: 0 | H44: 0 | I44: 0 | L44: 0 | M44: 0 | N44: 0 | Q44: 0 | R44: 0 | S44: 0 | V44: 0 | W44: 0 | X44: 0 | AA44: 0 | AB44: 0 | AC44: 0 | AF44: 0
A45: Product 8 | B45: 0 | C45: 0 | F45: 0 | G45: 0 | H45: 0 | I45: 0 | L45: 0 | M45: 0 | N45: 0 | Q45: 0 | R45: 0 | S45: 0 | V45: 0 | W45: 0 | X45: 0 | AA45: 0 | AB45: 0 | AC45: 0 | AF45: 0
A46: Product 9 | B46: 0 | C46: 0 | F46: 0 | G46: 0 | H46: 0 | I46: 0 | L46: 0 | M46: 0 | N46: 0 | Q46: 0 | R46: 0 | S46: 0 | V46: 0 | W46: 0 | X46: 0 | AA46: 0 | AB46: 0 | AC46: 0 | AF46: 0
A47: Product 10 | B47: 0 | C47: 0 | F47: 0 | G47: 0 | H47: 0 | I47: 0 | L47: 0 | M47: 0 | N47: 0 | Q47: 0 | R47: 0 | S47: 0 | V47: 0 | W47: 0 | X47: 0 | AA47: 0 | AB47: 0 | AC47: 0 | AF47: 0
A48: Rej 1 | B48: 0 | C48: 0 | F48: 0 | G48: 0 | H48: 0 | I48: 0 | L48: 0 | M48: 0 | N48: 0 | Q48: 0 | R48: 0 | S48: 0 | V48: 0 | W48: 0 | X48: 0 | AA48: 0 | AB48: 0 | AC48: 0 | AF48: 0
A49: Rej 2 | B49: 0 | C49: 0 | F49: 0 | G49: 0 | H49: 0 | I49: 0 | L49: 0 | M49: 0 | N49: 0 | Q49: 0 | R49: 0 | S49: 0 | V49: 0 | W49: 0 | X49: 0 | AA49: 0 | AB49: 0 | AC49: 0 | AF49: 0
A50: Rej 3 | B50: 0 | C50: 0 | F50: 0 | G50: 0 | H50: 0 | I50: 0 | L50: 0 | M50: 0 | N50: 0 | Q50: 0 | R50: 0 | S50: 0 | V50: 0 | W50: 0 | X50: 0 | AA50: 0 | AB50: 0 | AC50: 0 | AF50: 0
A51: Rej 4 | B51: 0 | C51: 0 | F51: 0 | G51: 0 | H51: 0 | I51: 0 | L51: 0 | M51: 0 | N51: 0 | Q51: 0 | R51: 0 | S51: 0 | V51: 0 | W51: 0 | X51: 0 | AA51: 0 | AB51: 0 | AC51: 0 | AF51: 0
A52: Rej 5 | B52: 0 | C52: 0 | F52: 0 | G52: 0 | H52: 0 | I52: 0 | L52: 0 | M52: 0 | N52: 0 | Q52: 0 | R52: 0 | S52: 0 | V52: 0 | W52: 0 | X52: 0 | AA52: 0 | AB52: 0 | AC52: 0 | AF52: 0
A53: Rej 6 | B53: 0 | C53: 0 | F53: 0 | G53: 0 | H53: 0 | I53: 0 | L53: 0 | M53: 0 | N53: 0 | Q53: 0 | R53: 0 | S53: 0 | V53: 0 | W53: 0 | X53: 0 | AA53: 0 | AB53: 0 | AC53: 0 | AF53: 0
A54: Rej 7 | B54: 0 | C54: 0 | F54: 0 | G54: 0 | H54: 0 | I54: 0 | L54: 0 | M54: 0 | N54: 0 | Q54: 0 | R54: 0 | S54: 0 | V54: 0 | W54: 0 | X54: 0 | AA54: 0 | AB54: 0 | AC54: 0 | AF54: 0
A55: Rej 8 | B55: 0 | C55: 0 | F55: 0 | G55: 0 | H55: 0 | I55: 0 | L55: 0 | M55: 0 | N55: 0 | Q55: 0 | R55: 0 | S55: 0 | V55: 0 | W55: 0 | X55: 0 | AA55: 0 | AB55: 0 | AC55: 0 | AF55: 0
A56: Rej 9 | B56: 0 | C56: 0 | F56: 0 | G56: 0 | H56: 0 | I56: 0 | L56: 0 | M56: 0 | N56: 0 | Q56: 0 | R56: 0 | S56: 0 | V56: 0 | W56: 0 | X56: 0 | AA56: 0 | AB56: 0 | AC56: 0 | AF56: 0
A57: Rej 10 | B57: 0 | C57: 0 | F57: 0 | G57: 0 | H57: 0 | I57: 0 | L57: 0 | M57: 0 | N57: 0 | Q57: 0 | R57: 0 | S57: 0 | V57: 0 | W57: 0 | X57: 0 | AA57: 0 | AB57: 0 | AC57: 0 | AF57: 0
A58: H&T&MR | B58: 0 | C58: 0 | F58: 0 | G58: 0 | H58: 0 | I58: 0 | L58: 0 | M58: 0 | N58: 0 | Q58: 0 | R58: 0 | S58: 0 | V58: 0 | W58: 0 | X58: 0 | AA58: 0 | AB58: 0 | AC58: 0 | AF58: 0
A59: Trimming | B59: 0 | C59: 0 | F59: 0 | G59: 0 | H59: 0 | I59: 0 | L59: 0 | M59: 0 | N59: 0 | Q59: 0 | R59: 0 | S59: 0 | V59: 0 | W59: 0 | X59: 0 | AA59: 0 | AB59: 0 | AC59: 0 | AF59: 0
A60: Suspended 1 | B60: 0 | C60: 0 | F60: 0 | G60: 0 | H60: 0 | I60: 0 | L60: 0 | M60: 0 | N60: 0 | Q60: 0 | R60: 0 | S60: 0 | V60: 0 | W60: 0 | X60: 0 | AA60: 0 | AB60: 0 | AC60: 0 | AF60: 0
A61: Suspended 2 | B61: 0 | C61: 0 | F61: 0 | G61: 0 | H61: 0 | I61: 0 | L61: 0 | M61: 0 | N61: 0 | Q61: 0 | R61: 0 | S61: 0 | V61: 0 | W61: 0 | X61: 0 | AA61: 0 | AB61: 0 | AC61: 0 | AF61: 0
A62: Suspended 3 | B62: 0 | C62: 0 | F62: 0 | G62: 0 | H62: 0 | I62: 0 | L62: 0 | M62: 0 | N62: 0 | Q62: 0 | R62: 0 | S62: 0 | V62: 0 | W62: 0 | X62: 0 | AA62: 0 | AB62: 0 | AC62: 0 | AF62: 0
A63: Suspended 4 | B63: 0 | C63: 0 | F63: 0 | G63: 0 | H63: 0 | I63: 0 | L63: 0 | M63: 0 | N63: 0 | Q63: 0 | R63: 0 | S63: 0 | V63: 0 | W63: 0 | X63: 0 | AA63: 0 | AB63: 0 | AC63: 0 | AF63: 0
A64: Suspended 5 | B64: 0 | C64: 0 | F64: 0 | G64: 0 | H64: 0 | I64: 0 | L64: 0 | M64: 0 | N64: 0 | Q64: 0 | R64: 0 | S64: 0 | V64: 0 | W64: 0 | X64: 0 | AA64: 0 | AB64: 0 | AC64: 0 | AF64: 0
A65: Products | B65: =SUM(F37:F64) -> 0 | E65: Scales = | F65: =J65-B65 -> 0 | G65: 0 | I65: Consumption | J65: 0 | K65: 0

Sheet 15
A1: MACC PRD report | E1: Rolling Mill Plant
A2: Date: | C2: 15 | D2: March | E2: 2019
A3: RM 1
A4: Item | B4: Production | H4: Consumption 1 | M4: Consumption 2 | R4: Consumption 3 | W4: Consumption 4 | AB4: Consumption 5
B5: Code | C5: Description | F5: Ton | G5: Par | H5: Code | I5: Description | L5: Ton | M5: Code | N5: Description | Q5: Ton | R5: Code | S5: Description | V5: Ton | W5: Code | X5: Description | AA5: Ton | AB5: Code | AC5: Description | AF5: Ton
A6: Product 1 | B6: P0501400001 | C6: STR- B 400 BWR, 32 MM, 12 M | F6: 467.3277985 | G6: 234 | H6: P0100700015 | I6: STB- 4SP (SSS) , 150*150*12 M (52 MW) | L6: 473.8006111 | M6: 0 | N6: 0 | Q6: 0 | R6: 0 | S6: 0 | V6: 0 | W6: 0 | X6: 0 | AA6: 0 | AB6: 0 | AC6: 0 | AF6: 0
A7: Product 2 | B7: 0 | C7: 0 | F7: 0 | G7: 0 | H7: 0 | I7: 0 | L7: 0 | M7: 0 | N7: 0 | Q7: 0 | R7: 0 | S7: 0 | V7: 0 | W7: 0 | X7: 0 | AA7: 0 | AB7: 0 | AC7: 0 | AF7: 0
A8: Product 3 | B8: 0 | C8: 0 | F8: 0 | G8: 0 | H8: 0 | I8: 0 | L8: 0 | M8: 0 | N8: 0 | Q8: 0 | R8: 0 | S8: 0 | V8: 0 | W8: 0 | X8: 0 | AA8: 0 | AB8: 0 | AC8: 0 | AF8: 0
A9: Product 4 | B9: 0 | C9: 0 | F9: 0 | G9: 0 | H9: 0 | I9: 0 | L9: 0 | M9: 0 | N9: 0 | Q9: 0 | R9: 0 | S9: 0 | V9: 0 | W9: 0 | X9: 0 | AA9: 0 | AB9: 0 | AC9: 0 | AF9: 0
A10: Product 5 | B10: 0 | C10: 0 | F10: 0 | G10: 0 | H10: 0 | I10: 0 | L10: 0 | M10: 0 | N10: 0 | Q10: 0 | R10: 0 | S10: 0 | V10: 0 | W10: 0 | X10: 0 | AA10: 0 | AB10: 0 | AC10: 0 | AF10: 0
A11: Product 6 | B11: 0 | C11: 0 | F11: 0 | G11: 0 | H11: 0 | I11: 0 | L11: 0 | M11: 0 | N11: 0 | Q11: 0 | R11: 0 | S11: 0 | V11: 0 | W11: 0 | X11: 0 | AA11: 0 | AB11: 0 | AC11: 0 | AF11: 0
A12: Product 7 | B12: 0 | C12: 0 | F12: 0 | G12: 0 | H12: 0 | I12: 0 | L12: 0 | M12: 0 | N12: 0 | Q12: 0 | R12: 0 | S12: 0 | V12: 0 | W12: 0 | X12: 0 | AA12: 0 | AB12: 0 | AC12: 0 | AF12: 0
A13: Product 8 | B13: 0 | C13: 0 | F13: 0 | G13: 0 | H13: 0 | I13: 0 | L13: 0 | M13: 0 | N13: 0 | Q13: 0 | R13: 0 | S13: 0 | V13: 0 | W13: 0 | X13: 0 | AA13: 0 | AB13: 0 | AC13: 0 | AF13: 0
A14: Product 9 | B14: 0 | C14: 0 | F14: 0 | G14: 0 | H14: 0 | I14: 0 | L14: 0 | M14: 0 | N14: 0 | Q14: 0 | R14: 0 | S14: 0 | V14: 0 | W14: 0 | X14: 0 | AA14: 0 | AB14: 0 | AC14: 0 | AF14: 0
A15: Product 10 | B15: 0 | C15: 0 | F15: 0 | G15: 0 | H15: 0 | I15: 0 | L15: 0 | M15: 0 | N15: 0 | Q15: 0 | R15: 0 | S15: 0 | V15: 0 | W15: 0 | X15: 0 | AA15: 0 | AB15: 0 | AC15: 0 | AF15: 0
A16: Rej 1 | B16: P0101300008 | C16: STB- 4SP, 150*150 Different lengths | F16: 1.066185567 | G16: 0.5 | H16: P0100700015 | I16: STB- 4SP (SSS) , 150*150*12 M (52 MW) | L16: 1.066185567 | M16: 0 | N16: 0 | Q16: 0 | R16: 0 | S16: 0 | V16: 0 | W16: 0 | X16: 0 | AA16: 0 | AB16: 0 | AC16: 0 | AF16: 0
A17: Rej 2 | B17: P0101300002 | C17: STB- 4SP, 130*130 Different lengths | F17: 0 | G17: 0 | H17: P0100700014 | I17: STB- 4SP (SSS) , 130*130*12 M ( 52 MW ) | L17: 0 | M17: 0 | N17: 0 | Q17: 0 | R17: 0 | S17: 0 | V17: 0 | W17: 0 | X17: 0 | AA17: 0 | AB17: 0 | AC17: 0 | AF17: 0
A18: Rej 3 | B18: P0101300002 | C18: STB- 4SP, 130*130 Different lengths | F18: 0 | G18: 0 | H18: P0100700001 | I18: STB- 4SP, 130*130*12 M ( 52 MW ) | L18: 0 | M18: 0 | N18: 0 | Q18: 0 | R18: 0 | S18: 0 | V18: 0 | W18: 0 | X18: 0 | AA18: 0 | AB18: 0 | AC18: 0 | AF18: 0
A19: Rej 4 | B19: 0 | C19: 0 | F19: 0 | G19: 0 | H19: 0 | I19: 0 | L19: 0 | M19: 0 | N19: 0 | Q19: 0 | R19: 0 | S19: 0 | V19: 0 | W19: 0 | X19: 0 | AA19: 0 | AB19: 0 | AC19: 0 | AF19: 0
A20: Rej 5 | B20: 0 | C20: 0 | F20: 0 | G20: 0 | H20: 0 | I20: 0 | L20: 0 | M20: 0 | N20: 0 | Q20: 0 | R20: 0 | S20: 0 | V20: 0 | W20: 0 | X20: 0 | AA20: 0 | AB20: 0 | AC20: 0 | AF20: 0
A21: Rej 6 | B21: 0 | C21: 0 | F21: 0 | G21: 0 | H21: 0 | I21: 0 | L21: 0 | M21: 0 | N21: 0 | Q21: 0 | R21: 0 | S21: 0 | V21: 0 | W21: 0 | X21: 0 | AA21: 0 | AB21: 0 | AC21: 0 | AF21: 0
A22: Rej 7 | B22: 0 | C22: 0 | F22: 0 | G22: 0 | H22: 0 | I22: 0 | L22: 0 | M22: 0 | N22: 0 | Q22: 0 | R22: 0 | S22: 0 | V22: 0 | W22: 0 | X22: 0 | AA22: 0 | AB22: 0 | AC22: 0 | AF22: 0
A23: Rej 8 | B23: 0 | C23: 0 | F23: 0 | G23: 0 | H23: 0 | I23: 0 | L23: 0 | M23: 0 | N23: 0 | Q23: 0 | R23: 0 | S23: 0 | V23: 0 | W23: 0 | X23: 0 | AA23: 0 | AB23: 0 | AC23: 0 | AF23: 0
A24: Rej 9 | B24: 0 | C24: 0 | F24: 0 | G24: 0 | H24: 0 | I24: 0 | L24: 0 | M24: 0 | N24: 0 | Q24: 0 | R24: 0 | S24: 0 | V24: 0 | W24: 0 | X24: 0 | AA24: 0 | AB24: 0 | AC24: 0 | AF24: 0
A25: Rej 10 | B25: 0 | C25: 0 | F25: 0 | G25: 0 | H25: 0 | I25: 0 | L25: 0 | M25: 0 | N25: 0 | Q25: 0 | R25: 0 | S25: 0 | V25: 0 | W25: 0 | X25: 0 | AA25: 0 | AB25: 0 | AC25: 0 | AF25: 0
A26: H&T&MR | B26: P0500600001 | C26: MISS ROLLED&HEAD&TAIL | F26: 7.69249688 | G26: 0 | H26: P0100700015 | I26: STB- 4SP (SSS) , 150*150*12 M (52 MW) | L26: 7.69249688 | M26: 0 | N26: 0 | Q26: 0 | R26: 0 | S26: 0 | V26: 0 | W26: 0 | X26: 0 | AA26: 0 | AB26: 0 | AC26: 0 | AF26: 0
A27: Shorts | B27: P0500400001 | C27: STR-SHORTS | F27: 9.578118337 | G27: 0 | H27: P0100700015 | I27: STB- 4SP (SSS) , 150*150*12 M (52 MW) | L27: 9.578118337 | M27: 0 | N27: 0 | Q27: 0 | R27: 0 | S27: 0 | V27: 0 | W27: 0 | X27: 0 | AA27: 0 | AB27: 0 | AC27: 0 | AF27: 0
A28: Cold Shear Cut | B28: P0500700001 | C28: COLD SHEAR CUT | F28: 4.837433503 | G28: 0 | H28: P0100700015 | I28: STB- 4SP (SSS) , 150*150*12 M (52 MW) | L28: 4.837433503 | M28: 0 | N28: 0 | Q28: 0 | R28: 0 | S28: 0 | V28: 0 | W28: 0 | X28: 0 | AA28: 0 | AB28: 0 | AC28: 0 | AF28: 0
A29: Suspended 1 | B29: P0501200010 | C29: STR- 32 MM, SUSPENDED & REJECTED | F29: 2 | G29: 1 | H29: P0100700015 | I29: STB- 4SP (SSS) , 150*150*12 M (52 MW) | L29: 2 | M29: 0 | N29: 0 | Q29: 0 | R29: 0 | S29: 0 | V29: 0 | W29: 0 | X29: 0 | AA29: 0 | AB29: 0 | AC29: 0 | AF29: 0
A30: Suspended 2 | B30: 0 | C30: 0 | F30: 0 | G30: 0 | H30: 0 | I30: 0 | L30: 0 | M30: 0 | N30: 0 | Q30: 0 | R30: 0 | S30: 0 | V30: 0 | W30: 0 | X30: 0 | AA30: 0 | AB30: 0 | AC30: 0 | AF30: 0
A31: Suspended 3 | B31: 0 | C31: 0 | F31: 0 | G31: 0 | H31: 0 | I31: 0 | L31: 0 | M31: 0 | N31: 0 | Q31: 0 | R31: 0 | S31: 0 | V31: 0 | W31: 0 | X31: 0 | AA31: 0 | AB31: 0 | AC31: 0 | AF31: 0
A32: Suspended 4 | B32: 0 | C32: 0 | F32: 0 | G32: 0 | H32: 0 | I32: 0 | L32: 0 | M32: 0 | N32: 0 | Q32: 0 | R32: 0 | S32: 0 | V32: 0 | W32: 0 | X32: 0 | AA32: 0 | AB32: 0 | AC32: 0 | AF32: 0
A33: Suspended 5 | B33: 0 | C33: 0 | F33: 0 | G33: 0 | H33: 0 | I33: 0 | L33: 0 | M33: 0 | N33: 0 | Q33: 0 | R33: 0 | S33: 0 | V33: 0 | W33: 0 | X33: 0 | AA33: 0 | AB33: 0 | AC33: 0 | AF33: 0
A34: Products | B34: =SUM(F6:F33) -> 492.5020328 | E34: Scales = | F34: =J34-B34 -> 6.472812577 | G34: 2.202682481e-13 | I34: Consumption | J34: =SUM(L6:L33,Q6:Q33,V6:V33,AA6:AA33,AF6:AF33) -> 498.9748454 | K34: 0
A35: RM 2
A36: Item | B36: Production | H36: Consumption 1 | M36: Consumption 2 | R36: Consumption 3 | W36: Consumption 4 | AB36: Consumption 5
B37: Code | C37: Description | F37: Ton | G37: Par | H37: Code | I37: Description | L37: Ton | M37: Code | N37: Description | Q37: Ton | R37: Code | S37: Description | V37: Ton | W37: Code | X37: Description | AA37: Ton | AB37: Code | AC37: Description | AF37: Ton
A38: Product 1 | B38: 0 | C38: 0 | F38: 0 | G38: 0 | H38: 0 | I38: 0 | L38: 0 | M38: 0 | N38: 0 | Q38: 0 | R38: 0 | S38: 0 | V38: 0 | W38: 0 | X38: 0 | AA38: 0 | AB38: 0 | AC38: 0 | AF38: 0
A39: Product 2 | B39: 0 | C39: 0 | F39: 0 | G39: 0 | H39: 0 | I39: 0 | L39: 0 | M39: 0 | N39: 0 | Q39: 0 | R39: 0 | S39: 0 | V39: 0 | W39: 0 | X39: 0 | AA39: 0 | AB39: 0 | AC39: 0 | AF39: 0
A40: Product 3 | B40: 0 | C40: 0 | F40: 0 | G40: 0 | H40: 0 | I40: 0 | L40: 0 | M40: 0 | N40: 0 | Q40: 0 | R40: 0 | S40: 0 | V40: 0 | W40: 0 | X40: 0 | AA40: 0 | AB40: 0 | AC40: 0 | AF40: 0
A41: Product 4 | B41: 0 | C41: 0 | F41: 0 | G41: 0 | H41: 0 | I41: 0 | L41: 0 | M41: 0 | N41: 0 | Q41: 0 | R41: 0 | S41: 0 | V41: 0 | W41: 0 | X41: 0 | AA41: 0 | AB41: 0 | AC41: 0 | AF41: 0
A42: Product 5 | B42: 0 | C42: 0 | F42: 0 | G42: 0 | H42: 0 | I42: 0 | L42: 0 | M42: 0 | N42: 0 | Q42: 0 | R42: 0 | S42: 0 | V42: 0 | W42: 0 | X42: 0 | AA42: 0 | AB42: 0 | AC42: 0 | AF42: 0
A43: Product 6 | B43: 0 | C43: 0 | F43: 0 | G43: 0 | H43: 0 | I43: 0 | L43: 0 | M43: 0 | N43: 0 | Q43: 0 | R43: 0 | S43: 0 | V43: 0 | W43: 0 | X43: 0 | AA43: 0 | AB43: 0 | AC43: 0 | AF43: 0
A44: Product 7 | B44: 0 | C44: 0 | F44: 0 | G44: 0 | H44: 0 | I44: 0 | L44: 0 | M44: 0 | N44: 0 | Q44: 0 | R44: 0 | S44: 0 | V44: 0 | W44: 0 | X44: 0 | AA44: 0 | AB44: 0 | AC44: 0 | AF44: 0
A45: Product 8 | B45: 0 | C45: 0 | F45: 0 | G45: 0 | H45: 0 | I45: 0 | L45: 0 | M45: 0 | N45: 0 | Q45: 0 | R45: 0 | S45: 0 | V45: 0 | W45: 0 | X45: 0 | AA45: 0 | AB45: 0 | AC45: 0 | AF45: 0
A46: Product 9 | B46: 0 | C46: 0 | F46: 0 | G46: 0 | H46: 0 | I46: 0 | L46: 0 | M46: 0 | N46: 0 | Q46: 0 | R46: 0 | S46: 0 | V46: 0 | W46: 0 | X46: 0 | AA46: 0 | AB46: 0 | AC46: 0 | AF46: 0
A47: Product 10 | B47: 0 | C47: 0 | F47: 0 | G47: 0 | H47: 0 | I47: 0 | L47: 0 | M47: 0 | N47: 0 | Q47: 0 | R47: 0 | S47: 0 | V47: 0 | W47: 0 | X47: 0 | AA47: 0 | AB47: 0 | AC47: 0 | AF47: 0
A48: Rej 1 | B48: 0 | C48: 0 | F48: 0 | G48: 0 | H48: 0 | I48: 0 | L48: 0 | M48: 0 | N48: 0 | Q48: 0 | R48: 0 | S48: 0 | V48: 0 | W48: 0 | X48: 0 | AA48: 0 | AB48: 0 | AC48: 0 | AF48: 0
A49: Rej 2 | B49: 0 | C49: 0 | F49: 0 | G49: 0 | H49: 0 | I49: 0 | L49: 0 | M49: 0 | N49: 0 | Q49: 0 | R49: 0 | S49: 0 | V49: 0 | W49: 0 | X49: 0 | AA49: 0 | AB49: 0 | AC49: 0 | AF49: 0
A50: Rej 3 | B50: 0 | C50: 0 | F50: 0 | G50: 0 | H50: 0 | I50: 0 | L50: 0 | M50: 0 | N50: 0 | Q50: 0 | R50: 0 | S50: 0 | V50: 0 | W50: 0 | X50: 0 | AA50: 0 | AB50: 0 | AC50: 0 | AF50: 0
A51: Rej 4 | B51: 0 | C51: 0 | F51: 0 | G51: 0 | H51: 0 | I51: 0 | L51: 0 | M51: 0 | N51: 0 | Q51: 0 | R51: 0 | S51: 0 | V51: 0 | W51: 0 | X51: 0 | AA51: 0 | AB51: 0 | AC51: 0 | AF51: 0
A52: Rej 5 | B52: 0 | C52: 0 | F52: 0 | G52: 0 | H52: 0 | I52: 0 | L52: 0 | M52: 0 | N52: 0 | Q52: 0 | R52: 0 | S52: 0 | V52: 0 | W52: 0 | X52: 0 | AA52: 0 | AB52: 0 | AC52: 0 | AF52: 0
A53: Rej 6 | B53: 0 | C53: 0 | F53: 0 | G53: 0 | H53: 0 | I53: 0 | L53: 0 | M53: 0 | N53: 0 | Q53: 0 | R53: 0 | S53: 0 | V53: 0 | W53: 0 | X53: 0 | AA53: 0 | AB53: 0 | AC53: 0 | AF53: 0
A54: Rej 7 | B54: 0 | C54: 0 | F54: 0 | G54: 0 | H54: 0 | I54: 0 | L54: 0 | M54: 0 | N54: 0 | Q54: 0 | R54: 0 | S54: 0 | V54: 0 | W54: 0 | X54: 0 | AA54: 0 | AB54: 0 | AC54: 0 | AF54: 0
A55: Rej 8 | B55: 0 | C55: 0 | F55: 0 | G55: 0 | H55: 0 | I55: 0 | L55: 0 | M55: 0 | N55: 0 | Q55: 0 | R55: 0 | S55: 0 | V55: 0 | W55: 0 | X55: 0 | AA55: 0 | AB55: 0 | AC55: 0 | AF55: 0
A56: Rej 9 | B56: 0 | C56: 0 | F56: 0 | G56: 0 | H56: 0 | I56: 0 | L56: 0 | M56: 0 | N56: 0 | Q56: 0 | R56: 0 | S56: 0 | V56: 0 | W56: 0 | X56: 0 | AA56: 0 | AB56: 0 | AC56: 0 | AF56: 0
A57: Rej 10 | B57: 0 | C57: 0 | F57: 0 | G57: 0 | H57: 0 | I57: 0 | L57: 0 | M57: 0 | N57: 0 | Q57: 0 | R57: 0 | S57: 0 | V57: 0 | W57: 0 | X57: 0 | AA57: 0 | AB57: 0 | AC57: 0 | AF57: 0
A58: H&T&MR | B58: 0 | C58: 0 | F58: 0 | G58: 0 | H58: 0 | I58: 0 | L58: 0 | M58: 0 | N58: 0 | Q58: 0 | R58: 0 | S58: 0 | V58: 0 | W58: 0 | X58: 0 | AA58: 0 | AB58: 0 | AC58: 0 | AF58: 0
A59: Trimming | B59: 0 | C59: 0 | F59: 0 | G59: 0 | H59: 0 | I59: 0 | L59: 0 | M59: 0 | N59: 0 | Q59: 0 | R59: 0 | S59: 0 | V59: 0 | W59: 0 | X59: 0 | AA59: 0 | AB59: 0 | AC59: 0 | AF59: 0
A60: Suspended 1 | B60: 0 | C60: 0 | F60: 0 | G60: 0 | H60: 0 | I60: 0 | L60: 0 | M60: 0 | N60: 0 | Q60: 0 | R60: 0 | S60: 0 | V60: 0 | W60: 0 | X60: 0 | AA60: 0 | AB60: 0 | AC60: 0 | AF60: 0
A61: Suspended 2 | B61: 0 | C61: 0 | F61: 0 | G61: 0 | H61: 0 | I61: 0 | L61: 0 | M61: 0 | N61: 0 | Q61: 0 | R61: 0 | S61: 0 | V61: 0 | W61: 0 | X61: 0 | AA61: 0 | AB61: 0 | AC61: 0 | AF61: 0
A62: Suspended 3 | B62: 0 | C62: 0 | F62: 0 | G62: 0 | H62: 0 | I62: 0 | L62: 0 | M62: 0 | N62: 0 | Q62: 0 | R62: 0 | S62: 0 | V62: 0 | W62: 0 | X62: 0 | AA62: 0 | AB62: 0 | AC62: 0 | AF62: 0
A63: Suspended 4 | B63: 0 | C63: 0 | F63: 0 | G63: 0 | H63: 0 | I63: 0 | L63: 0 | M63: 0 | N63: 0 | Q63: 0 | R63: 0 | S63: 0 | V63: 0 | W63: 0 | X63: 0 | AA63: 0 | AB63: 0 | AC63: 0 | AF63: 0
A64: Suspended 5 | B64: 0 | C64: 0 | F64: 0 | G64: 0 | H64: 0 | I64: 0 | L64: 0 | M64: 0 | N64: 0 | Q64: 0 | R64: 0 | S64: 0 | V64: 0 | W64: 0 | X64: 0 | AA64: 0 | AB64: 0 | AC64: 0 | AF64: 0
A65: Products | B65: =SUM(F37:F64) -> 0 | E65: Scales = | F65: =J65-B65 -> 0 | G65: 0 | I65: Consumption | J65: 0 | K65: 0

Sheet 16
A1: MACC PRD report | E1: Rolling Mill Plant
A2: Date: | C2: 16 | D2: March | E2: 2019
A3: RM 1
A4: Item | B4: Production | H4: Consumption 1 | M4: Consumption 2 | R4: Consumption 3 | W4: Consumption 4 | AB4: Consumption 5
B5: Code | C5: Description | F5: Ton | G5: Par | H5: Code | I5: Description | L5: Ton | M5: Code | N5: Description | Q5: Ton | R5: Code | S5: Description | V5: Ton | W5: Code | X5: Description | AA5: Ton | AB5: Code | AC5: Description | AF5: Ton
A6: Product 1 | B6: P0501400001 | C6: STR- B 400 BWR, 32 MM, 12 M | F6: 1407.63517 | G6: 699 | H6: P0100700015 | I6: STB- 4SP (SSS) , 150*150*12 M (52 MW) | L6: 1426.84095 | M6: 0 | N6: 0 | Q6: 0 | R6: 0 | S6: 0 | V6: 0 | W6: 0 | X6: 0 | AA6: 0 | AB6: 0 | AC6: 0 | AF6: 0
A7: Product 2 | B7: 0 | C7: 0 | F7: 0 | G7: 0 | H7: 0 | I7: 0 | L7: 0 | M7: 0 | N7: 0 | Q7: 0 | R7: 0 | S7: 0 | V7: 0 | W7: 0 | X7: 0 | AA7: 0 | AB7: 0 | AC7: 0 | AF7: 0
A8: Product 3 | B8: 0 | C8: 0 | F8: 0 | G8: 0 | H8: 0 | I8: 0 | L8: 0 | M8: 0 | N8: 0 | Q8: 0 | R8: 0 | S8: 0 | V8: 0 | W8: 0 | X8: 0 | AA8: 0 | AB8: 0 | AC8: 0 | AF8: 0
A9: Product 4 | B9: 0 | C9: 0 | F9: 0 | G9: 0 | H9: 0 | I9: 0 | L9: 0 | M9: 0 | N9: 0 | Q9: 0 | R9: 0 | S9: 0 | V9: 0 | W9: 0 | X9: 0 | AA9: 0 | AB9: 0 | AC9: 0 | AF9: 0
A10: Product 5 | B10: 0 | C10: 0 | F10: 0 | G10: 0 | H10: 0 | I10: 0 | L10: 0 | M10: 0 | N10: 0 | Q10: 0 | R10: 0 | S10: 0 | V10: 0 | W10: 0 | X10: 0 | AA10: 0 | AB10: 0 | AC10: 0 | AF10: 0
A11: Product 6 | B11: 0 | C11: 0 | F11: 0 | G11: 0 | H11: 0 | I11: 0 | L11: 0 | M11: 0 | N11: 0 | Q11: 0 | R11: 0 | S11: 0 | V11: 0 | W11: 0 | X11: 0 | AA11: 0 | AB11: 0 | AC11: 0 | AF11: 0
A12: Product 7 | B12: 0 | C12: 0 | F12: 0 | G12: 0 | H12: 0 | I12: 0 | L12: 0 | M12: 0 | N12: 0 | Q12: 0 | R12: 0 | S12: 0 | V12: 0 | W12: 0 | X12: 0 | AA12: 0 | AB12: 0 | AC12: 0 | AF12: 0
A13: Product 8 | B13: 0 | C13: 0 | F13: 0 | G13: 0 | H13: 0 | I13: 0 | L13: 0 | M13: 0 | N13: 0 | Q13: 0 | R13: 0 | S13: 0 | V13: 0 | W13: 0 | X13: 0 | AA13: 0 | AB13: 0 | AC13: 0 | AF13: 0
A14: Product 9 | B14: 0 | C14: 0 | F14: 0 | G14: 0 | H14: 0 | I14: 0 | L14: 0 | M14: 0 | N14: 0 | Q14: 0 | R14: 0 | S14: 0 | V14: 0 | W14: 0 | X14: 0 | AA14: 0 | AB14: 0 | AC14: 0 | AF14: 0
A15: Product 10 | B15: 0 | C15: 0 | F15: 0 | G15: 0 | H15: 0 | I15: 0 | L15: 0 | M15: 0 | N15: 0 | Q15: 0 | R15: 0 | S15: 0 | V15: 0 | W15: 0 | X15: 0 | AA15: 0 | AB15: 0 | AC15: 0 | AF15: 0
A16: Rej 1 | B16: P0101300008 | C16: STB- 4SP, 150*150 Different lengths | F16: 0 | G16: 0 | H16: P0100700015 | I16: STB- 4SP (SSS) , 150*150*12 M (52 MW) | L16: 0 | M16: 0 | N16: 0 | Q16: 0 | R16: 0 | S16: 0 | V16: 0 | W16: 0 | X16: 0 | AA16: 0 | AB16: 0 | AC16: 0 | AF16: 0
A17: Rej 2 | B17: P0101300002 | C17: STB- 4SP, 130*130 Different lengths | F17: 0 | G17: 0 | H17: P0100700014 | I17: STB- 4SP (SSS) , 130*130*12 M ( 52 MW ) | L17: 0 | M17: 0 | N17: 0 | Q17: 0 | R17: 0 | S17: 0 | V17: 0 | W17: 0 | X17: 0 | AA17: 0 | AB17: 0 | AC17: 0 | AF17: 0
A18: Rej 3 | B18: P0101300002 | C18: STB- 4SP, 130*130 Different lengths | F18: 0 | G18: 0 | H18: P0100700001 | I18: STB- 4SP, 130*130*12 M ( 52 MW ) | L18: 0 | M18: 0 | N18: 0 | Q18: 0 | R18: 0 | S18: 0 | V18: 0 | W18: 0 | X18: 0 | AA18: 0 | AB18: 0 | AC18: 0 | AF18: 0
A19: Rej 4 | B19: 0 | C19: 0 | F19: 0 | G19: 0 | H19: 0 | I19: 0 | L19: 0 | M19: 0 | N19: 0 | Q19: 0 | R19: 0 | S19: 0 | V19: 0 | W19: 0 | X19: 0 | AA19: 0 | AB19: 0 | AC19: 0 | AF19: 0
A20: Rej 5 | B20: 0 | C20: 0 | F20: 0 | G20: 0 | H20: 0 | I20: 0 | L20: 0 | M20: 0 | N20: 0 | Q20: 0 | R20: 0 | S20: 0 | V20: 0 | W20: 0 | X20: 0 | AA20: 0 | AB20: 0 | AC20: 0 | AF20: 0
A21: Rej 6 | B21: 0 | C21: 0 | F21: 0 | G21: 0 | H21: 0 | I21: 0 | L21: 0 | M21: 0 | N21: 0 | Q21: 0 | R21: 0 | S21: 0 | V21: 0 | W21: 0 | X21: 0 | AA21: 0 | AB21: 0 | AC21: 0 | AF21: 0
A22: Rej 7 | B22: 0 | C22: 0 | F22: 0 | G22: 0 | H22: 0 | I22: 0 | L22: 0 | M22: 0 | N22: 0 | Q22: 0 | R22: 0 | S22: 0 | V22: 0 | W22: 0 | X22: 0 | AA22: 0 | AB22: 0 | AC22: 0 | AF22: 0
A23: Rej 8 | B23: 0 | C23: 0 | F23: 0 | G23: 0 | H23: 0 | I23: 0 | L23: 0 | M23: 0 | N23: 0 | Q23: 0 | R23: 0 | S23: 0 | V23: 0 | W23: 0 | X23: 0 | AA23: 0 | AB23: 0 | AC23: 0 | AF23: 0
A24: Rej 9 | B24: 0 | C24: 0 | F24: 0 | G24: 0 | H24: 0 | I24: 0 | L24: 0 | M24: 0 | N24: 0 | Q24: 0 | R24: 0 | S24: 0 | V24: 0 | W24: 0 | X24: 0 | AA24: 0 | AB24: 0 | AC24: 0 | AF24: 0
A25: Rej 10 | B25: 0 | C25: 0 | F25: 0 | G25: 0 | H25: 0 | I25: 0 | L25: 0 | M25: 0 | N25: 0 | Q25: 0 | R25: 0 | S25: 0 | V25: 0 | W25: 0 | X25: 0 | AA25: 0 | AB25: 0 | AC25: 0 | AF25: 0
A26: H&T&MR | B26: P0500600001 | C26: MISS ROLLED&HEAD&TAIL | F26: 7.290809695 | G26: 0 | H26: P0100700015 | I26: STB- 4SP (SSS) , 150*150*12 M (52 MW) | L26: 7.290809695 | M26: 0 | N26: 0 | Q26: 0 | R26: 0 | S26: 0 | V26: 0 | W26: 0 | X26: 0 | AA26: 0 | AB26: 0 | AC26: 0 | AF26: 0
A27: Shorts | B27: P0500400001 | C27: STR-SHORTS | F27: 28.72724836 | G27: 0 | H27: P0100700015 | I27: STB- 4SP (SSS) , 150*150*12 M (52 MW) | L27: 28.72724836 | M27: 0 | N27: 0 | Q27: 0 | R27: 0 | S27: 0 | V27: 0 | W27: 0 | X27: 0 | AA27: 0 | AB27: 0 | AC27: 0 | AF27: 0
A28: Cold Shear Cut | B28: P0500700001 | C28: COLD SHEAR CUT | F28: 14.50871129 | G28: 0 | H28: P0100700015 | I28: STB- 4SP (SSS) , 150*150*12 M (52 MW) | L28: 14.50871129 | M28: 0 | N28: 0 | Q28: 0 | R28: 0 | S28: 0 | V28: 0 | W28: 0 | X28: 0 | AA28: 0 | AB28: 0 | AC28: 0 | AF28: 0
A29: Suspended 1 | B29: P0501200010 | C29: STR- 32 MM, SUSPENDED & REJECTED | F29: 0 | G29: 0 | H29: P0100700015 | I29: STB- 4SP (SSS) , 150*150*12 M (52 MW) | L29: 0 | M29: 0 | N29: 0 | Q29: 0 | R29: 0 | S29: 0 | V29: 0 | W29: 0 | X29: 0 | AA29: 0 | AB29: 0 | AC29: 0 | AF29: 0
A30: Suspended 2 | B30: 0 | C30: 0 | F30: 0 | G30: 0 | H30: 0 | I30: 0 | L30: 0 | M30: 0 | N30: 0 | Q30: 0 | R30: 0 | S30: 0 | V30: 0 | W30: 0 | X30: 0 | AA30: 0 | AB30: 0 | AC30: 0 | AF30: 0
A31: Suspended 3 | B31: 0 | C31: 0 | F31: 0 | G31: 0 | H31: 0 | I31: 0 | L31: 0 | M31: 0 | N31: 0 | Q31: 0 | R31: 0 | S31: 0 | V31: 0 | W31: 0 | X31: 0 | AA31: 0 | AB31: 0 | AC31: 0 | AF31: 0
A32: Suspended 4 | B32: 0 | C32: 0 | F32: 0 | G32: 0 | H32: 0 | I32: 0 | L32: 0 | M32: 0 | N32: 0 | Q32: 0 | R32: 0 | S32: 0 | V32: 0 | W32: 0 | X32: 0 | AA32: 0 | AB32: 0 | AC32: 0 | AF32: 0
A33: Suspended 5 | B33: 0 | C33: 0 | F33: 0 | G33: 0 | H33: 0 | I33: 0 | L33: 0 | M33: 0 | N33: 0 | Q33: 0 | R33: 0 | S33: 0 | V33: 0 | W33: 0 | X33: 0 | AA33: 0 | AB33: 0 | AC33: 0 | AF33: 0
A34: Products | B34: =SUM(F6:F33) -> 1458.161939 | E34: Scales = | F34: =J34-B34 -> 19.20578035 | G34: 2.202682481e-13 | I34: Consumption | J34: =SUM(L6:L33,Q6:Q33,V6:V33,AA6:AA33,AF6:AF33) -> 1477.367719 | K34: 0
A35: RM 2
A36: Item | B36: Production | H36: Consumption 1 | M36: Consumption 2 | R36: Consumption 3 | W36: Consumption 4 | AB36: Consumption 5
B37: Code | C37: Description | F37: Ton | G37: Par | H37: Code | I37: Description | L37: Ton | M37: Code | N37: Description | Q37: Ton | R37: Code | S37: Description | V37: Ton | W37: Code | X37: Description | AA37: Ton | AB37: Code | AC37: Description | AF37: Ton
A38: Product 1 | B38: 0 | C38: 0 | F38: 0 | G38: 0 | H38: 0 | I38: 0 | L38: 0 | M38: 0 | N38: 0 | Q38: 0 | R38: 0 | S38: 0 | V38: 0 | W38: 0 | X38: 0 | AA38: 0 | AB38: 0 | AC38: 0 | AF38: 0
A39: Product 2 | B39: 0 | C39: 0 | F39: 0 | G39: 0 | H39: 0 | I39: 0 | L39: 0 | M39: 0 | N39: 0 | Q39: 0 | R39: 0 | S39: 0 | V39: 0 | W39: 0 | X39: 0 | AA39: 0 | AB39: 0 | AC39: 0 | AF39: 0
A40: Product 3 | B40: 0 | C40: 0 | F40: 0 | G40: 0 | H40: 0 | I40: 0 | L40: 0 | M40: 0 | N40: 0 | Q40: 0 | R40: 0 | S40: 0 | V40: 0 | W40: 0 | X40: 0 | AA40: 0 | AB40: 0 | AC40: 0 | AF40: 0
A41: Product 4 | B41: 0 | C41: 0 | F41: 0 | G41: 0 | H41: 0 | I41: 0 | L41: 0 | M41: 0 | N41: 0 | Q41: 0 | R41: 0 | S41: 0 | V41: 0 | W41: 0 | X41: 0 | AA41: 0 | AB41: 0 | AC41: 0 | AF41: 0
A42: Product 5 | B42: 0 | C42: 0 | F42: 0 | G42: 0 | H42: 0 | I42: 0 | L42: 0 | M42: 0 | N42: 0 | Q42: 0 | R42: 0 | S42: 0 | V42: 0 | W42: 0 | X42: 0 | AA42: 0 | AB42: 0 | AC42: 0 | AF42: 0
A43: Product 6 | B43: 0 | C43: 0 | F43: 0 | G43: 0 | H43: 0 | I43: 0 | L43: 0 | M43: 0 | N43: 0 | Q43: 0 | R43: 0 | S43: 0 | V43: 0 | W43: 0 | X43: 0 | AA43: 0 | AB43: 0 | AC43: 0 | AF43: 0
A44: Product 7 | B44: 0 | C44: 0 | F44: 0 | G44: 0 | H44: 0 | I44: 0 | L44: 0 | M44: 0 | N44: 0 | Q44: 0 | R44: 0 | S44: 0 | V44: 0 | W44: 0 | X44: 0 | AA44: 0 | AB44: 0 | AC44: 0 | AF44: 0
A45: Product 8 | B45: 0 | C45: 0 | F45: 0 | G45: 0 | H45: 0 | I45: 0 | L45: 0 | M45: 0 | N45: 0 | Q45: 0 | R45: 0 | S45: 0 | V45: 0 | W45: 0 | X45: 0 | AA45: 0 | AB45: 0 | AC45: 0 | AF45: 0
A46: Product 9 | B46: 0 | C46: 0 | F46: 0 | G46: 0 | H46: 0 | I46: 0 | L46: 0 | M46: 0 | N46: 0 | Q46: 0 | R46: 0 | S46: 0 | V46: 0 | W46: 0 | X46: 0 | AA46: 0 | AB46: 0 | AC46: 0 | AF46: 0
A47: Product 10 | B47: 0 | C47: 0 | F47: 0 | G47: 0 | H47: 0 | I47: 0 | L47: 0 | M47: 0 | N47: 0 | Q47: 0 | R47: 0 | S47: 0 | V47: 0 | W47: 0 | X47: 0 | AA47: 0 | AB47: 0 | AC47: 0 | AF47: 0
A48: Rej 1 | B48: 0 | C48: 0 | F48: 0 | G48: 0 | H48: 0 | I48: 0 | L48: 0 | M48: 0 | N48: 0 | Q48: 0 | R48: 0 | S48: 0 | V48: 0 | W48: 0 | X48: 0 | AA48: 0 | AB48: 0 | AC48: 0 | AF48: 0
A49: Rej 2 | B49: 0 | C49: 0 | F49: 0 | G49: 0 | H49: 0 | I49: 0 | L49: 0 | M49: 0 | N49: 0 | Q49: 0 | R49: 0 | S49: 0 | V49: 0 | W49: 0 | X49: 0 | AA49: 0 | AB49: 0 | AC49: 0 | AF49: 0
A50: Rej 3 | B50: 0 | C50: 0 | F50: 0 | G50: 0 | H50: 0 | I50: 0 | L50: 0 | M50: 0 | N50: 0 | Q50: 0 | R50: 0 | S50: 0 | V50: 0 | W50: 0 | X50: 0 | AA50: 0 | AB50: 0 | AC50: 0 | AF50: 0
A51: Rej 4 | B51: 0 | C51: 0 | F51: 0 | G51: 0 | H51: 0 | I51: 0 | L51: 0 | M51: 0 | N51: 0 | Q51: 0 | R51: 0 | S51: 0 | V51: 0 | W51: 0 | X51: 0 | AA51: 0 | AB51: 0 | AC51: 0 | AF51: 0
A52: Rej 5 | B52: 0 | C52: 0 | F52: 0 | G52: 0 | H52: 0 | I52: 0 | L52: 0 | M52: 0 | N52: 0 | Q52: 0 | R52: 0 | S52: 0 | V52: 0 | W52: 0 | X52: 0 | AA52: 0 | AB52: 0 | AC52: 0 | AF52: 0
A53: Rej 6 | B53: 0 | C53: 0 | F53: 0 | G53: 0 | H53: 0 | I53: 0 | L53: 0 | M53: 0 | N53: 0 | Q53: 0 | R53: 0 | S53: 0 | V53: 0 | W53: 0 | X53: 0 | AA53: 0 | AB53: 0 | AC53: 0 | AF53: 0
A54: Rej 7 | B54: 0 | C54: 0 | F54: 0 | G54: 0 | H54: 0 | I54: 0 | L54: 0 | M54: 0 | N54: 0 | Q54: 0 | R54: 0 | S54: 0 | V54: 0 | W54: 0 | X54: 0 | AA54: 0 | AB54: 0 | AC54: 0 | AF54: 0
A55: Rej 8 | B55: 0 | C55: 0 | F55: 0 | G55: 0 | H55: 0 | I55: 0 | L55: 0 | M55: 0 | N55: 0 | Q55: 0 | R55: 0 | S55: 0 | V55: 0 | W55: 0 | X55: 0 | AA55: 0 | AB55: 0 | AC55: 0 | AF55: 0
A56: Rej 9 | B56: 0 | C56: 0 | F56: 0 | G56: 0 | H56: 0 | I56: 0 | L56: 0 | M56: 0 | N56: 0 | Q56: 0 | R56: 0 | S56: 0 | V56: 0 | W56: 0 | X56: 0 | AA56: 0 | AB56: 0 | AC56: 0 | AF56: 0
A57: Rej 10 | B57: 0 | C57: 0 | F57: 0 | G57: 0 | H57: 0 | I57: 0 | L57: 0 | M57: 0 | N57: 0 | Q57: 0 | R57: 0 | S57: 0 | V57: 0 | W57: 0 | X57: 0 | AA57: 0 | AB57: 0 | AC57: 0 | AF57: 0
A58: H&T&MR | B58: 0 | C58: 0 | F58: 0 | G58: 0 | H58: 0 | I58: 0 | L58: 0 | M58: 0 | N58: 0 | Q58: 0 | R58: 0 | S58: 0 | V58: 0 | W58: 0 | X58: 0 | AA58: 0 | AB58: 0 | AC58: 0 | AF58: 0
A59: Trimming | B59: 0 | C59: 0 | F59: 0 | G59: 0 | H59: 0 | I59: 0 | L59: 0 | M59: 0 | N59: 0 | Q59: 0 | R59: 0 | S59: 0 | V59: 0 | W59: 0 | X59: 0 | AA59: 0 | AB59: 0 | AC59: 0 | AF59: 0
A60: Suspended 1 | B60: 0 | C60: 0 | F60: 0 | G60: 0 | H60: 0 | I60: 0 | L60: 0 | M60: 0 | N60: 0 | Q60: 0 | R60: 0 | S60: 0 | V60: 0 | W60: 0 | X60: 0 | AA60: 0 | AB60: 0 | AC60: 0 | AF60: 0
A61: Suspended 2 | B61: 0 | C61: 0 | F61: 0 | G61: 0 | H61: 0 | I61: 0 | L61: 0 | M61: 0 | N61: 0 | Q61: 0 | R61: 0 | S61: 0 | V61: 0 | W61: 0 | X61: 0 | AA61: 0 | AB61: 0 | AC61: 0 | AF61: 0
A62: Suspended 3 | B62: 0 | C62: 0 | F62: 0 | G62: 0 | H62: 0 | I62: 0 | L62: 0 | M62: 0 | N62: 0 | Q62: 0 | R62: 0 | S62: 0 | V62: 0 | W62: 0 | X62: 0 | AA62: 0 | AB62: 0 | AC62: 0 | AF62: 0
A63: Suspended 4 | B63: 0 | C63: 0 | F63: 0 | G63: 0 | H63: 0 | I63: 0 | L63: 0 | M63: 0 | N63: 0 | Q63: 0 | R63: 0 | S63: 0 | V63: 0 | W63: 0 | X63: 0 | AA63: 0 | AB63: 0 | AC63: 0 | AF63: 0
A64: Suspended 5 | B64: 0 | C64: 0 | F64: 0 | G64: 0 | H64: 0 | I64: 0 | L64: 0 | M64: 0 | N64: 0 | Q64: 0 | R64: 0 | S64: 0 | V64: 0 | W64: 0 | X64: 0 | AA64: 0 | AB64: 0 | AC64: 0 | AF64: 0
A65: Products | B65: =SUM(F37:F64) -> 0 | E65: Scales = | F65: =J65-B65 -> 0 | G65: 0 | I65: Consumption | J65: 0 | K65: 0

Sheet 17
A1: MACC PRD report | E1: Rolling Mill Plant
A2: Date: | C2: 17 | D2: March | E2: 2019
A3: RM 1
A4: Item | B4: Production | H4: Consumption 1 | M4: Consumption 2 | R4: Consumption 3 | W4: Consumption 4 | AB4: Consumption 5
B5: Code | C5: Description | F5: Ton | G5: Par | H5: Code | I5: Description | L5: Ton | M5: Code | N5: Description | Q5: Ton | R5: Code | S5: Description | V5: Ton | W5: Code | X5: Description | AA5: Ton | AB5: Code | AC5: Description | AF5: Ton
A6: Product 1 | B6: P0501300001 | C6: STR- B 500 BWR, 32 MM, 12 M | F6: 830.1932281 | G6: 418 | H6: P0100700015 | I6: STB- 4SP (SSS) , 150*150*12 M (52 MW) | L6: 849.0175513 | M6: 0 | N6: 0 | Q6: 0 | R6: 0 | S6: 0 | V6: 0 | W6: 0 | X6: 0 | AA6: 0 | AB6: 0 | AC6: 0 | AF6: 0
A7: Product 2 | B7: P0501400001 | C7: STR- B 400 BWR, 32 MM, 12 M | F7: 533.2628035 | G7: 267 | H7: P0100700015 | I7: STB- 4SP (SSS) , 150*150*12 M (52 MW) | L7: 533.2628035 | M7: 0 | N7: 0 | Q7: 0 | R7: 0 | S7: 0 | V7: 0 | W7: 0 | X7: 0 | AA7: 0 | AB7: 0 | AC7: 0 | AF7: 0
A8: Product 3 | B8: P0502200010 | C8: STR- B 500 DWR, 32 MM, 12 M | F8: 8.11064105 | G8: 4 | H8: P0100200007 | I8: STB- 5 SP, 150*150*12 M ( ST 52 ) | L8: 8.11064105 | M8: 0 | N8: 0 | Q8: 0 | R8: 0 | S8: 0 | V8: 0 | W8: 0 | X8: 0 | AA8: 0 | AB8: 0 | AC8: 0 | AF8: 0
A9: Product 4 | B9: P0502300010 | C9: STR- B 400 C-R, 32 MM, 12 M | F9: 6.082980788 | G9: 3 | H9: P0100200007 | I9: STB- 5 SP, 150*150*12 M ( ST 52 ) | L9: 6.082980788 | M9: 0 | N9: 0 | Q9: 0 | R9: 0 | S9: 0 | V9: 0 | W9: 0 | X9: 0 | AA9: 0 | AB9: 0 | AC9: 0 | AF9: 0
A10: Product 5 | B10: 0 | C10: 0 | F10: 0 | G10: 0 | H10: 0 | I10: 0 | L10: 0 | M10: 0 | N10: 0 | Q10: 0 | R10: 0 | S10: 0 | V10: 0 | W10: 0 | X10: 0 | AA10: 0 | AB10: 0 | AC10: 0 | AF10: 0
A11: Product 6 | B11: 0 | C11: 0 | F11: 0 | G11: 0 | H11: 0 | I11: 0 | L11: 0 | M11: 0 | N11: 0 | Q11: 0 | R11: 0 | S11: 0 | V11: 0 | W11: 0 | X11: 0 | AA11: 0 | AB11: 0 | AC11: 0 | AF11: 0
A12: Product 7 | B12: 0 | C12: 0 | F12: 0 | G12: 0 | H12: 0 | I12: 0 | L12: 0 | M12: 0 | N12: 0 | Q12: 0 | R12: 0 | S12: 0 | V12: 0 | W12: 0 | X12: 0 | AA12: 0 | AB12: 0 | AC12: 0 | AF12: 0
A13: Product 8 | B13: 0 | C13: 0 | F13: 0 | G13: 0 | H13: 0 | I13: 0 | L13: 0 | M13: 0 | N13: 0 | Q13: 0 | R13: 0 | S13: 0 | V13: 0 | W13: 0 | X13: 0 | AA13: 0 | AB13: 0 | AC13: 0 | AF13: 0
A14: Product 9 | B14: 0 | C14: 0 | F14: 0 | G14: 0 | H14: 0 | I14: 0 | L14: 0 | M14: 0 | N14: 0 | Q14: 0 | R14: 0 | S14: 0 | V14: 0 | W14: 0 | X14: 0 | AA14: 0 | AB14: 0 | AC14: 0 | AF14: 0
A15: Product 10 | B15: 0 | C15: 0 | F15: 0 | G15: 0 | H15: 0 | I15: 0 | L15: 0 | M15: 0 | N15: 0 | Q15: 0 | R15: 0 | S15: 0 | V15: 0 | W15: 0 | X15: 0 | AA15: 0 | AB15: 0 | AC15: 0 | AF15: 0
A16: Rej 1 | B16: P0101300008 | C16: STB- 4SP, 150*150 Different lengths | F16: 0 | G16: 0 | H16: P0100700015 | I16: STB- 4SP (SSS) , 150*150*12 M (52 MW) | L16: 0 | M16: 0 | N16: 0 | Q16: 0 | R16: 0 | S16: 0 | V16: 0 | W16: 0 | X16: 0 | AA16: 0 | AB16: 0 | AC16: 0 | AF16: 0
A17: Rej 2 | B17: P0101300002 | C17: STB- 4SP, 130*130 Different lengths | F17: 0 | G17: 0 | H17: P0100700014 | I17: STB- 4SP (SSS) , 130*130*12 M ( 52 MW ) | L17: 0 | M17: 0 | N17: 0 | Q17: 0 | R17: 0 | S17: 0 | V17: 0 | W17: 0 | X17: 0 | AA17: 0 | AB17: 0 | AC17: 0 | AF17: 0
A18: Rej 3 | B18: P0101300002 | C18: STB- 4SP, 130*130 Different lengths | F18: 0 | G18: 0 | H18: P0100700001 | I18: STB- 4SP, 130*130*12 M ( 52 MW ) | L18: 0 | M18: 0 | N18: 0 | Q18: 0 | R18: 0 | S18: 0 | V18: 0 | W18: 0 | X18: 0 | AA18: 0 | AB18: 0 | AC18: 0 | AF18: 0
A19: Rej 4 | B19: 0 | C19: 0 | F19: 0 | G19: 0 | H19: 0 | I19: 0 | L19: 0 | M19: 0 | N19: 0 | Q19: 0 | R19: 0 | S19: 0 | V19: 0 | W19: 0 | X19: 0 | AA19: 0 | AB19: 0 | AC19: 0 | AF19: 0
A20: Rej 5 | B20: 0 | C20: 0 | F20: 0 | G20: 0 | H20: 0 | I20: 0 | L20: 0 | M20: 0 | N20: 0 | Q20: 0 | R20: 0 | S20: 0 | V20: 0 | W20: 0 | X20: 0 | AA20: 0 | AB20: 0 | AC20: 0 | AF20: 0
A21: Rej 6 | B21: 0 | C21: 0 | F21: 0 | G21: 0 | H21: 0 | I21: 0 | L21: 0 | M21: 0 | N21: 0 | Q21: 0 | R21: 0 | S21: 0 | V21: 0 | W21: 0 | X21: 0 | AA21: 0 | AB21: 0 | AC21: 0 | AF21: 0
A22: Rej 7 | B22: 0 | C22: 0 | F22: 0 | G22: 0 | H22: 0 | I22: 0 | L22: 0 | M22: 0 | N22: 0 | Q22: 0 | R22: 0 | S22: 0 | V22: 0 | W22: 0 | X22: 0 | AA22: 0 | AB22: 0 | AC22: 0 | AF22: 0
A23: Rej 8 | B23: 0 | C23: 0 | F23: 0 | G23: 0 | H23: 0 | I23: 0 | L23: 0 | M23: 0 | N23: 0 | Q23: 0 | R23: 0 | S23: 0 | V23: 0 | W23: 0 | X23: 0 | AA23: 0 | AB23: 0 | AC23: 0 | AF23: 0
A24: Rej 9 | B24: 0 | C24: 0 | F24: 0 | G24: 0 | H24: 0 | I24: 0 | L24: 0 | M24: 0 | N24: 0 | Q24: 0 | R24: 0 | S24: 0 | V24: 0 | W24: 0 | X24: 0 | AA24: 0 | AB24: 0 | AC24: 0 | AF24: 0
A25: Rej 10 | B25: 0 | C25: 0 | F25: 0 | G25: 0 | H25: 0 | I25: 0 | L25: 0 | M25: 0 | N25: 0 | Q25: 0 | R25: 0 | S25: 0 | V25: 0 | W25: 0 | X25: 0 | AA25: 0 | AB25: 0 | AC25: 0 | AF25: 0
A26: H&T&MR | B26: P0500600001 | C26: MISS ROLLED&HEAD&TAIL | F26: 9.235943197 | G26: 0 | H26: P0100700015 | I26: STB- 4SP (SSS) , 150*150*12 M (52 MW) | L26: 9.235943197 | M26: 0 | N26: 0 | Q26: 0 | R26: 0 | S26: 0 | V26: 0 | W26: 0 | X26: 0 | AA26: 0 | AB26: 0 | AC26: 0 | AF26: 0
A27: Shorts | B27: P0500400001 | C27: STR-SHORTS | F27: 28.11529905 | G27: 0 | H27: P0100700015 | I27: STB- 4SP (SSS) , 150*150*12 M (52 MW) | L27: 28.11529905 | M27: 0 | N27: 0 | Q27: 0 | R27: 0 | S27: 0 | V27: 0 | W27: 0 | X27: 0 | AA27: 0 | AB27: 0 | AC27: 0 | AF27: 0
A28: Cold Shear Cut | B28: P0500700001 | C28: COLD SHEAR CUT | F28: 14.19964598 | G28: 0 | H28: P0100700015 | I28: STB- 4SP (SSS) , 150*150*12 M (52 MW) | L28: 14.19964598 | M28: 0 | N28: 0 | Q28: 0 | R28: 0 | S28: 0 | V28: 0 | W28: 0 | X28: 0 | AA28: 0 | AB28: 0 | AC28: 0 | AF28: 0
A29: Suspended 1 | B29: P0501200010 | C29: STR- 32 MM, SUSPENDED & REJECTED | F29: 0 | G29: 0 | H29: P0100700015 | I29: STB- 4SP (SSS) , 150*150*12 M (52 MW) | L29: 0 | M29: 0 | N29: 0 | Q29: 0 | R29: 0 | S29: 0 | V29: 0 | W29: 0 | X29: 0 | AA29: 0 | AB29: 0 | AC29: 0 | AF29: 0
A30: Suspended 2 | B30: 0 | C30: 0 | F30: 0 | G30: 0 | H30: 0 | I30: 0 | L30: 0 | M30: 0 | N30: 0 | Q30: 0 | R30: 0 | S30: 0 | V30: 0 | W30: 0 | X30: 0 | AA30: 0 | AB30: 0 | AC30: 0 | AF30: 0
A31: Suspended 3 | B31: 0 | C31: 0 | F31: 0 | G31: 0 | H31: 0 | I31: 0 | L31: 0 | M31: 0 | N31: 0 | Q31: 0 | R31: 0 | S31: 0 | V31: 0 | W31: 0 | X31: 0 | AA31: 0 | AB31: 0 | AC31: 0 | AF31: 0
A32: Suspended 4 | B32: 0 | C32: 0 | F32: 0 | G32: 0 | H32: 0 | I32: 0 | L32: 0 | M32: 0 | N32: 0 | Q32: 0 | R32: 0 | S32: 0 | V32: 0 | W32: 0 | X32: 0 | AA32: 0 | AB32: 0 | AC32: 0 | AF32: 0
A33: Suspended 5 | B33: 0 | C33: 0 | F33: 0 | G33: 0 | H33: 0 | I33: 0 | L33: 0 | M33: 0 | N33: 0 | Q33: 0 | R33: 0 | S33: 0 | V33: 0 | W33: 0 | X33: 0 | AA33: 0 | AB33: 0 | AC33: 0 | AF33: 0
A34: Products | B34: =SUM(F6:F33) -> 1429.200542 | E34: Scales = | F34: =J34-B34 -> 18.82432324 | G34: 2.202682481e-13 | I34: Consumption | J34: =SUM(L6:L33,Q6:Q33,V6:V33,AA6:AA33,AF6:AF33) -> 1448.024865 | K34: 0
A35: RM 2
A36: Item | B36: Production | H36: Consumption 1 | M36: Consumption 2 | R36: Consumption 3 | W36: Consumption 4 | AB36: Consumption 5
B37: Code | C37: Description | F37: Ton | G37: Par | H37: Code | I37: Description | L37: Ton | M37: Code | N37: Description | Q37: Ton | R37: Code | S37: Description | V37: Ton | W37: Code | X37: Description | AA37: Ton | AB37: Code | AC37: Description | AF37: Ton
A38: Product 1 | B38: 0 | C38: 0 | F38: 0 | G38: 0 | H38: 0 | I38: 0 | L38: 0 | M38: 0 | N38: 0 | Q38: 0 | R38: 0 | S38: 0 | V38: 0 | W38: 0 | X38: 0 | AA38: 0 | AB38: 0 | AC38: 0 | AF38: 0
A39: Product 2 | B39: 0 | C39: 0 | F39: 0 | G39: 0 | H39: 0 | I39: 0 | L39: 0 | M39: 0 | N39: 0 | Q39: 0 | R39: 0 | S39: 0 | V39: 0 | W39: 0 | X39: 0 | AA39: 0 | AB39: 0 | AC39: 0 | AF39: 0
A40: Product 3 | B40: 0 | C40: 0 | F40: 0 | G40: 0 | H40: 0 | I40: 0 | L40: 0 | M40: 0 | N40: 0 | Q40: 0 | R40: 0 | S40: 0 | V40: 0 | W40: 0 | X40: 0 | AA40: 0 | AB40: 0 | AC40: 0 | AF40: 0
A41: Product 4 | B41: 0 | C41: 0 | F41: 0 | G41: 0 | H41: 0 | I41: 0 | L41: 0 | M41: 0 | N41: 0 | Q41: 0 | R41: 0 | S41: 0 | V41: 0 | W41: 0 | X41: 0 | AA41: 0 | AB41: 0 | AC41: 0 | AF41: 0
A42: Product 5 | B42: 0 | C42: 0 | F42: 0 | G42: 0 | H42: 0 | I42: 0 | L42: 0 | M42: 0 | N42: 0 | Q42: 0 | R42: 0 | S42: 0 | V42: 0 | W42: 0 | X42: 0 | AA42: 0 | AB42: 0 | AC42: 0 | AF42: 0
A43: Product 6 | B43: 0 | C43: 0 | F43: 0 | G43: 0 | H43: 0 | I43: 0 | L43: 0 | M43: 0 | N43: 0 | Q43: 0 | R43: 0 | S43: 0 | V43: 0 | W43: 0 | X43: 0 | AA43: 0 | AB43: 0 | AC43: 0 | AF43: 0
A44: Product 7 | B44: 0 | C44: 0 | F44: 0 | G44: 0 | H44: 0 | I44: 0 | L44: 0 | M44: 0 | N44: 0 | Q44: 0 | R44: 0 | S44: 0 | V44: 0 | W44: 0 | X44: 0 | AA44: 0 | AB44: 0 | AC44: 0 | AF44: 0
A45: Product 8 | B45: 0 | C45: 0 | F45: 0 | G45: 0 | H45: 0 | I45: 0 | L45: 0 | M45: 0 | N45: 0 | Q45: 0 | R45: 0 | S45: 0 | V45: 0 | W45: 0 | X45: 0 | AA45: 0 | AB45: 0 | AC45: 0 | AF45: 0
A46: Product 9 | B46: 0 | C46: 0 | F46: 0 | G46: 0 | H46: 0 | I46: 0 | L46: 0 | M46: 0 | N46: 0 | Q46: 0 | R46: 0 | S46: 0 | V46: 0 | W46: 0 | X46: 0 | AA46: 0 | AB46: 0 | AC46: 0 | AF46: 0
A47: Product 10 | B47: 0 | C47: 0 | F47: 0 | G47: 0 | H47: 0 | I47: 0 | L47: 0 | M47: 0 | N47: 0 | Q47: 0 | R47: 0 | S47: 0 | V47: 0 | W47: 0 | X47: 0 | AA47: 0 | AB47: 0 | AC47: 0 | AF47: 0
A48: Rej 1 | B48: 0 | C48: 0 | F48: 0 | G48: 0 | H48: 0 | I48: 0 | L48: 0 | M48: 0 | N48: 0 | Q48: 0 | R48: 0 | S48: 0 | V48: 0 | W48: 0 | X48: 0 | AA48: 0 | AB48: 0 | AC48: 0 | AF48: 0
A49: Rej 2 | B49: 0 | C49: 0 | F49: 0 | G49: 0 | H49: 0 | I49: 0 | L49: 0 | M49: 0 | N49: 0 | Q49: 0 | R49: 0 | S49: 0 | V49: 0 | W49: 0 | X49: 0 | AA49: 0 | AB49: 0 | AC49: 0 | AF49: 0
A50: Rej 3 | B50: 0 | C50: 0 | F50: 0 | G50: 0 | H50: 0 | I50: 0 | L50: 0 | M50: 0 | N50: 0 | Q50: 0 | R50: 0 | S50: 0 | V50: 0 | W50: 0 | X50: 0 | AA50: 0 | AB50: 0 | AC50: 0 | AF50: 0
A51: Rej 4 | B51: 0 | C51: 0 | F51: 0 | G51: 0 | H51: 0 | I51: 0 | L51: 0 | M51: 0 | N51: 0 | Q51: 0 | R51: 0 | S51: 0 | V51: 0 | W51: 0 | X51: 0 | AA51: 0 | AB51: 0 | AC51: 0 | AF51: 0
A52: Rej 5 | B52: 0 | C52: 0 | F52: 0 | G52: 0 | H52: 0 | I52: 0 | L52: 0 | M52: 0 | N52: 0 | Q52: 0 | R52: 0 | S52: 0 | V52: 0 | W52: 0 | X52: 0 | AA52: 0 | AB52: 0 | AC52: 0 | AF52: 0
A53: Rej 6 | B53: 0 | C53: 0 | F53: 0 | G53: 0 | H53: 0 | I53: 0 | L53: 0 | M53: 0 | N53: 0 | Q53: 0 | R53: 0 | S53: 0 | V53: 0 | W53: 0 | X53: 0 | AA53: 0 | AB53: 0 | AC53: 0 | AF53: 0
A54: Rej 7 | B54: 0 | C54: 0 | F54: 0 | G54: 0 | H54: 0 | I54: 0 | L54: 0 | M54: 0 | N54: 0 | Q54: 0 | R54: 0 | S54: 0 | V54: 0 | W54: 0 | X54: 0 | AA54: 0 | AB54: 0 | AC54: 0 | AF54: 0
A55: Rej 8 | B55: 0 | C55: 0 | F55: 0 | G55: 0 | H55: 0 | I55: 0 | L55: 0 | M55: 0 | N55: 0 | Q55: 0 | R55: 0 | S55: 0 | V55: 0 | W55: 0 | X55: 0 | AA55: 0 | AB55: 0 | AC55: 0 | AF55: 0
A56: Rej 9 | B56: 0 | C56: 0 | F56: 0 | G56: 0 | H56: 0 | I56: 0 | L56: 0 | M56: 0 | N56: 0 | Q56: 0 | R56: 0 | S56: 0 | V56: 0 | W56: 0 | X56: 0 | AA56: 0 | AB56: 0 | AC56: 0 | AF56: 0
A57: Rej 10 | B57: 0 | C57: 0 | F57: 0 | G57: 0 | H57: 0 | I57: 0 | L57: 0 | M57: 0 | N57: 0 | Q57: 0 | R57: 0 | S57: 0 | V57: 0 | W57: 0 | X57: 0 | AA57: 0 | AB57: 0 | AC57: 0 | AF57: 0
A58: H&T&MR | B58: 0 | C58: 0 | F58: 0 | G58: 0 | H58: 0 | I58: 0 | L58: 0 | M58: 0 | N58: 0 | Q58: 0 | R58: 0 | S58: 0 | V58: 0 | W58: 0 | X58: 0 | AA58: 0 | AB58: 0 | AC58: 0 | AF58: 0
A59: Trimming | B59: 0 | C59: 0 | F59: 0 | G59: 0 | H59: 0 | I59: 0 | L59: 0 | M59: 0 | N59: 0 | Q59: 0 | R59: 0 | S59: 0 | V59: 0 | W59: 0 | X59: 0 | AA59: 0 | AB59: 0 | AC59: 0 | AF59: 0
A60: Suspended 1 | B60: 0 | C60: 0 | F60: 0 | G60: 0 | H60: 0 | I60: 0 | L60: 0 | M60: 0 | N60: 0 | Q60: 0 | R60: 0 | S60: 0 | V60: 0 | W60: 0 | X60: 0 | AA60: 0 | AB60: 0 | AC60: 0 | AF60: 0
A61: Suspended 2 | B61: 0 | C61: 0 | F61: 0 | G61: 0 | H61: 0 | I61: 0 | L61: 0 | M61: 0 | N61: 0 | Q61: 0 | R61: 0 | S61: 0 | V61: 0 | W61: 0 | X61: 0 | AA61: 0 | AB61: 0 | AC61: 0 | AF61: 0
A62: Suspended 3 | B62: 0 | C62: 0 | F62: 0 | G62: 0 | H62: 0 | I62: 0 | L62: 0 | M62: 0 | N62: 0 | Q62: 0 | R62: 0 | S62: 0 | V62: 0 | W62: 0 | X62: 0 | AA62: 0 | AB62: 0 | AC62: 0 | AF62: 0
A63: Suspended 4 | B63: 0 | C63: 0 | F63: 0 | G63: 0 | H63: 0 | I63: 0 | L63: 0 | M63: 0 | N63: 0 | Q63: 0 | R63: 0 | S63: 0 | V63: 0 | W63: 0 | X63: 0 | AA63: 0 | AB63: 0 | AC63: 0 | AF63: 0
A64: Suspended 5 | B64: 0 | C64: 0 | F64: 0 | G64: 0 | H64: 0 | I64: 0 | L64: 0 | M64: 0 | N64: 0 | Q64: 0 | R64: 0 | S64: 0 | V64: 0 | W64: 0 | X64: 0 | AA64: 0 | AB64: 0 | AC64: 0 | AF64: 0
A65: Products | B65: =SUM(F37:F64) -> 0 | E65: Scales = | F65: =J65-B65 -> 0 | G65: 0 | I65: Consumption | J65: 0 | K65: 0

Sheet 18
A1: MACC PRD report | E1: Rolling Mill Plant
A2: Date: | C2: 18 | D2: March | E2: 2019
A3: RM 1
A4: Item | B4: Production | H4: Consumption 1 | M4: Consumption 2 | R4: Consumption 3 | W4: Consumption 4 | AB4: Consumption 5
B5: Code | C5: Description | F5: Ton | G5: Par | H5: Code | I5: Description | L5: Ton | M5: Code | N5: Description | Q5: Ton | R5: Code | S5: Description | V5: Ton | W5: Code | X5: Description | AA5: Ton | AB5: Code | AC5: Description | AF5: Ton
A6: Product 1 | B6: P0501300005 | C6: STR- B 500 BWR, 18 MM, 12 M | F6: 709.3831703 | G6: 349 | H6: P0100700015 | I6: STB- 4SP (SSS) , 150*150*12 M (52 MW) | L6: 719.6137519 | M6: 0 | N6: 0 | Q6: 0 | R6: 0 | S6: 0 | V6: 0 | W6: 0 | X6: 0 | AA6: 0 | AB6: 0 | AC6: 0 | AF6: 0
A7: Product 2 | B7: P0501300001 | C7: STR- B 500 BWR, 32 MM, 12 M | F7: 20.2928962 | G7: 10 | H7: P0100700015 | I7: STB- 4SP (SSS) , 150*150*12 M (52 MW) | L7: 20.2928962 | M7: 0 | N7: 0 | Q7: 0 | R7: 0 | S7: 0 | V7: 0 | W7: 0 | X7: 0 | AA7: 0 | AB7: 0 | AC7: 0 | AF7: 0
A8: Product 3 | B8: 0 | C8: 0 | F8: 0 | G8: 0 | H8: 0 | I8: 0 | L8: 0 | M8: 0 | N8: 0 | Q8: 0 | R8: 0 | S8: 0 | V8: 0 | W8: 0 | X8: 0 | AA8: 0 | AB8: 0 | AC8: 0 | AF8: 0
A9: Product 4 | B9: 0 | C9: 0 | F9: 0 | G9: 0 | H9: 0 | I9: 0 | L9: 0 | M9: 0 | N9: 0 | Q9: 0 | R9: 0 | S9: 0 | V9: 0 | W9: 0 | X9: 0 | AA9: 0 | AB9: 0 | AC9: 0 | AF9: 0
A10: Product 5 | B10: 0 | C10: 0 | F10: 0 | G10: 0 | H10: 0 | I10: 0 | L10: 0 | M10: 0 | N10: 0 | Q10: 0 | R10: 0 | S10: 0 | V10: 0 | W10: 0 | X10: 0 | AA10: 0 | AB10: 0 | AC10: 0 | AF10: 0
A11: Product 6 | B11: 0 | C11: 0 | F11: 0 | G11: 0 | H11: 0 | I11: 0 | L11: 0 | M11: 0 | N11: 0 | Q11: 0 | R11: 0 | S11: 0 | V11: 0 | W11: 0 | X11: 0 | AA11: 0 | AB11: 0 | AC11: 0 | AF11: 0
A12: Product 7 | B12: 0 | C12: 0 | F12: 0 | G12: 0 | H12: 0 | I12: 0 | L12: 0 | M12: 0 | N12: 0 | Q12: 0 | R12: 0 | S12: 0 | V12: 0 | W12: 0 | X12: 0 | AA12: 0 | AB12: 0 | AC12: 0 | AF12: 0
A13: Product 8 | B13: 0 | C13: 0 | F13: 0 | G13: 0 | H13: 0 | I13: 0 | L13: 0 | M13: 0 | N13: 0 | Q13: 0 | R13: 0 | S13: 0 | V13: 0 | W13: 0 | X13: 0 | AA13: 0 | AB13: 0 | AC13: 0 | AF13: 0
A14: Product 9 | B14: 0 | C14: 0 | F14: 0 | G14: 0 | H14: 0 | I14: 0 | L14: 0 | M14: 0 | N14: 0 | Q14: 0 | R14: 0 | S14: 0 | V14: 0 | W14: 0 | X14: 0 | AA14: 0 | AB14: 0 | AC14: 0 | AF14: 0
A15: Product 10 | B15: 0 | C15: 0 | F15: 0 | G15: 0 | H15: 0 | I15: 0 | L15: 0 | M15: 0 | N15: 0 | Q15: 0 | R15: 0 | S15: 0 | V15: 0 | W15: 0 | X15: 0 | AA15: 0 | AB15: 0 | AC15: 0 | AF15: 0
A16: Rej 1 | B16: P0101300008 | C16: STB- 4SP, 150*150 Different lengths | F16: 3.194727273 | G16: 1.5 | H16: P0100700015 | I16: STB- 4SP (SSS) , 150*150*12 M (52 MW) | L16: 3.194727273 | M16: 0 | N16: 0 | Q16: 0 | R16: 0 | S16: 0 | V16: 0 | W16: 0 | X16: 0 | AA16: 0 | AB16: 0 | AC16: 0 | AF16: 0
A17: Rej 2 | B17: P0101300002 | C17: STB- 4SP, 130*130 Different lengths | F17: 0 | G17: 0 | H17: P0100700014 | I17: STB- 4SP (SSS) , 130*130*12 M ( 52 MW ) | L17: 0 | M17: 0 | N17: 0 | Q17: 0 | R17: 0 | S17: 0 | V17: 0 | W17: 0 | X17: 0 | AA17: 0 | AB17: 0 | AC17: 0 | AF17: 0
A18: Rej 3 | B18: P0101300002 | C18: STB- 4SP, 130*130 Different lengths | F18: 0 | G18: 0 | H18: P0100700001 | I18: STB- 4SP, 130*130*12 M ( 52 MW ) | L18: 0 | M18: 0 | N18: 0 | Q18: 0 | R18: 0 | S18: 0 | V18: 0 | W18: 0 | X18: 0 | AA18: 0 | AB18: 0 | AC18: 0 | AF18: 0
A19: Rej 4 | B19: 0 | C19: 0 | F19: 0 | G19: 0 | H19: 0 | I19: 0 | L19: 0 | M19: 0 | N19: 0 | Q19: 0 | R19: 0 | S19: 0 | V19: 0 | W19: 0 | X19: 0 | AA19: 0 | AB19: 0 | AC19: 0 | AF19: 0
A20: Rej 5 | B20: 0 | C20: 0 | F20: 0 | G20: 0 | H20: 0 | I20: 0 | L20: 0 | M20: 0 | N20: 0 | Q20: 0 | R20: 0 | S20: 0 | V20: 0 | W20: 0 | X20: 0 | AA20: 0 | AB20: 0 | AC20: 0 | AF20: 0
A21: Rej 6 | B21: 0 | C21: 0 | F21: 0 | G21: 0 | H21: 0 | I21: 0 | L21: 0 | M21: 0 | N21: 0 | Q21: 0 | R21: 0 | S21: 0 | V21: 0 | W21: 0 | X21: 0 | AA21: 0 | AB21: 0 | AC21: 0 | AF21: 0
A22: Rej 7 | B22: 0 | C22: 0 | F22: 0 | G22: 0 | H22: 0 | I22: 0 | L22: 0 | M22: 0 | N22: 0 | Q22: 0 | R22: 0 | S22: 0 | V22: 0 | W22: 0 | X22: 0 | AA22: 0 | AB22: 0 | AC22: 0 | AF22: 0
A23: Rej 8 | B23: 0 | C23: 0 | F23: 0 | G23: 0 | H23: 0 | I23: 0 | L23: 0 | M23: 0 | N23: 0 | Q23: 0 | R23: 0 | S23: 0 | V23: 0 | W23: 0 | X23: 0 | AA23: 0 | AB23: 0 | AC23: 0 | AF23: 0
A24: Rej 9 | B24: 0 | C24: 0 | F24: 0 | G24: 0 | H24: 0 | I24: 0 | L24: 0 | M24: 0 | N24: 0 | Q24: 0 | R24: 0 | S24: 0 | V24: 0 | W24: 0 | X24: 0 | AA24: 0 | AB24: 0 | AC24: 0 | AF24: 0
A25: Rej 10 | B25: 0 | C25: 0 | F25: 0 | G25: 0 | H25: 0 | I25: 0 | L25: 0 | M25: 0 | N25: 0 | Q25: 0 | R25: 0 | S25: 0 | V25: 0 | W25: 0 | X25: 0 | AA25: 0 | AB25: 0 | AC25: 0 | AF25: 0
A26: H&T&MR | B26: P0500600001 | C26: MISS ROLLED&HEAD&TAIL | F26: 14.34178565 | G26: 0 | H26: P0100700015 | I26: STB- 4SP (SSS) , 150*150*12 M (52 MW) | L26: 14.34178565 | M26: 0 | N26: 0 | Q26: 0 | R26: 0 | S26: 0 | V26: 0 | W26: 0 | X26: 0 | AA26: 0 | AB26: 0 | AC26: 0 | AF26: 0
A27: Shorts | B27: P0500400001 | C27: STR-SHORTS | F27: 15.09542993 | G27: 0 | H27: P0100700015 | I27: STB- 4SP (SSS) , 150*150*12 M (52 MW) | L27: 15.09542993 | M27: 0 | N27: 0 | Q27: 0 | R27: 0 | S27: 0 | V27: 0 | W27: 0 | X27: 0 | AA27: 0 | AB27: 0 | AC27: 0 | AF27: 0
A28: Cold Shear Cut | B28: P0500700001 | C28: COLD SHEAR CUT | F28: 7.623954509 | G28: 0 | H28: P0100700015 | I28: STB- 4SP (SSS) , 150*150*12 M (52 MW) | L28: 7.623954509 | M28: 0 | N28: 0 | Q28: 0 | R28: 0 | S28: 0 | V28: 0 | W28: 0 | X28: 0 | AA28: 0 | AB28: 0 | AC28: 0 | AF28: 0
A29: Suspended 1 | B29: P0501200005 | C29: STR- 18 MM, SUSPENDED & REJECTED | F29: 10 | G29: 5 | H29: P0100700015 | I29: STB- 4SP (SSS) , 150*150*12 M (52 MW) | L29: 10 | M29: 0 | N29: 0 | Q29: 0 | R29: 0 | S29: 0 | V29: 0 | W29: 0 | X29: 0 | AA29: 0 | AB29: 0 | AC29: 0 | AF29: 0
A30: Suspended 2 | B30: 0 | C30: 0 | F30: 0 | G30: 0 | H30: 0 | I30: 0 | L30: 0 | M30: 0 | N30: 0 | Q30: 0 | R30: 0 | S30: 0 | V30: 0 | W30: 0 | X30: 0 | AA30: 0 | AB30: 0 | AC30: 0 | AF30: 0
A31: Suspended 3 | B31: 0 | C31: 0 | F31: 0 | G31: 0 | H31: 0 | I31: 0 | L31: 0 | M31: 0 | N31: 0 | Q31: 0 | R31: 0 | S31: 0 | V31: 0 | W31: 0 | X31: 0 | AA31: 0 | AB31: 0 | AC31: 0 | AF31: 0
A32: Suspended 4 | B32: 0 | C32: 0 | F32: 0 | G32: 0 | H32: 0 | I32: 0 | L32: 0 | M32: 0 | N32: 0 | Q32: 0 | R32: 0 | S32: 0 | V32: 0 | W32: 0 | X32: 0 | AA32: 0 | AB32: 0 | AC32: 0 | AF32: 0
A33: Suspended 5 | B33: 0 | C33: 0 | F33: 0 | G33: 0 | H33: 0 | I33: 0 | L33: 0 | M33: 0 | N33: 0 | Q33: 0 | R33: 0 | S33: 0 | V33: 0 | W33: 0 | X33: 0 | AA33: 0 | AB33: 0 | AC33: 0 | AF33: 0
A34: Products | B34: =SUM(F6:F33) -> 779.9319638 | E34: Scales = | F34: =J34-B34 -> 10.23058164 | G34: 2.202682481e-13 | I34: Consumption | J34: =SUM(L6:L33,Q6:Q33,V6:V33,AA6:AA33,AF6:AF33) -> 790.1625455 | K34: 0
A35: RM 2
A36: Item | B36: Production | H36: Consumption 1 | M36: Consumption 2 | R36: Consumption 3 | W36: Consumption 4 | AB36: Consumption 5
B37: Code | C37: Description | F37: Ton | G37: Par | H37: Code | I37: Description | L37: Ton | M37: Code | N37: Description | Q37: Ton | R37: Code | S37: Description | V37: Ton | W37: Code | X37: Description | AA37: Ton | AB37: Code | AC37: Description | AF37: Ton
A38: Product 1 | B38: P0600600038 | C38: SPOOLED REBAR, SIZE 22 MM, GRADE B 400 BWR | F38: 4.29565092 | G38: 2 | H38: P0100700015 | I38: STB- 4SP (SSS) , 150*150*12 M (52 MW) | L38: 4.48857092 | M38: 0 | N38: 0 | Q38: 0 | R38: 0 | S38: 0 | V38: 0 | W38: 0 | X38: 0 | AA38: 0 | AB38: 0 | AC38: 0 | AF38: 0
A39: Product 2 | B39: 0 | C39: 0 | F39: 0 | G39: 0 | H39: 0 | I39: 0 | L39: 0 | M39: 0 | N39: 0 | Q39: 0 | R39: 0 | S39: 0 | V39: 0 | W39: 0 | X39: 0 | AA39: 0 | AB39: 0 | AC39: 0 | AF39: 0
A40: Product 3 | B40: 0 | C40: 0 | F40: 0 | G40: 0 | H40: 0 | I40: 0 | L40: 0 | M40: 0 | N40: 0 | Q40: 0 | R40: 0 | S40: 0 | V40: 0 | W40: 0 | X40: 0 | AA40: 0 | AB40: 0 | AC40: 0 | AF40: 0
A41: Product 4 | B41: 0 | C41: 0 | F41: 0 | G41: 0 | H41: 0 | I41: 0 | L41: 0 | M41: 0 | N41: 0 | Q41: 0 | R41: 0 | S41: 0 | V41: 0 | W41: 0 | X41: 0 | AA41: 0 | AB41: 0 | AC41: 0 | AF41: 0
A42: Product 5 | B42: 0 | C42: 0 | F42: 0 | G42: 0 | H42: 0 | I42: 0 | L42: 0 | M42: 0 | N42: 0 | Q42: 0 | R42: 0 | S42: 0 | V42: 0 | W42: 0 | X42: 0 | AA42: 0 | AB42: 0 | AC42: 0 | AF42: 0
A43: Product 6 | B43: 0 | C43: 0 | F43: 0 | G43: 0 | H43: 0 | I43: 0 | L43: 0 | M43: 0 | N43: 0 | Q43: 0 | R43: 0 | S43: 0 | V43: 0 | W43: 0 | X43: 0 | AA43: 0 | AB43: 0 | AC43: 0 | AF43: 0
A44: Product 7 | B44: 0 | C44: 0 | F44: 0 | G44: 0 | H44: 0 | I44: 0 | L44: 0 | M44: 0 | N44: 0 | Q44: 0 | R44: 0 | S44: 0 | V44: 0 | W44: 0 | X44: 0 | AA44: 0 | AB44: 0 | AC44: 0 | AF44: 0
A45: Product 8 | B45: 0 | C45: 0 | F45: 0 | G45: 0 | H45: 0 | I45: 0 | L45: 0 | M45: 0 | N45: 0 | Q45: 0 | R45: 0 | S45: 0 | V45: 0 | W45: 0 | X45: 0 | AA45: 0 | AB45: 0 | AC45: 0 | AF45: 0
A46: Product 9 | B46: 0 | C46: 0 | F46: 0 | G46: 0 | H46: 0 | I46: 0 | L46: 0 | M46: 0 | N46: 0 | Q46: 0 | R46: 0 | S46: 0 | V46: 0 | W46: 0 | X46: 0 | AA46: 0 | AB46: 0 | AC46: 0 | AF46: 0
A47: Product 10 | B47: 0 | C47: 0 | F47: 0 | G47: 0 | H47: 0 | I47: 0 | L47: 0 | M47: 0 | N47: 0 | Q47: 0 | R47: 0 | S47: 0 | V47: 0 | W47: 0 | X47: 0 | AA47: 0 | AB47: 0 | AC47: 0 | AF47: 0
A48: Rej 1 | B48: P0101300008 | C48: STB- 4SP, 150*150 Different lengths | F48: 0 | G48: 0 | H48: P0100700015 | I48: STB- 4SP (SSS) , 150*150*12 M (52 MW) | L48: 0 | M48: 0 | N48: 0 | Q48: 0 | R48: 0 | S48: 0 | V48: 0 | W48: 0 | X48: 0 | AA48: 0 | AB48: 0 | AC48: 0 | AF48: 0
A49: Rej 2 | B49: P0101300002 | C49: STB- 4SP, 130*130 Different lengths | F49: 0 | G49: 0 | H49: P0100700014 | I49: STB- 4SP (SSS) , 130*130*12 M ( 52 MW ) | L49: 0 | M49: 0 | N49: 0 | Q49: 0 | R49: 0 | S49: 0 | V49: 0 | W49: 0 | X49: 0 | AA49: 0 | AB49: 0 | AC49: 0 | AF49: 0
A50: Rej 3 | B50: P0101300005 | C50: STB, 1006, 150*150, DIFF.LENGTH, R | F50: 0 | G50: 0 | H50: P0101500001 | I50: STB- 1006, 150*150*12 M | L50: 0 | M50: 0 | N50: 0 | Q50: 0 | R50: 0 | S50: 0 | V50: 0 | W50: 0 | X50: 0 | AA50: 0 | AB50: 0 | AC50: 0 | AF50: 0
A51: Rej 4 | B51: 0 | C51: 0 | F51: 0 | G51: 0 | H51: 0 | I51: 0 | M51: 0 | N51: 0 | Q51: 0 | R51: 0 | S51: 0 | V51: 0 | W51: 0 | X51: 0 | AA51: 0 | AB51: 0 | AC51: 0 | AF51: 0
A52: Rej 5 | B52: 0 | C52: 0 | F52: 0 | G52: 0 | H52: 0 | I52: 0 | L52: 0 | M52: 0 | N52: 0 | Q52: 0 | R52: 0 | S52: 0 | V52: 0 | W52: 0 | X52: 0 | AA52: 0 | AB52: 0 | AC52: 0 | AF52: 0
A53: Rej 6 | B53: 0 | C53: 0 | F53: 0 | G53: 0 | H53: 0 | I53: 0 | L53: 0 | M53: 0 | N53: 0 | Q53: 0 | R53: 0 | S53: 0 | V53: 0 | W53: 0 | X53: 0 | AA53: 0 | AB53: 0 | AC53: 0 | AF53: 0
A54: Rej 7 | B54: 0 | C54: 0 | F54: 0 | G54: 0 | H54: 0 | I54: 0 | L54: 0 | M54: 0 | N54: 0 | Q54: 0 | R54: 0 | S54: 0 | V54: 0 | W54: 0 | X54: 0 | AA54: 0 | AB54: 0 | AC54: 0 | AF54: 0
A55: Rej 8 | B55: 0 | C55: 0 | F55: 0 | G55: 0 | H55: 0 | I55: 0 | L55: 0 | M55: 0 | N55: 0 | Q55: 0 | R55: 0 | S55: 0 | V55: 0 | W55: 0 | X55: 0 | AA55: 0 | AB55: 0 | AC55: 0 | AF55: 0
A56: Rej 9 | B56: 0 | C56: 0 | F56: 0 | G56: 0 | H56: 0 | I56: 0 | L56: 0 | M56: 0 | N56: 0 | Q56: 0 | R56: 0 | S56: 0 | V56: 0 | W56: 0 | X56: 0 | AA56: 0 | AB56: 0 | AC56: 0 | AF56: 0
A57: Rej 10 | B57: 0 | C57: 0 | F57: 0 | G57: 0 | H57: 0 | I57: 0 | L57: 0 | M57: 0 | N57: 0 | Q57: 0 | R57: 0 | S57: 0 | V57: 0 | W57: 0 | X57: 0 | AA57: 0 | AB57: 0 | AC57: 0 | AF57: 0
A58: H&T&MR | B58: P0500600001 | C58: MISS ROLLED&HEAD&TAIL | F58: 4.289282294 | G58: 0 | H58: P0100700015 | I58: STB- 4SP (SSS) , 150*150*12 M (52 MW) | L58: 4.289282294 | M58: 0 | N58: 0 | Q58: 0 | R58: 0 | S58: 0 | V58: 0 | W58: 0 | X58: 0 | AA58: 0 | AB58: 0 | AC58: 0 | AF58: 0
A59: Trimming | B59: P0601300002 | C59: Trimming | F59: 0.06214678624 | G59: 0 | H59: P0100700015 | I59: STB- 4SP (SSS) , 150*150*12 M (52 MW) | L59: 0.06214678624 | M59: 0 | N59: 0 | Q59: 0 | R59: 0 | S59: 0 | V59: 0 | W59: 0 | X59: 0 | AA59: 0 | AB59: 0 | AC59: 0 | AF59: 0
A60: Suspended 1 | B60: P0601200009 | C60: SUSPENDED SPOOL, 22 MM | F60: 6 | G60: 3 | H60: P0100700015 | I60: STB- 4SP (SSS) , 150*150*12 M (52 MW) | L60: 6 | M60: 0 | N60: 0 | Q60: 0 | R60: 0 | S60: 0 | V60: 0 | W60: 0 | X60: 0 | AA60: 0 | AB60: 0 | AC60: 0 | AF60: 0
A61: Suspended 2 | B61: 0 | C61: 0 | F61: 0 | G61: 0 | H61: 0 | I61: 0 | L61: 0 | M61: 0 | N61: 0 | Q61: 0 | R61: 0 | S61: 0 | V61: 0 | W61: 0 | X61: 0 | AA61: 0 | AB61: 0 | AC61: 0 | AF61: 0
A62: Suspended 3 | B62: 0 | C62: 0 | F62: 0 | G62: 0 | H62: 0 | I62: 0 | L62: 0 | M62: 0 | N62: 0 | Q62: 0 | R62: 0 | S62: 0 | V62: 0 | W62: 0 | X62: 0 | AA62: 0 | AB62: 0 | AC62: 0 | AF62: 0
A63: Suspended 4 | B63: 0 | C63: 0 | F63: 0 | G63: 0 | H63: 0 | I63: 0 | L63: 0 | M63: 0 | N63: 0 | Q63: 0 | R63: 0 | S63: 0 | V63: 0 | W63: 0 | X63: 0 | AA63: 0 | AB63: 0 | AC63: 0 | AF63: 0
A64: Suspended 5 | B64: 0 | C64: 0 | F64: 0 | G64: 0 | H64: 0 | I64: 0 | L64: 0 | M64: 0 | N64: 0 | Q64: 0 | R64: 0 | S64: 0 | V64: 0 | W64: 0 | X64: 0 | AA64: 0 | AB64: 0 | AC64: 0 | AF64: 0
A65: Products | B65: =SUM(F37:F64) -> 14.64708 | E65: Scales = | F65: =J65-B65 -> 0.19292 | G65: 0 | I65: Consumption | J65: 14.84 | K65: 0

Sheet 19
A1: MACC PRD report | E1: Rolling Mill Plant
A2: Date: | C2: 19 | D2: March | E2: 2019
A3: RM 1
A4: Item | B4: Production | H4: Consumption 1 | M4: Consumption 2 | R4: Consumption 3 | W4: Consumption 4 | AB4: Consumption 5
B5: Code | C5: Description | F5: Ton | G5: Par | H5: Code | I5: Description | L5: Ton | M5: Code | N5: Description | Q5: Ton | R5: Code | S5: Description | V5: Ton | W5: Code | X5: Description | AA5: Ton | AB5: Code | AC5: Description | AF5: Ton
A6: Product 1 | B6: P0501300005 | C6: STR- B 500 BWR, 18 MM, 12 M | F6: 1480.010554 | G6: 736 | H6: P0100700015 | I6: STB- 4SP (SSS) , 150*150*12 M (52 MW) | L6: 1500.452435 | M6: 0 | N6: 0 | Q6: 0 | R6: 0 | S6: 0 | V6: 0 | W6: 0 | X6: 0 | AA6: 0 | AB6: 0 | AC6: 0 | AF6: 0
A7: Product 2 | B7: P0502400005 | C7: STR- B 500 C-R, 18 MM, 12 M | F7: 12.16596158 | G7: 6 | H7: P0100200007 | I7: STB- 5 SP, 150*150*12 M ( ST 52 ) | L7: 12.16596158 | M7: 0 | N7: 0 | Q7: 0 | R7: 0 | S7: 0 | V7: 0 | W7: 0 | X7: 0 | AA7: 0 | AB7: 0 | AC7: 0 | AF7: 0
A8: Product 3 | B8: P0502200005 | C8: STR- B 500 DWR, 18 MM, 12 M | F8: 4.055320525 | G8: 2 | H8: P0100200007 | I8: STB- 5 SP, 150*150*12 M ( ST 52 ) | L8: 4.055320525 | M8: 0 | N8: 0 | Q8: 0 | R8: 0 | S8: 0 | V8: 0 | W8: 0 | X8: 0 | AA8: 0 | AB8: 0 | AC8: 0 | AF8: 0
A9: Product 4 | B9: 0 | C9: 0 | F9: 0 | G9: 0 | H9: 0 | I9: 0 | L9: 0 | M9: 0 | N9: 0 | Q9: 0 | R9: 0 | S9: 0 | V9: 0 | W9: 0 | X9: 0 | AA9: 0 | AB9: 0 | AC9: 0 | AF9: 0
A10: Product 5 | B10: 0 | C10: 0 | F10: 0 | G10: 0 | H10: 0 | I10: 0 | L10: 0 | M10: 0 | N10: 0 | Q10: 0 | R10: 0 | S10: 0 | V10: 0 | W10: 0 | X10: 0 | AA10: 0 | AB10: 0 | AC10: 0 | AF10: 0
A11: Product 6 | B11: 0 | C11: 0 | F11: 0 | G11: 0 | H11: 0 | I11: 0 | L11: 0 | M11: 0 | N11: 0 | Q11: 0 | R11: 0 | S11: 0 | V11: 0 | W11: 0 | X11: 0 | AA11: 0 | AB11: 0 | AC11: 0 | AF11: 0
A12: Product 7 | B12: 0 | C12: 0 | F12: 0 | G12: 0 | H12: 0 | I12: 0 | L12: 0 | M12: 0 | N12: 0 | Q12: 0 | R12: 0 | S12: 0 | V12: 0 | W12: 0 | X12: 0 | AA12: 0 | AB12: 0 | AC12: 0 | AF12: 0
A13: Product 8 | B13: 0 | C13: 0 | F13: 0 | G13: 0 | H13: 0 | I13: 0 | L13: 0 | M13: 0 | N13: 0 | Q13: 0 | R13: 0 | S13: 0 | V13: 0 | W13: 0 | X13: 0 | AA13: 0 | AB13: 0 | AC13: 0 | AF13: 0
A14: Product 9 | B14: 0 | C14: 0 | F14: 0 | G14: 0 | H14: 0 | I14: 0 | L14: 0 | M14: 0 | N14: 0 | Q14: 0 | R14: 0 | S14: 0 | V14: 0 | W14: 0 | X14: 0 | AA14: 0 | AB14: 0 | AC14: 0 | AF14: 0
A15: Product 10 | B15: 0 | C15: 0 | F15: 0 | G15: 0 | H15: 0 | I15: 0 | L15: 0 | M15: 0 | N15: 0 | Q15: 0 | R15: 0 | S15: 0 | V15: 0 | W15: 0 | X15: 0 | AA15: 0 | AB15: 0 | AC15: 0 | AF15: 0
A16: Rej 1 | B16: P0101300008 | C16: STB- 4SP, 150*150 Different lengths | F16: 1.066091549 | G16: 0.5 | H16: P0100700015 | I16: STB- 4SP (SSS) , 150*150*12 M (52 MW) | L16: 1.066091549 | M16: 0 | N16: 0 | Q16: 0 | R16: 0 | S16: 0 | V16: 0 | W16: 0 | X16: 0 | AA16: 0 | AB16: 0 | AC16: 0 | AF16: 0
A17: Rej 2 | B17: P0101300002 | C17: STB- 4SP, 130*130 Different lengths | F17: 0 | G17: 0 | H17: P0100700014 | I17: STB- 4SP (SSS) , 130*130*12 M ( 52 MW ) | L17: 0 | M17: 0 | N17: 0 | Q17: 0 | R17: 0 | S17: 0 | V17: 0 | W17: 0 | X17: 0 | AA17: 0 | AB17: 0 | AC17: 0 | AF17: 0
A18: Rej 3 | B18: P0101300002 | C18: STB- 4SP, 130*130 Different lengths | F18: 0 | G18: 0 | H18: P0100700001 | I18: STB- 4SP, 130*130*12 M ( 52 MW ) | L18: 0 | M18: 0 | N18: 0 | Q18: 0 | R18: 0 | S18: 0 | V18: 0 | W18: 0 | X18: 0 | AA18: 0 | AB18: 0 | AC18: 0 | AF18: 0
A19: Rej 4 | B19: 0 | C19: 0 | F19: 0 | G19: 0 | H19: 0 | I19: 0 | L19: 0 | M19: 0 | N19: 0 | Q19: 0 | R19: 0 | S19: 0 | V19: 0 | W19: 0 | X19: 0 | AA19: 0 | AB19: 0 | AC19: 0 | AF19: 0
A20: Rej 5 | B20: 0 | C20: 0 | F20: 0 | G20: 0 | H20: 0 | I20: 0 | L20: 0 | M20: 0 | N20: 0 | Q20: 0 | R20: 0 | S20: 0 | V20: 0 | W20: 0 | X20: 0 | AA20: 0 | AB20: 0 | AC20: 0 | AF20: 0
A21: Rej 6 | B21: 0 | C21: 0 | F21: 0 | G21: 0 | H21: 0 | I21: 0 | L21: 0 | M21: 0 | N21: 0 | Q21: 0 | R21: 0 | S21: 0 | V21: 0 | W21: 0 | X21: 0 | AA21: 0 | AB21: 0 | AC21: 0 | AF21: 0
A22: Rej 7 | B22: 0 | C22: 0 | F22: 0 | G22: 0 | H22: 0 | I22: 0 | L22: 0 | M22: 0 | N22: 0 | Q22: 0 | R22: 0 | S22: 0 | V22: 0 | W22: 0 | X22: 0 | AA22: 0 | AB22: 0 | AC22: 0 | AF22: 0
A23: Rej 8 | B23: 0 | C23: 0 | F23: 0 | G23: 0 | H23: 0 | I23: 0 | L23: 0 | M23: 0 | N23: 0 | Q23: 0 | R23: 0 | S23: 0 | V23: 0 | W23: 0 | X23: 0 | AA23: 0 | AB23: 0 | AC23: 0 | AF23: 0
A24: Rej 9 | B24: 0 | C24: 0 | F24: 0 | G24: 0 | H24: 0 | I24: 0 | L24: 0 | M24: 0 | N24: 0 | Q24: 0 | R24: 0 | S24: 0 | V24: 0 | W24: 0 | X24: 0 | AA24: 0 | AB24: 0 | AC24: 0 | AF24: 0
A25: Rej 10 | B25: 0 | C25: 0 | F25: 0 | G25: 0 | H25: 0 | I25: 0 | L25: 0 | M25: 0 | N25: 0 | Q25: 0 | R25: 0 | S25: 0 | V25: 0 | W25: 0 | X25: 0 | AA25: 0 | AB25: 0 | AC25: 0 | AF25: 0
A26: H&T&MR | B26: P0500600001 | C26: MISS ROLLED&HEAD&TAIL | F26: 7.760052768 | G26: 0 | H26: P0100700015 | I26: STB- 4SP (SSS) , 150*150*12 M (52 MW) | L26: 7.67603506 | M26: P0100200007 | N26: STB- 5 SP, 150*150*12 M ( ST 52 ) | Q26: 0.08401770811 | R26: 0 | S26: 0 | V26: 0 | W26: 0 | X26: 0 | AA26: 0 | AB26: 0 | AC26: 0 | AF26: 0
A27: Shorts | B27: P0500400001 | C27: STR-SHORTS | F27: 30.57615992 | G27: 0 | H27: P0100700015 | I27: STB- 4SP (SSS) , 150*150*12 M (52 MW) | L27: 30.24511334 | M27: P0100200007 | N27: STB- 5 SP, 150*150*12 M ( ST 52 ) | Q27: 0.3310465735 | R27: 0 | S27: 0 | V27: 0 | W27: 0 | X27: 0 | AA27: 0 | AB27: 0 | AC27: 0 | AF27: 0
A28: Cold Shear Cut | B28: P0500700001 | C28: COLD SHEAR CUT | F28: 15.44250501 | G28: 0 | H28: P0100700015 | I28: STB- 4SP (SSS) , 150*150*12 M (52 MW) | L28: 15.27530977 | M28: P0100200007 | N28: STB- 5 SP, 150*150*12 M ( ST 52 ) | Q28: 0.1671952391 | R28: 0 | S28: 0 | V28: 0 | W28: 0 | X28: 0 | AA28: 0 | AB28: 0 | AC28: 0 | AF28: 0
A29: Suspended 1 | B29: P0501200005 | C29: STR- 18 MM, SUSPENDED & REJECTED | F29: 2 | G29: 1 | H29: P0100700015 | I29: STB- 4SP (SSS) , 150*150*12 M (52 MW) | L29: 2 | M29: 0 | N29: 0 | Q29: 0 | R29: 0 | S29: 0 | V29: 0 | W29: 0 | X29: 0 | AA29: 0 | AB29: 0 | AC29: 0 | AF29: 0
A30: Suspended 2 | B30: 0 | C30: 0 | F30: 0 | G30: 0 | H30: 0 | I30: 0 | L30: 0 | M30: 0 | N30: 0 | Q30: 0 | R30: 0 | S30: 0 | V30: 0 | W30: 0 | X30: 0 | AA30: 0 | AB30: 0 | AC30: 0 | AF30: 0
A31: Suspended 3 | B31: 0 | C31: 0 | F31: 0 | G31: 0 | H31: 0 | I31: 0 | L31: 0 | M31: 0 | N31: 0 | Q31: 0 | R31: 0 | S31: 0 | V31: 0 | W31: 0 | X31: 0 | AA31: 0 | AB31: 0 | AC31: 0 | AF31: 0
A32: Suspended 4 | B32: 0 | C32: 0 | F32: 0 | G32: 0 | H32: 0 | I32: 0 | L32: 0 | M32: 0 | N32: 0 | Q32: 0 | R32: 0 | S32: 0 | V32: 0 | W32: 0 | X32: 0 | AA32: 0 | AB32: 0 | AC32: 0 | AF32: 0
A33: Suspended 5 | B33: 0 | C33: 0 | F33: 0 | G33: 0 | H33: 0 | I33: 0 | L33: 0 | M33: 0 | N33: 0 | Q33: 0 | R33: 0 | S33: 0 | V33: 0 | W33: 0 | X33: 0 | AA33: 0 | AB33: 0 | AC33: 0 | AF33: 0
A34: Products | B34: =SUM(F6:F33) -> 1553.076645 | E34: Scales = | F34: =J34-B34 -> 20.44188166 | G34: 2.202682481e-13 | I34: Consumption | J34: =SUM(L6:L33,Q6:Q33,V6:V33,AA6:AA33,AF6:AF33) -> 1573.518527 | K34: 0
A35: RM 2
A36: Item | B36: Production | H36: Consumption 1 | M36: Consumption 2 | R36: Consumption 3 | W36: Consumption 4 | AB36: Consumption 5
B37: Code | C37: Description | F37: Ton | G37: Par | H37: Code | I37: Description | L37: Ton | M37: Code | N37: Description | Q37: Ton | R37: Code | S37: Description | V37: Ton | W37: Code | X37: Description | AA37: Ton | AB37: Code | AC37: Description | AF37: Ton
A38: Product 1 | B38: P0600600038 | C38: SPOOLED REBAR, SIZE 22 MM, GRADE B 400 BWR | F38: 14.82782258 | G38: 7 | H38: P0100700015 | I38: STB- 4SP (SSS) , 150*150*12 M (52 MW) | L38: 15.29634258 | M38: 0 | N38: 0 | Q38: 0 | R38: 0 | S38: 0 | V38: 0 | W38: 0 | X38: 0 | AA38: 0 | AB38: 0 | AC38: 0 | AF38: 0
A39: Product 2 | B39: 0 | C39: 0 | F39: 0 | G39: 0 | H39: 0 | I39: 0 | L39: 0 | M39: 0 | N39: 0 | Q39: 0 | R39: 0 | S39: 0 | V39: 0 | W39: 0 | X39: 0 | AA39: 0 | AB39: 0 | AC39: 0 | AF39: 0
A40: Product 3 | B40: 0 | C40: 0 | F40: 0 | G40: 0 | H40: 0 | I40: 0 | L40: 0 | M40: 0 | N40: 0 | Q40: 0 | R40: 0 | S40: 0 | V40: 0 | W40: 0 | X40: 0 | AA40: 0 | AB40: 0 | AC40: 0 | AF40: 0
A41: Product 4 | B41: 0 | C41: 0 | F41: 0 | G41: 0 | H41: 0 | I41: 0 | L41: 0 | M41: 0 | N41: 0 | Q41: 0 | R41: 0 | S41: 0 | V41: 0 | W41: 0 | X41: 0 | AA41: 0 | AB41: 0 | AC41: 0 | AF41: 0
A42: Product 5 | B42: 0 | C42: 0 | F42: 0 | G42: 0 | H42: 0 | I42: 0 | L42: 0 | M42: 0 | N42: 0 | Q42: 0 | R42: 0 | S42: 0 | V42: 0 | W42: 0 | X42: 0 | AA42: 0 | AB42: 0 | AC42: 0 | AF42: 0
A43: Product 6 | B43: 0 | C43: 0 | F43: 0 | G43: 0 | H43: 0 | I43: 0 | L43: 0 | M43: 0 | N43: 0 | Q43: 0 | R43: 0 | S43: 0 | V43: 0 | W43: 0 | X43: 0 | AA43: 0 | AB43: 0 | AC43: 0 | AF43: 0
A44: Product 7 | B44: 0 | C44: 0 | F44: 0 | G44: 0 | H44: 0 | I44: 0 | L44: 0 | M44: 0 | N44: 0 | Q44: 0 | R44: 0 | S44: 0 | V44: 0 | W44: 0 | X44: 0 | AA44: 0 | AB44: 0 | AC44: 0 | AF44: 0
A45: Product 8 | B45: 0 | C45: 0 | F45: 0 | G45: 0 | H45: 0 | I45: 0 | L45: 0 | M45: 0 | N45: 0 | Q45: 0 | R45: 0 | S45: 0 | V45: 0 | W45: 0 | X45: 0 | AA45: 0 | AB45: 0 | AC45: 0 | AF45: 0
A46: Product 9 | B46: 0 | C46: 0 | F46: 0 | G46: 0 | H46: 0 | I46: 0 | L46: 0 | M46: 0 | N46: 0 | Q46: 0 | R46: 0 | S46: 0 | V46: 0 | W46: 0 | X46: 0 | AA46: 0 | AB46: 0 | AC46: 0 | AF46: 0
A47: Product 10 | B47: 0 | C47: 0 | F47: 0 | G47: 0 | H47: 0 | I47: 0 | L47: 0 | M47: 0 | N47: 0 | Q47: 0 | R47: 0 | S47: 0 | V47: 0 | W47: 0 | X47: 0 | AA47: 0 | AB47: 0 | AC47: 0 | AF47: 0
A48: Rej 1 | B48: P0101300008 | C48: STB- 4SP, 150*150 Different lengths | F48: 0 | G48: 0 | H48: P0100700015 | I48: STB- 4SP (SSS) , 150*150*12 M (52 MW) | L48: 0 | M48: 0 | N48: 0 | Q48: 0 | R48: 0 | S48: 0 | V48: 0 | W48: 0 | X48: 0 | AA48: 0 | AB48: 0 | AC48: 0 | AF48: 0
A49: Rej 2 | B49: P0101300002 | C49: STB- 4SP, 130*130 Different lengths | F49: 0 | G49: 0 | H49: P0100700014 | I49: STB- 4SP (SSS) , 130*130*12 M ( 52 MW ) | L49: 0 | M49: 0 | N49: 0 | Q49: 0 | R49: 0 | S49: 0 | V49: 0 | W49: 0 | X49: 0 | AA49: 0 | AB49: 0 | AC49: 0 | AF49: 0
A50: Rej 3 | B50: P0101300005 | C50: STB, 1006, 150*150, DIFF.LENGTH, R | F50: 0 | G50: 0 | H50: P0101500001 | I50: STB- 1006, 150*150*12 M | L50: 0 | M50: 0 | N50: 0 | Q50: 0 | R50: 0 | S50: 0 | V50: 0 | W50: 0 | X50: 0 | AA50: 0 | AB50: 0 | AC50: 0 | AF50: 0
A51: Rej 4 | B51: 0 | C51: 0 | F51: 0 | G51: 0 | H51: 0 | I51: 0 | M51: 0 | N51: 0 | Q51: 0 | R51: 0 | S51: 0 | V51: 0 | W51: 0 | X51: 0 | AA51: 0 | AB51: 0 | AC51: 0 | AF51: 0
A52: Rej 5 | B52: 0 | C52: 0 | F52: 0 | G52: 0 | H52: 0 | I52: 0 | L52: 0 | M52: 0 | N52: 0 | Q52: 0 | R52: 0 | S52: 0 | V52: 0 | W52: 0 | X52: 0 | AA52: 0 | AB52: 0 | AC52: 0 | AF52: 0
A53: Rej 6 | B53: 0 | C53: 0 | F53: 0 | G53: 0 | H53: 0 | I53: 0 | L53: 0 | M53: 0 | N53: 0 | Q53: 0 | R53: 0 | S53: 0 | V53: 0 | W53: 0 | X53: 0 | AA53: 0 | AB53: 0 | AC53: 0 | AF53: 0
A54: Rej 7 | B54: 0 | C54: 0 | F54: 0 | G54: 0 | H54: 0 | I54: 0 | L54: 0 | M54: 0 | N54: 0 | Q54: 0 | R54: 0 | S54: 0 | V54: 0 | W54: 0 | X54: 0 | AA54: 0 | AB54: 0 | AC54: 0 | AF54: 0
A55: Rej 8 | B55: 0 | C55: 0 | F55: 0 | G55: 0 | H55: 0 | I55: 0 | L55: 0 | M55: 0 | N55: 0 | Q55: 0 | R55: 0 | S55: 0 | V55: 0 | W55: 0 | X55: 0 | AA55: 0 | AB55: 0 | AC55: 0 | AF55: 0
A56: Rej 9 | B56: 0 | C56: 0 | F56: 0 | G56: 0 | H56: 0 | I56: 0 | L56: 0 | M56: 0 | N56: 0 | Q56: 0 | R56: 0 | S56: 0 | V56: 0 | W56: 0 | X56: 0 | AA56: 0 | AB56: 0 | AC56: 0 | AF56: 0
A57: Rej 10 | B57: 0 | C57: 0 | F57: 0 | G57: 0 | H57: 0 | I57: 0 | L57: 0 | M57: 0 | N57: 0 | Q57: 0 | R57: 0 | S57: 0 | V57: 0 | W57: 0 | X57: 0 | AA57: 0 | AB57: 0 | AC57: 0 | AF57: 0
A58: H&T&MR | B58: P0500600001 | C58: MISS ROLLED&HEAD&TAIL | F58: 6.569646423 | G58: 0 | H58: P0100700015 | I58: STB- 4SP (SSS) , 150*150*12 M (52 MW) | L58: 6.569646423 | M58: 0 | N58: 0 | Q58: 0 | R58: 0 | S58: 0 | V58: 0 | W58: 0 | X58: 0 | AA58: 0 | AB58: 0 | AC58: 0 | AF58: 0
A59: Trimming | B59: P0601300002 | C59: Trimming | F59: 0.1740110015 | G59: 0 | H59: P0100700015 | I59: STB- 4SP (SSS) , 150*150*12 M (52 MW) | L59: 0.1740110015 | M59: 0 | N59: 0 | Q59: 0 | R59: 0 | S59: 0 | V59: 0 | W59: 0 | X59: 0 | AA59: 0 | AB59: 0 | AC59: 0 | AF59: 0
A60: Suspended 1 | B60: P0601200009 | C60: SUSPENDED SPOOL, 22 MM | F60: 14 | G60: 7 | H60: P0100700015 | I60: STB- 4SP (SSS) , 150*150*12 M (52 MW) | L60: 14 | M60: 0 | N60: 0 | Q60: 0 | R60: 0 | S60: 0 | V60: 0 | W60: 0 | X60: 0 | AA60: 0 | AB60: 0 | AC60: 0 | AF60: 0
A61: Suspended 2 | B61: 0 | C61: 0 | F61: 0 | G61: 0 | H61: 0 | I61: 0 | L61: 0 | M61: 0 | N61: 0 | Q61: 0 | R61: 0 | S61: 0 | V61: 0 | W61: 0 | X61: 0 | AA61: 0 | AB61: 0 | AC61: 0 | AF61: 0
A62: Suspended 3 | B62: 0 | C62: 0 | F62: 0 | G62: 0 | H62: 0 | I62: 0 | L62: 0 | M62: 0 | N62: 0 | Q62: 0 | R62: 0 | S62: 0 | V62: 0 | W62: 0 | X62: 0 | AA62: 0 | AB62: 0 | AC62: 0 | AF62: 0
A63: Suspended 4 | B63: 0 | C63: 0 | F63: 0 | G63: 0 | H63: 0 | I63: 0 | L63: 0 | M63: 0 | N63: 0 | Q63: 0 | R63: 0 | S63: 0 | V63: 0 | W63: 0 | X63: 0 | AA63: 0 | AB63: 0 | AC63: 0 | AF63: 0
A64: Suspended 5 | B64: 0 | C64: 0 | F64: 0 | G64: 0 | H64: 0 | I64: 0 | L64: 0 | M64: 0 | N64: 0 | Q64: 0 | R64: 0 | S64: 0 | V64: 0 | W64: 0 | X64: 0 | AA64: 0 | AB64: 0 | AC64: 0 | AF64: 0
A65: Products | B65: =SUM(F37:F64) -> 35.57148 | E65: Scales = | F65: =J65-B65 -> 0.46852 | G65: 0 | I65: Consumption | J65: 36.04 | K65: 0

Sheet 20
A1: MACC PRD report | E1: Rolling Mill Plant
A2: Date: | C2: 20 | D2: March | E2: 2019
A3: RM 1
A4: Item | B4: Production | H4: Consumption 1 | M4: Consumption 2 | R4: Consumption 3 | W4: Consumption 4 | AB4: Consumption 5
B5: Code | C5: Description | F5: Ton | G5: Par | H5: Code | I5: Description | L5: Ton | M5: Code | N5: Description | Q5: Ton | R5: Code | S5: Description | V5: Ton | W5: Code | X5: Description | AA5: Ton | AB5: Code | AC5: Description | AF5: Ton
A6: Product 1 | B6: P0501300005 | C6: STR- B 500 BWR, 18 MM, 12 M | F6: 1494.258724 | G6: 730 | H6: P0100700015 | I6: STB- 4SP (SSS) , 150*150*12 M (52 MW) | L6: 1514.702062 | M6: 0 | N6: 0 | Q6: 0 | R6: 0 | S6: 0 | V6: 0 | W6: 0 | X6: 0 | AA6: 0 | AB6: 0 | AC6: 0 | AF6: 0
A7: Product 2 | B7: 0 | C7: 0 | F7: 0 | G7: 0 | H7: 0 | I7: 0 | L7: 0 | M7: 0 | N7: 0 | Q7: 0 | R7: 0 | S7: 0 | V7: 0 | W7: 0 | X7: 0 | AA7: 0 | AB7: 0 | AC7: 0 | AF7: 0
A8: Product 3 | B8: 0 | C8: 0 | F8: 0 | G8: 0 | H8: 0 | I8: 0 | L8: 0 | M8: 0 | N8: 0 | Q8: 0 | R8: 0 | S8: 0 | V8: 0 | W8: 0 | X8: 0 | AA8: 0 | AB8: 0 | AC8: 0 | AF8: 0
A9: Product 4 | B9: 0 | C9: 0 | F9: 0 | G9: 0 | H9: 0 | I9: 0 | L9: 0 | M9: 0 | N9: 0 | Q9: 0 | R9: 0 | S9: 0 | V9: 0 | W9: 0 | X9: 0 | AA9: 0 | AB9: 0 | AC9: 0 | AF9: 0
A10: Product 5 | B10: 0 | C10: 0 | F10: 0 | G10: 0 | H10: 0 | I10: 0 | L10: 0 | M10: 0 | N10: 0 | Q10: 0 | R10: 0 | S10: 0 | V10: 0 | W10: 0 | X10: 0 | AA10: 0 | AB10: 0 | AC10: 0 | AF10: 0
A11: Product 6 | B11: 0 | C11: 0 | F11: 0 | G11: 0 | H11: 0 | I11: 0 | L11: 0 | M11: 0 | N11: 0 | Q11: 0 | R11: 0 | S11: 0 | V11: 0 | W11: 0 | X11: 0 | AA11: 0 | AB11: 0 | AC11: 0 | AF11: 0
A12: Product 7 | B12: 0 | C12: 0 | F12: 0 | G12: 0 | H12: 0 | I12: 0 | L12: 0 | M12: 0 | N12: 0 | Q12: 0 | R12: 0 | S12: 0 | V12: 0 | W12: 0 | X12: 0 | AA12: 0 | AB12: 0 | AC12: 0 | AF12: 0
A13: Product 8 | B13: 0 | C13: 0 | F13: 0 | G13: 0 | H13: 0 | I13: 0 | L13: 0 | M13: 0 | N13: 0 | Q13: 0 | R13: 0 | S13: 0 | V13: 0 | W13: 0 | X13: 0 | AA13: 0 | AB13: 0 | AC13: 0 | AF13: 0
A14: Product 9 | B14: 0 | C14: 0 | F14: 0 | G14: 0 | H14: 0 | I14: 0 | L14: 0 | M14: 0 | N14: 0 | Q14: 0 | R14: 0 | S14: 0 | V14: 0 | W14: 0 | X14: 0 | AA14: 0 | AB14: 0 | AC14: 0 | AF14: 0
A15: Product 10 | B15: 0 | C15: 0 | F15: 0 | G15: 0 | H15: 0 | I15: 0 | L15: 0 | M15: 0 | N15: 0 | Q15: 0 | R15: 0 | S15: 0 | V15: 0 | W15: 0 | X15: 0 | AA15: 0 | AB15: 0 | AC15: 0 | AF15: 0
A16: Rej 1 | B16: P0101300008 | C16: STB- 4SP, 150*150 Different lengths | F16: 1.0705 | G16: 0.5 | H16: P0100700015 | I16: STB- 4SP (SSS) , 150*150*12 M (52 MW) | L16: 1.0705 | M16: 0 | N16: 0 | Q16: 0 | R16: 0 | S16: 0 | V16: 0 | W16: 0 | X16: 0 | AA16: 0 | AB16: 0 | AC16: 0 | AF16: 0
A17: Rej 2 | B17: P0101300002 | C17: STB- 4SP, 130*130 Different lengths | F17: 0 | G17: 0 | H17: P0100700014 | I17: STB- 4SP (SSS) , 130*130*12 M ( 52 MW ) | L17: 0 | M17: 0 | N17: 0 | Q17: 0 | R17: 0 | S17: 0 | V17: 0 | W17: 0 | X17: 0 | AA17: 0 | AB17: 0 | AC17: 0 | AF17: 0
A18: Rej 3 | B18: P0101300002 | C18: STB- 4SP, 130*130 Different lengths | F18: 0 | G18: 0 | H18: P0100700001 | I18: STB- 4SP, 130*130*12 M ( 52 MW ) | L18: 0 | M18: 0 | N18: 0 | Q18: 0 | R18: 0 | S18: 0 | V18: 0 | W18: 0 | X18: 0 | AA18: 0 | AB18: 0 | AC18: 0 | AF18: 0
A19: Rej 4 | B19: 0 | C19: 0 | F19: 0 | G19: 0 | H19: 0 | I19: 0 | L19: 0 | M19: 0 | N19: 0 | Q19: 0 | R19: 0 | S19: 0 | V19: 0 | W19: 0 | X19: 0 | AA19: 0 | AB19: 0 | AC19: 0 | AF19: 0
A20: Rej 5 | B20: 0 | C20: 0 | F20: 0 | G20: 0 | H20: 0 | I20: 0 | L20: 0 | M20: 0 | N20: 0 | Q20: 0 | R20: 0 | S20: 0 | V20: 0 | W20: 0 | X20: 0 | AA20: 0 | AB20: 0 | AC20: 0 | AF20: 0
A21: Rej 6 | B21: 0 | C21: 0 | F21: 0 | G21: 0 | H21: 0 | I21: 0 | L21: 0 | M21: 0 | N21: 0 | Q21: 0 | R21: 0 | S21: 0 | V21: 0 | W21: 0 | X21: 0 | AA21: 0 | AB21: 0 | AC21: 0 | AF21: 0
A22: Rej 7 | B22: 0 | C22: 0 | F22: 0 | G22: 0 | H22: 0 | I22: 0 | L22: 0 | M22: 0 | N22: 0 | Q22: 0 | R22: 0 | S22: 0 | V22: 0 | W22: 0 | X22: 0 | AA22: 0 | AB22: 0 | AC22: 0 | AF22: 0
A23: Rej 8 | B23: 0 | C23: 0 | F23: 0 | G23: 0 | H23: 0 | I23: 0 | L23: 0 | M23: 0 | N23: 0 | Q23: 0 | R23: 0 | S23: 0 | V23: 0 | W23: 0 | X23: 0 | AA23: 0 | AB23: 0 | AC23: 0 | AF23: 0
A24: Rej 9 | B24: 0 | C24: 0 | F24: 0 | G24: 0 | H24: 0 | I24: 0 | L24: 0 | M24: 0 | N24: 0 | Q24: 0 | R24: 0 | S24: 0 | V24: 0 | W24: 0 | X24: 0 | AA24: 0 | AB24: 0 | AC24: 0 | AF24: 0
A25: Rej 10 | B25: 0 | C25: 0 | F25: 0 | G25: 0 | H25: 0 | I25: 0 | L25: 0 | M25: 0 | N25: 0 | Q25: 0 | R25: 0 | S25: 0 | V25: 0 | W25: 0 | X25: 0 | AA25: 0 | AB25: 0 | AC25: 0 | AF25: 0
A26: H&T&MR | B26: P0500600001 | C26: MISS ROLLED&HEAD&TAIL | F26: 11.96580814 | G26: 0 | H26: P0100700015 | I26: STB- 4SP (SSS) , 150*150*12 M (52 MW) | L26: 11.96580814 | M26: 0 | N26: 0 | Q26: 0 | R26: 0 | S26: 0 | V26: 0 | W26: 0 | X26: 0 | AA26: 0 | AB26: 0 | AC26: 0 | AF26: 0
A27: Shorts | B27: P0500400001 | C27: STR-SHORTS | F27: 30.495076 | G27: 0 | H27: P0100700015 | I27: STB- 4SP (SSS) , 150*150*12 M (52 MW) | L27: 30.495076 | M27: 0 | N27: 0 | Q27: 0 | R27: 0 | S27: 0 | V27: 0 | W27: 0 | X27: 0 | AA27: 0 | AB27: 0 | AC27: 0 | AF27: 0
A28: Cold Shear Cut | B28: P0500700001 | C28: COLD SHEAR CUT | F28: 15.40155353 | G28: 0 | H28: P0100700015 | I28: STB- 4SP (SSS) , 150*150*12 M (52 MW) | L28: 15.40155353 | M28: 0 | N28: 0 | Q28: 0 | R28: 0 | S28: 0 | V28: 0 | W28: 0 | X28: 0 | AA28: 0 | AB28: 0 | AC28: 0 | AF28: 0
A29: Suspended 1 | B29: P0501200005 | C29: STR- 18 MM, SUSPENDED & REJECTED | F29: 0 | G29: 0 | H29: P0100700015 | I29: STB- 4SP (SSS) , 150*150*12 M (52 MW) | L29: 0 | M29: 0 | N29: 0 | Q29: 0 | R29: 0 | S29: 0 | V29: 0 | W29: 0 | X29: 0 | AA29: 0 | AB29: 0 | AC29: 0 | AF29: 0
A30: Suspended 2 | B30: 0 | C30: 0 | F30: 0 | G30: 0 | H30: 0 | I30: 0 | L30: 0 | M30: 0 | N30: 0 | Q30: 0 | R30: 0 | S30: 0 | V30: 0 | W30: 0 | X30: 0 | AA30: 0 | AB30: 0 | AC30: 0 | AF30: 0
A31: Suspended 3 | B31: 0 | C31: 0 | F31: 0 | G31: 0 | H31: 0 | I31: 0 | L31: 0 | M31: 0 | N31: 0 | Q31: 0 | R31: 0 | S31: 0 | V31: 0 | W31: 0 | X31: 0 | AA31: 0 | AB31: 0 | AC31: 0 | AF31: 0
A32: Suspended 4 | B32: 0 | C32: 0 | F32: 0 | G32: 0 | H32: 0 | I32: 0 | L32: 0 | M32: 0 | N32: 0 | Q32: 0 | R32: 0 | S32: 0 | V32: 0 | W32: 0 | X32: 0 | AA32: 0 | AB32: 0 | AC32: 0 | AF32: 0
A33: Suspended 5 | B33: 0 | C33: 0 | F33: 0 | G33: 0 | H33: 0 | I33: 0 | L33: 0 | M33: 0 | N33: 0 | Q33: 0 | R33: 0 | S33: 0 | V33: 0 | W33: 0 | X33: 0 | AA33: 0 | AB33: 0 | AC33: 0 | AF33: 0
A34: Products | B34: =SUM(F6:F33) -> 1553.191662 | E34: Scales = | F34: =J34-B34 -> 20.4433385 | G34: 2.202682481e-13 | I34: Consumption | J34: =SUM(L6:L33,Q6:Q33,V6:V33,AA6:AA33,AF6:AF33) -> 1573.635 | K34: 0
A35: RM 2
A36: Item | B36: Production | H36: Consumption 1 | M36: Consumption 2 | R36: Consumption 3 | W36: Consumption 4 | AB36: Consumption 5
B37: Code | C37: Description | F37: Ton | G37: Par | H37: Code | I37: Description | L37: Ton | M37: Code | N37: Description | Q37: Ton | R37: Code | S37: Description | V37: Ton | W37: Code | X37: Description | AA37: Ton | AB37: Code | AC37: Description | AF37: Ton
A38: Product 1 | B38: P0600600038 | C38: SPOOLED REBAR, SIZE 22 MM, GRADE B 400 BWR | F38: 419.9611458 | G38: 202 | H38: P0100700015 | I38: STB- 4SP (SSS) , 150*150*12 M (52 MW) | L38: 425.8507268 | M38: 0 | N38: 0 | Q38: 0 | R38: 0 | S38: 0 | V38: 0 | W38: 0 | X38: 0 | AA38: 0 | AB38: 0 | AC38: 0 | AF38: 0
A39: Product 2 | B39: 0 | C39: 0 | F39: 0 | G39: 0 | H39: 0 | I39: 0 | L39: 0 | M39: 0 | N39: 0 | Q39: 0 | R39: 0 | S39: 0 | V39: 0 | W39: 0 | X39: 0 | AA39: 0 | AB39: 0 | AC39: 0 | AF39: 0
A40: Product 3 | B40: 0 | C40: 0 | F40: 0 | G40: 0 | H40: 0 | I40: 0 | L40: 0 | M40: 0 | N40: 0 | Q40: 0 | R40: 0 | S40: 0 | V40: 0 | W40: 0 | X40: 0 | AA40: 0 | AB40: 0 | AC40: 0 | AF40: 0
A41: Product 4 | B41: 0 | C41: 0 | F41: 0 | G41: 0 | H41: 0 | I41: 0 | L41: 0 | M41: 0 | N41: 0 | Q41: 0 | R41: 0 | S41: 0 | V41: 0 | W41: 0 | X41: 0 | AA41: 0 | AB41: 0 | AC41: 0 | AF41: 0
A42: Product 5 | B42: 0 | C42: 0 | F42: 0 | G42: 0 | H42: 0 | I42: 0 | L42: 0 | M42: 0 | N42: 0 | Q42: 0 | R42: 0 | S42: 0 | V42: 0 | W42: 0 | X42: 0 | AA42: 0 | AB42: 0 | AC42: 0 | AF42: 0
A43: Product 6 | B43: 0 | C43: 0 | F43: 0 | G43: 0 | H43: 0 | I43: 0 | L43: 0 | M43: 0 | N43: 0 | Q43: 0 | R43: 0 | S43: 0 | V43: 0 | W43: 0 | X43: 0 | AA43: 0 | AB43: 0 | AC43: 0 | AF43: 0
A44: Product 7 | B44: 0 | C44: 0 | F44: 0 | G44: 0 | H44: 0 | I44: 0 | L44: 0 | M44: 0 | N44: 0 | Q44: 0 | R44: 0 | S44: 0 | V44: 0 | W44: 0 | X44: 0 | AA44: 0 | AB44: 0 | AC44: 0 | AF44: 0
A45: Product 8 | B45: 0 | C45: 0 | F45: 0 | G45: 0 | H45: 0 | I45: 0 | L45: 0 | M45: 0 | N45: 0 | Q45: 0 | R45: 0 | S45: 0 | V45: 0 | W45: 0 | X45: 0 | AA45: 0 | AB45: 0 | AC45: 0 | AF45: 0
A46: Product 9 | B46: 0 | C46: 0 | F46: 0 | G46: 0 | H46: 0 | I46: 0 | L46: 0 | M46: 0 | N46: 0 | Q46: 0 | R46: 0 | S46: 0 | V46: 0 | W46: 0 | X46: 0 | AA46: 0 | AB46: 0 | AC46: 0 | AF46: 0
A47: Product 10 | B47: 0 | C47: 0 | F47: 0 | G47: 0 | H47: 0 | I47: 0 | L47: 0 | M47: 0 | N47: 0 | Q47: 0 | R47: 0 | S47: 0 | V47: 0 | W47: 0 | X47: 0 | AA47: 0 | AB47: 0 | AC47: 0 | AF47: 0
A48: Rej 1 | B48: P0101300008 | C48: STB- 4SP, 150*150 Different lengths | F48: 0 | G48: 0 | H48: P0100700015 | I48: STB- 4SP (SSS) , 150*150*12 M (52 MW) | L48: 0 | M48: 0 | N48: 0 | Q48: 0 | R48: 0 | S48: 0 | V48: 0 | W48: 0 | X48: 0 | AA48: 0 | AB48: 0 | AC48: 0 | AF48: 0
A49: Rej 2 | B49: P0101300002 | C49: STB- 4SP, 130*130 Different lengths | F49: 0 | G49: 0 | H49: P0100700014 | I49: STB- 4SP (SSS) , 130*130*12 M ( 52 MW ) | L49: 0 | M49: 0 | N49: 0 | Q49: 0 | R49: 0 | S49: 0 | V49: 0 | W49: 0 | X49: 0 | AA49: 0 | AB49: 0 | AC49: 0 | AF49: 0
A50: Rej 3 | B50: P0101300005 | C50: STB, 1006, 150*150, DIFF.LENGTH, R | F50: 0 | G50: 0 | H50: P0101500001 | I50: STB- 1006, 150*150*12 M | L50: 0 | M50: 0 | N50: 0 | Q50: 0 | R50: 0 | S50: 0 | V50: 0 | W50: 0 | X50: 0 | AA50: 0 | AB50: 0 | AC50: 0 | AF50: 0
A51: Rej 4 | B51: 0 | C51: 0 | F51: 0 | G51: 0 | H51: 0 | I51: 0 | M51: 0 | N51: 0 | Q51: 0 | R51: 0 | S51: 0 | V51: 0 | W51: 0 | X51: 0 | AA51: 0 | AB51: 0 | AC51: 0 | AF51: 0
A52: Rej 5 | B52: 0 | C52: 0 | F52: 0 | G52: 0 | H52: 0 | I52: 0 | L52: 0 | M52: 0 | N52: 0 | Q52: 0 | R52: 0 | S52: 0 | V52: 0 | W52: 0 | X52: 0 | AA52: 0 | AB52: 0 | AC52: 0 | AF52: 0
A53: Rej 6 | B53: 0 | C53: 0 | F53: 0 | G53: 0 | H53: 0 | I53: 0 | L53: 0 | M53: 0 | N53: 0 | Q53: 0 | R53: 0 | S53: 0 | V53: 0 | W53: 0 | X53: 0 | AA53: 0 | AB53: 0 | AC53: 0 | AF53: 0
A54: Rej 7 | B54: 0 | C54: 0 | F54: 0 | G54: 0 | H54: 0 | I54: 0 | L54: 0 | M54: 0 | N54: 0 | Q54: 0 | R54: 0 | S54: 0 | V54: 0 | W54: 0 | X54: 0 | AA54: 0 | AB54: 0 | AC54: 0 | AF54: 0
A55: Rej 8 | B55: 0 | C55: 0 | F55: 0 | G55: 0 | H55: 0 | I55: 0 | L55: 0 | M55: 0 | N55: 0 | Q55: 0 | R55: 0 | S55: 0 | V55: 0 | W55: 0 | X55: 0 | AA55: 0 | AB55: 0 | AC55: 0 | AF55: 0
A56: Rej 9 | B56: 0 | C56: 0 | F56: 0 | G56: 0 | H56: 0 | I56: 0 | L56: 0 | M56: 0 | N56: 0 | Q56: 0 | R56: 0 | S56: 0 | V56: 0 | W56: 0 | X56: 0 | AA56: 0 | AB56: 0 | AC56: 0 | AF56: 0
A57: Rej 10 | B57: 0 | C57: 0 | F57: 0 | G57: 0 | H57: 0 | I57: 0 | L57: 0 | M57: 0 | N57: 0 | Q57: 0 | R57: 0 | S57: 0 | V57: 0 | W57: 0 | X57: 0 | AA57: 0 | AB57: 0 | AC57: 0 | AF57: 0
A58: H&T&MR | B58: P0500600001 | C58: MISS ROLLED&HEAD&TAIL | F58: 6.550335125 | G58: 0 | H58: P0100700015 | I58: STB- 4SP (SSS) , 150*150*12 M (52 MW) | L58: 6.550335125 | M58: 0 | N58: 0 | Q58: 0 | R58: 0 | S58: 0 | V58: 0 | W58: 0 | X58: 0 | AA58: 0 | AB58: 0 | AC58: 0 | AF58: 0
A59: Trimming | B59: P0601300002 | C59: Trimming | F59: 2.643628647 | G59: 0 | H59: P0100700015 | I59: STB- 4SP (SSS) , 150*150*12 M (52 MW) | L59: 2.643628647 | M59: 0 | N59: 0 | Q59: 0 | R59: 0 | S59: 0 | V59: 0 | W59: 0 | X59: 0 | AA59: 0 | AB59: 0 | AC59: 0 | AF59: 0
A60: Suspended 1 | B60: P0601200009 | C60: SUSPENDED SPOOL, 22 MM | F60: 18 | G60: 9 | H60: P0100700015 | I60: STB- 4SP (SSS) , 150*150*12 M (52 MW) | L60: 18 | M60: 0 | N60: 0 | Q60: 0 | R60: 0 | S60: 0 | V60: 0 | W60: 0 | X60: 0 | AA60: 0 | AB60: 0 | AC60: 0 | AF60: 0
A61: Suspended 2 | B61: 0 | C61: 0 | F61: 0 | G61: 0 | H61: 0 | I61: 0 | L61: 0 | M61: 0 | N61: 0 | Q61: 0 | R61: 0 | S61: 0 | V61: 0 | W61: 0 | X61: 0 | AA61: 0 | AB61: 0 | AC61: 0 | AF61: 0
A62: Suspended 3 | B62: 0 | C62: 0 | F62: 0 | G62: 0 | H62: 0 | I62: 0 | L62: 0 | M62: 0 | N62: 0 | Q62: 0 | R62: 0 | S62: 0 | V62: 0 | W62: 0 | X62: 0 | AA62: 0 | AB62: 0 | AC62: 0 | AF62: 0
A63: Suspended 4 | B63: 0 | C63: 0 | F63: 0 | G63: 0 | H63: 0 | I63: 0 | L63: 0 | M63: 0 | N63: 0 | Q63: 0 | R63: 0 | S63: 0 | V63: 0 | W63: 0 | X63: 0 | AA63: 0 | AB63: 0 | AC63: 0 | AF63: 0
A64: Suspended 5 | B64: 0 | C64: 0 | F64: 0 | G64: 0 | H64: 0 | I64: 0 | L64: 0 | M64: 0 | N64: 0 | Q64: 0 | R64: 0 | S64: 0 | V64: 0 | W64: 0 | X64: 0 | AA64: 0 | AB64: 0 | AC64: 0 | AF64: 0
A65: Products | B65: =SUM(F37:F64) -> 447.1551096 | E65: Scales = | F65: =J65-B65 -> 5.889580977 | G65: 0 | I65: Consumption | J65: 453.0446906 | K65: 0

Sheet 21
A1: MACC PRD report | E1: Rolling Mill Plant
A2: Date: | C2: 21 | D2: March | E2: 2019
A3: RM 1
A4: Item | B4: Production | H4: Consumption 1 | M4: Consumption 2 | R4: Consumption 3 | W4: Consumption 4 | AB4: Consumption 5
B5: Code | C5: Description | F5: Ton | G5: Par | H5: Code | I5: Description | L5: Ton | M5: Code | N5: Description | Q5: Ton | R5: Code | S5: Description | V5: Ton | W5: Code | X5: Description | AA5: Ton | AB5: Code | AC5: Description | AF5: Ton
A6: Product 1 | B6: P0501300008 | C6: STR- B 500 BWR, 12 MM, 12 M | F6: 1008.456823 | G6: 497 | H6: P0100700015 | I6: STB- 4SP (SSS) , 150*150*12 M (52 MW) | L6: 1024.015282 | M6: 0 | N6: 0 | Q6: 0 | R6: 0 | S6: 0 | V6: 0 | W6: 0 | X6: 0 | AA6: 0 | AB6: 0 | AC6: 0 | AF6: 0
A7: Product 2 | B7: P0501300005 | C7: STR- B 500 BWR, 18 MM, 12 M | F7: 113.6256669 | G7: 56 | H7: P0100700015 | I7: STB- 4SP (SSS) , 150*150*12 M (52 MW) | L7: 113.6256669 | M7: 0 | N7: 0 | Q7: 0 | R7: 0 | S7: 0 | V7: 0 | W7: 0 | X7: 0 | AA7: 0 | AB7: 0 | AC7: 0 | AF7: 0
A8: Product 3 | B8: 0 | C8: 0 | F8: 0 | G8: 0 | H8: 0 | I8: 0 | L8: 0 | M8: 0 | N8: 0 | Q8: 0 | R8: 0 | S8: 0 | V8: 0 | W8: 0 | X8: 0 | AA8: 0 | AB8: 0 | AC8: 0 | AF8: 0
A9: Product 4 | B9: 0 | C9: 0 | F9: 0 | G9: 0 | H9: 0 | I9: 0 | L9: 0 | M9: 0 | N9: 0 | Q9: 0 | R9: 0 | S9: 0 | V9: 0 | W9: 0 | X9: 0 | AA9: 0 | AB9: 0 | AC9: 0 | AF9: 0
A10: Product 5 | B10: 0 | C10: 0 | F10: 0 | G10: 0 | H10: 0 | I10: 0 | L10: 0 | M10: 0 | N10: 0 | Q10: 0 | R10: 0 | S10: 0 | V10: 0 | W10: 0 | X10: 0 | AA10: 0 | AB10: 0 | AC10: 0 | AF10: 0
A11: Product 6 | B11: 0 | C11: 0 | F11: 0 | G11: 0 | H11: 0 | I11: 0 | L11: 0 | M11: 0 | N11: 0 | Q11: 0 | R11: 0 | S11: 0 | V11: 0 | W11: 0 | X11: 0 | AA11: 0 | AB11: 0 | AC11: 0 | AF11: 0
A12: Product 7 | B12: 0 | C12: 0 | F12: 0 | G12: 0 | H12: 0 | I12: 0 | L12: 0 | M12: 0 | N12: 0 | Q12: 0 | R12: 0 | S12: 0 | V12: 0 | W12: 0 | X12: 0 | AA12: 0 | AB12: 0 | AC12: 0 | AF12: 0
A13: Product 8 | B13: 0 | C13: 0 | F13: 0 | G13: 0 | H13: 0 | I13: 0 | L13: 0 | M13: 0 | N13: 0 | Q13: 0 | R13: 0 | S13: 0 | V13: 0 | W13: 0 | X13: 0 | AA13: 0 | AB13: 0 | AC13: 0 | AF13: 0
A14: Product 9 | B14: 0 | C14: 0 | F14: 0 | G14: 0 | H14: 0 | I14: 0 | L14: 0 | M14: 0 | N14: 0 | Q14: 0 | R14: 0 | S14: 0 | V14: 0 | W14: 0 | X14: 0 | AA14: 0 | AB14: 0 | AC14: 0 | AF14: 0
A15: Product 10 | B15: 0 | C15: 0 | F15: 0 | G15: 0 | H15: 0 | I15: 0 | L15: 0 | M15: 0 | N15: 0 | Q15: 0 | R15: 0 | S15: 0 | V15: 0 | W15: 0 | X15: 0 | AA15: 0 | AB15: 0 | AC15: 0 | AF15: 0
A16: Rej 1 | B16: P0101300008 | C16: STB- 4SP, 150*150 Different lengths | F16: 6.388636364 | G16: 3 | H16: P0100700015 | I16: STB- 4SP (SSS) , 150*150*12 M (52 MW) | L16: 6.388636364 | M16: 0 | N16: 0 | Q16: 0 | R16: 0 | S16: 0 | V16: 0 | W16: 0 | X16: 0 | AA16: 0 | AB16: 0 | AC16: 0 | AF16: 0
A17: Rej 2 | B17: P0101300002 | C17: STB- 4SP, 130*130 Different lengths | F17: 0 | G17: 0 | H17: P0100700014 | I17: STB- 4SP (SSS) , 130*130*12 M ( 52 MW ) | L17: 0 | M17: 0 | N17: 0 | Q17: 0 | R17: 0 | S17: 0 | V17: 0 | W17: 0 | X17: 0 | AA17: 0 | AB17: 0 | AC17: 0 | AF17: 0
A18: Rej 3 | B18: P0101300002 | C18: STB- 4SP, 130*130 Different lengths | F18: 0 | G18: 0 | H18: P0100700001 | I18: STB- 4SP, 130*130*12 M ( 52 MW ) | L18: 0 | M18: 0 | N18: 0 | Q18: 0 | R18: 0 | S18: 0 | V18: 0 | W18: 0 | X18: 0 | AA18: 0 | AB18: 0 | AC18: 0 | AF18: 0
A19: Rej 4 | B19: 0 | C19: 0 | F19: 0 | G19: 0 | H19: 0 | I19: 0 | L19: 0 | M19: 0 | N19: 0 | Q19: 0 | R19: 0 | S19: 0 | V19: 0 | W19: 0 | X19: 0 | AA19: 0 | AB19: 0 | AC19: 0 | AF19: 0
A20: Rej 5 | B20: 0 | C20: 0 | F20: 0 | G20: 0 | H20: 0 | I20: 0 | L20: 0 | M20: 0 | N20: 0 | Q20: 0 | R20: 0 | S20: 0 | V20: 0 | W20: 0 | X20: 0 | AA20: 0 | AB20: 0 | AC20: 0 | AF20: 0
A21: Rej 6 | B21: 0 | C21: 0 | F21: 0 | G21: 0 | H21: 0 | I21: 0 | L21: 0 | M21: 0 | N21: 0 | Q21: 0 | R21: 0 | S21: 0 | V21: 0 | W21: 0 | X21: 0 | AA21: 0 | AB21: 0 | AC21: 0 | AF21: 0
A22: Rej 7 | B22: 0 | C22: 0 | F22: 0 | G22: 0 | H22: 0 | I22: 0 | L22: 0 | M22: 0 | N22: 0 | Q22: 0 | R22: 0 | S22: 0 | V22: 0 | W22: 0 | X22: 0 | AA22: 0 | AB22: 0 | AC22: 0 | AF22: 0
A23: Rej 8 | B23: 0 | C23: 0 | F23: 0 | G23: 0 | H23: 0 | I23: 0 | L23: 0 | M23: 0 | N23: 0 | Q23: 0 | R23: 0 | S23: 0 | V23: 0 | W23: 0 | X23: 0 | AA23: 0 | AB23: 0 | AC23: 0 | AF23: 0
A24: Rej 9 | B24: 0 | C24: 0 | F24: 0 | G24: 0 | H24: 0 | I24: 0 | L24: 0 | M24: 0 | N24: 0 | Q24: 0 | R24: 0 | S24: 0 | V24: 0 | W24: 0 | X24: 0 | AA24: 0 | AB24: 0 | AC24: 0 | AF24: 0
A25: Rej 10 | B25: 0 | C25: 0 | F25: 0 | G25: 0 | H25: 0 | I25: 0 | L25: 0 | M25: 0 | N25: 0 | Q25: 0 | R25: 0 | S25: 0 | V25: 0 | W25: 0 | X25: 0 | AA25: 0 | AB25: 0 | AC25: 0 | AF25: 0
A26: H&T&MR | B26: P0500600001 | C26: MISS ROLLED&HEAD&TAIL | F26: 22.63704689 | G26: 0 | H26: P0100700015 | I26: STB- 4SP (SSS) , 150*150*12 M (52 MW) | L26: 22.63704689 | M26: 0 | N26: 0 | Q26: 0 | R26: 0 | S26: 0 | V26: 0 | W26: 0 | X26: 0 | AA26: 0 | AB26: 0 | AC26: 0 | AF26: 0
A27: Shorts | B27: P0500400001 | C27: STR-SHORTS | F27: 22.94045898 | G27: 0 | H27: P0100700015 | I27: STB- 4SP (SSS) , 150*150*12 M (52 MW) | L27: 22.94045898 | M27: 0 | N27: 0 | Q27: 0 | R27: 0 | S27: 0 | V27: 0 | W27: 0 | X27: 0 | AA27: 0 | AB27: 0 | AC27: 0 | AF27: 0
A28: Cold Shear Cut | B28: P0500700001 | C28: COLD SHEAR CUT | F28: 11.58609039 | G28: 0 | H28: P0100700015 | I28: STB- 4SP (SSS) , 150*150*12 M (52 MW) | L28: 11.58609039 | M28: 0 | N28: 0 | Q28: 0 | R28: 0 | S28: 0 | V28: 0 | W28: 0 | X28: 0 | AA28: 0 | AB28: 0 | AC28: 0 | AF28: 0
A29: Suspended 1 | B29: P0501200002 | C29: STR- 12 MM, SUSPENDED & REJECTED | F29: 2 | G29: 1 | H29: P0100700015 | I29: STB- 4SP (SSS) , 150*150*12 M (52 MW) | L29: 2 | M29: 0 | N29: 0 | Q29: 0 | R29: 0 | S29: 0 | V29: 0 | W29: 0 | X29: 0 | AA29: 0 | AB29: 0 | AC29: 0 | AF29: 0
A30: Suspended 2 | B30: 0 | C30: 0 | F30: 0 | G30: 0 | H30: 0 | I30: 0 | L30: 0 | M30: 0 | N30: 0 | Q30: 0 | R30: 0 | S30: 0 | V30: 0 | W30: 0 | X30: 0 | AA30: 0 | AB30: 0 | AC30: 0 | AF30: 0
A31: Suspended 3 | B31: 0 | C31: 0 | F31: 0 | G31: 0 | H31: 0 | I31: 0 | L31: 0 | M31: 0 | N31: 0 | Q31: 0 | R31: 0 | S31: 0 | V31: 0 | W31: 0 | X31: 0 | AA31: 0 | AB31: 0 | AC31: 0 | AF31: 0
A32: Suspended 4 | B32: 0 | C32: 0 | F32: 0 | G32: 0 | H32: 0 | I32: 0 | L32: 0 | M32: 0 | N32: 0 | Q32: 0 | R32: 0 | S32: 0 | V32: 0 | W32: 0 | X32: 0 | AA32: 0 | AB32: 0 | AC32: 0 | AF32: 0
A33: Suspended 5 | B33: 0 | C33: 0 | F33: 0 | G33: 0 | H33: 0 | I33: 0 | L33: 0 | M33: 0 | N33: 0 | Q33: 0 | R33: 0 | S33: 0 | V33: 0 | W33: 0 | X33: 0 | AA33: 0 | AB33: 0 | AC33: 0 | AF33: 0
A34: Products | B34: =SUM(F6:F33) -> 1187.634723 | E34: Scales = | F34: =J34-B34 -> 15.55845909 | G34: 2.202682481e-13 | I34: Consumption | J34: =SUM(L6:L33,Q6:Q33,V6:V33,AA6:AA33,AF6:AF33) -> 1203.193182 | K34: 0
A35: RM 2
A36: Item | B36: Production | H36: Consumption 1 | M36: Consumption 2 | R36: Consumption 3 | W36: Consumption 4 | AB36: Consumption 5
B37: Code | C37: Description | F37: Ton | G37: Par | H37: Code | I37: Description | L37: Ton | M37: Code | N37: Description | Q37: Ton | R37: Code | S37: Description | V37: Ton | W37: Code | X37: Description | AA37: Ton | AB37: Code | AC37: Description | AF37: Ton
